Workbook

Sheet ITEMS
A1: RIESGO | D1: ALTA | F1: 1 | I1: Riesgo Estratégico: Se asocia con la forma en que se administra la Entidad. El manejo del riesgo estratégico se Enfoca a asuntos globales relacionados con la misión y el cumplimiento de los objetivos estratégicos, la clara definición de políticas, diseño y conceptualización de la entidad por parte de la alta gerencia. | L1: CORRECTIVO | M1: Oportunidad Estratégica: Se asocia con la forma en que se administra la Entidad. El manejo de la oportunidad estratégica se Enfoca a asuntos globales relacionados con la misión y el cumplimiento de los objetivos estratégicos, la clara definición de políticas, diseño y conceptualización de la entidad por parte de la alta gerencia. | P1: PROBABILIDAD | R1: 0 | S1: 0 | T1: 0 | U1: 0 | V1: 0 | W1: FUERTE
A2: OPORTUNIDAD | D2: MEDIA | F2: 2 | I2: Riesgos de Imagen: Están relacionados con la percepción y la confianza por parte de la ciudadanía hacia la institución. | L2: PREVENTIVO | M2: Oportunidad de Imagen: Está relacionada con la percepción y la confianza por parte de la ciudadanía hacia la institución. | P2: IMPACTO | R2: 15 | S2: 30 | T2: 25 | U2: 10 | V2: 5 | W2: MODERADO
D3: BAJA | F3: 3 | I3: Riesgos Operativos: Comprenden riesgos provenientes del funcionamiento y operatividad de los sistemas de información institucional, de la definición de los procesos, de la estructura de la entidad, de la articulación entre dependencias. | M3: Oportunidad Operativa: Comprenden oportunidades provenientes del funcionamiento y operatividad de los sistemas de información institucional, de la definición de los procesos, de la estructura de la entidad, de la articulación entre dependencias. | U3: 15 | V3: 10 | W3: DEBIL
F4: 4 | I4: Riesgos Financieros: Se relacionan con el manejo de los recursos de la entidad que incluyen: la ejecución presupuestal, la elaboración de los estados financieros, los pagos, manejos de excedentes de tesorería y el manejo sobre los bienes. | M4: Oportunidades Financieras: Se relacionan con el manejo de los recursos de la entidad que incluyen: la ejecución presupuestal, la elaboración de los estados financieros, los pagos, manejos de excedentes de tesorería y el manejo sobre los bienes.
F5: 5 | I5: Riesgos de Cumplimiento: Se asocian con la capacidad de la entidad para cumplir con los requisitos legales, contractuales, de ética pública y en general con su compromiso ante la comunidad. | M5: Oportunidades de Cumplimiento: Se asocian con la capacidad de la entidad para cumplir con los requisitos legales, contractuales, de ética pública y en general con su compromiso ante la comunidad.
I6: Riesgos de Tecnología: Están relacionados con la capacidad tecnológica de la Entidad para satisfacer sus necesidades actuales y futuras y el cumplimiento de la misión. | M6: Oportunidades de Tecnología: Están relacionados con la capacidad tecnológica de la Entidad para satisfacer sus necesidades actuales y futuras y el cumplimiento de la misión.

Sheet INICIO
C2: MACROPROCESO ESTRATÉGICO | P2: CÓDIGO: ESGr028
C3: PROCESO GESTIÓN SISTEMAS INTEGRADOS - CALIDAD | P3: VERSIÓN: 17
C4: GESTIÓN DEL RIESGO Y LAS OPORTUNIDADES | P4: VIGENCIA: 2023-10-12
P5: PÁGINA: 1 de 11
C10: MENÚ DE NAVEGACIÓN
C12: GESTIÓN DEL RIESGO EN LA UNIVERSIDAD DE CUNDINAMARCA
E16: ESTRATÉGICOS | L16: CORRUPCIÓN
E25: SEGURIDAD DE LA INFORMACIÓN | L25: SISTEMAS DE GESTIÓN
P28: Control de cambios

Sheet INICIO (2)
C2: MACROPROCESO ESTRATÉGICO | P2: CÓDIGO: ESGr028
C3: PROCESO GESTIÓN SISTEMAS INTEGRADOS - CALIDAD | P3: VERSIÓN: 17
C4: GESTIÓN DEL RIESGO Y LAS OPORTUNIDADES | P4: VIGENCIA: 2023-10-12
P5: PÁGINA: 5 de 11
C8: MENÚ DE NAVEGACIÓN
B9: INICIO
C10: GESTIÓN DEL RIESGO EN LA UNIVERSIDAD DE CUNDINAMARCA

Sheet ESTRATÉGICOS
D2: MACROPROCESO ESTRATÉGICO | N2: CÓDIGO: ESGr028
D3: PROCESO GESTIÓN SISTEMAS INTEGRADOS - CALIDAD | N3: VERSIÓN: 17
D4: GESTIÓN DEL RIESGO Y LAS OPORTUNIDADES | N4: VIGENCIA: 2022-06-10
N5: PÁGINA: 2 de11
C6: REGRESAR
B8: IDENTIFICACIÓN DEL RIESGO ESTRATÉGICO | J8: RIESGOS OPERATIVOS QUE APORTAN A LA ESTRATEGIA
B9: ID | C9: FRENTE ESTRATÉGICO: OBJETIVO DE CALIDAD | D9: RIESGO ESTRATÉGICO | E9: PROBABILIDAD | F9: IMPACTO | G9: VALORACIÓN | H9: NIVEL | I9: INDICADOR DE EFICACIA | J9: PROCESOS INVOLUCRADOS | K9: RIESGO OPERATIVO | L9: PROBABILIDAD DE OCURRENCIA RESIDUAL | M9: MAGNITUD DEL IMPACTO RESIDUAL | N9: VALORACIÓN RESIDUAL | O9: NIVEL RESIDUAL

Sheet CORRUPCIÓN
D2: MACROPROCESO ESTRATÉGICO | P2: CÓDIGO: ESGr028
D3: PROCESO GESTIÓN SISTEMAS INTEGRADOS | P3: VERSIÓN: 17
D4: GESTIÓN DEL RIESGO Y LAS OPORTUNIDADES | P4: VIGENCIA: 2023-10-12
P5: PÁGINA: 3 de 11
C8: REGRESAR
B9: IDENTIFICACIÓN DEL RIESGO | I9: TRATAMIENTO DEL RIESGO
B10: ID | C10: MACROPROCESO | D10: PROCESO | E10: RIESGO | F10: CLASIFICACIÓN | G10: CAUSA | H10: CONSECUENCIA | I10: PROBABILIDAD | J10: IMPACTO | K10: RIESGO RESIDUAL | L10: OPCIÓN MANEJO | M10: ACTIVIDADES DE CONTROL | N10: SOPORTE | O10: RESPONSABLE | P10: TIEMPO | Q10: INDICADOR
B11: 1 | C11: Misional | D11: Admisiones y Registro | E11: Recibir dadivas para la modificación de la información contenida en la plataforma institucional como (notas) y/o de las certificaciones de los estudiantes favoreciendo a particulares, debido a la de falta de ética de los funcionarios | F11: Corrupción | G11: Amiguismo o influencia de un tercero | H11: Procesos Disciplinarios . Perdida de la buena imagen de la institución | I11: Probable | J11: Catastrófico | K11: Extremo | L11: Evitar | M11: Difusión y capacitación a todos los funcionarios del proceso, Jornadas de sensibilización para la actuación ética y moral en el manejo de información confidencial. | N11: Actas de capacitación | O11: Jefe de Admisión y Registro Juan Manuel Cruz Banoy | P11: Semestral | Q11: N° Capacitaciones
B12: 2 | C12: Misional | D12: Admisiones y Registro | E12: Recibir dadivas para la modificación de la información contenida en la plataforma institucional. Que se puede presentar en los procesos de selección de los estudiantes | F12: Corrupción | G12: Amiguismo o influencia de un tercero | H12: Procesos Disciplinarios . Perdida de la buena imagen de la institución | I12: Probable | J12: Catastrófico | K12: Extremo | L12: Evitar | M12: Difusión y capacitación a todos los funcionarios del proceso, Jornadas de sensibilización para la actuación ética y moral en el manejo de información confidencial. | N12: Actas de capacitación | O12: Jefe de Admisión y Registro Juan Manuel Cruz Banoy | P12: semestral | Q12: N° Capacitaciones

Sheet MATRIZ SGSI
D2: MACROPROCESO ESTRATÉGICO | P2: CÓDIGO: ESGr028
D3: PROCESO GESTIÓN SISTEMAS INTEGRADOS -CALIDAD | P3: VERSIÓN: 17
D4: GESTIÓN DEL RIESGO Y LAS OPORTUNIDADES | P4: VIGENCIA: 2023-10-12
P5: PÁGINA: 4 de 11
B8: REGRESAR
B10: PROCESO:
B11: OBJETIVO
B13: IDENTIFICACIÓN DE RIESGOS | I13: VALORACIÓN DE RIESGOS | L13: TRATAMIENTO DEL RIESGO
B14: ACTIVO O GRUPO DE ACTIVOS | C14: IDENTIFICADOR DEL RIESGO | D14: RIESGO | E14: DESCRIPCIÓN DEL RIESGO | F14: VULNERABILIDADES | G14: AMENAZAS | H14: CONSECUENCIAS | I14: PROBABILIDAD | J14: IMPACTO | K14: RIESGO INHERENTE | L14: OPCIÓN TRATAMIENTO | M14: OBJETIVO DE CONTROL | N14: ACTIVIDAD DE CONTROL | O14: SOPORTE | P14: RESPONSABLE | Q14: TIEMPO

Sheet CRITERIOS
C2: MACROPROCESO ESTRATÉGICO | I2: CÓDIGO: ESGr028
C3: PROCESO GESTIÓN SISTEMAS INTEGRADOS | I3: VERSIÓN: 16
C4: GESTIÓN DEL RIESGO Y LAS OPORTUNIDADES | I4: VIGENCIA: 2022-06-10
I5: PÁGINA: 1 de 6
B8: TIPOLOGÍA DE RIESGOS
B9: RIESGO ESTRATÉGICO | C9: RIESGO ESTRATÉGICO: posibilidad de ocurrencia de eventos que afecten los objetivos estratégicos de la organización pública y por tanto impactan toda la entidad.
B10: RIESGO GERENCIAL | C10: RIESGO GERENCIAL: Posibilidad de ocurrencia de eventos que afecten los procesos gerenciales y/o la alta dirección.
B11: RIESGO OPERATIVO | C11: RIESGO OPERATIVO: Posibilidad de ocurrencia de eventos que afecten los procesos misionales de la entidad.
B12: RIESGO FINANCIERO | C12: RIESGO FINANCIERO: Posibilidad de ocurrencia de eventos que afecten los estados financieros y todas aquellas áreas involucradas con el proceso financiero como presupuesto, tesorería, contabilidad, cartera, central de cuentas, costos, etc.
B13: RIESGO TECNOLÓGICO | C13: RIESGO TECNOLÓGICO: Posibilidad de ocurrencia de eventos que afecten la totalidad o parte de la infraestructura tecnológica (hardware, software, redes, etc.) de una entidad.
B14: RIESGO DE CUMPLIMIENTO | C14: RIESGO DE CUMPLIMIENTO: Posibilidad de ocurrencia de eventos que afecten la situación jurídica o contractual de la organización debido a su incumplimiento o desacato a la normatividad legal y las obligaciones contractuales.
B15: RIESGO DE IMAGEN O REPUTACIONAL | C15: RIESGO DE IMAGEN O REPUTACIONAL: posibilidad de ocurrencia de un evento que afecte la imagen, buen nombre o reputación de una organización ante sus clientes y partes interesadas.
B16: RIESGO DE CORRUPCIÓN | C16: RIESGO DE CORRUPCIÓN: Posibilidad de que, por acción u omisión, se use el poder para desviar la gestión de lo público hacia un beneficio privado.
B17: RIESGO DE SEGURIDAD DIGITAL | C17: RIESGO DE SEGURIDAD DIGITAL: Posibilidad de combinación de amenazas y vulnerabilidades en el entorno digital. Puede debilitar el logro de objetivos económicos y sociales, afectar la soberanía nacional, la integridad territorial, el orden constitucional y los intereses nacionales. Incluye aspectos relacionados con el ambiente físico, digital y las personas.
B22: CRITERIOS PARA CALIFICAR LA PROBABILIDAD
B23: NIVEL | C23: INTERPRETACIÓN | D23: POR DESCRIPCIÓN | E23: POR FRECUENCIA
B24: 5 | C24: CASI SEGURO | D24: Se espera que el evento ocurra en la mayoría de las circunstancias. | E24: Más de 1 vez al año.
B25: 4 | C25: PROBABLE | D25: Es viable que el evento ocurra en la mayoría de las circunstancias. | E25: Al menos 1 vez en el último año.
B26: 3 | C26: POSIBLE | D26: El evento podrá ocurrir en algún momento. | E26: Al menos 1 vez en los últimos 2 años.
B27: 2 | C27: IMPROBABLE | D27: El evento puede ocurrir en algún momento. | E27: Al menos 1 vez en los últimos 5 años.
B28: 1 | C28: RARA VEZ | D28: El evento puede ocurrir solo en circunstancias excepcionales (poco comunes o anormales). | E28: No se ha presentado en los últimos 5 años.
A33: CRITERIOS PARA CALIFICAR EL IMPACTO - RIESGOS DE GESTIÓN
A34: NIVEL | B34: INTERPRETACIÓN | C34: IMPACTO (CONSECUENCIAS) CUANTITATIVO | D34: IMPACTO (CONSECUENCIAS) - CUALITATIVO
A35: 5 | B35: CATASTRÓFICO | C35: * Impacto que afecte la ejecución presupuestal en un valor ≤50%. * Pérdida de cobertura en la prestación de los servicios de la entidad ≤50%. * Pago de indemnizaciones a terceros por acciones legales que pueden afectar presupuesto total de la entidad en un valor ≤50%. * Pago de sanciones económicas por incumplimiento en la normatividad aplicable ante un ente regulador, las cuales afectan en un valor ≤50% del presupuesto general de la entidad. | D35: * Interrupción de las operaciones de la entidad por más de cinco (5) días. * Intervención por parte de un ente de control u otro ente regulador. * Pérdida de información crítica para la entidad que no se puede recuperar. * Incumplimiento en las metas y objetivos institucionales afectando de forma grave la ejecución presupuestal. * Imagen institucional afectada en el orden nacional o regional por actos o hechos de corrupción comprobados.
A36: 4 | B36: MAYOR | C36: * Impacto que afecte la ejecución presupuestal en un valor ≤20%. * Pérdida de cobertura en la prestación de los servicios de la entidad ≤20%. * Pago de indemnizaciones a terceros por acciones legales que pueden afectar el presupuesto total de la entidad en un valor ≤20%. * Pago de sanciones económicas por incumplimiento en la normatividad aplicable ante un ente regulador, las cuales afectan en un valor ≤20% del presupuesto general de la entidad. | D36: * Interrupción de las operaciones de la entidad por más de dos (2) días. * Pérdida de información crítica que puede ser recuperada de forma parcial o incompleta. * Sanción por parte del ente de control u otro ente regulador. * Incumplimiento en las metas y objetivos institucionales afectando el cumplimiento en las metas de gobierno. * Imagen institucional afectada en el orden nacional o regional por incumplimientos en la prestación del servicio a los usuarios o ciudadanos.
A37: 3 | B37: MODERADO | C37: * Impacto que afecte la ejecución presupuestal en un valor ≤5%. * Pérdida de cobertura en la prestación de los servicios de la entidad ≤10%. * Pago de indemnizaciones a terceros por acciones legales que pueden afectar el presupuesto total de la entidad en un valor ≤5%. * Pago de sanciones económicas por incumplimiento en la normatividad aplicable ante un ente regulador, las cuales afectan en un valor ≤5% del presupuesto general de la entidad. | D37: * Interrupción de las operaciones de la entidad por un (1) día. * Reclamaciones o quejas de los usuarios que podrían implicar una denuncia ante los entes reguladores o una demanda de largo alcance para la entidad. * Inoportunidad en la información, ocasionando retrasos en la atención a los usuarios. * Reproceso de actividades y aumento de carga operativa. * Imagen institucional afectada en el orden nacional o regional por retrasos en la prestación del servicio a los usuarios o ciudadanos. * Investigaciones penales, fiscales o disciplinarias.
A38: 2 | B38: MENOR | C38: * Impacto que afecte la ejecución presupuestal en un valor ≤1%. * Pérdida de cobertura en la prestación de los servicios de la entidad ≤5%. * Pago de indemnizaciones a terceros por acciones legales que pueden afectar el presupuesto total de la entidad en un valor ≤1%. * Pago de sanciones económicas por incumplimiento en la normatividad aplicable ante un ente regulador, las cuales afectan en un valor ≤1% del presupuesto general de la entidad. | D38: * Interrupción de las operaciones de la entidad por algunas horas. * Reclamaciones o quejas de los usuarios, que implican investigaciones internas disciplinarias. * Imagen institucional afectada localmente por retrasos en la prestación del servicio a los usuarios o ciudadanos.
A39: 1 | B39: INSIGNIFICANTE | C39: * Impacto que afecte la ejecución presupuestal en un valor ≤0,5%. * Pérdida de cobertura en la prestación de los servicios de la entidad ≤1%. * Pago de indemnizaciones a terceros por acciones legales que pueden afectar el presupuesto total de la entidad en un valor ≤0,5%. * Pago de sanciones económicas por incumplimiento en la normatividad aplicable ante un ente regulador, las cuales afectan en un valor ≤0,5% del presupuesto general de la entidad. | D39: * No hay interrupción de las operaciones de la entidad. * No se generan sanciones económicas o administrativas. * No se afecta la imagen institucional de forma significativa.
B44: ANÁLISIS Y EVALUACIÓN DE LOS CONTROLES PARA LA MITIGACIÓN DE LOS RIESGOS
B45: CRITERIO DE EVALUACIÓN | C45: ASPECTO A EVALUAR EN EL DISEÑO DEL CONTROL | D45: OPCIONES DE RESPUESTA
B46: 1. RESPONSABLE | C46: ¿Existe un responsable asignado a la ejecu­ción del control? | D46: Asignado | E46: No Asignado
C47: ¿El responsable tiene la autoridad y adecua­da segregación de funciones en la ejecución del control? | D47: Adecuado | E47: Inadecuado
B48: 2. PERIODICIDAD | C48: ¿La oportunidad en que se ejecuta el control ayuda a prevenir la mitigación del riesgo o a detectar la materialización del riesgo de ma­nera oportuna? | D48: Oportuna | E48: Inoportuna
B49: 3. PROPÓSITO | C49: ¿Las actividades que se desarrollan en el control realmente buscan por si sola prevenir o detectar las causas que pueden dar origen al riesgo, ejemplo Verificar, Validar Cotejar, Comparar, Revisar, etc.? | D49: Prevenir o detectar | E49: No es un control
B50: 4. COMO REALIZAR LA ACTIVIDAD DE CONTROL | C50: ¿La fuente de información que se utiliza en el desarrollo del control es información confia­ble que permita mitigar el riesgo?. | D50: Confiable | E50: No confiable
B51: 5. QUE PASA CON LAS OBSERVACIONES O DESVIACIONES | C51: ¿Las observaciones, desviaciones o dife­rencias identificadas como resultados de la ejecución del control son investigadas y re­sueltas de manera oportuna? | D51: Se investigan y resuelven oportunamente | E51: No se investigan y resuelven oportunamente
B52: 6. EVIDENCIA DE LA EJECUCIÓN DEL CONTROL | C52: ¿Se deja evidencia o rastro de la ejecución del control, que permita a cualquier tercero con la evidencia, llegar a la misma conclusión?. | D52: Completa | E52: Incompleta/No existe
B57: PESO O PARTICIPACIÓN DE CADA VARIABLE EN EL DISEÑO DEL CONTROL PARA LA MITIGACIÓN DEL RIESGO
B58: CRITERIO DE EVALUACIÓN | C58: OPCIÓN DE RESPUESTA AL CRITERIO DE EVALUACIÓN | D58: PESO EN LA EVALUACIÓN DEL DISEÑO DEL CONTROL
B59: 11. ASIGNACIÓN DEL RESPONSABLE | C59: Asignado | D59: 15
C60: No asignado | D60: 0
B61: 12. SEGREGACIÓN Y AUTORIDAD DEL RESPONSABLE | C61: Adecuado | D61: 15
C62: Inadecuado | D62: 0
B63: 2. PERIODICIDAD | C63: Oportuna | D63: 15
C64: Inoportuna | D64: 0
B65: 3. PROPÓSITO | C65: Prevenir | D65: 15
C66: Detectar | D66: 10
C67: No es un control | D67: 0
B68: 4. COMO SE REALIZA LA ACTIVIDAD DE CONTROL | C68: Confiable | D68: 15
C69: No confiable | D69: 0
B70: 5. QUE PASA CON LAS OBSERVACIONES O DESVIACIONES | C70: Se investigan y resuelven oportunamente | D70: 15
C71: No se investigan y resuelven oportunamente | D71: 0
B72: 6. EVIDENCIA DE LA EJECUCIÓN DEL CONTROL | C72: Completa | D72: 10
C73: Incompleta | D73: 5
C74: No existe | D74: 0
B79: RESULTADOS DE LA EVALUACIÓN DEL DISEÑO DEL CONTROL
B80: RANGO DE CALIFICACIÓN DEL DISEÑO | C80: RESULTADO - PESO EN LA EVALUACIÓN DEL DISEÑO DEL CONTROL
B81: Fuerte | C81: Calificación entre 96 y 100
B82: Moderado | C82: Calificación entre 86 y 95
B83: Débil | C83: Calificación entre 0 y 85
B88: RESULTADOS DE LA EVALUACIÓN DE LA EJECUCIÓN DEL CONTROL
B89: RANGO DE CALIFICACIÓN DE LA EJECUCIÓN | C89: RESULTADO - PESO DE LA EJECUCIÓN DEL CONTROL -
B90: Fuerte | C90: El control se ejecuta de manera consistente por parte del responsable.
B91: Moderado | C91: El control se ejecuta algunas veces por parte del responsable.
B92: Débil | C92: El control no se ejecuta por parte del responsable.
B97: ANÁLISIS Y EVALUACIÓN DE LOS CONTROLES PARA LA MITIGACIÓN DE LOS RIESGOS
B98: PESO INDIVIDUAL DEL DISEÑO (DISEÑO) | C98: EL CONTROL SE EJECUTA DE MANERA CONSISTENTE POR LOS RESPONSABLES (EJECUCIÓN) | D98: SOLIDEZ INDIVIDUAL DE CADA CONTROL FUERTE:100 MODERADO: 50 DÉBIL: 0 | E98: PESO EN LA EVALUACIÓN DEL DISEÑO DEL CONTROL SI / NO
B99: Fuerte calificación entre 96 y 100 | C99: Fuerte (siempre se ejecuta) | D99: fuerte + fuerte = fuerte | E99: NO
C100: Moderado (algunas veces) | D100: fuerte + moderado = moderado | E100: SI
C101: Débil (no se ejecuta) | D101: fuerte + débil = débil | E101: SI
B102: Moderado calificación entre 86 y 95 | C102: Fuerte (siempre se ejecuta) | D102: moderado + fuerte = moderado | E102: SI
C103: Moderado (algunas veces) | D103: moderado + moderado = moderado | E103: SI
C104: Débil (no se ejecuta) | D104: moderado + débil = débil | E104: SI
B105: Débil calificación entre 0 y 85 | C105: Fuerte (siempre se ejecuta) | D105: débil + fuerte = débil | E105: SI
C106: Moderado (algunas veces) | D106: débil + moderado = débil | E106: SI
C107: Débil (no se ejecuta) | D107: débil + débil = débil | E107: SI
B112: RESULTADOS DE LOS POSIBLES DESPLAZAMIENTOS DE LA PROBABILIDAD Y DEL IMPACTO DE LOS RIESGOS
B113: SOLIDEZ DEL CONJUNTO DE LOS CONTROLES | C113: CONTROLES AYUDAN A DISMINUIR LA PROBABILIDAD | D113: CONTROLES AYUDAN A DISMINUIR IMPACTO | E113: # COLUMNAS EN LA MATRIZ DE RIESGO QUE SE DESPLAZA EN EL EJE DE LA PROBABILIDAD | F113: # COLUMNAS EN LA MATRIZ DE RIESGO QUE SE DESPLAZA EN EL EJE DE IMPACTO
B114: Fuerte | C114: Directamente | D114: Directamente | E114: 2 | F114: 2
B115: Fuerte | C115: Directamente | D115: Indirectamente | E115: 2 | F115: 1
B116: Fuerte | C116: Directamente | D116: No disminuye | E116: 2 | F116: 0
B117: Fuerte | C117: No disminuye | D117: Directamente | E117: 0 | F117: 2
B118: Moderado | C118: Directamente | D118: Directamente | E118: 1 | F118: 1
B119: Moderado | C119: Directamente | D119: Indirectamente | E119: 1 | F119: 0
B120: Moderado | C120: Directamente | D120: No disminuye | E120: 1 | F120: 0
B121: Moderado | C121: No disminuye | D121: Directamente | E121: 0 | F121: 1
B145: CRITERIOS 2020
B148: CLASIFICACIÓN DEL RIESGO | C148: RELACIÓN | D148: FACTORES DE RIESGOS | E148: DESCRIPCIÓN
B149: EJECUCIÓN Y ADMINISTRACIÓN DE PROCESOS: Pérdidas derivadas de errores en la ejecución y administración de procesos. | D149: Procesos: Eventos relacionados con errores en las actividades que deben realizar los servidores de la organización. | E149: - Falta de procedimientos - Errores de grabación, autorización - Errores en cálculos para pagos internos y externos - Falta de capacitación
B150: FRAUDE EXTERNO: Pérdida derivada de actos de fraude por personas ajenas a la organización (no participa personal de la entidad). | D150: Evento externo: Situaciones externas que afectan la entidad | E150: - Suplantación de identidad - Asalto a la oficina - Atentados, vandalismo, orden público
B151: FRAUDE INTERNO: Pérdida debido a actos de fraude, actuaciones irregulares, comisión de hechos delictivos abuso de confianza, apropiación indebida, incumplimiento de regulaciones legales o internas de la entidad en las cuales está involucrado por lo menos 1 participante interno de la organización, son realizadas de forma intencional y/o con ánimo de lucro para sí mismo o para terceros. | D151: Talento humano: Incluye seguridad y salud en el trabajo. Se analiza posible dolo e intención frente a la corrupción. | E151: - Hurto activos - Posibles comportamientos no éticos de los empleados - Fraude interno (corrupción, soborno)
B152: FALLAS TECNOLÓGICAS: Errores en hardware, software, telecomunicaciones, interrupción de servicios básicos. | D152: Tecnología: Eventos relacionados con la infraestructura tecnológica de la entidad. | E152: - Daño de equipos - Caída de aplicaciones - Caída de redes - Errores en programas
B153: DAÑOS A ACTIVOS FIJOS/ EVENTOS EXTERNOS: Pérdida por daños o extravíos de los activos fijos por desastres naturales u otros riesgos/eventos externos como atentados, vandalismo, orden público. | D153: Infraestructura: Eventos relacionados con la infraestructura física de la entidad. | E153: - Derrumbes - Incendios - Inundaciones - Daños a activos fijos
B154: USUARIOS, PRODUCTOS Y PRÁCTICAS: Fallas negligentes o involuntarias de las obligaciones frente a los usuarios y que impiden satisfacer una obligación profesional frente a éstos. | D154: Pueden asociarse a varios factores
B155: RELACIONES LABORALES: Pérdidas que surgen de acciones contrarias a las leyes o acuerdos de empleo, salud o seguridad, del pago de demandas por daños personales o de discriminación.
B163: Tabla 3 Actividades relacionadas con la gestión en entidades públicas
B164: ACTIVIDAD | C164: FRECUENCIA DE LA ACTIVIDAD | D164: PROBABILIDAD FRENTE AL RIESGO
B165: Planeación estratégica | C165: 1 vez al año | D165: Muy baja
B166: Actividades de talento humano, jurídica, administrativa | C166: Mensual | D166: Media
B167: Contabilidad, cartera | C167: Semanal | D167: Alta
B168: *Tecnología (incluye disponibilidad de aplicativos), tesorería *Nota: En materia de tecnología se tiene en cuenta 1 hora funcionamiento = 1 vez. Ej.: Aplicativo FURAG está disponible durante 2 meses las 24 horas, en consecuencia su frecuencia se calcularía 60 días * 24 horas= 1440 horas. | C168: Diaria | D168: Muy alta
B174: Tabla 4 Criterios para definir el nivel de probabilidad
C175: FRECUENCIA DE LA ACTIVIDAD | D175: PROBABILIDAD
B176: Muy Baja | C176: La actividad que conlleva el riesgo se ejecuta como máximo 2 veces por año | D176: 0.2 | E176: MUY BAJA: La actividad que conlleva el riesgo se ejecuta como máximos 2 veces por año
B177: Baja | C177: La actividad que conlleva el riesgo se ejecuta de 3 a 10 veces por año | D177: 0.4 | E177: BAJA: La actividad que conlleva el riesgo se ejecuta de 3 a 10 veces por año
B178: Media | C178: La actividad que conlleva el riesgo se ejecuta de 11 a 30 veces por año | D178: 0.6 | E178: MEDIA: La actividad que conlleva el riesgo se ejecuta de 11 a 30 veces por año
B179: Alta | C179: La actividad que conlleva el riesgo se ejecuta mínimo 31 veces al año y máximo 100 veces por año | D179: 0.8 | E179: ALTA: La actividad que conlleva el riesgo se ejecuta mínimo 31 veces al año y máximo 100 veces por año
B180: Muy Alta | C180: La actividad que conlleva el riesgo se ejecuta más de 100 veces por año | D180: 1 | E180: MUY ALTA: La actividad que conlleva el riesgo se ejecuta más de 100 veces por año
F185: Figura 14 Matriz de calor (niveles de severidad del riesgo)
B186: Tabla 5 Criterios para definir el nivel de impacto
B187: NIVEL | C187: AFECTACIÓN ECONÓMICA | D187: REPUTACIONAL | H187: IMPACTO
B188: Leve 20% | C188: Afectación menor a 10 SMLMV . | D188: El riesgo afecta la imagen de algún área de la organización. | F188: PROBABILIDAD | G188: Muy Alta 100% | N188: Extremo
B189: Menor 40% | C189: Entre 10 y 50 SMLV | D189: El riesgo afecta la imagen de la entidad internamente, deconocimiento general nivel interno, de junta directiva y accionistas y/o de proveedores. | E189: PREVENTIVO | G189: Alta 80% | N189: Alto
B190: Moderado 60% | C190: Entre 50 y 100 SMLMV | D190: El riesgo afecta la imagen de la entidad con algunos usuarios de relevancia frente al logro de los objetivos. | E190: DETECTIVO | G190: Media 60% | N190: Moderado
B191: Mayor 80% | C191: Entre 100 y 500 SMLMV | D191: El riesgo afecta la imagen de la entidad con efecto publicitario sostenido a nivel de sector administrativo, nivel departamental o municipal. | E191: CORRECTIVO | G191: Baja 40% | N191: Bajo
B192: Catastrófico 100% | C192: Mayor a 500 SMLMV | D192: El riesgo afecta la imagen de la entidad a nivel nacional, con efecto publicitario sostenido a nivel país | G192: Muy Baja 20%
C193: El riesgo afecta la imagen de algún área de la organización.
C194: El riesgo afecta la imagen de la entidad internamente, deconocimiento general nivel interno, de junta directiva y accionistas y/o de proveedores.
C195: El riesgo afecta la imagen de la entidad con algunos usuarios de relevancia frente al logro de los objetivos.
C196: El riesgo afecta la imagen de la entidad con efecto publicitario sostenido a nivel de sector administrativo, nivel departamental o municipal.
C197: El riesgo afecta la imagen de la entidad a nivel nacional, con efecto publicitario sostenido a nivel país
B200: Tabla 6 Atributos de para el diseño del control
B201: CARACTERISTICAS | D201: DESCRIPCIÓN | E201: PESO
B202: Atributos de eficiencia | C202: Tipo | D202: Preventivo: Va hacia las causas del riesgo, aseguran el resultado final esperado. | E202: 0.25
D203: Detectivo: Detecta que algo ocurre y devuelve el proceso a los controles preventivos. Se pueden generar reprocesos. | E203: 0.15
D204: Correctivo: Dado que permiten reducir el impacto de la materialización del riesgo, tienen un costo en su implementación. | E204: 0.1
C205: Implementación | D205: Automático: Son actividades de procesamiento o validación de información que se ejecutan por un sistema y/o aplicativo de manera automática sin la intervención de personas para su realización. | E205: 0.25 | F205: AUTOMÁTICO
D206: Manual: Controles que son ejecutados por una persona, tiene implícito el error humano. | E206: 0.15 | F206: MANUAL
B207: Atributos informativos | C207: Documentación | D207: Documentado: Controles que están documentados en el proceso, ya sea en manuales, procedimientos, flujogramas o cualquier otro documento propio del proceso. | E207: -
D208: Sin documentar: Identifica a los controles que pese a que se ejecutan en el proceso no se encuentran documentados en ningún documento propio del proceso. | E208: -
C209: Frecuencia | D209: Continua: El control se aplica siempre que se realiza la actividad que conlleva el riesgo. | E209: -
D210: Aleatoria: El control se aplica aleatoriamente a la actividad que conlleva el riesgo. | E210: -
C211: Evidencia | D211: Con registro: El control deja un registro permite evidencia la ejecución del control. | E211: -
D212: Sin registro: El control no deja registro de la ejecución del control. | E212: -
B216: Tabla 7 Aplicación tabla atributos a ejemplo propuesto
B217: CONTROLES Y SUS CARACTERÍSTICAS | F217: PESO
B218: Control 1 El profesional del área de contratos verifica que la información suministrada por el proveedor corresponda con los requisitos establecidos de contratación a través de una lista de chequeo donde están los requisitos de información y la revisión con la información física suministrada por el proveedor, los contratos que cumplen son registrados en el sistema de información de contratación. | C218: Tipo | D218: Preventivo | E218: X | F218: 0.25
D219: Detectivo
D220: Correctivo
C221: Implementación | D221: Automático
D222: Manual | E222: X | F222: 0.15
C223: Documentación | D223: Documentado | E223: X | F223: -
D224: Sin documentar | F224: -
C225: Frecuencia | D225: Continua | E225: X | F225: -
D226: Aleatoria | F226: -
C227: Evidencia | D227: Con registro | E227: X | F227: -
D228: Sin registro | F228: -
B229: TOTAL VALORACIÓN CONTROL 1 | F229: 0.4
C233: PERIODICIDAD
B234: 1 | C234: DIARIA
B235: 2 | C235: SEMANAL
B236: 3 | C236: MENSUAL
B237: 4 | C237: TRIMESTRAL
B238: 5 | C238: SEMESTRAL
C239: ANUAL
C240: CADA VEZ QUE SE PRESENTE LA NECESIDAD
B242: Código Serie Documental (Ver Tabla de Retención Documental)
B243: Diagonal 18 No. 20-29 Fusagasugá – Cundinamarca Teléfono (601) 8281483 Línea Gratuita 018000180414 www.ucundinamarca.edu.co E-mail: info@ucundinamarca.edu.co NIT: 890.680.062-2
B245: Documento controlado por el Sistema de Gestión de la Calidad Asegúrese que corresponde a la última versión consultando el Portal Institucional

Sheet Hoja1

Sheet IDENTIFICACIÓN DOFA
C2: MACROPROCESO ESTRATÉGICO | N2: CÓDIGO: ESGr028
C3: PROCESO GESTIÓN SISTEMAS INTEGRADOS - CALIDAD | N3: VERSIÓN: 17
C4: GESTIÓN DEL RIESGO Y LAS OPORTUNIDADES | N4: VIGENCIA: 2023-10-12
N5: PÁGINA: 6 de 11
B8: CONTEXTO - DOFA | D8: PARTES INTERESADAS | L8: TOTAL | M8: PORCENTAJE | N8: INTERPRETACIÓN
A9: REGRESAR | D9: Ministerio de Educación | E9: Ente Gubernamental | F9: Procesos Internos | G9: Comunidad en General | H9: Estudiantes | I9: Asociaciones y Egresados | J9: Alta Dirección | K9: Otros
B10: DEBILIDADES | C10: ESTADO | D10: 0.15 | E10: 0.1 | F10: 0.1 | G10: 0.08 | H10: 0.3 | I10: 0.07 | J10: 0.15 | K10: 0.05 | L10: =SUM(D10:K10) -> 1 | M10: =+L10 -> 1
B11: Inestabilidad laboral (en la renovación de los contratos) de algunos funcionarios adscritos a la oficina. | C11: 0 | L11: 0 | M11: =+SUMPRODUCT(D$10:K$10,D11:K11)/5 -> 0 | N11: =IF(M11<=0.6,"BAJO IMPACTO",IF(M11<=0.8,"MEDIO IMPACTO RECOMENDABLE EVALUARLO EN EL RIESGO",IF(M11<=1,"ALTO IMPACTO OBLIGATORIO ARTICULARLA A UNO DE LOS RIESGOS"))) -> BAJO IMPACTO
B12: En las seccionales y extensiones no se cuenta con las condiciones adecuadas para la conservación de los documentos. | C12: 0 | L12: 0 | M12: 0 | N12: =IF(M12<=0.6,"BAJO IMPACTO",IF(M12<=0.8,"MEDIO IMPACTO RECOMENDABLE EVALUARLO EN EL RIESGO",IF(M12<=1,"ALTO IMPACTO OBLIGATORIO ARTICULARLA A UNO DE LOS RIESGOS"))) -> BAJO IMPACTO
B13: D1. Dependencia de otras áreas para la ejecución de las actividades del proceso y actualización de desarrollos propios | C13: 1 | D13: 3 | E13: 1 | F13: 5 | G13: 1 | H13: 5 | I13: 3 | J13: 5 | K13: 2 | L13: 25 | M13: 0.738 | N13: =IF(M13<=0.6,"BAJO IMPACTO",IF(M13<=0.8,"MEDIO IMPACTO RECOMENDABLE EVALUARLO EN EL RIESGO",IF(M13<=1,"ALTO IMPACTO OBLIGATORIO ARTICULARLA A UNO DE LOS RIESGOS"))) -> MEDIO IMPACTO RECOMENDABLE EVALUARLO EN EL RIESGO
B14: D2. Los consejos de Facultad y las direcciones de programa no envían oportunamente a la oficina de Admisiones y Registro actas de sustentación y vistos buenos, para iniciar el proceso de Revisión de carpeta para grados. | C14: 1 | D14: 2 | E14: 2 | F14: 4 | G14: 1 | H14: 5 | I14: 1 | J14: 4 | K14: 2 | L14: 21 | M14: 0.65 | N14: MEDIO IMPACTO RECOMENDABLE EVALUARLO EN EL RIESGO
A15: ocultar | B15: D3. Retrazo del envio de la informacion por parte de la entidad bancaria para el cargue de archivos planos por tesoreria de los pagos realizados por de los estudiantes y aspirantes. | C15: 0 | D15: 3 | E15: 3 | F15: 3 | G15: 1 | H15: 3 | I15: 1 | J15: 4 | K15: 2 | L15: 20 | M15: 0.56 | N15: BAJO IMPACTO
B16: D4. Cargue de notas fuera de los tiempos establecidos en el calendario académico, con visto bueno de la viceacademica. | C16: 0 | D16: 2 | E16: 1 | F16: 4 | G16: 1 | H16: 5 | I16: 1 | J16: 4 | K16: 2 | L16: 20 | M16: 0.63 | N16: MEDIO IMPACTO RECOMENDABLE EVALUARLO EN EL RIESGO
B17: D5. Falta de sistematización del proceso de "perdida de condición de estudiante" | C17: 0 | D17: 3 | E17: 2 | F17: 5 | G17: 1 | H17: 5 | I17: 1 | J17: 5 | K17: 4 | L17: 26 | M17: 0.75 | N17: MEDIO IMPACTO RECOMENDABLE EVALUARLO EN EL RIESGO
B18: D6. Falta asegurar la gestión del conocimiento en el proceso. | C18: 1 | D18: 2 | E18: 2 | F18: 4 | G18: 2 | H18: 4 | I18: 2 | J18: 3 | K18: 2 | L18: 21 | M18: 0.59 | N18: BAJO IMPACTO
B19: No contar con la técnica en materia de inclusión para ofrecer a cabalidad los servicios del proceso de admisiones a los aspirantes y estudiantes vulnerables y en condición de discapacidad | C19: 0 | L19: =SUM(D19:K19) -> 0 | M19: =+SUMPRODUCT(D$10:K$10,D19:K19)/5 -> 0 | N19: BAJO IMPACTO
B20: Falta restauración de la infraestructura (ventanilla) de la oficina sede Fusagasugá para facilitar la atención al público. | C20: 0 | L20: 0 | M20: 0 | N20: BAJO IMPACTO
A21: ocultar | B21: D7. Falta fortalecer el pilar estratégico de la transhumanidad en el proceso (ambiente laboral) | C21: 0 | D21: 2 | E21: 2 | F21: 5 | G21: 2 | H21: 4 | I21: 3 | J21: 5 | K21: 3 | L21: 26 | M21: 0.694 | N21: MEDIO IMPACTO RECOMENDABLE EVALUARLO EN EL RIESGO
B22: Falta fortalecer canales de comunicación con las partes interesadas | C22: 0 | L22: 0 | M22: 0 | N22: BAJO IMPACTO
B23: Centralización de funciones y decisiones del proceso en la sede principal. | C23: 0 | L23: 0 | M23: 0 | N23: BAJO IMPACTO
B24: Falta realizar la totalidad de capacitaciones y/o inducciones al personal del proceso | C24: 0 | L24: 0 | M24: 0 | N24: BAJO IMPACTO
B25: D8. Falta realizar seguimiento al incumplimiento de metas frente a los indicadores del proceso | C25: 1 | D25: 2 | E25: 2 | F25: 5 | G25: 1 | H25: 4 | I25: 2 | J25: 5 | K25: 2 | L25: 23 | M25: 0.654 | N25: MEDIO IMPACTO RECOMENDABLE EVALUARLO EN EL RIESGO
B26: Falta mejorar la oportunidad y calidad en la prestación del servicio vía telefónica | C26: 0 | L26: 0 | M26: 0 | N26: BAJO IMPACTO
B27: Cruce de información en el proceso en cuanto a los reportes emitidos por los estudiantes. | C27: 0 | L27: 0 | M27: 0 | N27: BAJO IMPACTO
A28: ocultar | B28: D9. Falta de presentación oportuna de los compromisos del Sistema de Gestión de la Calidad | C28: 0 | D28: 2 | E28: 2 | F28: 4 | G28: 1 | H28: 4 | I28: 3 | J28: 3 | K28: 3 | L28: 22 | M28: 0.598 | N28: BAJO IMPACTO
A29: ocultar | B29: D10. Falta de bases de datos vigentes y oportunas para la trazabilidad de estudiantes de reingreso y devolución de matrícula y graduados. | C29: 0 | D29: 4 | E29: 1 | F29: 5 | G29: 1 | H29: 5 | I29: 2 | J29: 4 | K29: 4 | L29: 26 | M29: 0.744 | N29: MEDIO IMPACTO RECOMENDABLE EVALUARLO EN EL RIESGO
B30: Falta de control de porta diplomas por crecimiento de la demanda de graduados | C30: 0 | L30: 0 | M30: 0 | N30: BAJO IMPACTO
B31: D9. Falta de parametrización de herramientas en el criterio de vocación profesional (entrevistas), que permitan su digitalización, para estandarizar los criterios, metodología de aplicación y fiabilidad de los resultados. | C31: 1 | D31: 3 | E31: 3 | F31: 5 | G31: 4 | H31: 1 | I31: 3 | J31: 5 | K31: 3 | L31: 27 | M31: 0.596 | N31: BAJO IMPACTO
B32: D10. Alta rotación de personal y fuga de capital intelectual que genera impacto en la operación del proceso. | C32: 1 | D32: 2 | E32: 2 | F32: 5 | G32: 3 | H32: 4 | I32: 2 | J32: 5 | K32: 3 | L32: =SUM(D32:K32) -> 26 | M32: =+SUMPRODUCT(D$10:K$10,D32:K32)/5 -> 0.696 | N32: =IF(M32<=0.6,"BAJO IMPACTO",IF(M32<=0.8,"MEDIO IMPACTO RECOMENDABLE EVALUARLO EN EL RIESGO",IF(M32<=1,"ALTO IMPACTO OBLIGATORIO ARTICULARLA A UNO DE LOS RIESGOS"))) -> MEDIO IMPACTO RECOMENDABLE EVALUARLO EN EL RIESGO
B33: AMENAZAS
B34: A1. Hackers y virus informáticos | C34: 1 | D34: 2 | E34: 2 | F34: 4 | G34: 3 | H34: 4 | I34: 1 | J34: 3 | K34: 2 | L34: =SUM(D34:K34) -> 21 | M34: =+SUMPRODUCT(D$10:K$10,D34:K34)/5 -> 0.592 | N34: BAJO IMPACTO
B35: A2. Actualizaciones o ventanas de mantenimiento de la plataforma del ICFES | C35: 1 | D35: 3 | E35: 3 | F35: 5 | G35: 5 | H35: 2 | I35: 1 | J35: 5 | K35: 3 | L35: 27 | M35: 0.644 | N35: MEDIO IMPACTO RECOMENDABLE EVALUARLO EN EL RIESGO
A36: ocultar | B36: A7. Falta de interés por parte del aspirante en consultar el Instructivo en el portal web. | C36: 0 | D36: 1 | E36: 1 | F36: 2 | G36: 4 | H36: 4 | I36: 3 | J36: 1 | K36: 4 | L36: 20 | M36: 0.506 | N36: BAJO IMPACTO
B37: A3. Fenómenos naturales como inundaciones e incendios | C37: 1 | D37: 3 | E37: 3 | F37: 3 | G37: 2 | H37: 2 | I37: 2 | J37: 3 | K37: 1 | L37: 19 | M37: 0.49 | N37: BAJO IMPACTO
B38: A4. Paros Estudiantiles (Daños a la infraestructura y al personal de la oficina por manifestaciones de la comunidad universitaria y la comunidad en general) | C38: 1 | D38: 1 | E38: 1 | F38: 4 | G38: 4 | H38: 3 | I38: 1 | J38: 5 | K38: 3 | L38: 22 | M38: 0.568 | N38: BAJO IMPACTO
B39: Inconsistencias en los procesos de selección y contratación laboral. | C39: 0 | L39: 0 | M39: 0 | N39: BAJO IMPACTO
B40: Se carece de apoyo interinstitucional por parte del Gobierno y el Ministerio de Educación Nacional. | C40: 0 | L40: 0 | M40: 0 | N40: BAJO IMPACTO
A41: ocultar | B41: A6. Los tiempos de contratación de la universidad son dispendiosos. | C41: 0 | D41: 3 | E41: 1 | F41: 5 | G41: 3 | H41: 5 | I41: 1 | J41: 4 | K41: 4 | L41: 26 | M41: 0.732 | N41: MEDIO IMPACTO RECOMENDABLE EVALUARLO EN EL RIESGO
B42: Los tiempos para el trámite y giros de recursos económicos por parte de entes gubernamentales son demorados y son insuficientes. | C42: 0 | L42: =SUM(D42:K42) -> 0 | M42: =+SUMPRODUCT(D$10:K$10,D42:K42)/5 -> 0 | N42: BAJO IMPACTO
B43: A5. Grupos sociales que emiten información falsa sobre la universidad para la oferta académica y los proesos de admisión. | C43: 1 | D43: 1 | E43: 1 | F43: 3 | G43: 4 | H43: 3 | I43: 1 | J43: 5 | K43: 2 | L43: 20 | M43: 0.538 | N43: BAJO IMPACTO
B44: A8. Emergencia sanitaria a causa patógena (COVID-19) | C44: 1 | D44: 4 | E44: 4 | F44: 4 | G44: 4 | H44: 4 | I44: 4 | J44: 4 | K44: 4 | L44: 32 | M44: 0.8 | N44: MEDIO IMPACTO RECOMENDABLE EVALUARLO EN EL RIESGO
B45: Congestión e interrupción de los procesos y procedimientos externos. | C45: 0 | D45: 3 | E45: 1 | F45: 3 | G45: 1 | H45: 4 | I45: 1 | J45: 3 | K45: 2 | L45: 18 | M45: 0.55 | N45: BAJO IMPACTO
B46: A6. Ley de garantías a finales del IIPA 2021 y a principios del IPA 2022. | C46: 1 | D46: 3 | E46: 1 | F46: 3 | G46: 1 | H46: 4 | I46: 1 | J46: 3 | K46: 2 | L46: 18 | M46: 0.55 | N46: BAJO IMPACTO
B47: Daños a la infraestructura y al personal de la oficina por manifestaciones de la comunidad universitaria y la comunidad en general | L47: 0 | M47: 0 | N47: BAJO IMPACTO
B48: A6. Los aspirantes a programas académicos de pregrado, ofertados en cada vigencia no diligencian de manera correcta el registro del codigo AC ICFES en la inscripción dentro del formulario. | C48: 1 | D48: 3 | E48: 3 | F48: 5 | G48: 5 | H48: 1 | I48: 2 | J48: 5 | K48: 4 | L48: 28 | M48: 0.608 | N48: MEDIO IMPACTO RECOMENDABLE EVALUARLO EN EL RIESGO
B49: FORTALEZAS
B50: F1. Construcción y Disponibilidad de información estadística. | C50: 1 | D50: 4 | E50: 1 | F50: 4 | G50: 1 | H50: 4 | I50: 1 | J50: 4 | K50: 2 | L50: =SUM(D50:K50) -> 21 | M50: =+SUMPRODUCT(D$10:K$10,D50:K50)/5 -> 0.63 | N50: =IF(M50<=0.6,"BAJO IMPACTO",IF(M50<=0.8,"MEDIO IMPACTO RECOMENDABLE EVALUARLO",IF(M50<=1,"ALTO IMPACTO OBLIGATORIO ARTICULARLA A UNA DE LAS OPORTUNIDADES"))) -> MEDIO IMPACTO RECOMENDABLE EVALUARLO
B51: F2. Promoción y estrategia de divulgación de la oferta académica en la Universidad de Cundinamarca. | C51: 1 | D51: 2 | E51: 1 | F51: 3 | G51: 4 | H51: 4 | I51: 4 | J51: 4 | K51: 2 | L51: 24 | M51: 0.64 | N51: MEDIO IMPACTO RECOMENDABLE EVALUARLO
B52: Capacitaciones y socializaciones de los procedimientos de la oficina de admisiones en el equipo de trabajo | C52: 0 | L52: 0 | M52: 0 | N52: BAJO IMPACTO
B53: F3. Aplicativo informático Academusoft y los desarrollos informáticos que sistematizan la operatividad del proceso. | C53: 1 | D53: 4 | E53: 4 | F53: 4 | G53: 3 | H53: 5 | I53: 3 | J53: 5 | K53: 3 | L53: 31 | M53: 0.85 | N53: ALTO IMPACTO OBLIGATORIO ARTICULARLA A UNA DE LAS OPORTUNIDADES
B54: Claridad en el plan de acción del proceso, ya se establecieron metas para la vigencia actual | C54: 0 | L54: 0 | M54: 0 | N54: BAJO IMPACTO
B55: Distribución de Funciones de acuerdo a las habilidades del personal | C55: 0 | L55: 0 | M55: 0 | N55: BAJO IMPACTO
B56: Aumento y aprobación del presupuesto acorde a las necesidades del proceso | C56: 0 | L56: 0 | M56: 0 | N56: BAJO IMPACTO
B57: F4. Se cuenta con backups para la seguridad y trazabilidad de la información. | C57: 1 | D57: 3 | E57: 3 | F57: 5 | G57: 3 | H57: 5 | I57: 3 | J57: 5 | K57: 3 | L57: 30 | M57: 0.82 | N57: ALTO IMPACTO OBLIGATORIO ARTICULARLA A UNA DE LAS OPORTUNIDADES
B58: El proceso conoce y trabaja bajo la normatividad interna y externa | C58: 0 | L58: =SUM(D58:K58) -> 0 | M58: =+SUMPRODUCT(D$10:K$10,D58:K58)/5 -> 0 | N58: BAJO IMPACTO
A59: ocultar | B59: F5. Se planifican las actividades del proceso mediante el calendario académico | C59: 0 | D59: 3 | E59: 2 | F59: 5 | G59: 3 | H59: 5 | I59: 1 | J59: 4 | K59: 4 | L59: 27 | M59: 0.752 | N59: MEDIO IMPACTO RECOMENDABLE EVALUARLO
A60: ocultar | B60: F6. Se cuenta con indicadores que miden la gestión del proceso - Se toman acciones de mejora frente a los resultados de la medición de los indicadores del SGC | C60: 0 | D60: 3 | E60: 1 | F60: 5 | G60: 1 | H60: 3 | I60: 1 | J60: 3 | K60: 3 | L60: 20 | M60: 0.54 | N60: BAJO IMPACTO
B61: F8. Estructuración de guías para la atención a población priorizada y de caracterización | C61: 1 | D61: 4 | E61: 4 | F61: 5 | G61: 4 | H61: 5 | I61: 3 | J61: 5 | K61: 3 | L61: 33 | M61: 0.886 | N61: ALTO IMPACTO OBLIGATORIO ARTICULARLA A UNA DE LAS OPORTUNIDADES
A62: ocultar | B62: F9. Se comunica a las partes interesadas la actualización documental del proceso | C62: 0 | E62: 2 | F62: 5 | G62: 2 | H62: 5 | I62: 4 | J62: 5 | K62: 4 | L62: 27 | M62: 0.718 | N62: MEDIO IMPACTO RECOMENDABLE EVALUARLO
B63: F7. Personal suficiente para cumplir con los objetivos del proceso | C63: 0 | L63: 0 | M63: 0 | N63: BAJO IMPACTO
B64: F10. Se brinda acompañamiento a los aspirantes catalogados como poblaciones priorizadas para la culminación del proceso de selección. | C64: 1 | D64: 1 | E64: 1 | F64: 5 | G64: 3 | H64: 3 | I64: 1 | J64: 5 | K64: 2 | L64: 21 | M64: 0.562 | N64: BAJO IMPACTO
B65: Se brinda atención personalizada a la población estudiantil en condiciones de discapacidad o desventaja (aspirantes - estudiantes) | C65: 1 | D65: 3 | E65: 3 | F65: 4 | G65: 4 | H65: 4 | I65: 1 | J65: 2 | K65: 4 | L65: 25 | M65: 0.648 | N65: MEDIO IMPACTO RECOMENDABLE EVALUARLO
B66: F9. Se fortalece el desarrollo de la Translocalidad en el proceso, se participa en ferias universitarias cuando son programadas y efectuadas | C66: 0 | L66: 0 | M66: 0 | N66: BAJO IMPACTO
B67: Se aplican y se cumplen con los procesos de selección: ICFES - evaluación mediante dos momentos: entrevista virtual - entrevista personal. | C67: 1 | D67: 2 | E67: 1 | F67: 3 | G67: 5 | H67: 5 | I67: 4 | J67: 2 | K67: 5 | L67: 27 | M67: 0.686 | N67: MEDIO IMPACTO RECOMENDABLE EVALUARLO
B68: Se participa en las pausas activas para el bienestar de los funcionarios | C68: 0 | L68: =SUM(D68:K68) -> 0 | M68: =+SUMPRODUCT(D$10:K$10,D68:K68)/5 -> 0 | N68: BAJO IMPACTO
B69: Se cuenta con pasantes para el apoyo del cumplimiento de objetivos y metas del proceso | C69: 0 | L69: =SUM(D69:K69) -> 0 | M69: =+SUMPRODUCT(D$10:K$10,D69:K69)/5 -> 0 | N69: BAJO IMPACTO
B70: F11. Acompañamiento a los aspirantes en el proceso de inscripción (identificación de errores en el diligenciamiento del formulario de inscripción) y admitidos en la etapa de formalización de matricula (Socializaciones para el diligenciamiento de caracterización institucional) | C70: 1 | D70: 2 | E70: 2 | F70: 4 | G70: 5 | H70: 3 | I70: 1 | J70: 4 | K70: 3 | L70: =SUM(D70:K70) -> 24 | M70: =+SUMPRODUCT(D$10:K$10,D70:K70)/5 -> 0.604 | N70: =IF(M70<=0.6,"BAJO IMPACTO",IF(M70<=0.8,"MEDIO IMPACTO RECOMENDABLE EVALUARLO",IF(M70<=1,"ALTO IMPACTO OBLIGATORIO ARTICULARLA A UNA DE LAS OPORTUNIDADES"))) -> MEDIO IMPACTO RECOMENDABLE EVALUARLO
B71: OPORTUNIDADES
B72: O1. Demanda en la Educación virtual en programas de Postgrado. | C72: 0 | D72: 3 | E72: 2 | F72: 4 | G72: 4 | H72: 4 | I72: 4 | J72: 2 | K72: 4 | L72: =SUM(D72:K72) -> 27 | M72: =+SUMPRODUCT(D$10:K$10,D72:K72)/5 -> 0.67 | N72: MEDIO IMPACTO RECOMENDABLE EVALUARLO
A73: ocultar | B73: Crecimiento de la población estudiantil. | C73: 0 | L73: 0 | M73: 0 | N73: BAJO IMPACTO
B74: Baja competencia en la región donde hace presencia la Institución. | C74: 0 | L74: 0 | M74: 0 | N74: BAJO IMPACTO
B75: La expedición de la norma de Inclusión | C75: 0 | L75: 0 | M75: 0 | N75: BAJO IMPACTO
B76: O3. Articulación de la politica de gratuidad en la matricula | C76: 1 | D76: 5 | E76: 5 | F76: 4 | G76: 5 | H76: 3 | I76: 3 | J76: 5 | K76: 3 | L76: 33 | M76: 0.812 | N76: ALTO IMPACTO OBLIGATORIO ARTICULARLA A UNA DE LAS OPORTUNIDADES
B77: Adquisición de nuevos equipos tecnológicos. | C77: 0 | L77: 0 | M77: 0 | N77: BAJO IMPACTO
B78: Certificaciones ambientales. | C78: 0 | L78: =SUM(D78:K78) -> 0 | M78: =+SUMPRODUCT(D$10:K$10,D78:K78)/5 -> 0 | N78: BAJO IMPACTO
B79: O5. Alianzas estratégicas con empresas e instituciones de educación superior | C79: 1 | D79: 4 | E79: 4 | F79: 4 | G79: 4 | H79: 4 | I79: 4 | J79: 4 | K79: 4 | L79: 32 | M79: 0.8 | N79: MEDIO IMPACTO RECOMENDABLE EVALUARLO
B80: Actualización de documentación articulada a política de inclusión para garantizar la accesibilidad a todos los aspirantes (caracterización estudiantil) | C80: 0 | L80: 0 | M80: 0 | N80: BAJO IMPACTO
B81: Oferta en el mercado de mecanismos digitales que permiten identificar la población académica en condiciones de discapacidad y vulnerabilidad | C81: 0 | L81: 0 | M81: 0 | N81: BAJO IMPACTO
B82: O5. Socialización con colegios de la región acerca de la oferta acadaémica de Universidad de Cundinamarca; Participación en ferias y actividades de oferta académica | C82: 1 | D82: 1 | E82: 1 | F82: 4 | G82: 5 | H82: 5 | I82: 4 | J82: 5 | K82: 3 | L82: 28 | M82: 0.746 | N82: MEDIO IMPACTO RECOMENDABLE EVALUARLO
B83: Capacitación al personal del proceso en materia de inclusión | C83: 0 | L83: 0 | M83: 0 | N83: BAJO IMPACTO
B84: O6. Articulación con la estratégia transito a la U (Estudiantes de colegios públicos que dan incio a su formación universitaria a traves de campos de aprendizaje homologables en la seccional Soacha) | C84: 1 | D84: 3 | E84: 2 | F84: 4 | G84: 5 | H84: 5 | I84: 3 | J84: 5 | K84: 3 | L84: =SUM(D84:K84) -> 30 | M84: =+SUMPRODUCT(D$10:K$10,D84:K84)/5 -> 0.812 | N84: =IF(M84<=0.6,"BAJO IMPACTO",IF(M84<=0.8,"MEDIO IMPACTO RECOMENDABLE EVALUARLO",IF(M84<=1,"ALTO IMPACTO OBLIGATORIO ARTICULARLA A UNA DE LAS OPORTUNIDADES"))) -> ALTO IMPACTO OBLIGATORIO ARTICULARLA A UNA DE LAS OPORTUNIDADES

Sheet CRUCE RIESGOS
N2: MACROPROCESO ESTRATÉGICO | BO2: CÓDIGO: ESGr028
N3: PROCESO GESTIÓN SISTEMAS INTEGRADOS - CALIDAD | BO3: VERSIÓN: 17
BO4: VIGENCIA: 2023-10-12
N5: GESTIÓN DEL RIESGO Y LAS OPORTUNIDADES | BO5: PÁGINA: 7 de 11
E6: REGRESAR
D7: IDENTIFICACIÓN DEL RIESGO | I7: VALORACIÓN DEL RIESGO INHERENTE | U7: VALORACIÓN DE CONTROLES | X7: VALORACIÓN DE RIESGO RESIDUAL | AV7: VALORACIÓN DE RIESGO RESIDUAL | BA7: CONCLUSIONES DEL SEGUIMIENTO (DILIGENCIADO POR LA OFICINA DE CONTROL INTERNO)
A8: CUADRANTE | B8: DECIMAL | C8: SUMA | D8: ID | E8: CAUSAS (FACTORES DOFA) | F8: EVENTO (RIESGO) | G8: CONSECUENCIA | H8: CLASIFICACIÓN DEL RIESGO | I8: PROBABILIDAD: FRECUENCIA DE LA ACTIVIDAD | J8: ARGUMENTO O DESCRIPCIÓN DE LA PROBABILIDAD | K8: PROBABILIDAD INHERENTE (%) | M8: MAGNITUD DEL IMPACTO | N8: IMPACTO INHERENTE (%) | P8: NIVEL DE RIESGO INHERENTE | Q8: CONTROLES APLICABLES | R8: FRECUENCIA O PERIODICIDAD | S8: DOCUMENTACIÓN | T8: ENTREGABLES Y/O EVIDENCIAS | U8: CLASIFICACIÓN DE LOS CONTROLES | V8: IMPLEMENTACIÓN DEL CONTROL | W8: AFECTACIÓN DEL CONTROL | X8: CALIFICACIÓN DE LOS ATRIBUTOS DE EFICIENCIA | Y8: PROBABILIDAD RESIDUAL (%) | Z8: PROBABILIDAD RESIDUAL | AA8: IMPACTO RESIDUAL (%) | AB8: IMPACTO RESIDUAL | AC8: ZONA DEL RIESGO RESIDUAL | AD8: FECHA DE SEGUIMIENTO | AE8: OBSERVACIONES, COMENTARIOS Y/O SUGERENCIAS | AF8: FECHA DE SEGUIMIENTO | AG8: OBSERVACIONES, COMENTARIOS Y/O SUGERENCIAS | AH8: FECHA DE SEGUIMIENTO | AI8: OBSERVACIONES, COMENTARIOS Y/O SUGERENCIAS | AJ8: FECHA DE SEGUIMIENTO | AK8: OBSERVACIONES, COMENTARIOS Y/O SUGERENCIAS | AL8: FECHA DE SEGUIMIENTO | AM8: OBSERVACIONES, COMENTARIOS Y/O SUGERENCIAS | AN8: FECHA DE SEGUIMIENTO | AO8: OBSERVACIONES, COMENTARIOS Y/O SUGERENCIAS | AP8: FECHA DE SEGUIMIENTO | AQ8: OBSERVACIONES, COMENTARIOS Y/O SUGERENCIAS | AR8: FECHA DE SEGUIMIENTO | AS8: OBSERVACIONES, COMENTARIOS Y/O SUGERENCIAS | AT8: FECHA DE SEGUIMIENTO | AU8: OBSERVACIONES, COMENTARIOS Y/O SUGERENCIAS | AV8: PROBABILIDAD DE OCURRENCIA | AW8: PROBABILIDAD DE OCURRENCIA | AX8: MAGNITUD DEL IMPACTO | AY8: IMPACTO DE OCURRENCIA | AZ8: NIVEL | BA8: FECHA DE SEGUIMIENTO | BB8: OBSERVACIONES Y RECOMENDACIONES | BC8: FECHA DE SEGUIMIENTO | BD8: OBSERVACIONES Y RECOMENDACIONES | BE8: FECHA DE SEGUIMIENTO | BF8: OBSERVACIONES Y RECOMENDACIONES | BG8: FECHA DE SEGUIMIENTO | BH8: OBSERVACIONES Y RECOMENDACIONES | BI8: FECHA DE SEGUIMIENTO | BJ8: OBSERVACIONES Y RECOMENDACIONES | BK8: FECHA DE SEGUIMIENTO | BL8: OBSERVACIONES Y RECOMENDACIONES | BM8: FECHA DE SEGUIMIENTO | BN8: OBSERVACIONES Y RECOMENDACIONES | BO8: FECHA DE SEGUIMIENTO | BP8: OBSERVACIONES Y RECOMENDACIONES
A9: =IF(OR(AV9=0,AX9=0),"",IF(AND(AV9<=0.2,AX9<=0.2),1,IF(AND(AV9<=0.2,AX9<=0.4),2,IF(AND(AV9<=0.2,AX9<=0.6),3,IF(AND(AV9<=0.2,AX9<=0.8),4,IF(AND(AV9<=0.2,AX9<=1),5,IF(AND(AV9<=0.4,AX9<=0.2),6,IF(AND(AV9<=0.4,AX9<=0.4),7,IF(AND(AV9<=0.4,AX9<=0.6),8,IF(AND(AV9<=0.4,AX9<=0.8),9,IF(AND(AV9<=0.4,AX9<=1),10,IF(AND(AV9<=0.6,AX9<=0.2),11,IF(AND(AV9<=0.6,AX9<=0.4),12,IF(AND(AV9<=0.6,AX9<=0.6),13,IF(AND(AV9<=0.6,AX9<=0.8),14,IF(AND(AV9<=0.6,AX9<=1),15,IF(AND(AV9<=0.8,AX9<=0.2),16,IF(AND(AV9<=0.8,AX9<=0.4),17,IF(AND(AV9<=0.8,AX9<=0.6),18,IF(AND(AV9<=0.8,AX9<=0.8),19,IF(AND(AV9<=0.8,AX9<=1),20,IF(AND(AV9<=1,AX9<=0.2),21,IF(AND(AV9<=1,AX9<=0.4),22,IF(AND(AV9<=1,AX9<=0.6),23,IF(AND(AV9<=1,AX9<=0.8),24,IF(AND(AV9<=1,AX9<=1),25,"")))))))))))))))))))))))))) -> 8 | B9: =IF(A9="","",1/100) -> 0.01 | C9: =IFERROR(A9+B9,"") -> 8.01 | D9: 1 | E9: D2. Los consejos de Facultad y las direcciones de programa no envían oportunamente a la oficina de Admisiones y Registro, actas de sustentación y vistos buenos, para iniciar el proceso de Revisión de carpeta para grados. | F9: Posibilidad de incurrir en retrasos que afectan la entrega y disponibilidad de información en la operación del proceso. | G9: Incumplimiento en las actividades de aplicaciòn de novedades, apertura y cierre de periodos acadèmicos y otras propias del proceso. Hallazgos en auditorías por entes de control. Incumplimiento a la aplicación de los requisitos establecidos en la normativa interna. | H9: EJECUCIÓN Y ADMINISTRACIÓN DE PROCESOS: Pérdidas derivadas de errores en la ejecución y administración de procesos. | I9: 10605 | J9: se tiene como base los procedimientos MARP02 - MARP03 - MARP05 - MARP06, los cuales se ejecutan conforme a las actividades dispuestas en cada uno, tanto en IPA como en el IIPA de cada vigencia, en ese sentido el proceso tiene una frecuencia de actividad de 152 veces al año. | K9: =IF(I9<=0,"",IF(I9<=2,"Muy Baja",IF(I9<=10,"Baja",IF(I9<=30,"Media",IF(I9<=100,"Alta",IF(I9>100,"Muy Alta")))))) -> Muy Alta | L9: =IF(K9="","",IF(K9="Muy Baja",0.2,IF(K9="Baja",0.4,IF(K9="Media",0.6,IF(K9="Alta",0.8,IF(K9="Muy Alta",1,)))))) -> 1 | M9: El riesgo afecta la imagen de la entidad con efecto publicitario sostenido a nivel de sector administrativo, nivel departamental o municipal. | N9: =IF(OR(M9=CRITERIOS!$C$188,M9=CRITERIOS!$D$188),"Leve",IF(OR(M9=CRITERIOS!$C$189,M9=CRITERIOS!$D$189),"Menor",IF(OR(M9=CRITERIOS!$C$190,M9=CRITERIOS!$D$190),"Moderado",IF(OR(M9=CRITERIOS!$C$191,M9=CRITERIOS!$D$191),"Mayor",IF(OR(M9=CRITERIOS!$C$192,M9=CRITERIOS!$D$192),"Catastrófico",""))))) -> Mayor | O9: =IF(N9="","",IF(N9="Leve",0.2,IF(N9="Menor",0.4,IF(N9="Moderado",0.6,IF(N9="Mayor",0.8,IF(N9="Catastrófico",1,)))))) -> 0.8 | P9: =IF(OR(AND(K9="Muy Baja",N9="Leve"),AND(K9="Muy Baja",N9="Menor"),AND(K9="Baja",N9="Leve")),"BAJO",IF(OR(AND(K9="Muy baja",N9="Moderado"),AND(K9="Baja",N9="Menor"),AND(K9="Baja",N9="Moderado"),AND(K9="Media",N9="Leve"),AND(K9="Media",N9="Menor"),AND(K9="Media",N9="Moderado"),AND(K9="Alta",N9="Leve"),AND(K9="Alta",N9="Menor")),"MODERADO",IF(OR(AND(K9="Muy Baja",N9="Mayor"),AND(K9="Baja",N9="Mayor"),AND(K9="Media",N9="Mayor"),AND(K9="Alta",N9="Moderado"),AND(K9="Alta",N9="Mayor"),AND(K9="Muy Alta",N9="Leve"),AND(K9="Muy Alta",N9="Menor"),AND(K9="Muy Alta",N9="Moderado"),YR9="Muy Alta",N9="Mayor"),"ALTO",IF(OR(AND(K9="Muy Baja",N9="Catastrófico"),AND(K9="Baja",N9="Catastrófico"),AND(K9="Media",N9="Catastrófico"),AND(K9="Alta",N9="Catastrófico"),AND(K9="Muy Alta",N9="Catastrófico")),"EXTREMO","")))) -> ALTO | Q9: El Líder de Admisiones y Registro genera alertas tempranadas con la socializaciòn de las fechas limite de envío de actas y vistos buenos, de acuerdo al calendarioa académico de cada vigencia. | R9: SEMESTRAL | S9: MARP06, Actas y Vistos Buenos de trabajo de grado, Calendario académico. | T9: Correo electrónico con la notificación de alerta temprana en la entrega de actas y vistos buenos de acuerdo a las fechas establecidas en el calendario académico. | U9: PREVENTIVO | V9: MANUAL | W9: =IF(OR(U9="PREVENTIVO",U9="DETECTIVO"),"PROBABILIDAD",IF(U9="CORRECTIVO","IMPACTO","")) -> PROBABILIDAD | X9: =IF(AND(U9="PREVENTIVO",V9="AUTOMÁTICO"),"50%",IF(AND(U9="PREVENTIVO",V9="MANUAL"),"40%",IF(AND(U9="DETECTIVO",V9="AUTOMÁTICO"),"40%",IF(AND(U9="DETECTIVO",V9="MANUAL"),"30%",IF(AND(U9="CORRECTIVO",V9="AUTOMÁTICO"),"35%",IF(AND(U9="CORRECTIVO",V9="MANUAL"),"25%","")))))) -> 40% | Y9: =IFERROR(IF(W9="Probabilidad",(L9-(L9*X9)),IF(W9="Impacto",L9,"")),"") -> 0.6 | Z9: =IFERROR(IF(Y9="","",IF(Y9<=0.2,"MUY BAJA",IF(Y9<=0.4,"BAJA",IF(Y9<=0.6,"MEDIA",IF(Y9<=0.8,"ALTA",IF(Y9=1,"MUY ALTA")))))),"") -> MEDIA | AA9: =IFERROR(IF(W9="Impacto",(O9-(O9*X9)),IF(W9="Probabilidad",O9,"")),"") -> 0.8 | AB9: =IFERROR(IF(AA9="","",IF(AA9<=0.2,"LEVE",IF(AA9<=0.4,"MENOR",IF(AA9<=0.6,"MODERADO",IF(AA9<=0.8,"MAYOR",IF(AA9=1,"CATASTRÓFICO")))))),"") -> MAYOR | AC9: =IFERROR(IF(OR(AND(Z9="Muy Baja",AB9="Leve"),AND(Z9="Muy Baja",AB9="Menor"),AND(Z9="Baja",AB9="Leve")),"BAJO",IF(OR(AND(Z9="Muy baja",AB9="Moderado"),AND(Z9="Baja",AB9="Menor"),AND(Z9="Baja",AB9="Moderado"),AND(Z9="Media",AB9="Leve"),AND(Z9="Media",AB9="Menor"),AND(Z9="Media",AB9="Moderado"),AND(Z9="Alta",AB9="Leve"),AND(Z9="Alta",AB9="Menor")),"MODERADO",IF(OR(AND(Z9="Muy Baja",AB9="Mayor"),AND(Z9="Baja",AB9="Mayor"),AND(Z9="Media",AB9="Mayor"),AND(Z9="Alta",AB9="Moderado"),AND(Z9="Alta",AB9="Mayor"),AND(Z9="Muy Alta",AB9="Leve"),AND(Z9="Muy Alta",AB9="Menor"),AND(Z9="Muy Alta",AB9="Moderado"),AND(Z9="Muy Alta",AB9="Mayor")),"ALTO",IF(OR(AND(Z9="Muy Baja",AB9="Catastrófico"),AND(Z9="Baja",AB9="Catastrófico"),AND(Z9="Media",AB9="Catastrófico"),AND(Z9="Alta",AB9="Catastrófico"),AND(Z9="Muy Alta",AB9="Catastrófico")),"EXTREMO","")))),"") -> ALTO | AD9: 2019-06-05 | AE9: Se debe continuar con la ejecución de los controles, evitando la materialización del riesgo. Sin embargo, se recomienda reevaluar y analizar las desviaciones de los controles a fin de cumplir con las actividades programadas. | AF9: 2019-08-30 | AG9: Se debe continuar con la ejecución de los controles, teniendo en cuenta las oportunidades del proceso para el cumplimiento de metas y objetivos. Así mismo, se recomienda reevaluar los controles 2 y 4. | AH9: 2020-10-03 | AI9: Se evidencia falta de eficiencia en la ejecución de los controles, pues aún se presentan quejas y reclamos en cuanto a la no contestación de las llamadas telefónicas en la oficina. Bajo este contexto, se identificaron nuevas causas y se establecieron nuevos controles con el objetivo de minimizar la probabilidad de ocurrencia del riesgo, los cuales estarán sujetos a verificación de eficacia en el próximo seguimiento. Así mismo, se indica que se debe continuar con la ejecución de los controles, teniendo en cuenta las oportunidades del proceso para el cumplimiento de metas y objetivos. | AL9: 2021-04-15 | AM9: Control Nuevo. Con base en el oficio de control interno al seguimiento de riesgos, se evidencia materialización del riesgo. Razón por la cual, se determina un nuevo control, calificándolo como débil; no obstante, en el próximo seguimiento se evaluará la madurez y eficacia del mismo. | AN9: 2021-10-13 | AO9: Se evidencia planificación de los cambios presentados durante la contingencia mundial acorde con los lineamientos internos y externos. | AP9: 2022-04-05 | AQ9: Se evidencia fortalecimiento del control, no obstante, se sugiere realizar seguimiento periódico al equipo de trabajo en cuanto a las situaciones relacionadas a ambiente de trabajo. | AR9: 2023-07-27 | AS9: Se evidencia el envío de correos electrónicos el 08 de junio de 2023, donde se solicita a las facultades el envío de actas y vistos buenos de trabajo de grado de los graduandos en proceso de revisión de documentos y requisitos. | AT9: 2024-06-12 | AU9: Se evidencia el envío de correos electrónicos en el mes de marzo y julio de 2024, donde se solicita a las facultades el envío de actas y vistos buenos de trabajo de grado de los graduandos en proceso de revisión de documentos y requisitos y cargue de las mismas en el drive construido para la consolidación de esta información | AV9: =IF(Y9="","",MIN(Y9:Y13)) -> 0.216 | AW9: =IFERROR(IF(AV9="","",IF(AV9<=0.2,"MUY BAJA",IF(AV9<=0.4,"BAJA",IF(AV9<=0.6,"MEDIA",IF(AV9<=0.8,"ALTA",IF(AV9=1,"MUY ALTA")))))),"") -> BAJA | AX9: =IF(AA9="","",MIN(AA9:AA13)) -> 0.6 | AY9: =IFERROR(IF(AX9="","",IF(AX9<=0.2,"LEVE",IF(AX9<=0.4,"MENOR",IF(AX9<=0.6,"MODERADO",IF(AX9<=0.8,"MAYOR",IF(AX9=1,"CATASTRÓFICO")))))),"") -> MODERADO | AZ9: =IFERROR(IF(OR(AND(AW9="Muy Baja",AY9="Leve"),AND(AW9="Muy Baja",AY9="Menor"),AND(AW9="Baja",AY9="Leve")),"BAJO",IF(OR(AND(AW9="Muy baja",AY9="Moderado"),AND(AW9="Baja",AY9="Menor"),AND(AW9="Baja",AY9="Moderado"),AND(AW9="Media",AY9="Leve"),AND(AW9="Media",AY9="Menor"),AND(AW9="Media",AY9="Moderado"),AND(AW9="Alta",AY9="Leve"),AND(AW9="Alta",AY9="Menor")),"MODERADO",IF(OR(AND(AW9="Muy Baja",AY9="Mayor"),AND(AW9="Baja",AY9="Mayor"),AND(AW9="Media",AY9="Mayor"),AND(AW9="Alta",AY9="Moderado"),AND(AW9="Alta",AY9="Mayor"),AND(AW9="Muy Alta",AY9="Leve"),AND(AW9="Muy Alta",AY9="Menor"),AND(AW9="Muy Alta",AY9="Moderado"),AND(AW9="Muy Alta",AY9="Mayor")),"ALTO",IF(OR(AND(AW9="Muy Baja",AY9="Catastrófico"),AND(AW9="Baja",AY9="Catastrófico"),AND(AW9="Media",AY9="Catastrófico"),AND(AW9="Alta",AY9="Catastrófico"),AND(AW9="Muy Alta",AY9="Catastrófico")),"EXTREMO","")))),"") -> MODERADO | BA9: 2019-09-09 | BB9: Se hace necesario revisar la pertinencia de unificar los riegos R2 y R3, toda vez que los dos se encuentran enmarcados en el cumplimiento de las actividades del proceso. | BC9: 2020-01-29 | BD9: Con base en el plan de mejoramiento N°460, hallazgo 1, el cual fue asignado a petición del comité SAC en la sesión ordinaria del 25-07-2018. En el cual se establece que no se atiende de manera oportuna y eficaz las líneas telefónicas de Admisiones y Registro. De acuerdo a los seguimientos realizados en 2019 se evidencia que a pesar de que el proceso de Admisiones y Registro cumplió con cada una de las actividades propuestas en el plan de mejoramiento, estas no son eficaces esto se evidencia mediante la corroboración de la oportuna respuesta de las líneas telefónicas lo cual dio como resultado el bajo nivel de repuesta por parte del proceso motivo por el cual fue elevado al Comité SAC con el fin de dar solución al mismo. | BE9: 2021-04-13 | BF9: De acuerdo a informe de Gestión del IV trimestre del 2020 emanado por la Gestora de Servicio de Atención al Ciudadano, Sonia Arévalo Valdez, se evidencia materialización del riesgo de acuerdo a lo referenciado a continuación "Para este trimestre el número de reclamos que se presentó fue de un total de 28 petición, correspondiente al 9%; donde el mayor número de reclamos para el período en consideración, se concentran en el factor principal de los proceso de selección debido a que los aspirantes presentaban inconvenientes al momento de realizar las entrevistas y diferentes pruebas por medio de la plataforma Microsoft TEAMS por donde fueron citados, o porque no presentaron las pruebas en las fechas establecidas por la institución" | BG9: 2022-01-26 | BH9: No se realiza seguimiento a el riesgo toda vez que el nivel es moderado | BI9: 2022-08-17 | BJ9: Se evidencia materialización del riesgo, mediante el reporte de los 2 trimestres de la vigencia 2022 "informe de gestión de peticiones, quejas y reclamos" fue posible evidenciar: I Trimestre Quejas y reclamos: Inconformidad ceremonia de grado (7 registros), procesos de grado (1 registro), tramite de certificados de notas (1 registro), información tramites de certificados de notas (1 registro). Derechos de petición: inconformidad ceremonia de grado (3 registros). certificados de notas (1 registro), constancia de estudios (1 registro), solicitud de grado (1 registro). II Trimestre quejas y reclamos, certificado de notas (4 registros), derechos de petición: solicitud constancia de estudio (1 registro). Lo anterior, no materializa el riesgo, teniendo en cuenta la cantidad reportada, en la misma medida, se recomienda al proceso de servicio de atención al ciudadano, segregar por procesos el informe de PQR a fin de fortalecer el entendimiento. //YHC | BK9: 2023-07-31 | BL9: No se realiza seguimiento a el riesgo toda vez que el nivel es moderado | BM9: 2024-04-19 | BN9: No se evidencia materialización, teniendo en cuenta que todas las quejas peticiones o reclamos, se manejan en los tiempos acorde, sin embargo, se recomienda al proceso que maneje su disponibilidad para que no se evidencia tanto porcentaje en PQR. | BO9: 2024-09-06 | BP9: No se evidencia materialización del riesgo.
E10: D4. Cargue de notas fuera de los tiempos establecidos en el calendario académico, con visto bueno de la viceacademica. | Q10: El líder y profesional de Admisiones y Registro genera alertas tempranadas con la socializaciòn de las fechas limite de cargue de notas, de acuerdo al calendario académico de cada vigencia. | R10: SEMESTRAL | S10: MARP05, Cargue de notas en el aplicativo MUDOL, Calendario académico. | T10: Correo electrónico con la notificación de alerta temprana en el cargue de notas de acuerdo a las fechas establecidas en el calendario académico. | U10: PREVENTIVO | V10: MANUAL | W10: PROBABILIDAD | X10: 40% | Y10: =IFERROR(IF(AND(W9="Probabilidad",W10="Probabilidad"),(Y9-(Y9*X10)),IF(W10="Probabilidad",(L9-(L9*X10)),IF(W10="Impacto",Y9,""))),"") -> 0.36 | Z10: =IFERROR(IF(Y10="","",IF(Y10<=0.2,"MUY BAJA",IF(Y10<=0.4,"BAJA",IF(Y10<=0.6,"MEDIA",IF(Y10<=0.8,"ALTA",IF(Y10=1,"MUY ALTA")))))),"") -> BAJA | AA10: =IFERROR(IF(AND(W9="Impacto",W10="Impacto"),(AA9-(AA9*X10)),IF(W10="Impacto",(O9-(+O9*X10)),IF(W10="Probabilidad",AA9,""))),"") -> 0.8 | AB10: MAYOR | AC10: ALTO | AJ10: 2020-11-10 | AK10: Se recomienda cambiar la periodicidad de ejecución del control a semestral o trimestral. Asimismo, se recomienda asegurar la gestión del conocimiento mediante talleres de grupo, retroalimentaciones, capacitaciones, etc. Dejar evidencia y registro de las actividades en mención. | AL10: 2021-04-15 | AM10: Se recomienda asegurar la gestión del conocimiento mediante capacitaciones, retroalimentaciones, etc. | AN10: 2021-10-13 | AO10: Hay evidencia del control. | AP10: 2022-04-05 | AQ10: Se reestructuró el control. Por lo que se somete a verificación de eficacia en este periodo. No obstante, se evidencia que la documentación se alinea a la normatividad. | AR10: 2023-07-27 | AS10: Se evidencia el envío de correos electrónicos notificando a las facultades, en la sede, seccionales y extensiones las fechas establecidas en calendario académico, apalancados por envío de solicitudes de cargue de la información relacionada por la Vicerrectoría académica. | AU10: Se evidencia el envío de correos electrónicos notificando a las facultades, en la sede, seccionales y extensiones las fechas establecidas en calendario académico, apalancados por envío de solicitudes de cargue de la información relacionada por la Vicerrectoría académica. Tambien se evidencia que los roles para realizar el cargue de estas notas solamente estan bajo custodia de la jefe de Admisiones y Registro.
E11: A2. Actualizaciones o ventanas de mantenimiento de la plataforma del ICFES | Q11: El Líder de Admisiones y Registro envía correo electrónico o realiza llamadas al ICFES, solicitando el cruce de las bases de datos para el proceso de selección y admisión | S11: MARP02, Calendario académico. | T11: Correo electrónico con la solicitud de cruce de bases de datos al ICFES. | U11: PREVENTIVO | V11: MANUAL | W11: PROBABILIDAD | X11: 40% | Y11: =IFERROR(IF(AND(W10="Probabilidad",W11="Probabilidad"),(Y10-(Y10*X11)),IF(AND(W10="Impacto",W11="Probabilidad"),(Y9-(Y9*X11)),IF(W11="Impacto",Y10,""))),"") -> 0.216 | Z11: BAJA | AA11: =IFERROR(IF(AND(W10="Impacto",W11="Impacto"),(AA10-(AA10*X11)),IF(AND(W10="Probabilidad",W11="Impacto"),(AA9-(AA9*X11)),IF(W11="Probabilidad",AA10,""))),"") -> 0.8 | AB11: MAYOR | AC11: ALTO | AR11: 2023-07-27 | AS11: Se evidencia, correo electrónico enviado en la vigencia 2022-2, remitido a ICFES, ya que en su momento la pagina web de este instituto no funcionada, de igual manera se envidencia el envío de bases de datos para cruces en el proceso de selección y comunicación permanente. | AU11: Se evidencia, cargue de archivos planos por meido de la plataforma ICFES para validación de información y recepción de reportes en el procedimiento de inscripción, selección y admisión de estudiantes.
D12: 3 | E12: D1. Dependencia de otras áreas para la ejecución de las actividades del proceso y actualización de desarrollos propios | F12: Posibilidad de incurrir en errores tthh por falta de actualización o sistematización de controles o actividades, que apalancan la operatividad del proceso. | G12: Pérdidas derivadas de errores tthh en la ejecución de actividades que se llevan a cabo de forma manual. Reprocesos en la realización de actividades del proceso con falta de digitalización | H12: EJECUCIÓN Y ADMINISTRACIÓN DE PROCESOS: Pérdidas derivadas de errores en la ejecución y administración de procesos. | I12: 3120 | J12: Se tiene como base el numero de veces que el funcionario de la Oficina de Admisiones y Registro realiza actividades manuales, pendientes por digitalización como aplicación de perdidad de condición de estudiante y repocitorio de actas y vistos buenos | K12: =IF(I12<=0,"",IF(I12<=2,"Muy Baja",IF(I12<=10,"Baja",IF(I12<=30,"Media",IF(I12<=100,"Alta",IF(I12>100,"Muy Alta")))))) -> Muy Alta | L12: =IF(K12="","",IF(K12="Muy Baja",0.2,IF(K12="Baja",0.4,IF(K12="Media",0.6,IF(K12="Alta",0.8,IF(K12="Muy Alta",1,)))))) -> 1 | M12: El riesgo afecta la imagen de la entidad con efecto publicitario sostenido a nivel de sector administrativo, nivel departamental o municipal. | N12: Mayor | O12: 0.8 | P12: ALTO | Q12: El profesional de Admisiones y Registro verifica según los tiempos establecidos en el calendario académico los reportes de actas de sustentación, vistos buenos y novedades académicas por parte de los Consejos de facultad y Direcciones de Programa, a través de correo electronico. | R12: SEMANAL | S12: Correo institucional. Calendario académico. Academisoft. MARP06 Títulos y grados académicos | T12: Cumplimiento de las responsabilidades propias de cada docente al finalizar periodo (novedades académicas - Academisoft). Grados: Carpetas hojas de vida académica. | U12: PREVENTIVO | V12: MANUAL | W12: PROBABILIDAD | X12: 40% | Y12: =IFERROR(IF(W12="Probabilidad",(L12-(L12*X12)),IF(W12="Impacto",L12,"")),"") -> 0.6 | Z12: MEDIA | AA12: =IFERROR(IF(W12="Impacto",(O12-(O12*X12)),IF(W12="Probabilidad",O12,"")),"") -> 0.8 | AB12: MAYOR | AC12: ALTO | AJ12: 2020-11-10 | AL12: 2021-04-15 | AM12: Fortalecer los canales de comunicación con las facultades para asegurar el reporte oportuno de la documentación. | AN12: 2021-10-13 | AO12: Asegurar el cumplimiento de los términos para evitar retrasos en las solitudes o necesidades de los estudiantes. | AP12: 2022-04-05 | AQ12: Se sugiere asegurar los canales de comunicación e interacción integral con los involucrados para tomar las acciones a tiempo, y evitar que se convierta en un control correctivo. | AR12: 2023-07-27 | AS12: Se evidencia el envío de actas por parte de las facultades con las aprobaciones correspondientes de novedades en desarrollo académico. | AT12: 2024-06-12 | AU12: Se evidencia el envío de actas por parte de las facultades con las aprobaciones correspondientes de novedades en desarrollo académico y grados y titulos académicos. De igual manera el proceso a construido un drive con las actas y vistos buenos para contar con el acerbo y evidencia en la revisión de documentos para grado y las decisiones aplicadas y cargadas como novedades académicas en el aplicativo Academusoft, a traves de documento de trabajo (hoja de excel) | AV12: =IF(Y12="","",MIN(Y12:Y12)) -> 0.6 | AW12: =IFERROR(IF(AV12="","",IF(AV12<=0.2,"MUY BAJA",IF(AV12<=0.4,"BAJA",IF(AV12<=0.6,"MEDIA",IF(AV12<=0.8,"ALTA",IF(AV12=1,"MUY ALTA")))))),"") -> MEDIA | AX12: =IF(AA12="","",MIN(AA12:AA12)) -> 0.8 | AY12: =IFERROR(IF(AX12="","",IF(AX12<=0.2,"LEVE",IF(AX12<=0.4,"MENOR",IF(AX12<=0.6,"MODERADO",IF(AX12<=0.8,"MAYOR",IF(AX12=1,"CATASTRÓFICO")))))),"") -> MAYOR | AZ12: =IFERROR(IF(OR(AND(AW12="Muy Baja",AY12="Leve"),AND(AW12="Muy Baja",AY12="Menor"),AND(AW12="Baja",AY12="Leve")),"BAJO",IF(OR(AND(AW12="Muy baja",AY12="Moderado"),AND(AW12="Baja",AY12="Menor"),AND(AW12="Baja",AY12="Moderado"),AND(AW12="Media",AY12="Leve"),AND(AW12="Media",AY12="Menor"),AND(AW12="Media",AY12="Moderado"),AND(AW12="Alta",AY12="Leve"),AND(AW12="Alta",AY12="Menor")),"MODERADO",IF(OR(AND(AW12="Muy Baja",AY12="Mayor"),AND(AW12="Baja",AY12="Mayor"),AND(AW12="Media",AY12="Mayor"),AND(AW12="Alta",AY12="Moderado"),AND(AW12="Alta",AY12="Mayor"),AND(AW12="Muy Alta",AY12="Leve"),AND(AW12="Muy Alta",AY12="Menor"),AND(AW12="Muy Alta",AY12="Moderado"),AND(AW12="Muy Alta",AY12="Mayor")),"ALTO",IF(OR(AND(AW12="Muy Baja",AY12="Catastrófico"),AND(AW12="Baja",AY12="Catastrófico"),AND(AW12="Media",AY12="Catastrófico"),AND(AW12="Alta",AY12="Catastrófico"),AND(AW12="Muy Alta",AY12="Catastrófico")),"EXTREMO","")))),"") -> ALTO | BK12: 2023-07-31 | BL12: No se evidencia materializacion del riesgo, sin embargo en el informe de auditoria financiera del primer semestre vigencia 2023 en el hallazgo 7 - oportunidad de mejora se describe en el informe "El día 24 de marzo de 2023 se efectuó entrevista virtual con el área de Tesorería en la que se evidenció que el control, cruce y depuración de los estudiantes reportados por la Universidad con los relacionados en la plataforma SNIES, con el fin de validar los estudiantes beneficiados con Gratuidad MEN es manual, mediante una base en Excel, lo que puede generar desviaciones, errores, tergiversación y pérdida de la información". | BM12: 2024-04-19 | BN12: No se evidencia materialización del riesgo. Recomendando dar cierre a los planes de mejoramiento interno N ° 610-782-661-652, que se base en los repositorios de actas de grado y la sistematización del proceso | BO12: 2024-09-06 | BP12: No se evidencia materialización del riesgo, sin embargo se mantiene en Ejecución el Plan de Mejoramiento 652, con un 33% de avance, tipificado como No Conformidad: SE EVIDENCIAN INCONSISTENCIAS EN LAS LIQUIDACIONES DE MATRICULA DEL IPA2021, INCUMPLIENDO EL NUMERAL 8.5 DE LA NORMA ISO 9001:2015.
D13: 4 | E13: D8. Falta realizar seguimiento al incumplimiento de metas frente a los indicadores del proceso | F13: Posibilidad de incumplimiento en el seguimiento frente a las metas del proceso. | G13: Incumplimiento a las metas establecidas en los indicadores de gestión del proceso | H13: EJECUCIÓN Y ADMINISTRACIÓN DE PROCESOS: Pérdidas derivadas de errores en la ejecución y administración de procesos. | I13: 8 | J13: Se tiene como base el numero de veces que realiza seguimiento al cumpliento de las metas establecidas en los indicadores de gestión del proceso. | K13: =IF(I13<=0,"",IF(I13<=2,"Muy Baja",IF(I13<=10,"Baja",IF(I13<=30,"Media",IF(I13<=100,"Alta",IF(I13>100,"Muy Alta")))))) -> Baja | L13: =IF(K13="","",IF(K13="Muy Baja",0.2,IF(K13="Baja",0.4,IF(K13="Media",0.6,IF(K13="Alta",0.8,IF(K13="Muy Alta",1,)))))) -> 0.4 | M13: El riesgo afecta la imagen de la entidad con efecto publicitario sostenido a nivel de sector administrativo, nivel departamental o municipal. | N13: Mayor | O13: 0.8 | P13: ALTO | Q13: El profesional de Admisiones y Registro realiza el seguimiento de manera oportuna al nivel del porcentaje en el cumplimiento de las metas establecidas en los indicadores de gestión del proceso y establece acciones de mejora en los casos aplicables. | R13: SEMESTRAL | S13: Acuerdo 010 de 2006 y Acuerdo 027 de 2021 Correo institucional. MARP02 MARP03 | T13: Seguimiento a las accciones de mejora establecidas como accion for mulada dentro de los indicadores de gestión | U13: CORRECTIVO | V13: MANUAL | W13: IMPACTO | X13: 25% | Y13: =IFERROR(IF(W13="Probabilidad",(L13-(L13*X13)),IF(W13="Impacto",L13,"")),"") -> 0.4 | Z13: =IFERROR(IF(Y13="","",IF(Y13<=0.2,"MUY BAJA",IF(Y13<=0.4,"BAJA",IF(Y13<=0.6,"MEDIA",IF(Y13<=0.8,"ALTA",IF(Y13=1,"MUY ALTA")))))),"") -> BAJA | AA13: =IFERROR(IF(W13="Impacto",(O13-(O13*X13)),IF(W13="Probabilidad",O13,"")),"") -> 0.6 | AB13: =IFERROR(IF(AA13="","",IF(AA13<=0.2,"LEVE",IF(AA13<=0.4,"MENOR",IF(AA13<=0.6,"MODERADO",IF(AA13<=0.8,"MAYOR",IF(AA13=1,"CATASTRÓFICO")))))),"") -> MODERADO | AC13: =IFERROR(IF(OR(AND(Z13="Muy Baja",AB13="Leve"),AND(Z13="Muy Baja",AB13="Menor"),AND(Z13="Baja",AB13="Leve")),"BAJO",IF(OR(AND(Z13="Muy baja",AB13="Moderado"),AND(Z13="Baja",AB13="Menor"),AND(Z13="Baja",AB13="Moderado"),AND(Z13="Media",AB13="Leve"),AND(Z13="Media",AB13="Menor"),AND(Z13="Media",AB13="Moderado"),AND(Z13="Alta",AB13="Leve"),AND(Z13="Alta",AB13="Menor")),"MODERADO",IF(OR(AND(Z13="Muy Baja",AB13="Mayor"),AND(Z13="Baja",AB13="Mayor"),AND(Z13="Media",AB13="Mayor"),AND(Z13="Alta",AB13="Moderado"),AND(Z13="Alta",AB13="Mayor"),AND(Z13="Muy Alta",AB13="Leve"),AND(Z13="Muy Alta",AB13="Menor"),AND(Z13="Muy Alta",AB13="Moderado"),AND(Z13="Muy Alta",AB13="Mayor")),"ALTO",IF(OR(AND(Z13="Muy Baja",AB13="Catastrófico"),AND(Z13="Baja",AB13="Catastrófico"),AND(Z13="Media",AB13="Catastrófico"),AND(Z13="Alta",AB13="Catastrófico"),AND(Z13="Muy Alta",AB13="Catastrófico")),"EXTREMO","")))),"") -> MODERADO | AJ13: 2020-11-10 | AK13: Guardar evidencia de la gestión tanto en sede, seccionales y extensiones. Asegurar la gestión, comunicación y articulación oportuna con los procesos que interactúa Admisiones y Registro. | AL13: 2021-04-15 | AM13: Salvaguardar la información documentada del proceso utilizada en el a gestión del mismo en seccionales y extensiones.. Fortalecer la comunicación con los procesos que interactúa admisiones y registro. | AN13: 2021-10-13 | AO13: Garantizar el cumplimiento de los tiempos. | AP13: 2022-04-05 | AQ13: Realizar seguimiento a los compromisos en ejecución y la verificación del cierre eficaz y eficiente de los mismos. | AR13: 2023-07-27 | AS13: Se evidencia el trabajo realizado como accciones correctivas o de mejora para el indicador MAR-9 Percepción de satisfacción de los estudiantes, donde se fortalece la atención al usuario en la ventanillad e atención del proceso y se realiza campaña de socialización del link de encuestas para medir el nivel de satisfacción de los estudiantes con la atención recibida por el proceso. | AT13: 2024-06-12 | AU13: Se evidencia el trabajo realizado como accciones correctivas o de mejora para el indicador MAR-9 Percepción de satisfacción de los estudiantes, donde se fortalece la atención al usuario en la ventanilla de atención del proceso y se realiza estrategia de divulgación y jornadas de capaciación a estudiantes nuevos con relación al diligenciamiento de la caracterización institucional y acompañamiento en este proceso por parte de los funcionarios asigandos. | AV13: =IF(Y13="","",MIN(Y13:Y14)) -> 0.4 | AW13: =IFERROR(IF(AV13="","",IF(AV13<=0.2,"MUY BAJA",IF(AV13<=0.4,"BAJA",IF(AV13<=0.6,"MEDIA",IF(AV13<=0.8,"ALTA",IF(AV13=1,"MUY ALTA")))))),"") -> BAJA | AX13: =IF(AA13="","",MIN(AA13:AA14)) -> 0.6 | AY13: =IFERROR(IF(AX13="","",IF(AX13<=0.2,"LEVE",IF(AX13<=0.4,"MENOR",IF(AX13<=0.6,"MODERADO",IF(AX13<=0.8,"MAYOR",IF(AX13=1,"CATASTRÓFICO")))))),"") -> MODERADO | AZ13: =IFERROR(IF(OR(AND(AW13="Muy Baja",AY13="Leve"),AND(AW13="Muy Baja",AY13="Menor"),AND(AW13="Baja",AY13="Leve")),"BAJO",IF(OR(AND(AW13="Muy baja",AY13="Moderado"),AND(AW13="Baja",AY13="Menor"),AND(AW13="Baja",AY13="Moderado"),AND(AW13="Media",AY13="Leve"),AND(AW13="Media",AY13="Menor"),AND(AW13="Media",AY13="Moderado"),AND(AW13="Alta",AY13="Leve"),AND(AW13="Alta",AY13="Menor")),"MODERADO",IF(OR(AND(AW13="Muy Baja",AY13="Mayor"),AND(AW13="Baja",AY13="Mayor"),AND(AW13="Media",AY13="Mayor"),AND(AW13="Alta",AY13="Moderado"),AND(AW13="Alta",AY13="Mayor"),AND(AW13="Muy Alta",AY13="Leve"),AND(AW13="Muy Alta",AY13="Menor"),AND(AW13="Muy Alta",AY13="Moderado"),AND(AW13="Muy Alta",AY13="Mayor")),"ALTO",IF(OR(AND(AW13="Muy Baja",AY13="Catastrófico"),AND(AW13="Baja",AY13="Catastrófico"),AND(AW13="Media",AY13="Catastrófico"),AND(AW13="Alta",AY13="Catastrófico"),AND(AW13="Muy Alta",AY13="Catastrófico")),"EXTREMO","")))),"") -> MODERADO | BK13: 2023-07-31 | BL13: No se realiza seguimiento a el riesgo toda vez que el nivel es moderado | BO13: 2024-09-06 | BP13: No se evidencia materialización del riesgo.
AA14: =IFERROR(IF(W14="Impacto",(O14-(O14*X14)),IF(W14="Probabilidad",O14,"")),"") ->  | BM14: 2024-04-19 | BN14: No se evidencia seguimiento a el riesgo toda vez que el nivel es moderado.
D15: 5 | E15: D9. Falta de parametrización de herramientas en el criterio de vocación profesional (entrevistas), que permitan su digitalización, para estandarizar los criterios, metodología de aplicación y fiabilidad de los resultados. | F15: Posibilidad de admitir a aspirantes con incumplimiento de los requisitos mínimos establecidos, por cada programa académico. | G15: Icumplimiento a los requisitos establecidos en el Acuerdo 001 de 2007 “POR EL CUAL SE ESTABLECE EL PROCESO DE SELECCIÓN Y ADMISIÓN DE ESTUDIANTES DE LOS PROGRAMAS ACADÉMICOS DE PREGRADO EN LA UNIVERSIDAD DE CUNDINAMARCA” | H15: EJECUCIÓN Y ADMINISTRACIÓN DE PROCESOS: Pérdidas derivadas de errores en la ejecución y administración de procesos. | I15: =3848+3701 -> 7549 | J15: Se tiene como base el número de aspirantes inscritos a los diferentes programas de pregrado ofertados en cada vigencia | K15: =IF(I15<=0,"",IF(I15<=2,"Muy Baja",IF(I15<=10,"Baja",IF(I15<=30,"Media",IF(I15<=100,"Alta",IF(I15>100,"Muy Alta")))))) -> Muy Alta | L15: =IF(K15="","",IF(K15="Muy Baja",0.2,IF(K15="Baja",0.4,IF(K15="Media",0.6,IF(K15="Alta",0.8,IF(K15="Muy Alta",1,)))))) -> 1 | M15: El riesgo afecta la imagen de la entidad con efecto publicitario sostenido a nivel de sector administrativo, nivel departamental o municipal. | N15: Mayor | O15: 0.8 | P15: ALTO | Q15: El lider de la Oficina de Admisiones y Registro realiza la solicitud de digitalización y parametrización de la herramienta de entrevistas institucional para estandarizar los criterios de aplicación en todos los programas académicos de pregrado, con base en la oferta académica para cada vigencia. | R15: SEMESTRAL | S15: Acuerdo 010 de 2006 y Acuerdo 027 de 2021 Correo institucional. MARP02 MARP03 | T15: Solicitud de parametrización a la Dirección de Sistemas y Tecnología | U15: CORRECTIVO | V15: MANUAL | W15: IMPACTO | X15: 25% | Y15: =IFERROR(IF(W15="Probabilidad",(L15-(L15*X15)),IF(W15="Impacto",L15,"")),"") -> 1 | Z15: MUY ALTA | AA15: =IFERROR(IF(W15="Impacto",(O15-(O15*X15)),IF(W15="Probabilidad",O15,"")),"") -> 0.6 | AB15: MODERADO | AC15: ALTO | AR15: 2023-07-27 | AS15: Se evidencia la solicitud de parametrización a la Dirección de Sistemas y Tecnología en el desarrollo encuestas para la herramienta de entrevistas institucional. | AT15: 2024-06-12 | AU15: Una vez realizada la verificación de la información construida con el programa de Psicología y los profesores designados para esta actividad, la Vicerrectoría académica realiza y socializa los ajustes, debido a que la herramienta inicial no cumple con las características para evaluar los componentes de acuerdo con el acuerdo 001 de 2007 "ARTÍCULO SÉPTIMO. La entrevista, que será coordinada por la correspondiente Decanatura, es carácter personal, y para ésta se tendrán los siguientes criterios: Vocación Profesional, Cultura General, Compromiso Social y Valores Humanos" Por tal motivo y en coherencia con la metodología MEDIT, se construye el formato MARF048, con criterios de preguntas específicas que abarcan el analisis del componente a evaluar en general, a través de calificación de las respuestas por parte de los estudiantes por medio de escala Likert, esta es aprobada por vicerrectoría académica y ordenado sea formalizada en el MDO y socializada con las facultades de programas académicos para toda la institución. Se evidencia envío por correo electrónico del listado remitido por las Direcciones de los programas académicos, con la información de los puntajes obtenidos por los aspirantes, de acuerdo con las fechas establecidas en el calendario académico institucional. Se evidencia el cargue de los resultados obtenidos por los aspirantes en la plataforma Academusoft, por parte de la Oficina de Admisiones y Registro. | AV15: =IF(Y15="","",MIN(Y15:Y16)) -> 0.6 | AW15: =IFERROR(IF(AV15="","",IF(AV15<=0.2,"MUY BAJA",IF(AV15<=0.4,"BAJA",IF(AV15<=0.6,"MEDIA",IF(AV15<=0.8,"ALTA",IF(AV15=1,"MUY ALTA")))))),"") -> MEDIA | AX15: =IF(AA15="","",MIN(AA15:AA16)) -> 0.6 | AY15: =IFERROR(IF(AX15="","",IF(AX15<=0.2,"LEVE",IF(AX15<=0.4,"MENOR",IF(AX15<=0.6,"MODERADO",IF(AX15<=0.8,"MAYOR",IF(AX15=1,"CATASTRÓFICO")))))),"") -> MODERADO | AZ15: =IFERROR(IF(OR(AND(AW15="Muy Baja",AY15="Leve"),AND(AW15="Muy Baja",AY15="Menor"),AND(AW15="Baja",AY15="Leve")),"BAJO",IF(OR(AND(AW15="Muy baja",AY15="Moderado"),AND(AW15="Baja",AY15="Menor"),AND(AW15="Baja",AY15="Moderado"),AND(AW15="Media",AY15="Leve"),AND(AW15="Media",AY15="Menor"),AND(AW15="Media",AY15="Moderado"),AND(AW15="Alta",AY15="Leve"),AND(AW15="Alta",AY15="Menor")),"MODERADO",IF(OR(AND(AW15="Muy Baja",AY15="Mayor"),AND(AW15="Baja",AY15="Mayor"),AND(AW15="Media",AY15="Mayor"),AND(AW15="Alta",AY15="Moderado"),AND(AW15="Alta",AY15="Mayor"),AND(AW15="Muy Alta",AY15="Leve"),AND(AW15="Muy Alta",AY15="Menor"),AND(AW15="Muy Alta",AY15="Moderado"),AND(AW15="Muy Alta",AY15="Mayor")),"ALTO",IF(OR(AND(AW15="Muy Baja",AY15="Catastrófico"),AND(AW15="Baja",AY15="Catastrófico"),AND(AW15="Media",AY15="Catastrófico"),AND(AW15="Alta",AY15="Catastrófico"),AND(AW15="Muy Alta",AY15="Catastrófico")),"EXTREMO","")))),"") -> MODERADO | BK15: 2023-07-31 | BL15: No se realiza seguimiento a el riesgo toda vez que el nivel es moderado | BO15: 2024-09-06 | BP15: No se evidencia materialización del riesgo.
E16: A6. Los aspirantes a programas académicos de pregrado, ofertados en cada vigencia no diligencian de manera correcta el registro del codigo AC ICFES en la inscripción dentro del formulario. | Q16: El lider de la Oficina de Admisiones y Registro realiza la verificación a la base de datos de inscritos paraa identificar los aspirantes que han cargado de forma incorrecta el número del codigo AC ICFES en el formulario de Inscripción. Los funcionarios de la Oficina de Admisiones y Registro, en la sede, seccionales y extensiones realizan comunicación con los aspirantes, notificando que deben realizar los cambios en la longitud del codigo SNP correspondientes para ajustar la información diligenciada en el codigo AC ICFES. | R16: SEMESTRAL | S16: Acuerdo 010 de 2006 y Acuerdo 027 de 2021 Correo institucional. MARP02 MARP03 | T16: Registro de validación de bases de datos de inscritos por periodo académico | U16: PREVENTIVO | V16: MANUAL | W16: PROBABILIDAD | X16: 40% | Y16: =IFERROR(IF(AND(W15="Probabilidad",W16="Probabilidad"),(Y15-(Y15*X16)),IF(W16="Probabilidad",(L15-(L15*X16)),IF(W16="Impacto",Y15,""))),"") -> 0.6 | Z16: MEDIA | AA16: =IFERROR(IF(AND(W15="Impacto",W16="Impacto"),(AA15-(AA15*X16)),IF(W16="Impacto",(O15-(+O15*X16)),IF(W16="Probabilidad",AA15,""))),"") -> 0.6 | AB16: MODERADO | AC16: MODERADO | AR16: 2023-07-27 | AS16: Se evidencia el trabajo realizado por el proceso al depurar las bases de datos de inscritos, desde el 13 de abril del 2023, hasta el cierre del proceso de inscripción, a fin de identificar los aspirantes que no generar de manera correcta el diligenciamiento del formulario de inscripción, se evidencia de igual manera base de datos de llamadas y correos electrónicos enviados a estos aspirantes, notificando del error presentado para que realicen loa ajustes pertinentes. | AT16: 2024-06-12 | AU16: Se evidencia el cargue de bases de datos (archivos planos) para que el ICFES , por medio de correo electronico realice envío de resultados. Se evidencia el trabajo realizado por el proceso al depurar las bases de datos de inscritos, hasta el cierre del proceso de inscripción, a fin de identificar los aspirantes que no generar de manera correcta el diligenciamiento del codigo AC, De igual manera se relacionan las evidencias de ajuste en el codigo AC de los aspirantes con error por parte del funcionario de Admisiones y Registro, minimizando así el numero de inscritos con error en el proceso de selección. | BM16: 2024-04-19 | BN16: No se evidencia seguimiento a el riesgo toda vez que el nivel es moderado

Sheet MAPA RIESGOS
C2: MACROPROCESO ESTRATÉGICO | I2: CÓDIGO: ESGr028
C3: PROCESO GESTIÓN SISTEMAS INTEGRADOS - CALIDAD | I3: VERSIÓN: 17
C4: GESTIÓN DEL RIESGO Y LAS OPORTUNIDADES | I4: VIGENCIA: 2023-10-12
I5: PÁGINA: 8 de 11
A7: REGRESAR | B7: MAPA DE RIESGOS DE LA UNIVERSIDAD DE CUNDINAMARCA
B9: IMPACTO | D9: Leve 20% | E9: Menor 40% | F9: Moderado 60% | G9: Mayor 80% | I9: Catastrófico 100% | N9: =IF(N10<>""," -R","") ->  | P9: =IF(P10<>""," -R","") ->  | R9: =IF(R10<>""," -R","") ->  | T9: =IF(T10<>""," -R","") ->  | V9: =IF(V10<>""," -R","") ->  | X9: =IF(X10<>""," -R","") ->  | Z9: =IF(Z10<>""," -R","") ->  | AB9: =IF(AB10<>""," -R","") -> -R | AD9: =IF(AD10<>""," -R","") ->  | AF9: =IF(AF10<>""," -R","") ->  | AH9: =IF(AH10<>""," -R","") ->  | AJ9: =IF(AJ10<>""," -R","") ->  | AL9: =IF(AL10<>""," -R","") ->  | AN9: =IF(AN10<>""," -R","") ->  | AP9: =IF(AP10<>""," -R","") ->  | AR9: =IF(AR10<>""," -R","") ->  | AT9: =IF(AT10<>""," -R","") ->  | AV9: =IF(AV10<>""," -R","") ->  | AX9: =IF(AX10<>""," -R","") ->  | AZ9: =IF(AZ10<>""," -R","") ->  | BB9: =IF(BB10<>""," -R","") ->  | BD9: =IF(BD10<>""," -R","") ->  | BF9: =IF(BF10<>""," -R","") ->  | BH9: =IF(BH10<>""," -R","") ->  | BJ9: =IF(BJ10<>""," -R","") -> 
B10: PROBABILIDAD | M10: 1.01 | N10: =IFERROR(VLOOKUP(M10,'CRUCE RIESGOS'!$C$9:$D$13,2,FALSE),"") ->  | O10: 2.01 | P10: =IFERROR(VLOOKUP(O10,'CRUCE RIESGOS'!$C$9:$D$13,2,FALSE),"") ->  | Q10: 3.01 | R10: =IFERROR(VLOOKUP(Q10,'CRUCE RIESGOS'!$C$9:$D$13,2,FALSE),"") ->  | S10: 4.01 | T10: =IFERROR(VLOOKUP(S10,'CRUCE RIESGOS'!$C$9:$D$13,2,FALSE),"") ->  | U10: 5.01 | V10: =IFERROR(VLOOKUP(U10,'CRUCE RIESGOS'!$C$9:$D$13,2,FALSE),"") ->  | W10: 6.01 | X10: =IFERROR(VLOOKUP(W10,'CRUCE RIESGOS'!$C$9:$D$13,2,FALSE),"") ->  | Y10: 7.01 | Z10: =IFERROR(VLOOKUP(Y10,'CRUCE RIESGOS'!$C$9:$D$13,2,FALSE),"") ->  | AA10: 8.01 | AB10: =IFERROR(VLOOKUP(AA10,'CRUCE RIESGOS'!$C$9:$D$13,2,FALSE),"") -> 1 | AC10: 9.01 | AD10: =IFERROR(VLOOKUP(AC10,'CRUCE RIESGOS'!$C$9:$D$13,2,FALSE),"") ->  | AE10: 10.01 | AF10: =IFERROR(VLOOKUP(AE10,'CRUCE RIESGOS'!$C$9:$D$13,2,FALSE),"") ->  | AG10: 11.01 | AH10: =IFERROR(VLOOKUP(AG10,'CRUCE RIESGOS'!$C$9:$D$13,2,FALSE),"") ->  | AI10: 12.01 | AJ10: =IFERROR(VLOOKUP(AI10,'CRUCE RIESGOS'!$C$9:$D$13,2,FALSE),"") ->  | AK10: 13.01 | AL10: =IFERROR(VLOOKUP(AK10,'CRUCE RIESGOS'!$C$9:$D$13,2,FALSE),"") ->  | AM10: 14.01 | AN10: =IFERROR(VLOOKUP(AM10,'CRUCE RIESGOS'!$C$9:$D$13,2,FALSE),"") ->  | AO10: 15.01 | AP10: =IFERROR(VLOOKUP(AO10,'CRUCE RIESGOS'!$C$9:$D$13,2,FALSE),"") ->  | AQ10: 16.01 | AR10: =IFERROR(VLOOKUP(AQ10,'CRUCE RIESGOS'!$C$9:$D$13,2,FALSE),"") ->  | AS10: 17.01 | AT10: =IFERROR(VLOOKUP(AS10,'CRUCE RIESGOS'!$C$9:$D$13,2,FALSE),"") ->  | AU10: 18.01 | AV10: =IFERROR(VLOOKUP(AU10,'CRUCE RIESGOS'!$C$9:$D$13,2,FALSE),"") ->  | AW10: 19.01 | AX10: =IFERROR(VLOOKUP(AW10,'CRUCE RIESGOS'!$C$9:$D$13,2,FALSE),"") ->  | AY10: 20.01 | AZ10: =IFERROR(VLOOKUP(AY10,'CRUCE RIESGOS'!$C$9:$D$13,2,FALSE),"") ->  | BA10: 21.01 | BB10: =IFERROR(VLOOKUP(BA10,'CRUCE RIESGOS'!$C$9:$D$13,2,FALSE),"") ->  | BC10: 22.01 | BD10: =IFERROR(VLOOKUP(BC10,'CRUCE RIESGOS'!$C$9:$D$13,2,FALSE),"") ->  | BE10: 23.01 | BF10: =IFERROR(VLOOKUP(BE10,'CRUCE RIESGOS'!$C$9:$D$13,2,FALSE),"") ->  | BG10: 24.01 | BH10: =IFERROR(VLOOKUP(BG10,'CRUCE RIESGOS'!$C$9:$D$13,2,FALSE),"") ->  | BI10: 25.01 | BJ10: =IFERROR(VLOOKUP(BI10,'CRUCE RIESGOS'!$C$9:$D$13,2,FALSE),"") -> 
B11: Muy Baja 20% | D11: =CONCATENATE(N9,N10,N11,N12,N13,N14,N15,N17,N18,N20,N21,N22,N23,N24,N25,N26,N27,N28,N29,N30,N31,N32,N33,N34,N35,N36,N37,N38,N39,N40,N41,N42,N43,N44,N45,N46,N47,N48,N49,N50,N51,N52,N53,N54,N55,N56,N57,N58,N59,N60,N61,N62,N63,N64,N65,N66,N67,N68,N69,N70,N71,N72,N73,N74,N75,N76,N77,N78,N79,N80,N81,N82,N83,N84,N85,N86,N87,N88,N89,N90,N91,N92,N93,N94,N95,N96,N97,N98,N99,N100,N101,N102,N103,N104,N105,N106,N107,N108,N109,N110,N111,N112,N113,N114,N115,N116,N117,N118,N119,N120,N121,N122,N123,N124,N125,N126,N127,N128,N129,N130,N131,N132,N133,N134,N135,N136,N137,N138,N139,N140,N141,N142,N143,N144,N145,N146,N147,N148,N149,N150,N151,N152,N153,N154,N155,N156,N157,N158,N159,N160,N161,N162,N163,N164,N165,N166,N167,N168,N169,N170,N171,N172,N173,N174,N175,N176,N177,N178,N179,N180,N181,N182,N183,N184,N185,N186,N187,N188,N189,N190,N191,N192,N193,N194,N195,N196,N197,N198,N199,N200,N201,N202,N203,N204,N205,N206,N207,N208) ->  | E11: =CONCATENATE(P9,P10,P11,P12,P13,P14,P15,P17,P18,P20,P21,P22,P23,P24,P25,P26,P27,P28,P29,P30,P31,P32,P33,P34,P35,P36,P37,P38,P39,P40,P41,P42,P43,P44,P45,P46,P47,P48,P49,P50,P51,P52,P53,P54,P55,P56,P57,P58,P59,P60,P61,P62,P63,P64,P65,P66,P67,P68,P69,P70,P71,P72,P73,P74,P75,P76,P77,P78,P79,P80,P81,P82,P83,P84,P85,P86,P87,P88,P89,P90,P91,P92,P93,P94,P95,P96,P97,P98,P99,P100,P101,P102,P103,P104,P105,P106,P107,P108,P109,P110,P111,P112,P113,P114,P115,P116,P117,P118,P119,P120,P121,P122,P123,P124,P125,P126,P127,P128,P129,P130,P131,P132,P133,P134,P135,P136,P137,P138,P139,P140,P141,P142,P143,P144,P145,P146,P147,P148,P149,P150,P151,P152,P153,P154,P155,P156,P157,P158,P159,P160,P161,P162,P163,P164,P165,P166,P167,P168,P169,P170,P171,P172,P173,P174,P175,P176,P177,P178,P179,P180,P181,P182,P183,P184,P185,P186,P187,P188,P189,P190,P191,P192,P193,P194,P195,P196,P197,P198,P199,P200,P201,P202,P203,P204,P205,P206,P207,P208) ->  | F11: =CONCATENATE(R9,R10,R11,R12,R13,R14,R15,R17,R18,R20,R21,R22,R23,R24,R25,R26,R27,R28,R29,R30,R31,R32,R33,R34,R35,R36,R37,R38,R39,R40,R41,R42,R43,R44,R45,R46,R47,R48,R49,R50,R51,R52,R53,R54,R55,R56,R57,R58,R59,R60,R61,R62,R63,R64,R65,R66,R67,R68,R69,R70,R71,R72,R73,R74,R75,R76,R77,R78,R79,R80,R81,R82,R83,R84,R85,R86,R87,R88,R89,R90,R91,R92,R93,R94,R95,R96,R97,R98,R99,R100,R101,R102,R103,R104,R105,R106,R107,R108,R109,R110,R111,R112,R113,R114,R115,R116,R117,R118,R119,R120,R121,R122,R123,R124,R125,R126,R127,R128,R129,R130,R131,R132,R133,R134,R135,R136,R137,R138,R139,R140,R141,R142,R143,R144,R145,R146,R147,R148,R149,R150,R151,R152,R153,R154,R155,R156,R157,R158,R159,R160,R161,R162,R163,R164,R165,R166,R167,R168,R169,R170,R171,R172,R173,R174,R175,R176,R177,R178,R179,R180,R181,R182,R183,R184,R185,R186,R187,R188,R189,R190,R191,R192,R193,R194,R195,R196,R197,R198,R199,R200,R201,R202,R203,R204,R205,R206,R207,R208) ->  | G11: =CONCATENATE(T9,T10,T11,T12,T13,T14,T15,T17,T18,T20,T21,T22,T23,T24,T25,T26,T27,T28,T29,T30,T31,T32,T33,T34,T35,T36,T37,T38,T39,T40,T41,T42,T43,T44,T45,T46,T47,T48,T49,T50,T51,T52,T53,T54,T55,T56,T57,T58,T59,T60,T61,T62,T63,T64,T65,T66,T67,T68,T69,T70,T71,T72,T73,T74,T75,T76,T77,T78,T79,T80,T81,T82,T83,T84,T85,T86,T87,T88,T89,T90,T91,T92,T93,T94,T95,T96,T97,T98,T99,T100,T101,T102,T103,T104,T105,T106,T107,T108,T109,T110,T111,T112,T113,T114,T115,T116,T117,T118,T119,T120,T121,T122,T123,T124,T125,T126,T127,T128,T129,T130,T131,T132,T133,T134,T135,T136,T137,T138,T139,T140,T141,T142,T143,T144,T145,T146,T147,T148,T149,T150,T151,T152,T153,T154,T155,T156,T157,T158,T159,T160,T161,T162,T163,T164,T165,T166,T167,T168,T169,T170,T171,T172,T173,T174,T175,T176,T177,T178,T179,T180,T181,T182,T183,T184,T185,T186,T187,T188,T189,T190,T191,T192,T193,T194,T195,T196,T197,T198,T199,T200,T201,T202,T203,T204,T205,T206,T207,T208) ->  | I11: =CONCATENATE(V9,V10,V11,V12,V13,V14,V15,V17,V18,V20,V21,V22,V23,V24,V25,V26,V27,V28,V29,V30,V31,V32,V33,V34,V35,V36,V37,V38,V39,V40,V41,V42,V43,V44,V45,V46,V47,V48,V49,V50,V51,V52,V53,V54,V55,V56,V57,V58,V59,V60,V61,V62,V63,V64,V65,V66,V67,V68,V69,V70,V71,V72,V73,V74,V75,V76,V77,V78,V79,V80,V81,V82,V83,V84,V85,V86,V87,V88,V89,V90,V91,V92,V93,V94,V95,V96,V97,V98,V99,V100,V101,V102,V103,V104,V105,V106,V107,V108,V109,V110,V111,V112,V113,V114,V115,V116,V117,V118,V119,V120,V121,V122,V123,V124,V125,V126,V127,V128,V129,V130,V131,V132,V133,V134,V135,V136,V137,V138,V139,V140,V141,V142,V143,V144,V145,V146,V147,V148,V149,V150,V151,V152,V153,V154,V155,V156,V157,V158,V159,V160,V161,V162,V163,V164,V165,V166,V167,V168,V169,V170,V171,V172,V173,V174,V175,V176,V177,V178,V179,V180,V181,V182,V183,V184,V185,V186,V187,V188,V189,V190,V191,V192,V193,V194,V195,V196,V197,V198,V199,V200,V201,V202,V203,V204,V205,V206,V207,V208) ->  | N11: =IF(N12<>""," -R","") ->  | P11: =IF(P12<>""," -R","") ->  | R11: =IF(R12<>""," -R","") ->  | T11: =IF(T12<>""," -R","") ->  | V11: =IF(V12<>""," -R","") ->  | X11: =IF(X12<>""," -R","") ->  | Z11: =IF(Z12<>""," -R","") ->  | AB11: =IF(AB12<>""," -R","") ->  | AD11: =IF(AD12<>""," -R","") ->  | AF11: =IF(AF12<>""," -R","") ->  | AH11: =IF(AH12<>""," -R","") ->  | AJ11: =IF(AJ12<>""," -R","") ->  | AL11: =IF(AL12<>""," -R","") ->  | AN11: =IF(AN12<>""," -R","") ->  | AP11: =IF(AP12<>""," -R","") ->  | AR11: =IF(AR12<>""," -R","") ->  | AT11: =IF(AT12<>""," -R","") ->  | AV11: =IF(AV12<>""," -R","") ->  | AX11: =IF(AX12<>""," -R","") ->  | AZ11: =IF(AZ12<>""," -R","") ->  | BB11: =IF(BB12<>""," -R","") ->  | BD11: =IF(BD12<>""," -R","") ->  | BF11: =IF(BF12<>""," -R","") ->  | BH11: =IF(BH12<>""," -R","") ->  | BJ11: =IF(BJ12<>""," -R","") -> 
B12: Baja 40% | D12: =CONCATENATE(X9,X10,X11,X12,X13,X14,X15,X17,X18,X20,X21,X22,X23,X24,X25,X26,X27,X28,X29,X30,X31,X32,X33,X34,X35,X36,X37,X38,X39,X40,X41,X42,X43,X44,X45,X46,X47,X48,X49,X50,X51,X52,X53,X54,X55,X56,X57,X58,X59,X60,X61,X62,X63,X64,X65,X66,X67,X68,X69,X70,X71,X72,X73,X74,X75,X76,X77,X78,X79,X80,X81,X82,X83,X84,X85,X86,X87,X88,X89,X90,X91,X92,X93,X94,X95,X96,X97,X98,X99,X100,X101,X102,X103,X104,X105,X106,X107,X108,X109,X110,X111,X112,X113,X114,X115,X116,X117,X118,X119,X120,X121,X122,X123,X124,X125,X126,X127,X128,X129,X130,X131,X132,X133,X134,X135,X136,X137,X138,X139,X140,X141,X142,X143,X144,X145,X146,X147,X148,X149,X150,X151,X152,X153,X154,X155,X156,X157,X158,X159,X160,X161,X162,X163,X164,X165,X166,X167,X168,X169,X170,X171,X172,X173,X174,X175,X176,X177,X178,X179,X180,X181,X182,X183,X184,X185,X186,X187,X188,X189,X190,X191,X192,X193,X194,X195,X196,X197,X198,X199,X200,X201,X202,X203,X204,X205,X206,X207,X208) ->  | E12: =CONCATENATE(Z9,Z10,Z11,Z12,Z13,Z14,Z15,Z17,Z18,Z20,Z21,Z22,Z23,Z24,Z25,Z26,Z27,Z28,Z29,Z30,Z31,Z32,Z33,Z34,Z35,Z36,Z37,Z38,Z39,Z40,Z41,Z42,Z43,Z44,Z45,Z46,Z47,Z48,Z49,Z50,Z51,Z52,Z53,Z54,Z55,Z56,Z57,Z58,Z59,Z60,Z61,Z62,Z63,Z64,Z65,Z66,Z67,Z68,Z69,Z70,Z71,Z72,Z73,Z74,Z75,Z76,Z77,Z78,Z79,Z80,Z81,Z82,Z83,Z84,Z85,Z86,Z87,Z88,Z89,Z90,Z91,Z92,Z93,Z94,Z95,Z96,Z97,Z98,Z99,Z100,Z101,Z102,Z103,Z104,Z105,Z106,Z107,Z108,Z109,Z110,Z111,Z112,Z113,Z114,Z115,Z116,Z117,Z118,Z119,Z120,Z121,Z122,Z123,Z124,Z125,Z126,Z127,Z128,Z129,Z130,Z131,Z132,Z133,Z134,Z135,Z136,Z137,Z138,Z139,Z140,Z141,Z142,Z143,Z144,Z145,Z146,Z147,Z148,Z149,Z150,Z151,Z152,Z153,Z154,Z155,Z156,Z157,Z158,Z159,Z160,Z161,Z162,Z163,Z164,Z165,Z166,Z167,Z168,Z169,Z170,Z171,Z172,Z173,Z174,Z175,Z176,Z177,Z178,Z179,Z180,Z181,Z182,Z183,Z184,Z185,Z186,Z187,Z188,Z189,Z190,Z191,Z192,Z193,Z194,Z195,Z196,Z197,Z198,Z199,Z200,Z201,Z202,Z203,Z204,Z205,Z206,Z207,Z208) ->  | F12: =CONCATENATE(AB9,AB10,AB11,AB12,AB13,AB14,AB15,AB17,AB18,AB20,AB21,AB22,AB23,AB24,AB25,AB26,AB27,AB28,AB29,AB30,AB31,AB32,AB33,AB34,AB35,AB36,AB37,AB38,AB39,AB40,AB41,AB42,AB43,AB44,AB45,AB46,AB47,AB48,AB49,AB50,AB51,AB52,AB53,AB54,AB55,AB56,AB57,AB58,AB59,AB60,AB61,AB62,AB63,AB64,AB65,AB66,AB67,AB68,AB69,AB70,AB71,AB72,AB73,AB74,AB75,AB76,AB77,AB78,AB79,AB80,AB81,AB82,AB83,AB84,AB85,AB86,AB87,AB88,AB89,AB90,AB91,AB92,AB93,AB94,AB95,AB96,AB97,AB98,AB99,AB100,AB101,AB102,AB103,AB104,AB105,AB106,AB107,AB108,AB109,AB110,AB111,AB112,AB113,AB114,AB115,AB116,AB117,AB118,AB119,AB120,AB121,AB122,AB123,AB124,AB125,AB126,AB127,AB128,AB129,AB130,AB131,AB132,AB133,AB134,AB135,AB136,AB137,AB138,AB139,AB140,AB141,AB142,AB143,AB144,AB145,AB146,AB147,AB148,AB149,AB150,AB151,AB152,AB153,AB154,AB155,AB156,AB157,AB158,AB159,AB160,AB161,AB162,AB163,AB164,AB165,AB166,AB167,AB168,AB169,AB170,AB171,AB172,AB173,AB174,AB175,AB176,AB177,AB178,AB179,AB180,AB181,AB182,AB183,AB184,AB185,AB186,AB187,AB188,AB189,AB190,AB191,AB192,AB193,AB194,AB195,AB196,AB197,AB198,AB199,AB200,AB201,AB202,AB203,AB204,AB205,AB206,AB207,AB208) -> -R1 | G12: =CONCATENATE(AD9,AD10,AD11,AD12,AD13,AD14,AD15,AD17,AD18,AD20,AD21,AD22,AD23,AD24,AD25,AD26,AD27,AD28,AD29,AD30,AD31,AD32,AD33,AD34,AD35,AD36,AD37,AD38,AD39,AD40,AD41,AD42,AD43,AD44,AD45,AD46,AD47,AD48,AD49,AD50,AD51,AD52,AD53,AD54,AD55,AD56,AD57,AD58,AD59,AD60,AD61,AD62,AD63,AD64,AD65,AD66,AD67,AD68,AD69,AD70,AD71,AD72,AD73,AD74,AD75,AD76,AD77,AD78,AD79,AD80,AD81,AD82,AD83,AD84,AD85,AD86,AD87,AD88,AD89,AD90,AD91,AD92,AD93,AD94,AD95,AD96,AD97,AD98,AD99,AD100,AD101,AD102,AD103,AD104,AD105,AD106,AD107,AD108,AD109,AD110,AD111,AD112,AD113,AD114,AD115,AD116,AD117,AD118,AD119,AD120,AD121,AD122,AD123,AD124,AD125,AD126,AD127,AD128,AD129,AD130,AD131,AD132,AD133,AD134,AD135,AD136,AD137,AD138,AD139,AD140,AD141,AD142,AD143,AD144,AD145,AD146,AD147,AD148,AD149,AD150,AD151,AD152,AD153,AD154,AD155,AD156,AD157,AD158,AD159,AD160,AD161,AD162,AD163,AD164,AD165,AD166,AD167,AD168,AD169,AD170,AD171,AD172,AD173,AD174,AD175,AD176,AD177,AD178,AD179,AD180,AD181,AD182,AD183,AD184,AD185,AD186,AD187,AD188,AD189,AD190,AD191,AD192,AD193,AD194,AD195,AD196,AD197,AD198,AD199,AD200,AD201,AD202,AD203,AD204,AD205,AD206,AD207,AD208) ->  | I12: =CONCATENATE(AF9,AF10,AF11,AF12,AF13,AF14,AF15,AF17,AF18,AF20,AF21,AF22,AF23,AF24,AF25,AF26,AF27,AF28,AF29,AF30,AF31,AF32,AF33,AF34,AF35,AF36,AF37,AF38,AF39,AF40,AF41,AF42,AF43,AF44,AF45,AF46,AF47,AF48,AF49,AF50,AF51,AF52,AF53,AF54,AF55,AF56,AF57,AF58,AF59,AF60,AF61,AF62,AF63,AF64,AF65,AF66,AF67,AF68,AF69,AF70,AF71,AF72,AF73,AF74,AF75,AF76,AF77,AF78,AF79,AF80,AF81,AF82,AF83,AF84,AF85,AF86,AF87,AF88,AF89,AF90,AF91,AF92,AF93,AF94,AF95,AF96,AF97,AF98,AF99,AF100,AF101,AF102,AF103,AF104,AF105,AF106,AF107,AF108,AF109,AF110,AF111,AF112,AF113,AF114,AF115,AF116,AF117,AF118,AF119,AF120,AF121,AF122,AF123,AF124,AF125,AF126,AF127,AF128,AF129,AF130,AF131,AF132,AF133,AF134,AF135,AF136,AF137,AF138,AF139,AF140,AF141,AF142,AF143,AF144,AF145,AF146,AF147,AF148,AF149,AF150,AF151,AF152,AF153,AF154,AF155,AF156,AF157,AF158,AF159,AF160,AF161,AF162,AF163,AF164,AF165,AF166,AF167,AF168,AF169,AF170,AF171,AF172,AF173,AF174,AF175,AF176,AF177,AF178,AF179,AF180,AF181,AF182,AF183,AF184,AF185,AF186,AF187,AF188,AF189,AF190,AF191,AF192,AF193,AF194,AF195,AF196,AF197,AF198,AF199,AF200,AF201,AF202,AF203,AF204,AF205,AF206,AF207,AF208) ->  | M12: 1.02 | N12: =IFERROR(VLOOKUP(M12,'CRUCE RIESGOS'!$C$9:$D$13,2,FALSE),"") ->  | O12: 2.02 | P12: =IFERROR(VLOOKUP(O12,'CRUCE RIESGOS'!$C$9:$D$13,2,FALSE),"") ->  | Q12: 3.02 | R12: =IFERROR(VLOOKUP(Q12,'CRUCE RIESGOS'!$C$9:$D$13,2,FALSE),"") ->  | S12: 4.02 | T12: =IFERROR(VLOOKUP(S12,'CRUCE RIESGOS'!$C$9:$D$13,2,FALSE),"") ->  | U12: 5.02 | V12: =IFERROR(VLOOKUP(U12,'CRUCE RIESGOS'!$C$9:$D$13,2,FALSE),"") ->  | W12: 6.02 | X12: =IFERROR(VLOOKUP(W12,'CRUCE RIESGOS'!$C$9:$D$13,2,FALSE),"") ->  | Y12: 7.02 | Z12: =IFERROR(VLOOKUP(Y12,'CRUCE RIESGOS'!$C$9:$D$13,2,FALSE),"") ->  | AA12: 8.02 | AB12: =IFERROR(VLOOKUP(AA12,'CRUCE RIESGOS'!$C$9:$D$13,2,FALSE),"") ->  | AC12: 9.02 | AD12: =IFERROR(VLOOKUP(AC12,'CRUCE RIESGOS'!$C$9:$D$13,2,FALSE),"") ->  | AE12: 10.02 | AF12: =IFERROR(VLOOKUP(AE12,'CRUCE RIESGOS'!$C$9:$D$13,2,FALSE),"") ->  | AG12: 11.02 | AH12: =IFERROR(VLOOKUP(AG12,'CRUCE RIESGOS'!$C$9:$D$13,2,FALSE),"") ->  | AI12: 12.02 | AJ12: =IFERROR(VLOOKUP(AI12,'CRUCE RIESGOS'!$C$9:$D$13,2,FALSE),"") ->  | AK12: 13.02 | AL12: =IFERROR(VLOOKUP(AK12,'CRUCE RIESGOS'!$C$9:$D$13,2,FALSE),"") ->  | AM12: 14.02 | AN12: =IFERROR(VLOOKUP(AM12,'CRUCE RIESGOS'!$C$9:$D$13,2,FALSE),"") ->  | AO12: 15.02 | AP12: =IFERROR(VLOOKUP(AO12,'CRUCE RIESGOS'!$C$9:$D$13,2,FALSE),"") ->  | AQ12: 16.02 | AR12: =IFERROR(VLOOKUP(AQ12,'CRUCE RIESGOS'!$C$9:$D$13,2,FALSE),"") ->  | AS12: 17.02 | AT12: =IFERROR(VLOOKUP(AS12,'CRUCE RIESGOS'!$C$9:$D$13,2,FALSE),"") ->  | AU12: 18.02 | AV12: =IFERROR(VLOOKUP(AU12,'CRUCE RIESGOS'!$C$9:$D$13,2,FALSE),"") ->  | AW12: 19.02 | AX12: =IFERROR(VLOOKUP(AW12,'CRUCE RIESGOS'!$C$9:$D$13,2,FALSE),"") ->  | AY12: 20.02 | AZ12: =IFERROR(VLOOKUP(AY12,'CRUCE RIESGOS'!$C$9:$D$13,2,FALSE),"") ->  | BA12: 21.02 | BB12: =IFERROR(VLOOKUP(BA12,'CRUCE RIESGOS'!$C$9:$D$13,2,FALSE),"") ->  | BC12: 22.02 | BD12: =IFERROR(VLOOKUP(BC12,'CRUCE RIESGOS'!$C$9:$D$13,2,FALSE),"") ->  | BE12: 23.02 | BF12: =IFERROR(VLOOKUP(BE12,'CRUCE RIESGOS'!$C$9:$D$13,2,FALSE),"") ->  | BG12: 24.02 | BH12: =IFERROR(VLOOKUP(BG12,'CRUCE RIESGOS'!$C$9:$D$13,2,FALSE),"") ->  | BI12: 25.02 | BJ12: =IFERROR(VLOOKUP(BI12,'CRUCE RIESGOS'!$C$9:$D$13,2,FALSE),"") -> 
B13: Media 60% | D13: =CONCATENATE(AH9,AH10,AH11,AH12,AH13,AH14,AH15,AH17,AH18,AH20,AH21,AH22,AH23,AH24,AH25,AH26,AH27,AH28,AH29,AH30,AH31,AH32,AH33,AH34,AH35,AH36,AH37,AH38,AH39,AH40,AH41,AH42,AH43,AH44,AH45,AH46,AH47,AH48,AH49,AH50,AH51,AH52,AH53,AH54,AH55,AH56,AH57,AH58,AH59,AH60,AH61,AH62,AH63,AH64,AH65,AH66,AH67,AH68,AH69,AH70,AH71,AH72,AH73,AH74,AH75,AH76,AH77,AH78,AH79,AH80,AH81,AH82,AH83,AH84,AH85,AH86,AH87,AH88,AH89,AH90,AH91,AH92,AH93,AH94,AH95,AH96,AH97,AH98,AH99,AH100,AH101,AH102,AH103,AH104,AH105,AH106,AH107,AH108,AH109,AH110,AH111,AH112,AH113,AH114,AH115,AH116,AH117,AH118,AH119,AH120,AH121,AH122,AH123,AH124,AH125,AH126,AH127,AH128,AH129,AH130,AH131,AH132,AH133,AH134,AH135,AH136,AH137,AH138,AH139,AH140,AH141,AH142,AH143,AH144,AH145,AH146,AH147,AH148,AH149,AH150,AH151,AH152,AH153,AH154,AH155,AH156,AH157,AH158,AH159,AH160,AH161,AH162,AH163,AH164,AH165,AH166,AH167,AH168,AH169,AH170,AH171,AH172,AH173,AH174,AH175,AH176,AH177,AH178,AH179,AH180,AH181,AH182,AH183,AH184,AH185,AH186,AH187,AH188,AH189,AH190,AH191,AH192,AH193,AH194,AH195,AH196,AH197,AH198,AH199,AH200,AH201,AH202,AH203,AH204,AH205,AH206,AH207,AH208) ->  | E13: =CONCATENATE(AJ9,AJ10,AJ11,AJ12,AJ13,AJ14,AJ15,AJ17,AJ18,AJ20,AJ21,AJ22,AJ23,AJ24,AJ25,AJ26,AJ27,AJ28,AJ29,AJ30,AJ31,AJ32,AJ33,AJ34,AJ35,AJ36,AJ37,AJ38,AJ39,AJ40,AJ41,AJ42,AJ43,AJ44,AJ45,AJ46,AJ47,AJ48,AJ49,AJ50,AJ51,AJ52,AJ53,AJ54,AJ55,AJ56,AJ57,AJ58,AJ59,AJ60,AJ61,AJ62,AJ63,AJ64,AJ65,AJ66,AJ67,AJ68,AJ69,AJ70,AJ71,AJ72,AJ73,AJ74,AJ75,AJ76,AJ77,AJ78,AJ79,AJ80,AJ81,AJ82,AJ83,AJ84,AJ85,AJ86,AJ87,AJ88,AJ89,AJ90,AJ91,AJ92,AJ93,AJ94,AJ95,AJ96,AJ97,AJ98,AJ99,AJ100,AJ101,AJ102,AJ103,AJ104,AJ105,AJ106,AJ107,AJ108,AJ109,AJ110,AJ111,AJ112,AJ113,AJ114,AJ115,AJ116,AJ117,AJ118,AJ119,AJ120,AJ121,AJ122,AJ123,AJ124,AJ125,AJ126,AJ127,AJ128,AJ129,AJ130,AJ131,AJ132,AJ133,AJ134,AJ135,AJ136,AJ137,AJ138,AJ139,AJ140,AJ141,AJ142,AJ143,AJ144,AJ145,AJ146,AJ147,AJ148,AJ149,AJ150,AJ151,AJ152,AJ153,AJ154,AJ155,AJ156,AJ157,AJ158,AJ159,AJ160,AJ161,AJ162,AJ163,AJ164,AJ165,AJ166,AJ167,AJ168,AJ169,AJ170,AJ171,AJ172,AJ173,AJ174,AJ175,AJ176,AJ177,AJ178,AJ179,AJ180,AJ181,AJ182,AJ183,AJ184,AJ185,AJ186,AJ187,AJ188,AJ189,AJ190,AJ191,AJ192,AJ193,AJ194,AJ195,AJ196,AJ197,AJ198,AJ199,AJ200,AJ201,AJ202,AJ203,AJ204,AJ205,AJ206,AJ207,AJ208) ->  | F13: =CONCATENATE(AL9,AL10,AL11,AL12,AL13,AL14,AL15,AL17,AL18,AL20,AL21,AL22,AL23,AL24,AL25,AL26,AL27,AL28,AL29,AL30,AL31,AL32,AL33,AL34,AL35,AL36,AL37,AL38,AL39,AL40,AL41,AL42,AL43,AL44,AL45,AL46,AL47,AL48,AL49,AL50,AL51,AL52,AL53,AL54,AL55,AL56,AL57,AL58,AL59,AL60,AL61,AL62,AL63,AL64,AL65,AL66,AL67,AL68,AL69,AL70,AL71,AL72,AL73,AL74,AL75,AL76,AL77,AL78,AL79,AL80,AL81,AL82,AL83,AL84,AL85,AL86,AL87,AL88,AL89,AL90,AL91,AL92,AL93,AL94,AL95,AL96,AL97,AL98,AL99,AL100,AL101,AL102,AL103,AL104,AL105,AL106,AL107,AL108,AL109,AL110,AL111,AL112,AL113,AL114,AL115,AL116,AL117,AL118,AL119,AL120,AL121,AL122,AL123,AL124,AL125,AL126,AL127,AL128,AL129,AL130,AL131,AL132,AL133,AL134,AL135,AL136,AL137,AL138,AL139,AL140,AL141,AL142,AL143,AL144,AL145,AL146,AL147,AL148,AL149,AL150,AL151,AL152,AL153,AL154,AL155,AL156,AL157,AL158,AL159,AL160,AL161,AL162,AL163,AL164,AL165,AL166,AL167,AL168,AL169,AL170,AL171,AL172,AL173,AL174,AL175,AL176,AL177,AL178,AL179,AL180,AL181,AL182,AL183,AL184,AL185,AL186,AL187,AL188,AL189,AL190,AL191,AL192,AL193,AL194,AL195,AL196,AL197,AL198,AL199,AL200,AL201,AL202,AL203,AL204,AL205,AL206,AL207,AL208) ->  | G13: =CONCATENATE(AN9,AN10,AN11,AN12,AN13,AN14,AN15,AN17,AN18,AN20,AN21,AN22,AN23,AN24,AN25,AN26,AN27,AN28,AN29,AN30,AN31,AN32,AN33,AN34,AN35,AN36,AN37,AN38,AN39,AN40,AN41,AN42,AN43,AN44,AN45,AN46,AN47,AN48,AN49,AN50,AN51,AN52,AN53,AN54,AN55,AN56,AN57,AN58,AN59,AN60,AN61,AN62,AN63,AN64,AN65,AN66,AN67,AN68,AN69,AN70,AN71,AN72,AN73,AN74,AN75,AN76,AN77,AN78,AN79,AN80,AN81,AN82,AN83,AN84,AN85,AN86,AN87,AN88,AN89,AN90,AN91,AN92,AN93,AN94,AN95,AN96,AN97,AN98,AN99,AN100,AN101,AN102,AN103,AN104,AN105,AN106,AN107,AN108,AN109,AN110,AN111,AN112,AN113,AN114,AN115,AN116,AN117,AN118,AN119,AN120,AN121,AN122,AN123,AN124,AN125,AN126,AN127,AN128,AN129,AN130,AN131,AN132,AN133,AN134,AN135,AN136,AN137,AN138,AN139,AN140,AN141,AN142,AN143,AN144,AN145,AN146,AN147,AN148,AN149,AN150,AN151,AN152,AN153,AN154,AN155,AN156,AN157,AN158,AN159,AN160,AN161,AN162,AN163,AN164,AN165,AN166,AN167,AN168,AN169,AN170,AN171,AN172,AN173,AN174,AN175,AN176,AN177,AN178,AN179,AN180,AN181,AN182,AN183,AN184,AN185,AN186,AN187,AN188,AN189,AN190,AN191,AN192,AN193,AN194,AN195,AN196,AN197,AN198,AN199,AN200,AN201,AN202,AN203,AN204,AN205,AN206,AN207,AN208) ->  | I13: =CONCATENATE(AP9,AP10,AP11,AP12,AP13,AP14,AP15,AP17,AP18,AP20,AP21,AP22,AP23,AP24,AP25,AP26,AP27,AP28,AP29,AP30,AP31,AP32,AP33,AP34,AP35,AP36,AP37,AP38,AP39,AP40,AP41,AP42,AP43,AP44,AP45,AP46,AP47,AP48,AP49,AP50,AP51,AP52,AP53,AP54,AP55,AP56,AP57,AP58,AP59,AP60,AP61,AP62,AP63,AP64,AP65,AP66,AP67,AP68,AP69,AP70,AP71,AP72,AP73,AP74,AP75,AP76,AP77,AP78,AP79,AP80,AP81,AP82,AP83,AP84,AP85,AP86,AP87,AP88,AP89,AP90,AP91,AP92,AP93,AP94,AP95,AP96,AP97,AP98,AP99,AP100,AP101,AP102,AP103,AP104,AP105,AP106,AP107,AP108,AP109,AP110,AP111,AP112,AP113,AP114,AP115,AP116,AP117,AP118,AP119,AP120,AP121,AP122,AP123,AP124,AP125,AP126,AP127,AP128,AP129,AP130,AP131,AP132,AP133,AP134,AP135,AP136,AP137,AP138,AP139,AP140,AP141,AP142,AP143,AP144,AP145,AP146,AP147,AP148,AP149,AP150,AP151,AP152,AP153,AP154,AP155,AP156,AP157,AP158,AP159,AP160,AP161,AP162,AP163,AP164,AP165,AP166,AP167,AP168,AP169,AP170,AP171,AP172,AP173,AP174,AP175,AP176,AP177,AP178,AP179,AP180,AP181,AP182,AP183,AP184,AP185,AP186,AP187,AP188,AP189,AP190,AP191,AP192,AP193,AP194,AP195,AP196,AP197,AP198,AP199,AP200,AP201,AP202,AP203,AP204,AP205,AP206,AP207,AP208) ->  | N13: =IF(N14<>""," -R","") ->  | P13: =IF(P14<>""," -R","") ->  | R13: =IF(R14<>""," -R","") ->  | T13: =IF(T14<>""," -R","") ->  | V13: =IF(V14<>""," -R","") ->  | X13: =IF(X14<>""," -R","") ->  | Z13: =IF(Z14<>""," -R","") ->  | AB13: =IF(AB14<>""," -R","") ->  | AD13: =IF(AD14<>""," -R","") ->  | AF13: =IF(AF14<>""," -R","") ->  | AH13: =IF(AH14<>""," -R","") ->  | AJ13: =IF(AJ14<>""," -R","") ->  | AL13: =IF(AL14<>""," -R","") ->  | AN13: =IF(AN14<>""," -R","") ->  | AP13: =IF(AP14<>""," -R","") ->  | AR13: =IF(AR14<>""," -R","") ->  | AT13: =IF(AT14<>""," -R","") ->  | AV13: =IF(AV14<>""," -R","") ->  | AX13: =IF(AX14<>""," -R","") ->  | AZ13: =IF(AZ14<>""," -R","") ->  | BB13: =IF(BB14<>""," -R","") ->  | BD13: =IF(BD14<>""," -R","") ->  | BF13: =IF(BF14<>""," -R","") ->  | BH13: =IF(BH14<>""," -R","") ->  | BJ13: =IF(BJ14<>""," -R","") -> 
B14: Alta 80% | D14: =CONCATENATE(AR9,AR10,AR11,AR12,AR13,AR14,AR15,AR17,AR18,AR20,AR21,AR22,AR23,AR24,AR25,AR26,AR27,AR28,AR29,AR30,AR31,AR32,AR33,AR34,AR35,AR36,AR37,AR38,AR39,AR40,AR41,AR42,AR43,AR44,AR45,AR46,AR47,AR48,AR49,AR50,AR51,AR52,AR53,AR54,AR55,AR56,AR57,AR58,AR59,AR60,AR61,AR62,AR63,AR64,AR65,AR66,AR67,AR68,AR69,AR70,AR71,AR72,AR73,AR74,AR75,AR76,AR77,AR78,AR79,AR80,AR81,AR82,AR83,AR84,AR85,AR86,AR87,AR88,AR89,AR90,AR91,AR92,AR93,AR94,AR95,AR96,AR97,AR98,AR99,AR100,AR101,AR102,AR103,AR104,AR105,AR106,AR107,AR108,AR109,AR110,AR111,AR112,AR113,AR114,AR115,AR116,AR117,AR118,AR119,AR120,AR121,AR122,AR123,AR124,AR125,AR126,AR127,AR128,AR129,AR130,AR131,AR132,AR133,AR134,AR135,AR136,AR137,AR138,AR139,AR140,AR141,AR142,AR143,AR144,AR145,AR146,AR147,AR148,AR149,AR150,AR151,AR152,AR153,AR154,AR155,AR156,AR157,AR158,AR159,AR160,AR161,AR162,AR163,AR164,AR165,AR166,AR167,AR168,AR169,AR170,AR171,AR172,AR173,AR174,AR175,AR176,AR177,AR178,AR179,AR180,AR181,AR182,AR183,AR184,AR185,AR186,AR187,AR188,AR189,AR190,AR191,AR192,AR193,AR194,AR195,AR196,AR197,AR198,AR199,AR200,AR201,AR202,AR203,AR204,AR205,AR206,AR207,AR208) ->  | E14: =CONCATENATE(AT9,AT10,AT11,AT12,AT13,AT14,AT15,AT17,AT18,AT20,AT21,AT22,AT23,AT24,AT25,AT26,AT27,AT28,AT29,AT30,AT31,AT32,AT33,AT34,AT35,AT36,AT37,AT38,AT39,AT40,AT41,AT42,AT43,AT44,AT45,AT46,AT47,AT48,AT49,AT50,AT51,AT52,AT53,AT54,AT55,AT56,AT57,AT58,AT59,AT60,AT61,AT62,AT63,AT64,AT65,AT66,AT67,AT68,AT69,AT70,AT71,AT72,AT73,AT74,AT75,AT76,AT77,AT78,AT79,AT80,AT81,AT82,AT83,AT84,AT85,AT86,AT87,AT88,AT89,AT90,AT91,AT92,AT93,AT94,AT95,AT96,AT97,AT98,AT99,AT100,AT101,AT102,AT103,AT104,AT105,AT106,AT107,AT108,AT109,AT110,AT111,AT112,AT113,AT114,AT115,AT116,AT117,AT118,AT119,AT120,AT121,AT122,AT123,AT124,AT125,AT126,AT127,AT128,AT129,AT130,AT131,AT132,AT133,AT134,AT135,AT136,AT137,AT138,AT139,AT140,AT141,AT142,AT143,AT144,AT145,AT146,AT147,AT148,AT149,AT150,AT151,AT152,AT153,AT154,AT155,AT156,AT157,AT158,AT159,AT160,AT161,AT162,AT163,AT164,AT165,AT166,AT167,AT168,AT169,AT170,AT171,AT172,AT173,AT174,AT175,AT176,AT177,AT178,AT179,AT180,AT181,AT182,AT183,AT184,AT185,AT186,AT187,AT188,AT189,AT190,AT191,AT192,AT193,AT194,AT195,AT196,AT197,AT198,AT199,AT200,AT201,AT202,AT203,AT204,AT205,AT206,AT207,AT208) ->  | F14: =CONCATENATE(AV9,AV10,AV11,AV12,AV13,AV14,AV15,AV17,AV18,AV20,AV21,AV22,AV23,AV24,AV25,AV26,AV27,AV28,AV29,AV30,AV31,AV32,AV33,AV34,AV35,AV36,AV37,AV38,AV39,AV40,AV41,AV42,AV43,AV44,AV45,AV46,AV47,AV48,AV49,AV50,AV51,AV52,AV53,AV54,AV55,AV56,AV57,AV58,AV59,AV60,AV61,AV62,AV63,AV64,AV65,AV66,AV67,AV68,AV69,AV70,AV71,AV72,AV73,AV74,AV75,AV76,AV77,AV78,AV79,AV80,AV81,AV82,AV83,AV84,AV85,AV86,AV87,AV88,AV89,AV90,AV91,AV92,AV93,AV94,AV95,AV96,AV97,AV98,AV99,AV100,AV101,AV102,AV103,AV104,AV105,AV106,AV107,AV108,AV109,AV110,AV111,AV112,AV113,AV114,AV115,AV116,AV117,AV118,AV119,AV120,AV121,AV122,AV123,AV124,AV125,AV126,AV127,AV128,AV129,AV130,AV131,AV132,AV133,AV134,AV135,AV136,AV137,AV138,AV139,AV140,AV141,AV142,AV143,AV144,AV145,AV146,AV147,AV148,AV149,AV150,AV151,AV152,AV153,AV154,AV155,AV156,AV157,AV158,AV159,AV160,AV161,AV162,AV163,AV164,AV165,AV166,AV167,AV168,AV169,AV170,AV171,AV172,AV173,AV174,AV175,AV176,AV177,AV178,AV179,AV180,AV181,AV182,AV183,AV184,AV185,AV186,AV187,AV188,AV189,AV190,AV191,AV192,AV193,AV194,AV195,AV196,AV197,AV198,AV199,AV200,AV201,AV202,AV203,AV204,AV205,AV206,AV207,AV208) ->  | G14: =CONCATENATE(AX9,AX10,AX11,AX12,AX13,AX14,AX15,AX17,AX18,AX20,AX21,AX22,AX23,AX24,AX25,AX26,AX27,AX28,AX29,AX30,AX31,AX32,AX33,AX34,AX35,AX36,AX37,AX38,AX39,AX40,AX41,AX42,AX43,AX44,AX45,AX46,AX47,AX48,AX49,AX50,AX51,AX52,AX53,AX54,AX55,AX56,AX57,AX58,AX59,AX60,AX61,AX62,AX63,AX64,AX65,AX66,AX67,AX68,AX69,AX70,AX71,AX72,AX73,AX74,AX75,AX76,AX77,AX78,AX79,AX80,AX81,AX82,AX83,AX84,AX85,AX86,AX87,AX88,AX89,AX90,AX91,AX92,AX93,AX94,AX95,AX96,AX97,AX98,AX99,AX100,AX101,AX102,AX103,AX104,AX105,AX106,AX107,AX108,AX109,AX110,AX111,AX112,AX113,AX114,AX115,AX116,AX117,AX118,AX119,AX120,AX121,AX122,AX123,AX124,AX125,AX126,AX127,AX128,AX129,AX130,AX131,AX132,AX133,AX134,AX135,AX136,AX137,AX138,AX139,AX140,AX141,AX142,AX143,AX144,AX145,AX146,AX147,AX148,AX149,AX150,AX151,AX152,AX153,AX154,AX155,AX156,AX157,AX158,AX159,AX160,AX161,AX162,AX163,AX164,AX165,AX166,AX167,AX168,AX169,AX170,AX171,AX172,AX173,AX174,AX175,AX176,AX177,AX178,AX179,AX180,AX181,AX182,AX183,AX184,AX185,AX186,AX187,AX188,AX189,AX190,AX191,AX192,AX193,AX194,AX195,AX196,AX197,AX198,AX199,AX200,AX201,AX202,AX203,AX204,AX205,AX206,AX207,AX208) ->  | I14: =CONCATENATE(AZ9,AZ10,AZ11,AZ12,AZ13,AZ14,AZ15,AZ17,AZ18,AZ20,AZ21,AZ22,AZ23,AZ24,AZ25,AZ26,AZ27,AZ28,AZ29,AZ30,AZ31,AZ32,AZ33,AZ34,AZ35,AZ36,AZ37,AZ38,AZ39,AZ40,AZ41,AZ42,AZ43,AZ44,AZ45,AZ46,AZ47,AZ48,AZ49,AZ50,AZ51,AZ52,AZ53,AZ54,AZ55,AZ56,AZ57,AZ58,AZ59,AZ60,AZ61,AZ62,AZ63,AZ64,AZ65,AZ66,AZ67,AZ68,AZ69,AZ70,AZ71,AZ72,AZ73,AZ74,AZ75,AZ76,AZ77,AZ78,AZ79,AZ80,AZ81,AZ82,AZ83,AZ84,AZ85,AZ86,AZ87,AZ88,AZ89,AZ90,AZ91,AZ92,AZ93,AZ94,AZ95,AZ96,AZ97,AZ98,AZ99,AZ100,AZ101,AZ102,AZ103,AZ104,AZ105,AZ106,AZ107,AZ108,AZ109,AZ110,AZ111,AZ112,AZ113,AZ114,AZ115,AZ116,AZ117,AZ118,AZ119,AZ120,AZ121,AZ122,AZ123,AZ124,AZ125,AZ126,AZ127,AZ128,AZ129,AZ130,AZ131,AZ132,AZ133,AZ134,AZ135,AZ136,AZ137,AZ138,AZ139,AZ140,AZ141,AZ142,AZ143,AZ144,AZ145,AZ146,AZ147,AZ148,AZ149,AZ150,AZ151,AZ152,AZ153,AZ154,AZ155,AZ156,AZ157,AZ158,AZ159,AZ160,AZ161,AZ162,AZ163,AZ164,AZ165,AZ166,AZ167,AZ168,AZ169,AZ170,AZ171,AZ172,AZ173,AZ174,AZ175,AZ176,AZ177,AZ178,AZ179,AZ180,AZ181,AZ182,AZ183,AZ184,AZ185,AZ186,AZ187,AZ188,AZ189,AZ190,AZ191,AZ192,AZ193,AZ194,AZ195,AZ196,AZ197,AZ198,AZ199,AZ200,AZ201,AZ202,AZ203,AZ204,AZ205,AZ206,AZ207,AZ208) ->  | M14: 1.03 | N14: =IFERROR(VLOOKUP(M14,'CRUCE RIESGOS'!$C$9:$D$13,2,FALSE),"") ->  | O14: 2.03 | P14: =IFERROR(VLOOKUP(O14,'CRUCE RIESGOS'!$C$9:$D$13,2,FALSE),"") ->  | Q14: 3.03 | R14: =IFERROR(VLOOKUP(Q14,'CRUCE RIESGOS'!$C$9:$D$13,2,FALSE),"") ->  | S14: 4.03 | T14: =IFERROR(VLOOKUP(S14,'CRUCE RIESGOS'!$C$9:$D$13,2,FALSE),"") ->  | U14: 5.03 | V14: =IFERROR(VLOOKUP(U14,'CRUCE RIESGOS'!$C$9:$D$13,2,FALSE),"") ->  | W14: 6.03 | X14: =IFERROR(VLOOKUP(W14,'CRUCE RIESGOS'!$C$9:$D$13,2,FALSE),"") ->  | Y14: 7.03 | Z14: =IFERROR(VLOOKUP(Y14,'CRUCE RIESGOS'!$C$9:$D$13,2,FALSE),"") ->  | AA14: 8.03 | AB14: =IFERROR(VLOOKUP(AA14,'CRUCE RIESGOS'!$C$9:$D$13,2,FALSE),"") ->  | AC14: 9.03 | AD14: =IFERROR(VLOOKUP(AC14,'CRUCE RIESGOS'!$C$9:$D$13,2,FALSE),"") ->  | AE14: 10.03 | AF14: =IFERROR(VLOOKUP(AE14,'CRUCE RIESGOS'!$C$9:$D$13,2,FALSE),"") ->  | AG14: 11.03 | AH14: =IFERROR(VLOOKUP(AG14,'CRUCE RIESGOS'!$C$9:$D$13,2,FALSE),"") ->  | AI14: 12.03 | AJ14: =IFERROR(VLOOKUP(AI14,'CRUCE RIESGOS'!$C$9:$D$13,2,FALSE),"") ->  | AK14: 13.03 | AL14: =IFERROR(VLOOKUP(AK14,'CRUCE RIESGOS'!$C$9:$D$13,2,FALSE),"") ->  | AM14: 14.03 | AN14: =IFERROR(VLOOKUP(AM14,'CRUCE RIESGOS'!$C$9:$D$13,2,FALSE),"") ->  | AO14: 15.03 | AP14: =IFERROR(VLOOKUP(AO14,'CRUCE RIESGOS'!$C$9:$D$13,2,FALSE),"") ->  | AQ14: 16.03 | AR14: =IFERROR(VLOOKUP(AQ14,'CRUCE RIESGOS'!$C$9:$D$13,2,FALSE),"") ->  | AS14: 17.03 | AT14: =IFERROR(VLOOKUP(AS14,'CRUCE RIESGOS'!$C$9:$D$13,2,FALSE),"") ->  | AU14: 18.03 | AV14: =IFERROR(VLOOKUP(AU14,'CRUCE RIESGOS'!$C$9:$D$13,2,FALSE),"") ->  | AW14: 19.03 | AX14: =IFERROR(VLOOKUP(AW14,'CRUCE RIESGOS'!$C$9:$D$13,2,FALSE),"") ->  | AY14: 20.03 | AZ14: =IFERROR(VLOOKUP(AY14,'CRUCE RIESGOS'!$C$9:$D$13,2,FALSE),"") ->  | BA14: 21.03 | BB14: =IFERROR(VLOOKUP(BA14,'CRUCE RIESGOS'!$C$9:$D$13,2,FALSE),"") ->  | BC14: 22.03 | BD14: =IFERROR(VLOOKUP(BC14,'CRUCE RIESGOS'!$C$9:$D$13,2,FALSE),"") ->  | BE14: 23.03 | BF14: =IFERROR(VLOOKUP(BE14,'CRUCE RIESGOS'!$C$9:$D$13,2,FALSE),"") ->  | BG14: 24.03 | BH14: =IFERROR(VLOOKUP(BG14,'CRUCE RIESGOS'!$C$9:$D$13,2,FALSE),"") ->  | BI14: 25.03 | BJ14: =IFERROR(VLOOKUP(BI14,'CRUCE RIESGOS'!$C$9:$D$13,2,FALSE),"") -> 
B15: Muy Alta 100% | D15: =CONCATENATE(BB9,BB10,BB11,BB12,BB13,BB14,BB15,BB17,BB18,BB20,BB21,BB22,BB23,BB24,BB25,BB26,BB27,BB28,BB29,BB30,BB31,BB32,BB33,BB34,BB35,BB36,BB37,BB38,BB39,BB40,BB41,BB42,BB43,BB44,BB45,BB46,BB47,BB48,BB49,BB50,BB51,BB52,BB53,BB54,BB55,BB56,BB57,BB58,BB59,BB60,BB61,BB62,BB63,BB64,BB65,BB66,BB67,BB68,BB69,BB70,BB71,BB72,BB73,BB74,BB75,BB76,BB77,BB78,BB79,BB80,BB81,BB82,BB83,BB84,BB85,BB86,BB87,BB88,BB89,BB90,BB91,BB92,BB93,BB94,BB95,BB96,BB97,BB98,BB99,BB100,BB101,BB102,BB103,BB104,BB105,BB106,BB107,BB108,BB109,BB110,BB111,BB112,BB113,BB114,BB115,BB116,BB117,BB118,BB119,BB120,BB121,BB122,BB123,BB124,BB125,BB126,BB127,BB128,BB129,BB130,BB131,BB132,BB133,BB134,BB135,BB136,BB137,BB138,BB139,BB140,BB141,BB142,BB143,BB144,BB145,BB146,BB147,BB148,BB149,BB150,BB151,BB152,BB153,BB154,BB155,BB156,BB157,BB158,BB159,BB160,BB161,BB162,BB163,BB164,BB165,BB166,BB167,BB168,BB169,BB170,BB171,BB172,BB173,BB174,BB175,BB176,BB177,BB178,BB179,BB180,BB181,BB182,BB183,BB184,BB185,BB186,BB187,BB188,BB189,BB190,BB191,BB192,BB193,BB194,BB195,BB196,BB197,BB198,BB199,BB200,BB201,BB202,BB203,BB204,BB205,BB206,BB207,BB208) ->  | E15: =CONCATENATE(BD9,BD10,BD11,BD12,BD13,BD14,BD15,BD17,BD18,BD20,BD21,BD22,BD23,BD24,BD25,BD26,BD27,BD28,BD29,BD30,BD31,BD32,BD33,BD34,BD35,BD36,BD37,BD38,BD39,BD40,BD41,BD42,BD43,BD44,BD45,BD46,BD47,BD48,BD49,BD50,BD51,BD52,BD53,BD54,BD55,BD56,BD57,BD58,BD59,BD60,BD61,BD62,BD63,BD64,BD65,BD66,BD67,BD68,BD69,BD70,BD71,BD72,BD73,BD74,BD75,BD76,BD77,BD78,BD79,BD80,BD81,BD82,BD83,BD84,BD85,BD86,BD87,BD88,BD89,BD90,BD91,BD92,BD93,BD94,BD95,BD96,BD97,BD98,BD99,BD100,BD101,BD102,BD103,BD104,BD105,BD106,BD107,BD108,BD109,BD110,BD111,BD112,BD113,BD114,BD115,BD116,BD117,BD118,BD119,BD120,BD121,BD122,BD123,BD124,BD125,BD126,BD127,BD128,BD129,BD130,BD131,BD132,BD133,BD134,BD135,BD136,BD137,BD138,BD139,BD140,BD141,BD142,BD143,BD144,BD145,BD146,BD147,BD148,BD149,BD150,BD151,BD152,BD153,BD154,BD155,BD156,BD157,BD158,BD159,BD160,BD161,BD162,BD163,BD164,BD165,BD166,BD167,BD168,BD169,BD170,BD171,BD172,BD173,BD174,BD175,BD176,BD177,BD178,BD179,BD180,BD181,BD182,BD183,BD184,BD185,BD186,BD187,BD188,BD189,BD190,BD191,BD192,BD193,BD194,BD195,BD196,BD197,BD198,BD199,BD200,BD201,BD202,BD203,BD204,BD205,BD206,BD207,BD208) ->  | F15: =CONCATENATE(BF9,BF10,BF11,BF12,BF13,BF14,BF15,BF17,BF18,BF20,BF21,BF22,BF23,BF24,BF25,BF26,BF27,BF28,BF29,BF30,BF31,BF32,BF33,BF34,BF35,BF36,BF37,BF38,BF39,BF40,BF41,BF42,BF43,BF44,BF45,BF46,BF47,BF48,BF49,BF50,BF51,BF52,BF53,BF54,BF55,BF56,BF57,BF58,BF59,BF60,BF61,BF62,BF63,BF64,BF65,BF66,BF67,BF68,BF69,BF70,BF71,BF72,BF73,BF74,BF75,BF76,BF77,BF78,BF79,BF80,BF81,BF82,BF83,BF84,BF85,BF86,BF87,BF88,BF89,BF90,BF91,BF92,BF93,BF94,BF95,BF96,BF97,BF98,BF99,BF100,BF101,BF102,BF103,BF104,BF105,BF106,BF107,BF108,BF109,BF110,BF111,BF112,BF113,BF114,BF115,BF116,BF117,BF118,BF119,BF120,BF121,BF122,BF123,BF124,BF125,BF126,BF127,BF128,BF129,BF130,BF131,BF132,BF133,BF134,BF135,BF136,BF137,BF138,BF139,BF140,BF141,BF142,BF143,BF144,BF145,BF146,BF147,BF148,BF149,BF150,BF151,BF152,BF153,BF154,BF155,BF156,BF157,BF158,BF159,BF160,BF161,BF162,BF163,BF164,BF165,BF166,BF167,BF168,BF169,BF170,BF171,BF172,BF173,BF174,BF175,BF176,BF177,BF178,BF179,BF180,BF181,BF182,BF183,BF184,BF185,BF186,BF187,BF188,BF189,BF190,BF191,BF192,BF193,BF194,BF195,BF196,BF197,BF198,BF199,BF200,BF201,BF202,BF203,BF204,BF205,BF206,BF207,BF208) ->  | G15: =CONCATENATE(BH9,BH10,BH11,BH12,BH13,BH14,BH15,BH17,BH18,BH20,BH21,BH22,BH23,BH24,BH25,BH26,BH27,BH28,BH29,BH30,BH31,BH32,BH33,BH34,BH35,BH36,BH37,BH38,BH39,BH40,BH41,BH42,BH43,BH44,BH45,BH46,BH47,BH48,BH49,BH50,BH51,BH52,BH53,BH54,BH55,BH56,BH57,BH58,BH59,BH60,BH61,BH62,BH63,BH64,BH65,BH66,BH67,BH68,BH69,BH70,BH71,BH72,BH73,BH74,BH75,BH76,BH77,BH78,BH79,BH80,BH81,BH82,BH83,BH84,BH85,BH86,BH87,BH88,BH89,BH90,BH91,BH92,BH93,BH94,BH95,BH96,BH97,BH98,BH99,BH100,BH101,BH102,BH103,BH104,BH105,BH106,BH107,BH108,BH109,BH110,BH111,BH112,BH113,BH114,BH115,BH116,BH117,BH118,BH119,BH120,BH121,BH122,BH123,BH124,BH125,BH126,BH127,BH128,BH129,BH130,BH131,BH132,BH133,BH134,BH135,BH136,BH137,BH138,BH139,BH140,BH141,BH142,BH143,BH144,BH145,BH146,BH147,BH148,BH149,BH150,BH151,BH152,BH153,BH154,BH155,BH156,BH157,BH158,BH159,BH160,BH161,BH162,BH163,BH164,BH165,BH166,BH167,BH168,BH169,BH170,BH171,BH172,BH173,BH174,BH175,BH176,BH177,BH178,BH179,BH180,BH181,BH182,BH183,BH184,BH185,BH186,BH187,BH188,BH189,BH190,BH191,BH192,BH193,BH194,BH195,BH196,BH197,BH198,BH199,BH200,BH201,BH202,BH203,BH204,BH205,BH206,BH207,BH208) ->  | I15: =CONCATENATE(BJ9,BJ10,BJ11,BJ12,BJ13,BJ14,BJ15,BJ17,BJ18,BJ20,BJ21,BJ22,BJ23,BJ24,BJ25,BJ26,BJ27,BJ28,BJ29,BJ30,BJ31,BJ32,BJ33,BJ34,BJ35,BJ36,BJ37,BJ38,BJ39,BJ40,BJ41,BJ42,BJ43,BJ44,BJ45,BJ46,BJ47,BJ48,BJ49,BJ50,BJ51,BJ52,BJ53,BJ54,BJ55,BJ56,BJ57,BJ58,BJ59,BJ60,BJ61,BJ62,BJ63,BJ64,BJ65,BJ66,BJ67,BJ68,BJ69,BJ70,BJ71,BJ72,BJ73,BJ74,BJ75,BJ76,BJ77,BJ78,BJ79,BJ80,BJ81,BJ82,BJ83,BJ84,BJ85,BJ86,BJ87,BJ88,BJ89,BJ90,BJ91,BJ92,BJ93,BJ94,BJ95,BJ96,BJ97,BJ98,BJ99,BJ100,BJ101,BJ102,BJ103,BJ104,BJ105,BJ106,BJ107,BJ108,BJ109,BJ110,BJ111,BJ112,BJ113,BJ114,BJ115,BJ116,BJ117,BJ118,BJ119,BJ120,BJ121,BJ122,BJ123,BJ124,BJ125,BJ126,BJ127,BJ128,BJ129,BJ130,BJ131,BJ132,BJ133,BJ134,BJ135,BJ136,BJ137,BJ138,BJ139,BJ140,BJ141,BJ142,BJ143,BJ144,BJ145,BJ146,BJ147,BJ148,BJ149,BJ150,BJ151,BJ152,BJ153,BJ154,BJ155,BJ156,BJ157,BJ158,BJ159,BJ160,BJ161,BJ162,BJ163,BJ164,BJ165,BJ166,BJ167,BJ168,BJ169,BJ170,BJ171,BJ172,BJ173,BJ174,BJ175,BJ176,BJ177,BJ178,BJ179,BJ180,BJ181,BJ182,BJ183,BJ184,BJ185,BJ186,BJ187,BJ188,BJ189,BJ190,BJ191,BJ192,BJ193,BJ194,BJ195,BJ196,BJ197,BJ198,BJ199,BJ200,BJ201,BJ202,BJ203,BJ204,BJ205,BJ206,BJ207,BJ208) ->  | N15: =IF(N17<>""," -R","") ->  | P15: =IF(P17<>""," -R","") ->  | R15: =IF(R17<>""," -R","") ->  | T15: =IF(T17<>""," -R","") ->  | V15: =IF(V17<>""," -R","") ->  | X15: =IF(X17<>""," -R","") ->  | Z15: =IF(Z17<>""," -R","") ->  | AB15: =IF(AB17<>""," -R","") ->  | AD15: =IF(AD17<>""," -R","") ->  | AF15: =IF(AF17<>""," -R","") ->  | AH15: =IF(AH17<>""," -R","") ->  | AJ15: =IF(AJ17<>""," -R","") ->  | AL15: =IF(AL17<>""," -R","") ->  | AN15: =IF(AN17<>""," -R","") ->  | AP15: =IF(AP17<>""," -R","") ->  | AR15: =IF(AR17<>""," -R","") ->  | AT15: =IF(AT17<>""," -R","") ->  | AV15: =IF(AV17<>""," -R","") ->  | AX15: =IF(AX17<>""," -R","") ->  | AZ15: =IF(AZ17<>""," -R","") ->  | BB15: =IF(BB17<>""," -R","") ->  | BD15: =IF(BD17<>""," -R","") ->  | BF15: =IF(BF17<>""," -R","") ->  | BH15: =IF(BH17<>""," -R","") ->  | BJ15: =IF(BJ17<>""," -R","") -> 
B16: COLOR | C16: INTERPRETACIÓN DE LA ZONA | F16: CANTIDAD DE RIESGOS POR ZONA | G16: PROMEDIO DE RIESGO DEL PROCESO
C17: Zona de riesgo baja: Asumir el riesgo | F17: =COUNTIF('CRUCE RIESGOS'!$AZ$9:$AZ$13,"BAJO") -> 0 | G17: PROBABILIDAD | H17: IMPACTO | I17: VALORACIÓN | M17: 1.04 | N17: =IFERROR(VLOOKUP(M17,'CRUCE RIESGOS'!$C$9:$D$13,2,FALSE),"") ->  | O17: 2.04 | P17: =IFERROR(VLOOKUP(O17,'CRUCE RIESGOS'!$C$9:$D$13,2,FALSE),"") ->  | Q17: 3.04 | R17: =IFERROR(VLOOKUP(Q17,'CRUCE RIESGOS'!$C$9:$D$13,2,FALSE),"") ->  | S17: 4.04 | T17: =IFERROR(VLOOKUP(S17,'CRUCE RIESGOS'!$C$9:$D$13,2,FALSE),"") ->  | U17: 5.04 | V17: =IFERROR(VLOOKUP(U17,'CRUCE RIESGOS'!$C$9:$D$13,2,FALSE),"") ->  | W17: 6.04 | X17: =IFERROR(VLOOKUP(W17,'CRUCE RIESGOS'!$C$9:$D$13,2,FALSE),"") ->  | Y17: 7.04 | Z17: =IFERROR(VLOOKUP(Y17,'CRUCE RIESGOS'!$C$9:$D$13,2,FALSE),"") ->  | AA17: 8.04 | AB17: =IFERROR(VLOOKUP(AA17,'CRUCE RIESGOS'!$C$9:$D$13,2,FALSE),"") ->  | AC17: 9.04 | AD17: =IFERROR(VLOOKUP(AC17,'CRUCE RIESGOS'!$C$9:$D$13,2,FALSE),"") ->  | AE17: 10.04 | AF17: =IFERROR(VLOOKUP(AE17,'CRUCE RIESGOS'!$C$9:$D$13,2,FALSE),"") ->  | AG17: 11.04 | AH17: =IFERROR(VLOOKUP(AG17,'CRUCE RIESGOS'!$C$9:$D$13,2,FALSE),"") ->  | AI17: 12.04 | AJ17: =IFERROR(VLOOKUP(AI17,'CRUCE RIESGOS'!$C$9:$D$13,2,FALSE),"") ->  | AK17: 13.04 | AL17: =IFERROR(VLOOKUP(AK17,'CRUCE RIESGOS'!$C$9:$D$13,2,FALSE),"") ->  | AM17: 14.04 | AN17: =IFERROR(VLOOKUP(AM17,'CRUCE RIESGOS'!$C$9:$D$13,2,FALSE),"") ->  | AO17: 15.04 | AP17: =IFERROR(VLOOKUP(AO17,'CRUCE RIESGOS'!$C$9:$D$13,2,FALSE),"") ->  | AQ17: 16.04 | AR17: =IFERROR(VLOOKUP(AQ17,'CRUCE RIESGOS'!$C$9:$D$13,2,FALSE),"") ->  | AS17: 17.04 | AT17: =IFERROR(VLOOKUP(AS17,'CRUCE RIESGOS'!$C$9:$D$13,2,FALSE),"") ->  | AU17: 18.04 | AV17: =IFERROR(VLOOKUP(AU17,'CRUCE RIESGOS'!$C$9:$D$13,2,FALSE),"") ->  | AW17: 19.04 | AX17: =IFERROR(VLOOKUP(AW17,'CRUCE RIESGOS'!$C$9:$D$13,2,FALSE),"") ->  | AY17: 20.04 | AZ17: =IFERROR(VLOOKUP(AY17,'CRUCE RIESGOS'!$C$9:$D$13,2,FALSE),"") ->  | BA17: 21.04 | BB17: =IFERROR(VLOOKUP(BA17,'CRUCE RIESGOS'!$C$9:$D$13,2,FALSE),"") ->  | BC17: 22.04 | BD17: =IFERROR(VLOOKUP(BC17,'CRUCE RIESGOS'!$C$9:$D$13,2,FALSE),"") ->  | BE17: 23.04 | BF17: =IFERROR(VLOOKUP(BE17,'CRUCE RIESGOS'!$C$9:$D$13,2,FALSE),"") ->  | BG17: 24.04 | BH17: =IFERROR(VLOOKUP(BG17,'CRUCE RIESGOS'!$C$9:$D$13,2,FALSE),"") ->  | BI17: 25.04 | BJ17: =IFERROR(VLOOKUP(BI17,'CRUCE RIESGOS'!$C$9:$D$13,2,FALSE),"") -> 
C18: Zona de riesgo moderada: Asumir el riesgo, reducir el riesgo | F18: =COUNTIF('CRUCE RIESGOS'!$AZ$9:$AZ$13,"MODERADO") -> 2 | G18: =IFERROR(IF(AVERAGE('CRUCE RIESGOS'!AV9:AV13)="","",IF(AVERAGE('CRUCE RIESGOS'!AV9:AV13)<=0.2,"MUY BAJA",IF(AVERAGE('CRUCE RIESGOS'!AV9:AV13)<=0.4,"BAJA",IF(AVERAGE('CRUCE RIESGOS'!AV9:AV13)<=0.6,"MEDIA",IF(AVERAGE('CRUCE RIESGOS'!AV9:AV13)<=0.8,"ALTA",IF(AVERAGE('CRUCE RIESGOS'!AV9:AV13)=1,"MUY ALTA")))))),"") -> MEDIA | H18: =IFERROR(IF(AVERAGE('CRUCE RIESGOS'!AX9:AX13)="","",IF(AVERAGE('CRUCE RIESGOS'!AX9:AX13)<=0.2,"LEVE",IF(AVERAGE('CRUCE RIESGOS'!AX9:AX13)<=0.4,"MENOR",IF(AVERAGE('CRUCE RIESGOS'!AX9:AX13)<=0.6,"MODERADO",IF(AVERAGE('CRUCE RIESGOS'!AX9:AX13)<=0.8,"MAYOR",IF(AVERAGE('CRUCE RIESGOS'!AX9:AX13)=1,"CATASTRÓFICO")))))),"") -> MAYOR | I18: =IFERROR(IF(OR(AND(G18="Muy Baja",H18="Leve"),AND(G18="Muy Baja",H18="Menor"),AND(G18="Baja",H18="Leve")),"BAJO",IF(OR(AND(G18="Muy baja",H18="Moderado"),AND(G18="Baja",H18="Menor"),AND(G18="Baja",H18="Moderado"),AND(G18="Media",H18="Leve"),AND(G18="Media",H18="Menor"),AND(G18="Media",H18="Moderado"),AND(G18="Alta",H18="Leve"),AND(G18="Alta",H18="Menor")),"MODERADO",IF(OR(AND(G18="Muy Baja",H18="Mayor"),AND(G18="Baja",H18="Mayor"),AND(G18="Media",H18="Mayor"),AND(G18="Alta",H18="Moderado"),AND(G18="Alta",H18="Mayor"),AND(G18="Muy Alta",H18="Leve"),AND(G18="Muy Alta",H18="Menor"),AND(G18="Muy Alta",H18="Moderado"),AND(G18="Muy Alta",H18="Mayor")),"ALTO",IF(OR(AND(G18="Muy Baja",H18="Catastrófico"),AND(G18="Baja",H18="Catastrófico"),AND(G18="Media",H18="Catastrófico"),AND(G18="Alta",H18="Catastrófico"),AND(G18="Muy Alta",H18="Catastrófico")),"EXTREMO","")))),"") -> ALTO | N18: =IF(N20<>""," -R","") ->  | P18: =IF(P20<>""," -R","") ->  | R18: =IF(R20<>""," -R","") ->  | T18: =IF(T20<>""," -R","") ->  | V18: =IF(V20<>""," -R","") ->  | X18: =IF(X20<>""," -R","") ->  | Z18: =IF(Z20<>""," -R","") ->  | AB18: =IF(AB20<>""," -R","") ->  | AD18: =IF(AD20<>""," -R","") ->  | AF18: =IF(AF20<>""," -R","") ->  | AH18: =IF(AH20<>""," -R","") ->  | AJ18: =IF(AJ20<>""," -R","") ->  | AL18: =IF(AL20<>""," -R","") ->  | AN18: =IF(AN20<>""," -R","") ->  | AP18: =IF(AP20<>""," -R","") ->  | AR18: =IF(AR20<>""," -R","") ->  | AT18: =IF(AT20<>""," -R","") ->  | AV18: =IF(AV20<>""," -R","") ->  | AX18: =IF(AX20<>""," -R","") ->  | AZ18: =IF(AZ20<>""," -R","") ->  | BB18: =IF(BB20<>""," -R","") ->  | BD18: =IF(BD20<>""," -R","") ->  | BF18: =IF(BF20<>""," -R","") ->  | BH18: =IF(BH20<>""," -R","") ->  | BJ18: =IF(BJ20<>""," -R","") -> 
C19: Zona de riesgo alta: reducir el riesgo, evitar, compartir o transferir | F19: =COUNTIF('CRUCE RIESGOS'!$AZ$9:$AZ$13,"ALTO") -> 1
C20: Zona de riesgo extrema: Reducir el riesgo, Evitar, Compartir o Transferir | F20: =COUNTIF('CRUCE RIESGOS'!$AZ$9:$AZ$13,"EXTREMO") -> 0 | M20: 1.05 | N20: =IFERROR(VLOOKUP(M20,'CRUCE RIESGOS'!$C$9:$D$13,2,FALSE),"") ->  | O20: 2.05 | P20: =IFERROR(VLOOKUP(O20,'CRUCE RIESGOS'!$C$9:$D$13,2,FALSE),"") ->  | Q20: 3.05 | R20: =IFERROR(VLOOKUP(Q20,'CRUCE RIESGOS'!$C$9:$D$13,2,FALSE),"") ->  | S20: 4.05 | T20: =IFERROR(VLOOKUP(S20,'CRUCE RIESGOS'!$C$9:$D$13,2,FALSE),"") ->  | U20: 5.05 | V20: =IFERROR(VLOOKUP(U20,'CRUCE RIESGOS'!$C$9:$D$13,2,FALSE),"") ->  | W20: 6.05 | X20: =IFERROR(VLOOKUP(W20,'CRUCE RIESGOS'!$C$9:$D$13,2,FALSE),"") ->  | Y20: 7.05 | Z20: =IFERROR(VLOOKUP(Y20,'CRUCE RIESGOS'!$C$9:$D$13,2,FALSE),"") ->  | AA20: 8.05 | AB20: =IFERROR(VLOOKUP(AA20,'CRUCE RIESGOS'!$C$9:$D$13,2,FALSE),"") ->  | AC20: 9.05 | AD20: =IFERROR(VLOOKUP(AC20,'CRUCE RIESGOS'!$C$9:$D$13,2,FALSE),"") ->  | AE20: 10.05 | AF20: =IFERROR(VLOOKUP(AE20,'CRUCE RIESGOS'!$C$9:$D$13,2,FALSE),"") ->  | AG20: 11.05 | AH20: =IFERROR(VLOOKUP(AG20,'CRUCE RIESGOS'!$C$9:$D$13,2,FALSE),"") ->  | AI20: 12.05 | AJ20: =IFERROR(VLOOKUP(AI20,'CRUCE RIESGOS'!$C$9:$D$13,2,FALSE),"") ->  | AK20: 13.05 | AL20: =IFERROR(VLOOKUP(AK20,'CRUCE RIESGOS'!$C$9:$D$13,2,FALSE),"") ->  | AM20: 14.05 | AN20: =IFERROR(VLOOKUP(AM20,'CRUCE RIESGOS'!$C$9:$D$13,2,FALSE),"") ->  | AO20: 15.05 | AP20: =IFERROR(VLOOKUP(AO20,'CRUCE RIESGOS'!$C$9:$D$13,2,FALSE),"") ->  | AQ20: 16.05 | AR20: =IFERROR(VLOOKUP(AQ20,'CRUCE RIESGOS'!$C$9:$D$13,2,FALSE),"") ->  | AS20: 17.05 | AT20: =IFERROR(VLOOKUP(AS20,'CRUCE RIESGOS'!$C$9:$D$13,2,FALSE),"") ->  | AU20: 18.05 | AV20: =IFERROR(VLOOKUP(AU20,'CRUCE RIESGOS'!$C$9:$D$13,2,FALSE),"") ->  | AW20: 19.05 | AX20: =IFERROR(VLOOKUP(AW20,'CRUCE RIESGOS'!$C$9:$D$13,2,FALSE),"") ->  | AY20: 20.05 | AZ20: =IFERROR(VLOOKUP(AY20,'CRUCE RIESGOS'!$C$9:$D$13,2,FALSE),"") ->  | BA20: 21.05 | BB20: =IFERROR(VLOOKUP(BA20,'CRUCE RIESGOS'!$C$9:$D$13,2,FALSE),"") ->  | BC20: 22.05 | BD20: =IFERROR(VLOOKUP(BC20,'CRUCE RIESGOS'!$C$9:$D$13,2,FALSE),"") ->  | BE20: 23.05 | BF20: =IFERROR(VLOOKUP(BE20,'CRUCE RIESGOS'!$C$9:$D$13,2,FALSE),"") ->  | BG20: 24.05 | BH20: =IFERROR(VLOOKUP(BG20,'CRUCE RIESGOS'!$C$9:$D$13,2,FALSE),"") ->  | BI20: 25.05 | BJ20: =IFERROR(VLOOKUP(BI20,'CRUCE RIESGOS'!$C$9:$D$13,2,FALSE),"") -> 
N21: =IF(N22<>""," -R","") ->  | P21: =IF(P22<>""," -R","") ->  | R21: =IF(R22<>""," -R","") ->  | T21: =IF(T22<>""," -R","") ->  | V21: =IF(V22<>""," -R","") ->  | X21: =IF(X22<>""," -R","") ->  | Z21: =IF(Z22<>""," -R","") ->  | AB21: =IF(AB22<>""," -R","") ->  | AD21: =IF(AD22<>""," -R","") ->  | AF21: =IF(AF22<>""," -R","") ->  | AH21: =IF(AH22<>""," -R","") ->  | AJ21: =IF(AJ22<>""," -R","") ->  | AL21: =IF(AL22<>""," -R","") ->  | AN21: =IF(AN22<>""," -R","") ->  | AP21: =IF(AP22<>""," -R","") ->  | AR21: =IF(AR22<>""," -R","") ->  | AT21: =IF(AT22<>""," -R","") ->  | AV21: =IF(AV22<>""," -R","") ->  | AX21: =IF(AX22<>""," -R","") ->  | AZ21: =IF(AZ22<>""," -R","") ->  | BB21: =IF(BB22<>""," -R","") ->  | BD21: =IF(BD22<>""," -R","") ->  | BF21: =IF(BF22<>""," -R","") ->  | BH21: =IF(BH22<>""," -R","") ->  | BJ21: =IF(BJ22<>""," -R","") -> 
M26: 1.08 | N26: =IFERROR(VLOOKUP(M26,'CRUCE RIESGOS'!$C$9:$D$13,2,FALSE),"") ->  | O26: 2.08 | P26: =IFERROR(VLOOKUP(O26,'CRUCE RIESGOS'!$C$9:$D$13,2,FALSE),"") ->  | Q26: 3.08 | R26: =IFERROR(VLOOKUP(Q26,'CRUCE RIESGOS'!$C$9:$D$13,2,FALSE),"") ->  | S26: 4.08 | T26: =IFERROR(VLOOKUP(S26,'CRUCE RIESGOS'!$C$9:$D$13,2,FALSE),"") ->  | U26: 5.08 | V26: =IFERROR(VLOOKUP(U26,'CRUCE RIESGOS'!$C$9:$D$13,2,FALSE),"") ->  | W26: 6.08 | X26: =IFERROR(VLOOKUP(W26,'CRUCE RIESGOS'!$C$9:$D$13,2,FALSE),"") ->  | Y26: 7.08 | Z26: =IFERROR(VLOOKUP(Y26,'CRUCE RIESGOS'!$C$9:$D$13,2,FALSE),"") ->  | AA26: 8.08 | AB26: =IFERROR(VLOOKUP(AA26,'CRUCE RIESGOS'!$C$9:$D$13,2,FALSE),"") ->  | AC26: 9.08 | AD26: =IFERROR(VLOOKUP(AC26,'CRUCE RIESGOS'!$C$9:$D$13,2,FALSE),"") ->  | AE26: 10.08 | AF26: =IFERROR(VLOOKUP(AE26,'CRUCE RIESGOS'!$C$9:$D$13,2,FALSE),"") ->  | AG26: 11.08 | AH26: =IFERROR(VLOOKUP(AG26,'CRUCE RIESGOS'!$C$9:$D$13,2,FALSE),"") ->  | AI26: 12.08 | AJ26: =IFERROR(VLOOKUP(AI26,'CRUCE RIESGOS'!$C$9:$D$13,2,FALSE),"") ->  | AK26: 13.08 | AL26: =IFERROR(VLOOKUP(AK26,'CRUCE RIESGOS'!$C$9:$D$13,2,FALSE),"") ->  | AM26: 14.08 | AN26: =IFERROR(VLOOKUP(AM26,'CRUCE RIESGOS'!$C$9:$D$13,2,FALSE),"") ->  | AO26: 15.08 | AP26: =IFERROR(VLOOKUP(AO26,'CRUCE RIESGOS'!$C$9:$D$13,2,FALSE),"") ->  | AQ26: 16.08 | AR26: =IFERROR(VLOOKUP(AQ26,'CRUCE RIESGOS'!$C$9:$D$13,2,FALSE),"") ->  | AS26: 17.08 | AT26: =IFERROR(VLOOKUP(AS26,'CRUCE RIESGOS'!$C$9:$D$13,2,FALSE),"") ->  | AU26: 18.08 | AV26: =IFERROR(VLOOKUP(AU26,'CRUCE RIESGOS'!$C$9:$D$13,2,FALSE),"") ->  | AW26: 19.08 | AX26: =IFERROR(VLOOKUP(AW26,'CRUCE RIESGOS'!$C$9:$D$13,2,FALSE),"") ->  | AY26: 20.08 | AZ26: =IFERROR(VLOOKUP(AY26,'CRUCE RIESGOS'!$C$9:$D$13,2,FALSE),"") ->  | BA26: 21.08 | BB26: =IFERROR(VLOOKUP(BA26,'CRUCE RIESGOS'!$C$9:$D$13,2,FALSE),"") ->  | BC26: 22.08 | BD26: =IFERROR(VLOOKUP(BC26,'CRUCE RIESGOS'!$C$9:$D$13,2,FALSE),"") ->  | BE26: 23.08 | BF26: =IFERROR(VLOOKUP(BE26,'CRUCE RIESGOS'!$C$9:$D$13,2,FALSE),"") ->  | BG26: 24.08 | BH26: =IFERROR(VLOOKUP(BG26,'CRUCE RIESGOS'!$C$9:$D$13,2,FALSE),"") ->  | BI26: 25.08 | BJ26: =IFERROR(VLOOKUP(BI26,'CRUCE RIESGOS'!$C$9:$D$13,2,FALSE),"") -> 
N27: =IF(N28<>""," -R","") ->  | P27: =IF(P28<>""," -R","") ->  | R27: =IF(R28<>""," -R","") ->  | T27: =IF(T28<>""," -R","") ->  | V27: =IF(V28<>""," -R","") ->  | X27: =IF(X28<>""," -R","") ->  | Z27: =IF(Z28<>""," -R","") ->  | AB27: =IF(AB28<>""," -R","") ->  | AD27: =IF(AD28<>""," -R","") ->  | AF27: =IF(AF28<>""," -R","") ->  | AH27: =IF(AH28<>""," -R","") ->  | AJ27: =IF(AJ28<>""," -R","") ->  | AL27: =IF(AL28<>""," -R","") ->  | AN27: =IF(AN28<>""," -R","") ->  | AP27: =IF(AP28<>""," -R","") ->  | AR27: =IF(AR28<>""," -R","") ->  | AT27: =IF(AT28<>""," -R","") ->  | AV27: =IF(AV28<>""," -R","") ->  | AX27: =IF(AX28<>""," -R","") ->  | AZ27: =IF(AZ28<>""," -R","") ->  | BB27: =IF(BB28<>""," -R","") ->  | BD27: =IF(BD28<>""," -R","") ->  | BF27: =IF(BF28<>""," -R","") ->  | BH27: =IF(BH28<>""," -R","") ->  | BJ27: =IF(BJ28<>""," -R","") -> 
M28: 1.09 | N28: =IFERROR(VLOOKUP(M28,'CRUCE RIESGOS'!$C$9:$D$13,2,FALSE),"") ->  | O28: 2.09 | P28: =IFERROR(VLOOKUP(O28,'CRUCE RIESGOS'!$C$9:$D$13,2,FALSE),"") ->  | Q28: 3.09 | R28: =IFERROR(VLOOKUP(Q28,'CRUCE RIESGOS'!$C$9:$D$13,2,FALSE),"") ->  | S28: 4.09 | T28: =IFERROR(VLOOKUP(S28,'CRUCE RIESGOS'!$C$9:$D$13,2,FALSE),"") ->  | U28: 5.09 | V28: =IFERROR(VLOOKUP(U28,'CRUCE RIESGOS'!$C$9:$D$13,2,FALSE),"") ->  | W28: 6.09 | X28: =IFERROR(VLOOKUP(W28,'CRUCE RIESGOS'!$C$9:$D$13,2,FALSE),"") ->  | Y28: 7.09 | Z28: =IFERROR(VLOOKUP(Y28,'CRUCE RIESGOS'!$C$9:$D$13,2,FALSE),"") ->  | AA28: 8.09 | AB28: =IFERROR(VLOOKUP(AA28,'CRUCE RIESGOS'!$C$9:$D$13,2,FALSE),"") ->  | AC28: 9.09 | AD28: =IFERROR(VLOOKUP(AC28,'CRUCE RIESGOS'!$C$9:$D$13,2,FALSE),"") ->  | AE28: 10.09 | AF28: =IFERROR(VLOOKUP(AE28,'CRUCE RIESGOS'!$C$9:$D$13,2,FALSE),"") ->  | AG28: 11.09 | AH28: =IFERROR(VLOOKUP(AG28,'CRUCE RIESGOS'!$C$9:$D$13,2,FALSE),"") ->  | AI28: 12.09 | AJ28: =IFERROR(VLOOKUP(AI28,'CRUCE RIESGOS'!$C$9:$D$13,2,FALSE),"") ->  | AK28: 13.09 | AL28: =IFERROR(VLOOKUP(AK28,'CRUCE RIESGOS'!$C$9:$D$13,2,FALSE),"") ->  | AM28: 14.09 | AN28: =IFERROR(VLOOKUP(AM28,'CRUCE RIESGOS'!$C$9:$D$13,2,FALSE),"") ->  | AO28: 15.09 | AP28: =IFERROR(VLOOKUP(AO28,'CRUCE RIESGOS'!$C$9:$D$13,2,FALSE),"") ->  | AQ28: 16.09 | AR28: =IFERROR(VLOOKUP(AQ28,'CRUCE RIESGOS'!$C$9:$D$13,2,FALSE),"") ->  | AS28: 17.09 | AT28: =IFERROR(VLOOKUP(AS28,'CRUCE RIESGOS'!$C$9:$D$13,2,FALSE),"") ->  | AU28: 18.09 | AV28: =IFERROR(VLOOKUP(AU28,'CRUCE RIESGOS'!$C$9:$D$13,2,FALSE),"") ->  | AW28: 19.09 | AX28: =IFERROR(VLOOKUP(AW28,'CRUCE RIESGOS'!$C$9:$D$13,2,FALSE),"") ->  | AY28: 20.09 | AZ28: =IFERROR(VLOOKUP(AY28,'CRUCE RIESGOS'!$C$9:$D$13,2,FALSE),"") ->  | BA28: 21.09 | BB28: =IFERROR(VLOOKUP(BA28,'CRUCE RIESGOS'!$C$9:$D$13,2,FALSE),"") ->  | BC28: 22.09 | BD28: =IFERROR(VLOOKUP(BC28,'CRUCE RIESGOS'!$C$9:$D$13,2,FALSE),"") ->  | BE28: 23.09 | BF28: =IFERROR(VLOOKUP(BE28,'CRUCE RIESGOS'!$C$9:$D$13,2,FALSE),"") ->  | BG28: 24.09 | BH28: =IFERROR(VLOOKUP(BG28,'CRUCE RIESGOS'!$C$9:$D$13,2,FALSE),"") ->  | BI28: 25.09 | BJ28: =IFERROR(VLOOKUP(BI28,'CRUCE RIESGOS'!$C$9:$D$13,2,FALSE),"") -> 
N29: =IF(N30<>""," -R","") ->  | P29: =IF(P30<>""," -R","") ->  | R29: =IF(R30<>""," -R","") ->  | T29: =IF(T30<>""," -R","") ->  | V29: =IF(V30<>""," -R","") ->  | X29: =IF(X30<>""," -R","") ->  | Z29: =IF(Z30<>""," -R","") ->  | AB29: =IF(AB30<>""," -R","") ->  | AD29: =IF(AD30<>""," -R","") ->  | AF29: =IF(AF30<>""," -R","") ->  | AH29: =IF(AH30<>""," -R","") ->  | AJ29: =IF(AJ30<>""," -R","") ->  | AL29: =IF(AL30<>""," -R","") ->  | AN29: =IF(AN30<>""," -R","") ->  | AP29: =IF(AP30<>""," -R","") ->  | AR29: =IF(AR30<>""," -R","") ->  | AT29: =IF(AT30<>""," -R","") ->  | AV29: =IF(AV30<>""," -R","") ->  | AX29: =IF(AX30<>""," -R","") ->  | AZ29: =IF(AZ30<>""," -R","") ->  | BB29: =IF(BB30<>""," -R","") ->  | BD29: =IF(BD30<>""," -R","") ->  | BF29: =IF(BF30<>""," -R","") ->  | BH29: =IF(BH30<>""," -R","") ->  | BJ29: =IF(BJ30<>""," -R","") -> 
M30: 1.1 | N30: =IFERROR(VLOOKUP(M30,'CRUCE RIESGOS'!$C$9:$D$13,2,FALSE),"") ->  | O30: 2.1 | P30: =IFERROR(VLOOKUP(O30,'CRUCE RIESGOS'!$C$9:$D$13,2,FALSE),"") ->  | Q30: 3.1 | R30: =IFERROR(VLOOKUP(Q30,'CRUCE RIESGOS'!$C$9:$D$13,2,FALSE),"") ->  | S30: 4.1 | T30: =IFERROR(VLOOKUP(S30,'CRUCE RIESGOS'!$C$9:$D$13,2,FALSE),"") ->  | U30: 5.1 | V30: =IFERROR(VLOOKUP(U30,'CRUCE RIESGOS'!$C$9:$D$13,2,FALSE),"") ->  | W30: 6.1 | X30: =IFERROR(VLOOKUP(W30,'CRUCE RIESGOS'!$C$9:$D$13,2,FALSE),"") ->  | Y30: 7.1 | Z30: =IFERROR(VLOOKUP(Y30,'CRUCE RIESGOS'!$C$9:$D$13,2,FALSE),"") ->  | AA30: 8.1 | AB30: =IFERROR(VLOOKUP(AA30,'CRUCE RIESGOS'!$C$9:$D$13,2,FALSE),"") ->  | AC30: 9.1 | AD30: =IFERROR(VLOOKUP(AC30,'CRUCE RIESGOS'!$C$9:$D$13,2,FALSE),"") ->  | AE30: 10.1 | AF30: =IFERROR(VLOOKUP(AE30,'CRUCE RIESGOS'!$C$9:$D$13,2,FALSE),"") ->  | AG30: 11.1 | AH30: =IFERROR(VLOOKUP(AG30,'CRUCE RIESGOS'!$C$9:$D$13,2,FALSE),"") ->  | AI30: 12.1 | AJ30: =IFERROR(VLOOKUP(AI30,'CRUCE RIESGOS'!$C$9:$D$13,2,FALSE),"") ->  | AK30: 13.1 | AL30: =IFERROR(VLOOKUP(AK30,'CRUCE RIESGOS'!$C$9:$D$13,2,FALSE),"") ->  | AM30: 14.1 | AN30: =IFERROR(VLOOKUP(AM30,'CRUCE RIESGOS'!$C$9:$D$13,2,FALSE),"") ->  | AO30: 15.1 | AP30: =IFERROR(VLOOKUP(AO30,'CRUCE RIESGOS'!$C$9:$D$13,2,FALSE),"") ->  | AQ30: 16.1 | AR30: =IFERROR(VLOOKUP(AQ30,'CRUCE RIESGOS'!$C$9:$D$13,2,FALSE),"") ->  | AS30: 17.1 | AT30: =IFERROR(VLOOKUP(AS30,'CRUCE RIESGOS'!$C$9:$D$13,2,FALSE),"") ->  | AU30: 18.1 | AV30: =IFERROR(VLOOKUP(AU30,'CRUCE RIESGOS'!$C$9:$D$13,2,FALSE),"") ->  | AW30: 19.1 | AX30: =IFERROR(VLOOKUP(AW30,'CRUCE RIESGOS'!$C$9:$D$13,2,FALSE),"") ->  | AY30: 20.1 | AZ30: =IFERROR(VLOOKUP(AY30,'CRUCE RIESGOS'!$C$9:$D$13,2,FALSE),"") ->  | BA30: 21.1 | BB30: =IFERROR(VLOOKUP(BA30,'CRUCE RIESGOS'!$C$9:$D$13,2,FALSE),"") ->  | BC30: 22.1 | BD30: =IFERROR(VLOOKUP(BC30,'CRUCE RIESGOS'!$C$9:$D$13,2,FALSE),"") ->  | BE30: 23.1 | BF30: =IFERROR(VLOOKUP(BE30,'CRUCE RIESGOS'!$C$9:$D$13,2,FALSE),"") ->  | BG30: 24.1 | BH30: =IFERROR(VLOOKUP(BG30,'CRUCE RIESGOS'!$C$9:$D$13,2,FALSE),"") ->  | BI30: 25.1 | BJ30: =IFERROR(VLOOKUP(BI30,'CRUCE RIESGOS'!$C$9:$D$13,2,FALSE),"") -> 
N31: =IF(N32<>""," -R","") ->  | P31: =IF(P32<>""," -R","") ->  | R31: =IF(R32<>""," -R","") ->  | T31: =IF(T32<>""," -R","") ->  | V31: =IF(V32<>""," -R","") ->  | X31: =IF(X32<>""," -R","") ->  | Z31: =IF(Z32<>""," -R","") ->  | AB31: =IF(AB32<>""," -R","") ->  | AD31: =IF(AD32<>""," -R","") ->  | AF31: =IF(AF32<>""," -R","") ->  | AH31: =IF(AH32<>""," -R","") ->  | AJ31: =IF(AJ32<>""," -R","") ->  | AL31: =IF(AL32<>""," -R","") ->  | AN31: =IF(AN32<>""," -R","") ->  | AP31: =IF(AP32<>""," -R","") ->  | AR31: =IF(AR32<>""," -R","") ->  | AT31: =IF(AT32<>""," -R","") ->  | AV31: =IF(AV32<>""," -R","") ->  | AX31: =IF(AX32<>""," -R","") ->  | AZ31: =IF(AZ32<>""," -R","") ->  | BB31: =IF(BB32<>""," -R","") ->  | BD31: =IF(BD32<>""," -R","") ->  | BF31: =IF(BF32<>""," -R","") ->  | BH31: =IF(BH32<>""," -R","") ->  | BJ31: =IF(BJ32<>""," -R","") -> 
M32: 1.11 | N32: =IFERROR(VLOOKUP(M32,'CRUCE RIESGOS'!$C$9:$D$13,2,FALSE),"") ->  | O32: 2.11 | P32: =IFERROR(VLOOKUP(O32,'CRUCE RIESGOS'!$C$9:$D$13,2,FALSE),"") ->  | Q32: 3.11 | R32: =IFERROR(VLOOKUP(Q32,'CRUCE RIESGOS'!$C$9:$D$13,2,FALSE),"") ->  | S32: 4.11 | T32: =IFERROR(VLOOKUP(S32,'CRUCE RIESGOS'!$C$9:$D$13,2,FALSE),"") ->  | U32: 5.11 | V32: =IFERROR(VLOOKUP(U32,'CRUCE RIESGOS'!$C$9:$D$13,2,FALSE),"") ->  | W32: 6.11 | X32: =IFERROR(VLOOKUP(W32,'CRUCE RIESGOS'!$C$9:$D$13,2,FALSE),"") ->  | Y32: 7.11 | Z32: =IFERROR(VLOOKUP(Y32,'CRUCE RIESGOS'!$C$9:$D$13,2,FALSE),"") ->  | AA32: 8.11 | AB32: =IFERROR(VLOOKUP(AA32,'CRUCE RIESGOS'!$C$9:$D$13,2,FALSE),"") ->  | AC32: 9.11 | AD32: =IFERROR(VLOOKUP(AC32,'CRUCE RIESGOS'!$C$9:$D$13,2,FALSE),"") ->  | AE32: 10.11 | AF32: =IFERROR(VLOOKUP(AE32,'CRUCE RIESGOS'!$C$9:$D$13,2,FALSE),"") ->  | AG32: 11.11 | AH32: =IFERROR(VLOOKUP(AG32,'CRUCE RIESGOS'!$C$9:$D$13,2,FALSE),"") ->  | AI32: 12.11 | AJ32: =IFERROR(VLOOKUP(AI32,'CRUCE RIESGOS'!$C$9:$D$13,2,FALSE),"") ->  | AK32: 13.11 | AL32: =IFERROR(VLOOKUP(AK32,'CRUCE RIESGOS'!$C$9:$D$13,2,FALSE),"") ->  | AM32: 14.11 | AN32: =IFERROR(VLOOKUP(AM32,'CRUCE RIESGOS'!$C$9:$D$13,2,FALSE),"") ->  | AO32: 15.11 | AP32: =IFERROR(VLOOKUP(AO32,'CRUCE RIESGOS'!$C$9:$D$13,2,FALSE),"") ->  | AQ32: 16.11 | AR32: =IFERROR(VLOOKUP(AQ32,'CRUCE RIESGOS'!$C$9:$D$13,2,FALSE),"") ->  | AS32: 17.11 | AT32: =IFERROR(VLOOKUP(AS32,'CRUCE RIESGOS'!$C$9:$D$13,2,FALSE),"") ->  | AU32: 18.11 | AV32: =IFERROR(VLOOKUP(AU32,'CRUCE RIESGOS'!$C$9:$D$13,2,FALSE),"") ->  | AW32: 19.11 | AX32: =IFERROR(VLOOKUP(AW32,'CRUCE RIESGOS'!$C$9:$D$13,2,FALSE),"") ->  | AY32: 20.11 | AZ32: =IFERROR(VLOOKUP(AY32,'CRUCE RIESGOS'!$C$9:$D$13,2,FALSE),"") ->  | BA32: 21.11 | BB32: =IFERROR(VLOOKUP(BA32,'CRUCE RIESGOS'!$C$9:$D$13,2,FALSE),"") ->  | BC32: 22.11 | BD32: =IFERROR(VLOOKUP(BC32,'CRUCE RIESGOS'!$C$9:$D$13,2,FALSE),"") ->  | BE32: 23.11 | BF32: =IFERROR(VLOOKUP(BE32,'CRUCE RIESGOS'!$C$9:$D$13,2,FALSE),"") ->  | BG32: 24.11 | BH32: =IFERROR(VLOOKUP(BG32,'CRUCE RIESGOS'!$C$9:$D$13,2,FALSE),"") ->  | BI32: 25.11 | BJ32: =IFERROR(VLOOKUP(BI32,'CRUCE RIESGOS'!$C$9:$D$13,2,FALSE),"") -> 
N33: =IF(N34<>""," -R","") ->  | P33: =IF(P34<>""," -R","") ->  | R33: =IF(R34<>""," -R","") ->  | T33: =IF(T34<>""," -R","") ->  | V33: =IF(V34<>""," -R","") ->  | X33: =IF(X34<>""," -R","") ->  | Z33: =IF(Z34<>""," -R","") ->  | AB33: =IF(AB34<>""," -R","") ->  | AD33: =IF(AD34<>""," -R","") ->  | AF33: =IF(AF34<>""," -R","") ->  | AH33: =IF(AH34<>""," -R","") ->  | AJ33: =IF(AJ34<>""," -R","") ->  | AL33: =IF(AL34<>""," -R","") ->  | AN33: =IF(AN34<>""," -R","") ->  | AP33: =IF(AP34<>""," -R","") ->  | AR33: =IF(AR34<>""," -R","") ->  | AT33: =IF(AT34<>""," -R","") ->  | AV33: =IF(AV34<>""," -R","") ->  | AX33: =IF(AX34<>""," -R","") ->  | AZ33: =IF(AZ34<>""," -R","") ->  | BB33: =IF(BB34<>""," -R","") ->  | BD33: =IF(BD34<>""," -R","") ->  | BF33: =IF(BF34<>""," -R","") ->  | BH33: =IF(BH34<>""," -R","") ->  | BJ33: =IF(BJ34<>""," -R","") -> 
M34: 1.12 | N34: =IFERROR(VLOOKUP(M34,'CRUCE RIESGOS'!$C$9:$D$13,2,FALSE),"") ->  | O34: 2.12 | P34: =IFERROR(VLOOKUP(O34,'CRUCE RIESGOS'!$C$9:$D$13,2,FALSE),"") ->  | Q34: 3.12 | R34: =IFERROR(VLOOKUP(Q34,'CRUCE RIESGOS'!$C$9:$D$13,2,FALSE),"") ->  | S34: 4.12 | T34: =IFERROR(VLOOKUP(S34,'CRUCE RIESGOS'!$C$9:$D$13,2,FALSE),"") ->  | U34: 5.12 | V34: =IFERROR(VLOOKUP(U34,'CRUCE RIESGOS'!$C$9:$D$13,2,FALSE),"") ->  | W34: 6.12 | X34: =IFERROR(VLOOKUP(W34,'CRUCE RIESGOS'!$C$9:$D$13,2,FALSE),"") ->  | Y34: 7.12 | Z34: =IFERROR(VLOOKUP(Y34,'CRUCE RIESGOS'!$C$9:$D$13,2,FALSE),"") ->  | AA34: 8.12 | AB34: =IFERROR(VLOOKUP(AA34,'CRUCE RIESGOS'!$C$9:$D$13,2,FALSE),"") ->  | AC34: 9.12 | AD34: =IFERROR(VLOOKUP(AC34,'CRUCE RIESGOS'!$C$9:$D$13,2,FALSE),"") ->  | AE34: 10.12 | AF34: =IFERROR(VLOOKUP(AE34,'CRUCE RIESGOS'!$C$9:$D$13,2,FALSE),"") ->  | AG34: 11.12 | AH34: =IFERROR(VLOOKUP(AG34,'CRUCE RIESGOS'!$C$9:$D$13,2,FALSE),"") ->  | AI34: 12.12 | AJ34: =IFERROR(VLOOKUP(AI34,'CRUCE RIESGOS'!$C$9:$D$13,2,FALSE),"") ->  | AK34: 13.12 | AL34: =IFERROR(VLOOKUP(AK34,'CRUCE RIESGOS'!$C$9:$D$13,2,FALSE),"") ->  | AM34: 14.12 | AN34: =IFERROR(VLOOKUP(AM34,'CRUCE RIESGOS'!$C$9:$D$13,2,FALSE),"") ->  | AO34: 15.12 | AP34: =IFERROR(VLOOKUP(AO34,'CRUCE RIESGOS'!$C$9:$D$13,2,FALSE),"") ->  | AQ34: 16.12 | AR34: =IFERROR(VLOOKUP(AQ34,'CRUCE RIESGOS'!$C$9:$D$13,2,FALSE),"") ->  | AS34: 17.12 | AT34: =IFERROR(VLOOKUP(AS34,'CRUCE RIESGOS'!$C$9:$D$13,2,FALSE),"") ->  | AU34: 18.12 | AV34: =IFERROR(VLOOKUP(AU34,'CRUCE RIESGOS'!$C$9:$D$13,2,FALSE),"") ->  | AW34: 19.12 | AX34: =IFERROR(VLOOKUP(AW34,'CRUCE RIESGOS'!$C$9:$D$13,2,FALSE),"") ->  | AY34: 20.12 | AZ34: =IFERROR(VLOOKUP(AY34,'CRUCE RIESGOS'!$C$9:$D$13,2,FALSE),"") ->  | BA34: 21.12 | BB34: =IFERROR(VLOOKUP(BA34,'CRUCE RIESGOS'!$C$9:$D$13,2,FALSE),"") ->  | BC34: 22.12 | BD34: =IFERROR(VLOOKUP(BC34,'CRUCE RIESGOS'!$C$9:$D$13,2,FALSE),"") ->  | BE34: 23.12 | BF34: =IFERROR(VLOOKUP(BE34,'CRUCE RIESGOS'!$C$9:$D$13,2,FALSE),"") ->  | BG34: 24.12 | BH34: =IFERROR(VLOOKUP(BG34,'CRUCE RIESGOS'!$C$9:$D$13,2,FALSE),"") ->  | BI34: 25.12 | BJ34: =IFERROR(VLOOKUP(BI34,'CRUCE RIESGOS'!$C$9:$D$13,2,FALSE),"") -> 
N35: =IF(N36<>""," -R","") ->  | P35: =IF(P36<>""," -R","") ->  | R35: =IF(R36<>""," -R","") ->  | T35: =IF(T36<>""," -R","") ->  | V35: =IF(V36<>""," -R","") ->  | X35: =IF(X36<>""," -R","") ->  | Z35: =IF(Z36<>""," -R","") ->  | AB35: =IF(AB36<>""," -R","") ->  | AD35: =IF(AD36<>""," -R","") ->  | AF35: =IF(AF36<>""," -R","") ->  | AH35: =IF(AH36<>""," -R","") ->  | AJ35: =IF(AJ36<>""," -R","") ->  | AL35: =IF(AL36<>""," -R","") ->  | AN35: =IF(AN36<>""," -R","") ->  | AP35: =IF(AP36<>""," -R","") ->  | AR35: =IF(AR36<>""," -R","") ->  | AT35: =IF(AT36<>""," -R","") ->  | AV35: =IF(AV36<>""," -R","") ->  | AX35: =IF(AX36<>""," -R","") ->  | AZ35: =IF(AZ36<>""," -R","") ->  | BB35: =IF(BB36<>""," -R","") ->  | BD35: =IF(BD36<>""," -R","") ->  | BF35: =IF(BF36<>""," -R","") ->  | BH35: =IF(BH36<>""," -R","") ->  | BJ35: =IF(BJ36<>""," -R","") -> 
M36: 1.13 | N36: =IFERROR(VLOOKUP(M36,'CRUCE RIESGOS'!$C$9:$D$13,2,FALSE),"") ->  | O36: 2.13 | P36: =IFERROR(VLOOKUP(O36,'CRUCE RIESGOS'!$C$9:$D$13,2,FALSE),"") ->  | Q36: 3.13 | R36: =IFERROR(VLOOKUP(Q36,'CRUCE RIESGOS'!$C$9:$D$13,2,FALSE),"") ->  | S36: 4.13 | T36: =IFERROR(VLOOKUP(S36,'CRUCE RIESGOS'!$C$9:$D$13,2,FALSE),"") ->  | U36: 5.13 | V36: =IFERROR(VLOOKUP(U36,'CRUCE RIESGOS'!$C$9:$D$13,2,FALSE),"") ->  | W36: 6.13 | X36: =IFERROR(VLOOKUP(W36,'CRUCE RIESGOS'!$C$9:$D$13,2,FALSE),"") ->  | Y36: 7.13 | Z36: =IFERROR(VLOOKUP(Y36,'CRUCE RIESGOS'!$C$9:$D$13,2,FALSE),"") ->  | AA36: 8.13 | AB36: =IFERROR(VLOOKUP(AA36,'CRUCE RIESGOS'!$C$9:$D$13,2,FALSE),"") ->  | AC36: 9.13 | AD36: =IFERROR(VLOOKUP(AC36,'CRUCE RIESGOS'!$C$9:$D$13,2,FALSE),"") ->  | AE36: 10.13 | AF36: =IFERROR(VLOOKUP(AE36,'CRUCE RIESGOS'!$C$9:$D$13,2,FALSE),"") ->  | AG36: 11.13 | AH36: =IFERROR(VLOOKUP(AG36,'CRUCE RIESGOS'!$C$9:$D$13,2,FALSE),"") ->  | AI36: 12.13 | AJ36: =IFERROR(VLOOKUP(AI36,'CRUCE RIESGOS'!$C$9:$D$13,2,FALSE),"") ->  | AK36: 13.13 | AL36: =IFERROR(VLOOKUP(AK36,'CRUCE RIESGOS'!$C$9:$D$13,2,FALSE),"") ->  | AM36: 14.13 | AN36: =IFERROR(VLOOKUP(AM36,'CRUCE RIESGOS'!$C$9:$D$13,2,FALSE),"") ->  | AO36: 15.13 | AP36: =IFERROR(VLOOKUP(AO36,'CRUCE RIESGOS'!$C$9:$D$13,2,FALSE),"") ->  | AQ36: 16.13 | AR36: =IFERROR(VLOOKUP(AQ36,'CRUCE RIESGOS'!$C$9:$D$13,2,FALSE),"") ->  | AS36: 17.13 | AT36: =IFERROR(VLOOKUP(AS36,'CRUCE RIESGOS'!$C$9:$D$13,2,FALSE),"") ->  | AU36: 18.13 | AV36: =IFERROR(VLOOKUP(AU36,'CRUCE RIESGOS'!$C$9:$D$13,2,FALSE),"") ->  | AW36: 19.13 | AX36: =IFERROR(VLOOKUP(AW36,'CRUCE RIESGOS'!$C$9:$D$13,2,FALSE),"") ->  | AY36: 20.13 | AZ36: =IFERROR(VLOOKUP(AY36,'CRUCE RIESGOS'!$C$9:$D$13,2,FALSE),"") ->  | BA36: 21.13 | BB36: =IFERROR(VLOOKUP(BA36,'CRUCE RIESGOS'!$C$9:$D$13,2,FALSE),"") ->  | BC36: 22.13 | BD36: =IFERROR(VLOOKUP(BC36,'CRUCE RIESGOS'!$C$9:$D$13,2,FALSE),"") ->  | BE36: 23.13 | BF36: =IFERROR(VLOOKUP(BE36,'CRUCE RIESGOS'!$C$9:$D$13,2,FALSE),"") ->  | BG36: 24.13 | BH36: =IFERROR(VLOOKUP(BG36,'CRUCE RIESGOS'!$C$9:$D$13,2,FALSE),"") ->  | BI36: 25.13 | BJ36: =IFERROR(VLOOKUP(BI36,'CRUCE RIESGOS'!$C$9:$D$13,2,FALSE),"") -> 
N37: =IF(N38<>""," -R","") ->  | P37: =IF(P38<>""," -R","") ->  | R37: =IF(R38<>""," -R","") ->  | T37: =IF(T38<>""," -R","") ->  | V37: =IF(V38<>""," -R","") ->  | X37: =IF(X38<>""," -R","") ->  | Z37: =IF(Z38<>""," -R","") ->  | AB37: =IF(AB38<>""," -R","") ->  | AD37: =IF(AD38<>""," -R","") ->  | AF37: =IF(AF38<>""," -R","") ->  | AH37: =IF(AH38<>""," -R","") ->  | AJ37: =IF(AJ38<>""," -R","") ->  | AL37: =IF(AL38<>""," -R","") ->  | AN37: =IF(AN38<>""," -R","") ->  | AP37: =IF(AP38<>""," -R","") ->  | AR37: =IF(AR38<>""," -R","") ->  | AT37: =IF(AT38<>""," -R","") ->  | AV37: =IF(AV38<>""," -R","") ->  | AX37: =IF(AX38<>""," -R","") ->  | AZ37: =IF(AZ38<>""," -R","") ->  | BB37: =IF(BB38<>""," -R","") ->  | BD37: =IF(BD38<>""," -R","") ->  | BF37: =IF(BF38<>""," -R","") ->  | BH37: =IF(BH38<>""," -R","") ->  | BJ37: =IF(BJ38<>""," -R","") -> 
M38: 1.14 | N38: =IFERROR(VLOOKUP(M38,'CRUCE RIESGOS'!$C$9:$D$13,2,FALSE),"") ->  | O38: 2.14 | P38: =IFERROR(VLOOKUP(O38,'CRUCE RIESGOS'!$C$9:$D$13,2,FALSE),"") ->  | Q38: 3.14 | R38: =IFERROR(VLOOKUP(Q38,'CRUCE RIESGOS'!$C$9:$D$13,2,FALSE),"") ->  | S38: 4.14 | T38: =IFERROR(VLOOKUP(S38,'CRUCE RIESGOS'!$C$9:$D$13,2,FALSE),"") ->  | U38: 5.14 | V38: =IFERROR(VLOOKUP(U38,'CRUCE RIESGOS'!$C$9:$D$13,2,FALSE),"") ->  | W38: 6.14 | X38: =IFERROR(VLOOKUP(W38,'CRUCE RIESGOS'!$C$9:$D$13,2,FALSE),"") ->  | Y38: 7.14 | Z38: =IFERROR(VLOOKUP(Y38,'CRUCE RIESGOS'!$C$9:$D$13,2,FALSE),"") ->  | AA38: 8.14 | AB38: =IFERROR(VLOOKUP(AA38,'CRUCE RIESGOS'!$C$9:$D$13,2,FALSE),"") ->  | AC38: 9.14 | AD38: =IFERROR(VLOOKUP(AC38,'CRUCE RIESGOS'!$C$9:$D$13,2,FALSE),"") ->  | AE38: 10.14 | AF38: =IFERROR(VLOOKUP(AE38,'CRUCE RIESGOS'!$C$9:$D$13,2,FALSE),"") ->  | AG38: 11.14 | AH38: =IFERROR(VLOOKUP(AG38,'CRUCE RIESGOS'!$C$9:$D$13,2,FALSE),"") ->  | AI38: 12.14 | AJ38: =IFERROR(VLOOKUP(AI38,'CRUCE RIESGOS'!$C$9:$D$13,2,FALSE),"") ->  | AK38: 13.14 | AL38: =IFERROR(VLOOKUP(AK38,'CRUCE RIESGOS'!$C$9:$D$13,2,FALSE),"") ->  | AM38: 14.14 | AN38: =IFERROR(VLOOKUP(AM38,'CRUCE RIESGOS'!$C$9:$D$13,2,FALSE),"") ->  | AO38: 15.14 | AP38: =IFERROR(VLOOKUP(AO38,'CRUCE RIESGOS'!$C$9:$D$13,2,FALSE),"") ->  | AQ38: 16.14 | AR38: =IFERROR(VLOOKUP(AQ38,'CRUCE RIESGOS'!$C$9:$D$13,2,FALSE),"") ->  | AS38: 17.14 | AT38: =IFERROR(VLOOKUP(AS38,'CRUCE RIESGOS'!$C$9:$D$13,2,FALSE),"") ->  | AU38: 18.14 | AV38: =IFERROR(VLOOKUP(AU38,'CRUCE RIESGOS'!$C$9:$D$13,2,FALSE),"") ->  | AW38: 19.14 | AX38: =IFERROR(VLOOKUP(AW38,'CRUCE RIESGOS'!$C$9:$D$13,2,FALSE),"") ->  | AY38: 20.14 | AZ38: =IFERROR(VLOOKUP(AY38,'CRUCE RIESGOS'!$C$9:$D$13,2,FALSE),"") ->  | BA38: 21.14 | BB38: =IFERROR(VLOOKUP(BA38,'CRUCE RIESGOS'!$C$9:$D$13,2,FALSE),"") ->  | BC38: 22.14 | BD38: =IFERROR(VLOOKUP(BC38,'CRUCE RIESGOS'!$C$9:$D$13,2,FALSE),"") ->  | BE38: 23.14 | BF38: =IFERROR(VLOOKUP(BE38,'CRUCE RIESGOS'!$C$9:$D$13,2,FALSE),"") ->  | BG38: 24.14 | BH38: =IFERROR(VLOOKUP(BG38,'CRUCE RIESGOS'!$C$9:$D$13,2,FALSE),"") ->  | BI38: 25.14 | BJ38: =IFERROR(VLOOKUP(BI38,'CRUCE RIESGOS'!$C$9:$D$13,2,FALSE),"") -> 
N39: =IF(N40<>""," -R","") ->  | P39: =IF(P40<>""," -R","") ->  | R39: =IF(R40<>""," -R","") ->  | T39: =IF(T40<>""," -R","") ->  | V39: =IF(V40<>""," -R","") ->  | X39: =IF(X40<>""," -R","") ->  | Z39: =IF(Z40<>""," -R","") ->  | AB39: =IF(AB40<>""," -R","") ->  | AD39: =IF(AD40<>""," -R","") ->  | AF39: =IF(AF40<>""," -R","") ->  | AH39: =IF(AH40<>""," -R","") ->  | AJ39: =IF(AJ40<>""," -R","") ->  | AL39: =IF(AL40<>""," -R","") ->  | AN39: =IF(AN40<>""," -R","") ->  | AP39: =IF(AP40<>""," -R","") ->  | AR39: =IF(AR40<>""," -R","") ->  | AT39: =IF(AT40<>""," -R","") ->  | AV39: =IF(AV40<>""," -R","") ->  | AX39: =IF(AX40<>""," -R","") ->  | AZ39: =IF(AZ40<>""," -R","") ->  | BB39: =IF(BB40<>""," -R","") ->  | BD39: =IF(BD40<>""," -R","") ->  | BF39: =IF(BF40<>""," -R","") ->  | BH39: =IF(BH40<>""," -R","") ->  | BJ39: =IF(BJ40<>""," -R","") -> 
M40: 1.15 | N40: =IFERROR(VLOOKUP(M40,'CRUCE RIESGOS'!$C$9:$D$13,2,FALSE),"") ->  | O40: 2.15 | P40: =IFERROR(VLOOKUP(O40,'CRUCE RIESGOS'!$C$9:$D$13,2,FALSE),"") ->  | Q40: 3.15 | R40: =IFERROR(VLOOKUP(Q40,'CRUCE RIESGOS'!$C$9:$D$13,2,FALSE),"") ->  | S40: 4.15 | T40: =IFERROR(VLOOKUP(S40,'CRUCE RIESGOS'!$C$9:$D$13,2,FALSE),"") ->  | U40: 5.15 | V40: =IFERROR(VLOOKUP(U40,'CRUCE RIESGOS'!$C$9:$D$13,2,FALSE),"") ->  | W40: 6.15 | X40: =IFERROR(VLOOKUP(W40,'CRUCE RIESGOS'!$C$9:$D$13,2,FALSE),"") ->  | Y40: 7.15 | Z40: =IFERROR(VLOOKUP(Y40,'CRUCE RIESGOS'!$C$9:$D$13,2,FALSE),"") ->  | AA40: 8.15 | AB40: =IFERROR(VLOOKUP(AA40,'CRUCE RIESGOS'!$C$9:$D$13,2,FALSE),"") ->  | AC40: 9.15 | AD40: =IFERROR(VLOOKUP(AC40,'CRUCE RIESGOS'!$C$9:$D$13,2,FALSE),"") ->  | AE40: 10.15 | AF40: =IFERROR(VLOOKUP(AE40,'CRUCE RIESGOS'!$C$9:$D$13,2,FALSE),"") ->  | AG40: 11.15 | AH40: =IFERROR(VLOOKUP(AG40,'CRUCE RIESGOS'!$C$9:$D$13,2,FALSE),"") ->  | AI40: 12.15 | AJ40: =IFERROR(VLOOKUP(AI40,'CRUCE RIESGOS'!$C$9:$D$13,2,FALSE),"") ->  | AK40: 13.15 | AL40: =IFERROR(VLOOKUP(AK40,'CRUCE RIESGOS'!$C$9:$D$13,2,FALSE),"") ->  | AM40: 14.15 | AN40: =IFERROR(VLOOKUP(AM40,'CRUCE RIESGOS'!$C$9:$D$13,2,FALSE),"") ->  | AO40: 15.15 | AP40: =IFERROR(VLOOKUP(AO40,'CRUCE RIESGOS'!$C$9:$D$13,2,FALSE),"") ->  | AQ40: 16.15 | AR40: =IFERROR(VLOOKUP(AQ40,'CRUCE RIESGOS'!$C$9:$D$13,2,FALSE),"") ->  | AS40: 17.15 | AT40: =IFERROR(VLOOKUP(AS40,'CRUCE RIESGOS'!$C$9:$D$13,2,FALSE),"") ->  | AU40: 18.15 | AV40: =IFERROR(VLOOKUP(AU40,'CRUCE RIESGOS'!$C$9:$D$13,2,FALSE),"") ->  | AW40: 19.15 | AX40: =IFERROR(VLOOKUP(AW40,'CRUCE RIESGOS'!$C$9:$D$13,2,FALSE),"") ->  | AY40: 20.15 | AZ40: =IFERROR(VLOOKUP(AY40,'CRUCE RIESGOS'!$C$9:$D$13,2,FALSE),"") ->  | BA40: 21.15 | BB40: =IFERROR(VLOOKUP(BA40,'CRUCE RIESGOS'!$C$9:$D$13,2,FALSE),"") ->  | BC40: 22.15 | BD40: =IFERROR(VLOOKUP(BC40,'CRUCE RIESGOS'!$C$9:$D$13,2,FALSE),"") ->  | BE40: 23.15 | BF40: =IFERROR(VLOOKUP(BE40,'CRUCE RIESGOS'!$C$9:$D$13,2,FALSE),"") ->  | BG40: 24.15 | BH40: =IFERROR(VLOOKUP(BG40,'CRUCE RIESGOS'!$C$9:$D$13,2,FALSE),"") ->  | BI40: 25.15 | BJ40: =IFERROR(VLOOKUP(BI40,'CRUCE RIESGOS'!$C$9:$D$13,2,FALSE),"") -> 
N41: =IF(N42<>""," -R","") ->  | P41: =IF(P42<>""," -R","") ->  | R41: =IF(R42<>""," -R","") ->  | T41: =IF(T42<>""," -R","") ->  | V41: =IF(V42<>""," -R","") ->  | X41: =IF(X42<>""," -R","") ->  | Z41: =IF(Z42<>""," -R","") ->  | AB41: =IF(AB42<>""," -R","") ->  | AD41: =IF(AD42<>""," -R","") ->  | AF41: =IF(AF42<>""," -R","") ->  | AH41: =IF(AH42<>""," -R","") ->  | AJ41: =IF(AJ42<>""," -R","") ->  | AL41: =IF(AL42<>""," -R","") ->  | AN41: =IF(AN42<>""," -R","") ->  | AP41: =IF(AP42<>""," -R","") ->  | AR41: =IF(AR42<>""," -R","") ->  | AT41: =IF(AT42<>""," -R","") ->  | AV41: =IF(AV42<>""," -R","") ->  | AX41: =IF(AX42<>""," -R","") ->  | AZ41: =IF(AZ42<>""," -R","") ->  | BB41: =IF(BB42<>""," -R","") ->  | BD41: =IF(BD42<>""," -R","") ->  | BF41: =IF(BF42<>""," -R","") ->  | BH41: =IF(BH42<>""," -R","") ->  | BJ41: =IF(BJ42<>""," -R","") -> 
M42: 1.16 | N42: =IFERROR(VLOOKUP(M42,'CRUCE RIESGOS'!$C$9:$D$13,2,FALSE),"") ->  | O42: 2.16 | P42: =IFERROR(VLOOKUP(O42,'CRUCE RIESGOS'!$C$9:$D$13,2,FALSE),"") ->  | Q42: 3.16 | R42: =IFERROR(VLOOKUP(Q42,'CRUCE RIESGOS'!$C$9:$D$13,2,FALSE),"") ->  | S42: 4.16 | T42: =IFERROR(VLOOKUP(S42,'CRUCE RIESGOS'!$C$9:$D$13,2,FALSE),"") ->  | U42: 5.16 | V42: =IFERROR(VLOOKUP(U42,'CRUCE RIESGOS'!$C$9:$D$13,2,FALSE),"") ->  | W42: 6.16 | X42: =IFERROR(VLOOKUP(W42,'CRUCE RIESGOS'!$C$9:$D$13,2,FALSE),"") ->  | Y42: 7.16 | Z42: =IFERROR(VLOOKUP(Y42,'CRUCE RIESGOS'!$C$9:$D$13,2,FALSE),"") ->  | AA42: 8.16 | AB42: =IFERROR(VLOOKUP(AA42,'CRUCE RIESGOS'!$C$9:$D$13,2,FALSE),"") ->  | AC42: 9.16 | AD42: =IFERROR(VLOOKUP(AC42,'CRUCE RIESGOS'!$C$9:$D$13,2,FALSE),"") ->  | AE42: 10.16 | AF42: =IFERROR(VLOOKUP(AE42,'CRUCE RIESGOS'!$C$9:$D$13,2,FALSE),"") ->  | AG42: 11.16 | AH42: =IFERROR(VLOOKUP(AG42,'CRUCE RIESGOS'!$C$9:$D$13,2,FALSE),"") ->  | AI42: 12.16 | AJ42: =IFERROR(VLOOKUP(AI42,'CRUCE RIESGOS'!$C$9:$D$13,2,FALSE),"") ->  | AK42: 13.16 | AL42: =IFERROR(VLOOKUP(AK42,'CRUCE RIESGOS'!$C$9:$D$13,2,FALSE),"") ->  | AM42: 14.16 | AN42: =IFERROR(VLOOKUP(AM42,'CRUCE RIESGOS'!$C$9:$D$13,2,FALSE),"") ->  | AO42: 15.16 | AP42: =IFERROR(VLOOKUP(AO42,'CRUCE RIESGOS'!$C$9:$D$13,2,FALSE),"") ->  | AQ42: 16.16 | AR42: =IFERROR(VLOOKUP(AQ42,'CRUCE RIESGOS'!$C$9:$D$13,2,FALSE),"") ->  | AS42: 17.16 | AT42: =IFERROR(VLOOKUP(AS42,'CRUCE RIESGOS'!$C$9:$D$13,2,FALSE),"") ->  | AU42: 18.16 | AV42: =IFERROR(VLOOKUP(AU42,'CRUCE RIESGOS'!$C$9:$D$13,2,FALSE),"") ->  | AW42: 19.16 | AX42: =IFERROR(VLOOKUP(AW42,'CRUCE RIESGOS'!$C$9:$D$13,2,FALSE),"") ->  | AY42: 20.16 | AZ42: =IFERROR(VLOOKUP(AY42,'CRUCE RIESGOS'!$C$9:$D$13,2,FALSE),"") ->  | BA42: 21.16 | BB42: =IFERROR(VLOOKUP(BA42,'CRUCE RIESGOS'!$C$9:$D$13,2,FALSE),"") ->  | BC42: 22.16 | BD42: =IFERROR(VLOOKUP(BC42,'CRUCE RIESGOS'!$C$9:$D$13,2,FALSE),"") ->  | BE42: 23.16 | BF42: =IFERROR(VLOOKUP(BE42,'CRUCE RIESGOS'!$C$9:$D$13,2,FALSE),"") ->  | BG42: 24.16 | BH42: =IFERROR(VLOOKUP(BG42,'CRUCE RIESGOS'!$C$9:$D$13,2,FALSE),"") ->  | BI42: 25.16 | BJ42: =IFERROR(VLOOKUP(BI42,'CRUCE RIESGOS'!$C$9:$D$13,2,FALSE),"") -> 
N43: =IF(N44<>""," -R","") ->  | P43: =IF(P44<>""," -R","") ->  | R43: =IF(R44<>""," -R","") ->  | T43: =IF(T44<>""," -R","") ->  | V43: =IF(V44<>""," -R","") ->  | X43: =IF(X44<>""," -R","") ->  | Z43: =IF(Z44<>""," -R","") ->  | AB43: =IF(AB44<>""," -R","") ->  | AD43: =IF(AD44<>""," -R","") ->  | AF43: =IF(AF44<>""," -R","") ->  | AH43: =IF(AH44<>""," -R","") ->  | AJ43: =IF(AJ44<>""," -R","") ->  | AL43: =IF(AL44<>""," -R","") ->  | AN43: =IF(AN44<>""," -R","") ->  | AP43: =IF(AP44<>""," -R","") ->  | AR43: =IF(AR44<>""," -R","") ->  | AT43: =IF(AT44<>""," -R","") ->  | AV43: =IF(AV44<>""," -R","") ->  | AX43: =IF(AX44<>""," -R","") ->  | AZ43: =IF(AZ44<>""," -R","") ->  | BB43: =IF(BB44<>""," -R","") ->  | BD43: =IF(BD44<>""," -R","") ->  | BF43: =IF(BF44<>""," -R","") ->  | BH43: =IF(BH44<>""," -R","") ->  | BJ43: =IF(BJ44<>""," -R","") -> 
M44: 1.17 | N44: =IFERROR(VLOOKUP(M44,'CRUCE RIESGOS'!$C$9:$D$13,2,FALSE),"") ->  | O44: 2.17 | P44: =IFERROR(VLOOKUP(O44,'CRUCE RIESGOS'!$C$9:$D$13,2,FALSE),"") ->  | Q44: 3.17 | R44: =IFERROR(VLOOKUP(Q44,'CRUCE RIESGOS'!$C$9:$D$13,2,FALSE),"") ->  | S44: 4.17 | T44: =IFERROR(VLOOKUP(S44,'CRUCE RIESGOS'!$C$9:$D$13,2,FALSE),"") ->  | U44: 5.17 | V44: =IFERROR(VLOOKUP(U44,'CRUCE RIESGOS'!$C$9:$D$13,2,FALSE),"") ->  | W44: 6.17 | X44: =IFERROR(VLOOKUP(W44,'CRUCE RIESGOS'!$C$9:$D$13,2,FALSE),"") ->  | Y44: 7.17 | Z44: =IFERROR(VLOOKUP(Y44,'CRUCE RIESGOS'!$C$9:$D$13,2,FALSE),"") ->  | AA44: 8.17 | AB44: =IFERROR(VLOOKUP(AA44,'CRUCE RIESGOS'!$C$9:$D$13,2,FALSE),"") ->  | AC44: 9.17 | AD44: =IFERROR(VLOOKUP(AC44,'CRUCE RIESGOS'!$C$9:$D$13,2,FALSE),"") ->  | AE44: 10.17 | AF44: =IFERROR(VLOOKUP(AE44,'CRUCE RIESGOS'!$C$9:$D$13,2,FALSE),"") ->  | AG44: 11.17 | AH44: =IFERROR(VLOOKUP(AG44,'CRUCE RIESGOS'!$C$9:$D$13,2,FALSE),"") ->  | AI44: 12.17 | AJ44: =IFERROR(VLOOKUP(AI44,'CRUCE RIESGOS'!$C$9:$D$13,2,FALSE),"") ->  | AK44: 13.17 | AL44: =IFERROR(VLOOKUP(AK44,'CRUCE RIESGOS'!$C$9:$D$13,2,FALSE),"") ->  | AM44: 14.17 | AN44: =IFERROR(VLOOKUP(AM44,'CRUCE RIESGOS'!$C$9:$D$13,2,FALSE),"") ->  | AO44: 15.17 | AP44: =IFERROR(VLOOKUP(AO44,'CRUCE RIESGOS'!$C$9:$D$13,2,FALSE),"") ->  | AQ44: 16.17 | AR44: =IFERROR(VLOOKUP(AQ44,'CRUCE RIESGOS'!$C$9:$D$13,2,FALSE),"") ->  | AS44: 17.17 | AT44: =IFERROR(VLOOKUP(AS44,'CRUCE RIESGOS'!$C$9:$D$13,2,FALSE),"") ->  | AU44: 18.17 | AV44: =IFERROR(VLOOKUP(AU44,'CRUCE RIESGOS'!$C$9:$D$13,2,FALSE),"") ->  | AW44: 19.17 | AX44: =IFERROR(VLOOKUP(AW44,'CRUCE RIESGOS'!$C$9:$D$13,2,FALSE),"") ->  | AY44: 20.17 | AZ44: =IFERROR(VLOOKUP(AY44,'CRUCE RIESGOS'!$C$9:$D$13,2,FALSE),"") ->  | BA44: 21.17 | BB44: =IFERROR(VLOOKUP(BA44,'CRUCE RIESGOS'!$C$9:$D$13,2,FALSE),"") ->  | BC44: 22.17 | BD44: =IFERROR(VLOOKUP(BC44,'CRUCE RIESGOS'!$C$9:$D$13,2,FALSE),"") ->  | BE44: 23.17 | BF44: =IFERROR(VLOOKUP(BE44,'CRUCE RIESGOS'!$C$9:$D$13,2,FALSE),"") ->  | BG44: 24.17 | BH44: =IFERROR(VLOOKUP(BG44,'CRUCE RIESGOS'!$C$9:$D$13,2,FALSE),"") ->  | BI44: 25.17 | BJ44: =IFERROR(VLOOKUP(BI44,'CRUCE RIESGOS'!$C$9:$D$13,2,FALSE),"") -> 
N45: =IF(N46<>""," -R","") ->  | P45: =IF(P46<>""," -R","") ->  | R45: =IF(R46<>""," -R","") ->  | T45: =IF(T46<>""," -R","") ->  | V45: =IF(V46<>""," -R","") ->  | X45: =IF(X46<>""," -R","") ->  | Z45: =IF(Z46<>""," -R","") ->  | AB45: =IF(AB46<>""," -R","") ->  | AD45: =IF(AD46<>""," -R","") ->  | AF45: =IF(AF46<>""," -R","") ->  | AH45: =IF(AH46<>""," -R","") ->  | AJ45: =IF(AJ46<>""," -R","") ->  | AL45: =IF(AL46<>""," -R","") ->  | AN45: =IF(AN46<>""," -R","") ->  | AP45: =IF(AP46<>""," -R","") ->  | AR45: =IF(AR46<>""," -R","") ->  | AT45: =IF(AT46<>""," -R","") ->  | AV45: =IF(AV46<>""," -R","") ->  | AX45: =IF(AX46<>""," -R","") ->  | AZ45: =IF(AZ46<>""," -R","") ->  | BB45: =IF(BB46<>""," -R","") ->  | BD45: =IF(BD46<>""," -R","") ->  | BF45: =IF(BF46<>""," -R","") ->  | BH45: =IF(BH46<>""," -R","") ->  | BJ45: =IF(BJ46<>""," -R","") -> 
M46: 1.18 | N46: =IFERROR(VLOOKUP(M46,'CRUCE RIESGOS'!$C$9:$D$13,2,FALSE),"") ->  | O46: 2.18 | P46: =IFERROR(VLOOKUP(O46,'CRUCE RIESGOS'!$C$9:$D$13,2,FALSE),"") ->  | Q46: 3.18 | R46: =IFERROR(VLOOKUP(Q46,'CRUCE RIESGOS'!$C$9:$D$13,2,FALSE),"") ->  | S46: 4.18 | T46: =IFERROR(VLOOKUP(S46,'CRUCE RIESGOS'!$C$9:$D$13,2,FALSE),"") ->  | U46: 5.18 | V46: =IFERROR(VLOOKUP(U46,'CRUCE RIESGOS'!$C$9:$D$13,2,FALSE),"") ->  | W46: 6.18 | X46: =IFERROR(VLOOKUP(W46,'CRUCE RIESGOS'!$C$9:$D$13,2,FALSE),"") ->  | Y46: 7.18 | Z46: =IFERROR(VLOOKUP(Y46,'CRUCE RIESGOS'!$C$9:$D$13,2,FALSE),"") ->  | AA46: 8.18 | AB46: =IFERROR(VLOOKUP(AA46,'CRUCE RIESGOS'!$C$9:$D$13,2,FALSE),"") ->  | AC46: 9.18 | AD46: =IFERROR(VLOOKUP(AC46,'CRUCE RIESGOS'!$C$9:$D$13,2,FALSE),"") ->  | AE46: 10.18 | AF46: =IFERROR(VLOOKUP(AE46,'CRUCE RIESGOS'!$C$9:$D$13,2,FALSE),"") ->  | AG46: 11.18 | AH46: =IFERROR(VLOOKUP(AG46,'CRUCE RIESGOS'!$C$9:$D$13,2,FALSE),"") ->  | AI46: 12.18 | AJ46: =IFERROR(VLOOKUP(AI46,'CRUCE RIESGOS'!$C$9:$D$13,2,FALSE),"") ->  | AK46: 13.18 | AL46: =IFERROR(VLOOKUP(AK46,'CRUCE RIESGOS'!$C$9:$D$13,2,FALSE),"") ->  | AM46: 14.18 | AN46: =IFERROR(VLOOKUP(AM46,'CRUCE RIESGOS'!$C$9:$D$13,2,FALSE),"") ->  | AO46: 15.18 | AP46: =IFERROR(VLOOKUP(AO46,'CRUCE RIESGOS'!$C$9:$D$13,2,FALSE),"") ->  | AQ46: 16.18 | AR46: =IFERROR(VLOOKUP(AQ46,'CRUCE RIESGOS'!$C$9:$D$13,2,FALSE),"") ->  | AS46: 17.18 | AT46: =IFERROR(VLOOKUP(AS46,'CRUCE RIESGOS'!$C$9:$D$13,2,FALSE),"") ->  | AU46: 18.18 | AV46: =IFERROR(VLOOKUP(AU46,'CRUCE RIESGOS'!$C$9:$D$13,2,FALSE),"") ->  | AW46: 19.18 | AX46: =IFERROR(VLOOKUP(AW46,'CRUCE RIESGOS'!$C$9:$D$13,2,FALSE),"") ->  | AY46: 20.18 | AZ46: =IFERROR(VLOOKUP(AY46,'CRUCE RIESGOS'!$C$9:$D$13,2,FALSE),"") ->  | BA46: 21.18 | BB46: =IFERROR(VLOOKUP(BA46,'CRUCE RIESGOS'!$C$9:$D$13,2,FALSE),"") ->  | BC46: 22.18 | BD46: =IFERROR(VLOOKUP(BC46,'CRUCE RIESGOS'!$C$9:$D$13,2,FALSE),"") ->  | BE46: 23.18 | BF46: =IFERROR(VLOOKUP(BE46,'CRUCE RIESGOS'!$C$9:$D$13,2,FALSE),"") ->  | BG46: 24.18 | BH46: =IFERROR(VLOOKUP(BG46,'CRUCE RIESGOS'!$C$9:$D$13,2,FALSE),"") ->  | BI46: 25.18 | BJ46: =IFERROR(VLOOKUP(BI46,'CRUCE RIESGOS'!$C$9:$D$13,2,FALSE),"") -> 
N47: =IF(N48<>""," -R","") ->  | P47: =IF(P48<>""," -R","") ->  | R47: =IF(R48<>""," -R","") ->  | T47: =IF(T48<>""," -R","") ->  | V47: =IF(V48<>""," -R","") ->  | X47: =IF(X48<>""," -R","") ->  | Z47: =IF(Z48<>""," -R","") ->  | AB47: =IF(AB48<>""," -R","") ->  | AD47: =IF(AD48<>""," -R","") ->  | AF47: =IF(AF48<>""," -R","") ->  | AH47: =IF(AH48<>""," -R","") ->  | AJ47: =IF(AJ48<>""," -R","") ->  | AL47: =IF(AL48<>""," -R","") ->  | AN47: =IF(AN48<>""," -R","") ->  | AP47: =IF(AP48<>""," -R","") ->  | AR47: =IF(AR48<>""," -R","") ->  | AT47: =IF(AT48<>""," -R","") ->  | AV47: =IF(AV48<>""," -R","") ->  | AX47: =IF(AX48<>""," -R","") ->  | AZ47: =IF(AZ48<>""," -R","") ->  | BB47: =IF(BB48<>""," -R","") ->  | BD47: =IF(BD48<>""," -R","") ->  | BF47: =IF(BF48<>""," -R","") ->  | BH47: =IF(BH48<>""," -R","") ->  | BJ47: =IF(BJ48<>""," -R","") -> 
M48: 1.19 | N48: =IFERROR(VLOOKUP(M48,'CRUCE RIESGOS'!$C$9:$D$13,2,FALSE),"") ->  | O48: 2.19 | P48: =IFERROR(VLOOKUP(O48,'CRUCE RIESGOS'!$C$9:$D$13,2,FALSE),"") ->  | Q48: 3.19 | R48: =IFERROR(VLOOKUP(Q48,'CRUCE RIESGOS'!$C$9:$D$13,2,FALSE),"") ->  | S48: 4.19 | T48: =IFERROR(VLOOKUP(S48,'CRUCE RIESGOS'!$C$9:$D$13,2,FALSE),"") ->  | U48: 5.19 | V48: =IFERROR(VLOOKUP(U48,'CRUCE RIESGOS'!$C$9:$D$13,2,FALSE),"") ->  | W48: 6.19 | X48: =IFERROR(VLOOKUP(W48,'CRUCE RIESGOS'!$C$9:$D$13,2,FALSE),"") ->  | Y48: 7.19 | Z48: =IFERROR(VLOOKUP(Y48,'CRUCE RIESGOS'!$C$9:$D$13,2,FALSE),"") ->  | AA48: 8.19 | AB48: =IFERROR(VLOOKUP(AA48,'CRUCE RIESGOS'!$C$9:$D$13,2,FALSE),"") ->  | AC48: 9.19 | AD48: =IFERROR(VLOOKUP(AC48,'CRUCE RIESGOS'!$C$9:$D$13,2,FALSE),"") ->  | AE48: 10.19 | AF48: =IFERROR(VLOOKUP(AE48,'CRUCE RIESGOS'!$C$9:$D$13,2,FALSE),"") ->  | AG48: 11.19 | AH48: =IFERROR(VLOOKUP(AG48,'CRUCE RIESGOS'!$C$9:$D$13,2,FALSE),"") ->  | AI48: 12.19 | AJ48: =IFERROR(VLOOKUP(AI48,'CRUCE RIESGOS'!$C$9:$D$13,2,FALSE),"") ->  | AK48: 13.19 | AL48: =IFERROR(VLOOKUP(AK48,'CRUCE RIESGOS'!$C$9:$D$13,2,FALSE),"") ->  | AM48: 14.19 | AN48: =IFERROR(VLOOKUP(AM48,'CRUCE RIESGOS'!$C$9:$D$13,2,FALSE),"") ->  | AO48: 15.19 | AP48: =IFERROR(VLOOKUP(AO48,'CRUCE RIESGOS'!$C$9:$D$13,2,FALSE),"") ->  | AQ48: 16.19 | AR48: =IFERROR(VLOOKUP(AQ48,'CRUCE RIESGOS'!$C$9:$D$13,2,FALSE),"") ->  | AS48: 17.19 | AT48: =IFERROR(VLOOKUP(AS48,'CRUCE RIESGOS'!$C$9:$D$13,2,FALSE),"") ->  | AU48: 18.19 | AV48: =IFERROR(VLOOKUP(AU48,'CRUCE RIESGOS'!$C$9:$D$13,2,FALSE),"") ->  | AW48: 19.19 | AX48: =IFERROR(VLOOKUP(AW48,'CRUCE RIESGOS'!$C$9:$D$13,2,FALSE),"") ->  | AY48: 20.19 | AZ48: =IFERROR(VLOOKUP(AY48,'CRUCE RIESGOS'!$C$9:$D$13,2,FALSE),"") ->  | BA48: 21.19 | BB48: =IFERROR(VLOOKUP(BA48,'CRUCE RIESGOS'!$C$9:$D$13,2,FALSE),"") ->  | BC48: 22.19 | BD48: =IFERROR(VLOOKUP(BC48,'CRUCE RIESGOS'!$C$9:$D$13,2,FALSE),"") ->  | BE48: 23.19 | BF48: =IFERROR(VLOOKUP(BE48,'CRUCE RIESGOS'!$C$9:$D$13,2,FALSE),"") ->  | BG48: 24.19 | BH48: =IFERROR(VLOOKUP(BG48,'CRUCE RIESGOS'!$C$9:$D$13,2,FALSE),"") ->  | BI48: 25.19 | BJ48: =IFERROR(VLOOKUP(BI48,'CRUCE RIESGOS'!$C$9:$D$13,2,FALSE),"") -> 
N49: =IF(N50<>""," -R","") ->  | P49: =IF(P50<>""," -R","") ->  | R49: =IF(R50<>""," -R","") ->  | T49: =IF(T50<>""," -R","") ->  | V49: =IF(V50<>""," -R","") ->  | X49: =IF(X50<>""," -R","") ->  | Z49: =IF(Z50<>""," -R","") ->  | AB49: =IF(AB50<>""," -R","") ->  | AD49: =IF(AD50<>""," -R","") ->  | AF49: =IF(AF50<>""," -R","") ->  | AH49: =IF(AH50<>""," -R","") ->  | AJ49: =IF(AJ50<>""," -R","") ->  | AL49: =IF(AL50<>""," -R","") ->  | AN49: =IF(AN50<>""," -R","") ->  | AP49: =IF(AP50<>""," -R","") ->  | AR49: =IF(AR50<>""," -R","") ->  | AT49: =IF(AT50<>""," -R","") ->  | AV49: =IF(AV50<>""," -R","") ->  | AX49: =IF(AX50<>""," -R","") ->  | AZ49: =IF(AZ50<>""," -R","") ->  | BB49: =IF(BB50<>""," -R","") ->  | BD49: =IF(BD50<>""," -R","") ->  | BF49: =IF(BF50<>""," -R","") ->  | BH49: =IF(BH50<>""," -R","") ->  | BJ49: =IF(BJ50<>""," -R","") -> 
M50: 1.2 | N50: =IFERROR(VLOOKUP(M50,'CRUCE RIESGOS'!$C$9:$D$13,2,FALSE),"") ->  | O50: 2.2 | P50: =IFERROR(VLOOKUP(O50,'CRUCE RIESGOS'!$C$9:$D$13,2,FALSE),"") ->  | Q50: 3.2 | R50: =IFERROR(VLOOKUP(Q50,'CRUCE RIESGOS'!$C$9:$D$13,2,FALSE),"") ->  | S50: 4.2 | T50: =IFERROR(VLOOKUP(S50,'CRUCE RIESGOS'!$C$9:$D$13,2,FALSE),"") ->  | U50: 5.2 | V50: =IFERROR(VLOOKUP(U50,'CRUCE RIESGOS'!$C$9:$D$13,2,FALSE),"") ->  | W50: 6.2 | X50: =IFERROR(VLOOKUP(W50,'CRUCE RIESGOS'!$C$9:$D$13,2,FALSE),"") ->  | Y50: 7.2 | Z50: =IFERROR(VLOOKUP(Y50,'CRUCE RIESGOS'!$C$9:$D$13,2,FALSE),"") ->  | AA50: 8.2 | AB50: =IFERROR(VLOOKUP(AA50,'CRUCE RIESGOS'!$C$9:$D$13,2,FALSE),"") ->  | AC50: 9.2 | AD50: =IFERROR(VLOOKUP(AC50,'CRUCE RIESGOS'!$C$9:$D$13,2,FALSE),"") ->  | AE50: 10.2 | AF50: =IFERROR(VLOOKUP(AE50,'CRUCE RIESGOS'!$C$9:$D$13,2,FALSE),"") ->  | AG50: 11.2 | AH50: =IFERROR(VLOOKUP(AG50,'CRUCE RIESGOS'!$C$9:$D$13,2,FALSE),"") ->  | AI50: 12.2 | AJ50: =IFERROR(VLOOKUP(AI50,'CRUCE RIESGOS'!$C$9:$D$13,2,FALSE),"") ->  | AK50: 13.2 | AL50: =IFERROR(VLOOKUP(AK50,'CRUCE RIESGOS'!$C$9:$D$13,2,FALSE),"") ->  | AM50: 14.2 | AN50: =IFERROR(VLOOKUP(AM50,'CRUCE RIESGOS'!$C$9:$D$13,2,FALSE),"") ->  | AO50: 15.2 | AP50: =IFERROR(VLOOKUP(AO50,'CRUCE RIESGOS'!$C$9:$D$13,2,FALSE),"") ->  | AQ50: 16.2 | AR50: =IFERROR(VLOOKUP(AQ50,'CRUCE RIESGOS'!$C$9:$D$13,2,FALSE),"") ->  | AS50: 17.2 | AT50: =IFERROR(VLOOKUP(AS50,'CRUCE RIESGOS'!$C$9:$D$13,2,FALSE),"") ->  | AU50: 18.2 | AV50: =IFERROR(VLOOKUP(AU50,'CRUCE RIESGOS'!$C$9:$D$13,2,FALSE),"") ->  | AW50: 19.2 | AX50: =IFERROR(VLOOKUP(AW50,'CRUCE RIESGOS'!$C$9:$D$13,2,FALSE),"") ->  | AY50: 20.2 | AZ50: =IFERROR(VLOOKUP(AY50,'CRUCE RIESGOS'!$C$9:$D$13,2,FALSE),"") ->  | BA50: 21.2 | BB50: =IFERROR(VLOOKUP(BA50,'CRUCE RIESGOS'!$C$9:$D$13,2,FALSE),"") ->  | BC50: 22.2 | BD50: =IFERROR(VLOOKUP(BC50,'CRUCE RIESGOS'!$C$9:$D$13,2,FALSE),"") ->  | BE50: 23.2 | BF50: =IFERROR(VLOOKUP(BE50,'CRUCE RIESGOS'!$C$9:$D$13,2,FALSE),"") ->  | BG50: 24.2 | BH50: =IFERROR(VLOOKUP(BG50,'CRUCE RIESGOS'!$C$9:$D$13,2,FALSE),"") ->  | BI50: 25.2 | BJ50: =IFERROR(VLOOKUP(BI50,'CRUCE RIESGOS'!$C$9:$D$13,2,FALSE),"") -> 
N51: =IF(N52<>""," -R","") ->  | P51: =IF(P52<>""," -R","") ->  | R51: =IF(R52<>""," -R","") ->  | T51: =IF(T52<>""," -R","") ->  | V51: =IF(V52<>""," -R","") ->  | X51: =IF(X52<>""," -R","") ->  | Z51: =IF(Z52<>""," -R","") ->  | AB51: =IF(AB52<>""," -R","") ->  | AD51: =IF(AD52<>""," -R","") ->  | AF51: =IF(AF52<>""," -R","") ->  | AH51: =IF(AH52<>""," -R","") ->  | AJ51: =IF(AJ52<>""," -R","") ->  | AL51: =IF(AL52<>""," -R","") ->  | AN51: =IF(AN52<>""," -R","") ->  | AP51: =IF(AP52<>""," -R","") ->  | AR51: =IF(AR52<>""," -R","") ->  | AT51: =IF(AT52<>""," -R","") ->  | AV51: =IF(AV52<>""," -R","") ->  | AX51: =IF(AX52<>""," -R","") ->  | AZ51: =IF(AZ52<>""," -R","") ->  | BB51: =IF(BB52<>""," -R","") ->  | BD51: =IF(BD52<>""," -R","") ->  | BF51: =IF(BF52<>""," -R","") ->  | BH51: =IF(BH52<>""," -R","") ->  | BJ51: =IF(BJ52<>""," -R","") -> 
M52: 1.21 | N52: =IFERROR(VLOOKUP(M52,'CRUCE RIESGOS'!$C$9:$D$13,2,FALSE),"") ->  | O52: 2.21 | P52: =IFERROR(VLOOKUP(O52,'CRUCE RIESGOS'!$C$9:$D$13,2,FALSE),"") ->  | Q52: 3.21 | R52: =IFERROR(VLOOKUP(Q52,'CRUCE RIESGOS'!$C$9:$D$13,2,FALSE),"") ->  | S52: 4.21 | T52: =IFERROR(VLOOKUP(S52,'CRUCE RIESGOS'!$C$9:$D$13,2,FALSE),"") ->  | U52: 5.21 | V52: =IFERROR(VLOOKUP(U52,'CRUCE RIESGOS'!$C$9:$D$13,2,FALSE),"") ->  | W52: 6.21 | X52: =IFERROR(VLOOKUP(W52,'CRUCE RIESGOS'!$C$9:$D$13,2,FALSE),"") ->  | Y52: 7.21 | Z52: =IFERROR(VLOOKUP(Y52,'CRUCE RIESGOS'!$C$9:$D$13,2,FALSE),"") ->  | AA52: 8.21 | AB52: =IFERROR(VLOOKUP(AA52,'CRUCE RIESGOS'!$C$9:$D$13,2,FALSE),"") ->  | AC52: 9.21 | AD52: =IFERROR(VLOOKUP(AC52,'CRUCE RIESGOS'!$C$9:$D$13,2,FALSE),"") ->  | AE52: 10.21 | AF52: =IFERROR(VLOOKUP(AE52,'CRUCE RIESGOS'!$C$9:$D$13,2,FALSE),"") ->  | AG52: 11.21 | AH52: =IFERROR(VLOOKUP(AG52,'CRUCE RIESGOS'!$C$9:$D$13,2,FALSE),"") ->  | AI52: 12.21 | AJ52: =IFERROR(VLOOKUP(AI52,'CRUCE RIESGOS'!$C$9:$D$13,2,FALSE),"") ->  | AK52: 13.21 | AL52: =IFERROR(VLOOKUP(AK52,'CRUCE RIESGOS'!$C$9:$D$13,2,FALSE),"") ->  | AM52: 14.21 | AN52: =IFERROR(VLOOKUP(AM52,'CRUCE RIESGOS'!$C$9:$D$13,2,FALSE),"") ->  | AO52: 15.21 | AP52: =IFERROR(VLOOKUP(AO52,'CRUCE RIESGOS'!$C$9:$D$13,2,FALSE),"") ->  | AQ52: 16.21 | AR52: =IFERROR(VLOOKUP(AQ52,'CRUCE RIESGOS'!$C$9:$D$13,2,FALSE),"") ->  | AS52: 17.21 | AT52: =IFERROR(VLOOKUP(AS52,'CRUCE RIESGOS'!$C$9:$D$13,2,FALSE),"") ->  | AU52: 18.21 | AV52: =IFERROR(VLOOKUP(AU52,'CRUCE RIESGOS'!$C$9:$D$13,2,FALSE),"") ->  | AW52: 19.21 | AX52: =IFERROR(VLOOKUP(AW52,'CRUCE RIESGOS'!$C$9:$D$13,2,FALSE),"") ->  | AY52: 20.21 | AZ52: =IFERROR(VLOOKUP(AY52,'CRUCE RIESGOS'!$C$9:$D$13,2,FALSE),"") ->  | BA52: 21.21 | BB52: =IFERROR(VLOOKUP(BA52,'CRUCE RIESGOS'!$C$9:$D$13,2,FALSE),"") ->  | BC52: 22.21 | BD52: =IFERROR(VLOOKUP(BC52,'CRUCE RIESGOS'!$C$9:$D$13,2,FALSE),"") ->  | BE52: 23.21 | BF52: =IFERROR(VLOOKUP(BE52,'CRUCE RIESGOS'!$C$9:$D$13,2,FALSE),"") ->  | BG52: 24.21 | BH52: =IFERROR(VLOOKUP(BG52,'CRUCE RIESGOS'!$C$9:$D$13,2,FALSE),"") ->  | BI52: 25.21 | BJ52: =IFERROR(VLOOKUP(BI52,'CRUCE RIESGOS'!$C$9:$D$13,2,FALSE),"") -> 
N53: =IF(N54<>""," -R","") ->  | P53: =IF(P54<>""," -R","") ->  | R53: =IF(R54<>""," -R","") ->  | T53: =IF(T54<>""," -R","") ->  | V53: =IF(V54<>""," -R","") ->  | X53: =IF(X54<>""," -R","") ->  | Z53: =IF(Z54<>""," -R","") ->  | AB53: =IF(AB54<>""," -R","") ->  | AD53: =IF(AD54<>""," -R","") ->  | AF53: =IF(AF54<>""," -R","") ->  | AH53: =IF(AH54<>""," -R","") ->  | AJ53: =IF(AJ54<>""," -R","") ->  | AL53: =IF(AL54<>""," -R","") ->  | AN53: =IF(AN54<>""," -R","") ->  | AP53: =IF(AP54<>""," -R","") ->  | AR53: =IF(AR54<>""," -R","") ->  | AT53: =IF(AT54<>""," -R","") ->  | AV53: =IF(AV54<>""," -R","") ->  | AX53: =IF(AX54<>""," -R","") ->  | AZ53: =IF(AZ54<>""," -R","") ->  | BB53: =IF(BB54<>""," -R","") ->  | BD53: =IF(BD54<>""," -R","") ->  | BF53: =IF(BF54<>""," -R","") ->  | BH53: =IF(BH54<>""," -R","") ->  | BJ53: =IF(BJ54<>""," -R","") -> 
M54: 1.22 | N54: =IFERROR(VLOOKUP(M54,'CRUCE RIESGOS'!$C$9:$D$13,2,FALSE),"") ->  | O54: 2.22 | P54: =IFERROR(VLOOKUP(O54,'CRUCE RIESGOS'!$C$9:$D$13,2,FALSE),"") ->  | Q54: 3.22 | R54: =IFERROR(VLOOKUP(Q54,'CRUCE RIESGOS'!$C$9:$D$13,2,FALSE),"") ->  | S54: 4.22 | T54: =IFERROR(VLOOKUP(S54,'CRUCE RIESGOS'!$C$9:$D$13,2,FALSE),"") ->  | U54: 5.22 | V54: =IFERROR(VLOOKUP(U54,'CRUCE RIESGOS'!$C$9:$D$13,2,FALSE),"") ->  | W54: 6.22 | X54: =IFERROR(VLOOKUP(W54,'CRUCE RIESGOS'!$C$9:$D$13,2,FALSE),"") ->  | Y54: 7.22 | Z54: =IFERROR(VLOOKUP(Y54,'CRUCE RIESGOS'!$C$9:$D$13,2,FALSE),"") ->  | AA54: 8.22 | AB54: =IFERROR(VLOOKUP(AA54,'CRUCE RIESGOS'!$C$9:$D$13,2,FALSE),"") ->  | AC54: 9.22 | AD54: =IFERROR(VLOOKUP(AC54,'CRUCE RIESGOS'!$C$9:$D$13,2,FALSE),"") ->  | AE54: 10.22 | AF54: =IFERROR(VLOOKUP(AE54,'CRUCE RIESGOS'!$C$9:$D$13,2,FALSE),"") ->  | AG54: 11.22 | AH54: =IFERROR(VLOOKUP(AG54,'CRUCE RIESGOS'!$C$9:$D$13,2,FALSE),"") ->  | AI54: 12.22 | AJ54: =IFERROR(VLOOKUP(AI54,'CRUCE RIESGOS'!$C$9:$D$13,2,FALSE),"") ->  | AK54: 13.22 | AL54: =IFERROR(VLOOKUP(AK54,'CRUCE RIESGOS'!$C$9:$D$13,2,FALSE),"") ->  | AM54: 14.22 | AN54: =IFERROR(VLOOKUP(AM54,'CRUCE RIESGOS'!$C$9:$D$13,2,FALSE),"") ->  | AO54: 15.22 | AP54: =IFERROR(VLOOKUP(AO54,'CRUCE RIESGOS'!$C$9:$D$13,2,FALSE),"") ->  | AQ54: 16.22 | AR54: =IFERROR(VLOOKUP(AQ54,'CRUCE RIESGOS'!$C$9:$D$13,2,FALSE),"") ->  | AS54: 17.22 | AT54: =IFERROR(VLOOKUP(AS54,'CRUCE RIESGOS'!$C$9:$D$13,2,FALSE),"") ->  | AU54: 18.22 | AV54: =IFERROR(VLOOKUP(AU54,'CRUCE RIESGOS'!$C$9:$D$13,2,FALSE),"") ->  | AW54: 19.22 | AX54: =IFERROR(VLOOKUP(AW54,'CRUCE RIESGOS'!$C$9:$D$13,2,FALSE),"") ->  | AY54: 20.22 | AZ54: =IFERROR(VLOOKUP(AY54,'CRUCE RIESGOS'!$C$9:$D$13,2,FALSE),"") ->  | BA54: 21.22 | BB54: =IFERROR(VLOOKUP(BA54,'CRUCE RIESGOS'!$C$9:$D$13,2,FALSE),"") ->  | BC54: 22.22 | BD54: =IFERROR(VLOOKUP(BC54,'CRUCE RIESGOS'!$C$9:$D$13,2,FALSE),"") ->  | BE54: 23.22 | BF54: =IFERROR(VLOOKUP(BE54,'CRUCE RIESGOS'!$C$9:$D$13,2,FALSE),"") ->  | BG54: 24.22 | BH54: =IFERROR(VLOOKUP(BG54,'CRUCE RIESGOS'!$C$9:$D$13,2,FALSE),"") ->  | BI54: 25.22 | BJ54: =IFERROR(VLOOKUP(BI54,'CRUCE RIESGOS'!$C$9:$D$13,2,FALSE),"") -> 
N55: =IF(N56<>""," -R","") ->  | P55: =IF(P56<>""," -R","") ->  | R55: =IF(R56<>""," -R","") ->  | T55: =IF(T56<>""," -R","") ->  | V55: =IF(V56<>""," -R","") ->  | X55: =IF(X56<>""," -R","") ->  | Z55: =IF(Z56<>""," -R","") ->  | AB55: =IF(AB56<>""," -R","") ->  | AD55: =IF(AD56<>""," -R","") ->  | AF55: =IF(AF56<>""," -R","") ->  | AH55: =IF(AH56<>""," -R","") ->  | AJ55: =IF(AJ56<>""," -R","") ->  | AL55: =IF(AL56<>""," -R","") ->  | AN55: =IF(AN56<>""," -R","") ->  | AP55: =IF(AP56<>""," -R","") ->  | AR55: =IF(AR56<>""," -R","") ->  | AT55: =IF(AT56<>""," -R","") ->  | AV55: =IF(AV56<>""," -R","") ->  | AX55: =IF(AX56<>""," -R","") ->  | AZ55: =IF(AZ56<>""," -R","") ->  | BB55: =IF(BB56<>""," -R","") ->  | BD55: =IF(BD56<>""," -R","") ->  | BF55: =IF(BF56<>""," -R","") ->  | BH55: =IF(BH56<>""," -R","") ->  | BJ55: =IF(BJ56<>""," -R","") -> 
M56: 1.23 | N56: =IFERROR(VLOOKUP(M56,'CRUCE RIESGOS'!$C$9:$D$13,2,FALSE),"") ->  | O56: 2.23 | P56: =IFERROR(VLOOKUP(O56,'CRUCE RIESGOS'!$C$9:$D$13,2,FALSE),"") ->  | Q56: 3.23 | R56: =IFERROR(VLOOKUP(Q56,'CRUCE RIESGOS'!$C$9:$D$13,2,FALSE),"") ->  | S56: 4.23 | T56: =IFERROR(VLOOKUP(S56,'CRUCE RIESGOS'!$C$9:$D$13,2,FALSE),"") ->  | U56: 5.23 | V56: =IFERROR(VLOOKUP(U56,'CRUCE RIESGOS'!$C$9:$D$13,2,FALSE),"") ->  | W56: 6.23 | X56: =IFERROR(VLOOKUP(W56,'CRUCE RIESGOS'!$C$9:$D$13,2,FALSE),"") ->  | Y56: 7.23 | Z56: =IFERROR(VLOOKUP(Y56,'CRUCE RIESGOS'!$C$9:$D$13,2,FALSE),"") ->  | AA56: 8.23 | AB56: =IFERROR(VLOOKUP(AA56,'CRUCE RIESGOS'!$C$9:$D$13,2,FALSE),"") ->  | AC56: 9.23 | AD56: =IFERROR(VLOOKUP(AC56,'CRUCE RIESGOS'!$C$9:$D$13,2,FALSE),"") ->  | AE56: 10.23 | AF56: =IFERROR(VLOOKUP(AE56,'CRUCE RIESGOS'!$C$9:$D$13,2,FALSE),"") ->  | AG56: 11.23 | AH56: =IFERROR(VLOOKUP(AG56,'CRUCE RIESGOS'!$C$9:$D$13,2,FALSE),"") ->  | AI56: 12.23 | AJ56: =IFERROR(VLOOKUP(AI56,'CRUCE RIESGOS'!$C$9:$D$13,2,FALSE),"") ->  | AK56: 13.23 | AL56: =IFERROR(VLOOKUP(AK56,'CRUCE RIESGOS'!$C$9:$D$13,2,FALSE),"") ->  | AM56: 14.23 | AN56: =IFERROR(VLOOKUP(AM56,'CRUCE RIESGOS'!$C$9:$D$13,2,FALSE),"") ->  | AO56: 15.23 | AP56: =IFERROR(VLOOKUP(AO56,'CRUCE RIESGOS'!$C$9:$D$13,2,FALSE),"") ->  | AQ56: 16.23 | AR56: =IFERROR(VLOOKUP(AQ56,'CRUCE RIESGOS'!$C$9:$D$13,2,FALSE),"") ->  | AS56: 17.23 | AT56: =IFERROR(VLOOKUP(AS56,'CRUCE RIESGOS'!$C$9:$D$13,2,FALSE),"") ->  | AU56: 18.23 | AV56: =IFERROR(VLOOKUP(AU56,'CRUCE RIESGOS'!$C$9:$D$13,2,FALSE),"") ->  | AW56: 19.23 | AX56: =IFERROR(VLOOKUP(AW56,'CRUCE RIESGOS'!$C$9:$D$13,2,FALSE),"") ->  | AY56: 20.23 | AZ56: =IFERROR(VLOOKUP(AY56,'CRUCE RIESGOS'!$C$9:$D$13,2,FALSE),"") ->  | BA56: 21.23 | BB56: =IFERROR(VLOOKUP(BA56,'CRUCE RIESGOS'!$C$9:$D$13,2,FALSE),"") ->  | BC56: 22.23 | BD56: =IFERROR(VLOOKUP(BC56,'CRUCE RIESGOS'!$C$9:$D$13,2,FALSE),"") ->  | BE56: 23.23 | BF56: =IFERROR(VLOOKUP(BE56,'CRUCE RIESGOS'!$C$9:$D$13,2,FALSE),"") ->  | BG56: 24.23 | BH56: =IFERROR(VLOOKUP(BG56,'CRUCE RIESGOS'!$C$9:$D$13,2,FALSE),"") ->  | BI56: 25.23 | BJ56: =IFERROR(VLOOKUP(BI56,'CRUCE RIESGOS'!$C$9:$D$13,2,FALSE),"") -> 
N57: =IF(N58<>""," -R","") ->  | P57: =IF(P58<>""," -R","") ->  | R57: =IF(R58<>""," -R","") ->  | T57: =IF(T58<>""," -R","") ->  | V57: =IF(V58<>""," -R","") ->  | X57: =IF(X58<>""," -R","") ->  | Z57: =IF(Z58<>""," -R","") ->  | AB57: =IF(AB58<>""," -R","") ->  | AD57: =IF(AD58<>""," -R","") ->  | AF57: =IF(AF58<>""," -R","") ->  | AH57: =IF(AH58<>""," -R","") ->  | AJ57: =IF(AJ58<>""," -R","") ->  | AL57: =IF(AL58<>""," -R","") ->  | AN57: =IF(AN58<>""," -R","") ->  | AP57: =IF(AP58<>""," -R","") ->  | AR57: =IF(AR58<>""," -R","") ->  | AT57: =IF(AT58<>""," -R","") ->  | AV57: =IF(AV58<>""," -R","") ->  | AX57: =IF(AX58<>""," -R","") ->  | AZ57: =IF(AZ58<>""," -R","") ->  | BB57: =IF(BB58<>""," -R","") ->  | BD57: =IF(BD58<>""," -R","") ->  | BF57: =IF(BF58<>""," -R","") ->  | BH57: =IF(BH58<>""," -R","") ->  | BJ57: =IF(BJ58<>""," -R","") -> 
M58: 1.24 | N58: =IFERROR(VLOOKUP(M58,'CRUCE RIESGOS'!$C$9:$D$13,2,FALSE),"") ->  | O58: 2.24 | P58: =IFERROR(VLOOKUP(O58,'CRUCE RIESGOS'!$C$9:$D$13,2,FALSE),"") ->  | Q58: 3.24 | R58: =IFERROR(VLOOKUP(Q58,'CRUCE RIESGOS'!$C$9:$D$13,2,FALSE),"") ->  | S58: 4.24 | T58: =IFERROR(VLOOKUP(S58,'CRUCE RIESGOS'!$C$9:$D$13,2,FALSE),"") ->  | U58: 5.24 | V58: =IFERROR(VLOOKUP(U58,'CRUCE RIESGOS'!$C$9:$D$13,2,FALSE),"") ->  | W58: 6.24 | X58: =IFERROR(VLOOKUP(W58,'CRUCE RIESGOS'!$C$9:$D$13,2,FALSE),"") ->  | Y58: 7.24 | Z58: =IFERROR(VLOOKUP(Y58,'CRUCE RIESGOS'!$C$9:$D$13,2,FALSE),"") ->  | AA58: 8.24 | AB58: =IFERROR(VLOOKUP(AA58,'CRUCE RIESGOS'!$C$9:$D$13,2,FALSE),"") ->  | AC58: 9.24 | AD58: =IFERROR(VLOOKUP(AC58,'CRUCE RIESGOS'!$C$9:$D$13,2,FALSE),"") ->  | AE58: 10.24 | AF58: =IFERROR(VLOOKUP(AE58,'CRUCE RIESGOS'!$C$9:$D$13,2,FALSE),"") ->  | AG58: 11.24 | AH58: =IFERROR(VLOOKUP(AG58,'CRUCE RIESGOS'!$C$9:$D$13,2,FALSE),"") ->  | AI58: 12.24 | AJ58: =IFERROR(VLOOKUP(AI58,'CRUCE RIESGOS'!$C$9:$D$13,2,FALSE),"") ->  | AK58: 13.24 | AL58: =IFERROR(VLOOKUP(AK58,'CRUCE RIESGOS'!$C$9:$D$13,2,FALSE),"") ->  | AM58: 14.24 | AN58: =IFERROR(VLOOKUP(AM58,'CRUCE RIESGOS'!$C$9:$D$13,2,FALSE),"") ->  | AO58: 15.24 | AP58: =IFERROR(VLOOKUP(AO58,'CRUCE RIESGOS'!$C$9:$D$13,2,FALSE),"") ->  | AQ58: 16.24 | AR58: =IFERROR(VLOOKUP(AQ58,'CRUCE RIESGOS'!$C$9:$D$13,2,FALSE),"") ->  | AS58: 17.24 | AT58: =IFERROR(VLOOKUP(AS58,'CRUCE RIESGOS'!$C$9:$D$13,2,FALSE),"") ->  | AU58: 18.24 | AV58: =IFERROR(VLOOKUP(AU58,'CRUCE RIESGOS'!$C$9:$D$13,2,FALSE),"") ->  | AW58: 19.24 | AX58: =IFERROR(VLOOKUP(AW58,'CRUCE RIESGOS'!$C$9:$D$13,2,FALSE),"") ->  | AY58: 20.24 | AZ58: =IFERROR(VLOOKUP(AY58,'CRUCE RIESGOS'!$C$9:$D$13,2,FALSE),"") ->  | BA58: 21.24 | BB58: =IFERROR(VLOOKUP(BA58,'CRUCE RIESGOS'!$C$9:$D$13,2,FALSE),"") ->  | BC58: 22.24 | BD58: =IFERROR(VLOOKUP(BC58,'CRUCE RIESGOS'!$C$9:$D$13,2,FALSE),"") ->  | BE58: 23.24 | BF58: =IFERROR(VLOOKUP(BE58,'CRUCE RIESGOS'!$C$9:$D$13,2,FALSE),"") ->  | BG58: 24.24 | BH58: =IFERROR(VLOOKUP(BG58,'CRUCE RIESGOS'!$C$9:$D$13,2,FALSE),"") ->  | BI58: 25.24 | BJ58: =IFERROR(VLOOKUP(BI58,'CRUCE RIESGOS'!$C$9:$D$13,2,FALSE),"") -> 
N59: =IF(N60<>""," -R","") ->  | P59: =IF(P60<>""," -R","") ->  | R59: =IF(R60<>""," -R","") ->  | T59: =IF(T60<>""," -R","") ->  | V59: =IF(V60<>""," -R","") ->  | X59: =IF(X60<>""," -R","") ->  | Z59: =IF(Z60<>""," -R","") ->  | AB59: =IF(AB60<>""," -R","") ->  | AD59: =IF(AD60<>""," -R","") ->  | AF59: =IF(AF60<>""," -R","") ->  | AH59: =IF(AH60<>""," -R","") ->  | AJ59: =IF(AJ60<>""," -R","") ->  | AL59: =IF(AL60<>""," -R","") ->  | AN59: =IF(AN60<>""," -R","") ->  | AP59: =IF(AP60<>""," -R","") ->  | AR59: =IF(AR60<>""," -R","") ->  | AT59: =IF(AT60<>""," -R","") ->  | AV59: =IF(AV60<>""," -R","") ->  | AX59: =IF(AX60<>""," -R","") ->  | AZ59: =IF(AZ60<>""," -R","") ->  | BB59: =IF(BB60<>""," -R","") ->  | BD59: =IF(BD60<>""," -R","") ->  | BF59: =IF(BF60<>""," -R","") ->  | BH59: =IF(BH60<>""," -R","") ->  | BJ59: =IF(BJ60<>""," -R","") -> 
M60: 1.25 | N60: =IFERROR(VLOOKUP(M60,'CRUCE RIESGOS'!$C$9:$D$13,2,FALSE),"") ->  | O60: 2.25 | P60: =IFERROR(VLOOKUP(O60,'CRUCE RIESGOS'!$C$9:$D$13,2,FALSE),"") ->  | Q60: 3.25 | R60: =IFERROR(VLOOKUP(Q60,'CRUCE RIESGOS'!$C$9:$D$13,2,FALSE),"") ->  | S60: 4.25 | T60: =IFERROR(VLOOKUP(S60,'CRUCE RIESGOS'!$C$9:$D$13,2,FALSE),"") ->  | U60: 5.25 | V60: =IFERROR(VLOOKUP(U60,'CRUCE RIESGOS'!$C$9:$D$13,2,FALSE),"") ->  | W60: 6.25 | X60: =IFERROR(VLOOKUP(W60,'CRUCE RIESGOS'!$C$9:$D$13,2,FALSE),"") ->  | Y60: 7.25 | Z60: =IFERROR(VLOOKUP(Y60,'CRUCE RIESGOS'!$C$9:$D$13,2,FALSE),"") ->  | AA60: 8.25 | AB60: =IFERROR(VLOOKUP(AA60,'CRUCE RIESGOS'!$C$9:$D$13,2,FALSE),"") ->  | AC60: 9.25 | AD60: =IFERROR(VLOOKUP(AC60,'CRUCE RIESGOS'!$C$9:$D$13,2,FALSE),"") ->  | AE60: 10.25 | AF60: =IFERROR(VLOOKUP(AE60,'CRUCE RIESGOS'!$C$9:$D$13,2,FALSE),"") ->  | AG60: 11.25 | AH60: =IFERROR(VLOOKUP(AG60,'CRUCE RIESGOS'!$C$9:$D$13,2,FALSE),"") ->  | AI60: 12.25 | AJ60: =IFERROR(VLOOKUP(AI60,'CRUCE RIESGOS'!$C$9:$D$13,2,FALSE),"") ->  | AK60: 13.25 | AL60: =IFERROR(VLOOKUP(AK60,'CRUCE RIESGOS'!$C$9:$D$13,2,FALSE),"") ->  | AM60: 14.25 | AN60: =IFERROR(VLOOKUP(AM60,'CRUCE RIESGOS'!$C$9:$D$13,2,FALSE),"") ->  | AO60: 15.25 | AP60: =IFERROR(VLOOKUP(AO60,'CRUCE RIESGOS'!$C$9:$D$13,2,FALSE),"") ->  | AQ60: 16.25 | AR60: =IFERROR(VLOOKUP(AQ60,'CRUCE RIESGOS'!$C$9:$D$13,2,FALSE),"") ->  | AS60: 17.25 | AT60: =IFERROR(VLOOKUP(AS60,'CRUCE RIESGOS'!$C$9:$D$13,2,FALSE),"") ->  | AU60: 18.25 | AV60: =IFERROR(VLOOKUP(AU60,'CRUCE RIESGOS'!$C$9:$D$13,2,FALSE),"") ->  | AW60: 19.25 | AX60: =IFERROR(VLOOKUP(AW60,'CRUCE RIESGOS'!$C$9:$D$13,2,FALSE),"") ->  | AY60: 20.25 | AZ60: =IFERROR(VLOOKUP(AY60,'CRUCE RIESGOS'!$C$9:$D$13,2,FALSE),"") ->  | BA60: 21.25 | BB60: =IFERROR(VLOOKUP(BA60,'CRUCE RIESGOS'!$C$9:$D$13,2,FALSE),"") ->  | BC60: 22.25 | BD60: =IFERROR(VLOOKUP(BC60,'CRUCE RIESGOS'!$C$9:$D$13,2,FALSE),"") ->  | BE60: 23.25 | BF60: =IFERROR(VLOOKUP(BE60,'CRUCE RIESGOS'!$C$9:$D$13,2,FALSE),"") ->  | BG60: 24.25 | BH60: =IFERROR(VLOOKUP(BG60,'CRUCE RIESGOS'!$C$9:$D$13,2,FALSE),"") ->  | BI60: 25.25 | BJ60: =IFERROR(VLOOKUP(BI60,'CRUCE RIESGOS'!$C$9:$D$13,2,FALSE),"") -> 
N61: =IF(N62<>""," -R","") ->  | P61: =IF(P62<>""," -R","") ->  | R61: =IF(R62<>""," -R","") ->  | T61: =IF(T62<>""," -R","") ->  | V61: =IF(V62<>""," -R","") ->  | X61: =IF(X62<>""," -R","") ->  | Z61: =IF(Z62<>""," -R","") ->  | AB61: =IF(AB62<>""," -R","") ->  | AD61: =IF(AD62<>""," -R","") ->  | AF61: =IF(AF62<>""," -R","") ->  | AH61: =IF(AH62<>""," -R","") ->  | AJ61: =IF(AJ62<>""," -R","") ->  | AL61: =IF(AL62<>""," -R","") ->  | AN61: =IF(AN62<>""," -R","") ->  | AP61: =IF(AP62<>""," -R","") ->  | AR61: =IF(AR62<>""," -R","") ->  | AT61: =IF(AT62<>""," -R","") ->  | AV61: =IF(AV62<>""," -R","") ->  | AX61: =IF(AX62<>""," -R","") ->  | AZ61: =IF(AZ62<>""," -R","") ->  | BB61: =IF(BB62<>""," -R","") ->  | BD61: =IF(BD62<>""," -R","") ->  | BF61: =IF(BF62<>""," -R","") ->  | BH61: =IF(BH62<>""," -R","") ->  | BJ61: =IF(BJ62<>""," -R","") -> 
M62: 1.26 | N62: =IFERROR(VLOOKUP(M62,'CRUCE RIESGOS'!$C$9:$D$13,2,FALSE),"") ->  | O62: 2.26 | P62: =IFERROR(VLOOKUP(O62,'CRUCE RIESGOS'!$C$9:$D$13,2,FALSE),"") ->  | Q62: 3.26 | R62: =IFERROR(VLOOKUP(Q62,'CRUCE RIESGOS'!$C$9:$D$13,2,FALSE),"") ->  | S62: 4.26 | T62: =IFERROR(VLOOKUP(S62,'CRUCE RIESGOS'!$C$9:$D$13,2,FALSE),"") ->  | U62: 5.26 | V62: =IFERROR(VLOOKUP(U62,'CRUCE RIESGOS'!$C$9:$D$13,2,FALSE),"") ->  | W62: 6.26 | X62: =IFERROR(VLOOKUP(W62,'CRUCE RIESGOS'!$C$9:$D$13,2,FALSE),"") ->  | Y62: 7.26 | Z62: =IFERROR(VLOOKUP(Y62,'CRUCE RIESGOS'!$C$9:$D$13,2,FALSE),"") ->  | AA62: 8.26 | AB62: =IFERROR(VLOOKUP(AA62,'CRUCE RIESGOS'!$C$9:$D$13,2,FALSE),"") ->  | AC62: 9.26 | AD62: =IFERROR(VLOOKUP(AC62,'CRUCE RIESGOS'!$C$9:$D$13,2,FALSE),"") ->  | AE62: 10.26 | AF62: =IFERROR(VLOOKUP(AE62,'CRUCE RIESGOS'!$C$9:$D$13,2,FALSE),"") ->  | AG62: 11.26 | AH62: =IFERROR(VLOOKUP(AG62,'CRUCE RIESGOS'!$C$9:$D$13,2,FALSE),"") ->  | AI62: 12.26 | AJ62: =IFERROR(VLOOKUP(AI62,'CRUCE RIESGOS'!$C$9:$D$13,2,FALSE),"") ->  | AK62: 13.26 | AL62: =IFERROR(VLOOKUP(AK62,'CRUCE RIESGOS'!$C$9:$D$13,2,FALSE),"") ->  | AM62: 14.26 | AN62: =IFERROR(VLOOKUP(AM62,'CRUCE RIESGOS'!$C$9:$D$13,2,FALSE),"") ->  | AO62: 15.26 | AP62: =IFERROR(VLOOKUP(AO62,'CRUCE RIESGOS'!$C$9:$D$13,2,FALSE),"") ->  | AQ62: 16.26 | AR62: =IFERROR(VLOOKUP(AQ62,'CRUCE RIESGOS'!$C$9:$D$13,2,FALSE),"") ->  | AS62: 17.26 | AT62: =IFERROR(VLOOKUP(AS62,'CRUCE RIESGOS'!$C$9:$D$13,2,FALSE),"") ->  | AU62: 18.26 | AV62: =IFERROR(VLOOKUP(AU62,'CRUCE RIESGOS'!$C$9:$D$13,2,FALSE),"") ->  | AW62: 19.26 | AX62: =IFERROR(VLOOKUP(AW62,'CRUCE RIESGOS'!$C$9:$D$13,2,FALSE),"") ->  | AY62: 20.26 | AZ62: =IFERROR(VLOOKUP(AY62,'CRUCE RIESGOS'!$C$9:$D$13,2,FALSE),"") ->  | BA62: 21.26 | BB62: =IFERROR(VLOOKUP(BA62,'CRUCE RIESGOS'!$C$9:$D$13,2,FALSE),"") ->  | BC62: 22.26 | BD62: =IFERROR(VLOOKUP(BC62,'CRUCE RIESGOS'!$C$9:$D$13,2,FALSE),"") ->  | BE62: 23.26 | BF62: =IFERROR(VLOOKUP(BE62,'CRUCE RIESGOS'!$C$9:$D$13,2,FALSE),"") ->  | BG62: 24.26 | BH62: =IFERROR(VLOOKUP(BG62,'CRUCE RIESGOS'!$C$9:$D$13,2,FALSE),"") ->  | BI62: 25.26 | BJ62: =IFERROR(VLOOKUP(BI62,'CRUCE RIESGOS'!$C$9:$D$13,2,FALSE),"") -> 
N63: =IF(N64<>""," -R","") ->  | P63: =IF(P64<>""," -R","") ->  | R63: =IF(R64<>""," -R","") ->  | T63: =IF(T64<>""," -R","") ->  | V63: =IF(V64<>""," -R","") ->  | X63: =IF(X64<>""," -R","") ->  | Z63: =IF(Z64<>""," -R","") ->  | AB63: =IF(AB64<>""," -R","") ->  | AD63: =IF(AD64<>""," -R","") ->  | AF63: =IF(AF64<>""," -R","") ->  | AH63: =IF(AH64<>""," -R","") ->  | AJ63: =IF(AJ64<>""," -R","") ->  | AL63: =IF(AL64<>""," -R","") ->  | AN63: =IF(AN64<>""," -R","") ->  | AP63: =IF(AP64<>""," -R","") ->  | AR63: =IF(AR64<>""," -R","") ->  | AT63: =IF(AT64<>""," -R","") ->  | AV63: =IF(AV64<>""," -R","") ->  | AX63: =IF(AX64<>""," -R","") ->  | AZ63: =IF(AZ64<>""," -R","") ->  | BB63: =IF(BB64<>""," -R","") ->  | BD63: =IF(BD64<>""," -R","") ->  | BF63: =IF(BF64<>""," -R","") ->  | BH63: =IF(BH64<>""," -R","") ->  | BJ63: =IF(BJ64<>""," -R","") -> 
M64: 1.27 | N64: =IFERROR(VLOOKUP(M64,'CRUCE RIESGOS'!$C$9:$D$13,2,FALSE),"") ->  | O64: 2.27 | P64: =IFERROR(VLOOKUP(O64,'CRUCE RIESGOS'!$C$9:$D$13,2,FALSE),"") ->  | Q64: 3.27 | R64: =IFERROR(VLOOKUP(Q64,'CRUCE RIESGOS'!$C$9:$D$13,2,FALSE),"") ->  | S64: 4.27 | T64: =IFERROR(VLOOKUP(S64,'CRUCE RIESGOS'!$C$9:$D$13,2,FALSE),"") ->  | U64: 5.27 | V64: =IFERROR(VLOOKUP(U64,'CRUCE RIESGOS'!$C$9:$D$13,2,FALSE),"") ->  | W64: 6.27 | X64: =IFERROR(VLOOKUP(W64,'CRUCE RIESGOS'!$C$9:$D$13,2,FALSE),"") ->  | Y64: 7.27 | Z64: =IFERROR(VLOOKUP(Y64,'CRUCE RIESGOS'!$C$9:$D$13,2,FALSE),"") ->  | AA64: 8.27 | AB64: =IFERROR(VLOOKUP(AA64,'CRUCE RIESGOS'!$C$9:$D$13,2,FALSE),"") ->  | AC64: 9.27 | AD64: =IFERROR(VLOOKUP(AC64,'CRUCE RIESGOS'!$C$9:$D$13,2,FALSE),"") ->  | AE64: 10.27 | AF64: =IFERROR(VLOOKUP(AE64,'CRUCE RIESGOS'!$C$9:$D$13,2,FALSE),"") ->  | AG64: 11.27 | AH64: =IFERROR(VLOOKUP(AG64,'CRUCE RIESGOS'!$C$9:$D$13,2,FALSE),"") ->  | AI64: 12.27 | AJ64: =IFERROR(VLOOKUP(AI64,'CRUCE RIESGOS'!$C$9:$D$13,2,FALSE),"") ->  | AK64: 13.27 | AL64: =IFERROR(VLOOKUP(AK64,'CRUCE RIESGOS'!$C$9:$D$13,2,FALSE),"") ->  | AM64: 14.27 | AN64: =IFERROR(VLOOKUP(AM64,'CRUCE RIESGOS'!$C$9:$D$13,2,FALSE),"") ->  | AO64: 15.27 | AP64: =IFERROR(VLOOKUP(AO64,'CRUCE RIESGOS'!$C$9:$D$13,2,FALSE),"") ->  | AQ64: 16.27 | AR64: =IFERROR(VLOOKUP(AQ64,'CRUCE RIESGOS'!$C$9:$D$13,2,FALSE),"") ->  | AS64: 17.27 | AT64: =IFERROR(VLOOKUP(AS64,'CRUCE RIESGOS'!$C$9:$D$13,2,FALSE),"") ->  | AU64: 18.27 | AV64: =IFERROR(VLOOKUP(AU64,'CRUCE RIESGOS'!$C$9:$D$13,2,FALSE),"") ->  | AW64: 19.27 | AX64: =IFERROR(VLOOKUP(AW64,'CRUCE RIESGOS'!$C$9:$D$13,2,FALSE),"") ->  | AY64: 20.27 | AZ64: =IFERROR(VLOOKUP(AY64,'CRUCE RIESGOS'!$C$9:$D$13,2,FALSE),"") ->  | BA64: 21.27 | BB64: =IFERROR(VLOOKUP(BA64,'CRUCE RIESGOS'!$C$9:$D$13,2,FALSE),"") ->  | BC64: 22.27 | BD64: =IFERROR(VLOOKUP(BC64,'CRUCE RIESGOS'!$C$9:$D$13,2,FALSE),"") ->  | BE64: 23.27 | BF64: =IFERROR(VLOOKUP(BE64,'CRUCE RIESGOS'!$C$9:$D$13,2,FALSE),"") ->  | BG64: 24.27 | BH64: =IFERROR(VLOOKUP(BG64,'CRUCE RIESGOS'!$C$9:$D$13,2,FALSE),"") ->  | BI64: 25.27 | BJ64: =IFERROR(VLOOKUP(BI64,'CRUCE RIESGOS'!$C$9:$D$13,2,FALSE),"") -> 
N65: =IF(N66<>""," -R","") ->  | P65: =IF(P66<>""," -R","") ->  | R65: =IF(R66<>""," -R","") ->  | T65: =IF(T66<>""," -R","") ->  | V65: =IF(V66<>""," -R","") ->  | X65: =IF(X66<>""," -R","") ->  | Z65: =IF(Z66<>""," -R","") ->  | AB65: =IF(AB66<>""," -R","") ->  | AD65: =IF(AD66<>""," -R","") ->  | AF65: =IF(AF66<>""," -R","") ->  | AH65: =IF(AH66<>""," -R","") ->  | AJ65: =IF(AJ66<>""," -R","") ->  | AL65: =IF(AL66<>""," -R","") ->  | AN65: =IF(AN66<>""," -R","") ->  | AP65: =IF(AP66<>""," -R","") ->  | AR65: =IF(AR66<>""," -R","") ->  | AT65: =IF(AT66<>""," -R","") ->  | AV65: =IF(AV66<>""," -R","") ->  | AX65: =IF(AX66<>""," -R","") ->  | AZ65: =IF(AZ66<>""," -R","") ->  | BB65: =IF(BB66<>""," -R","") ->  | BD65: =IF(BD66<>""," -R","") ->  | BF65: =IF(BF66<>""," -R","") ->  | BH65: =IF(BH66<>""," -R","") ->  | BJ65: =IF(BJ66<>""," -R","") -> 
M66: 1.28 | N66: =IFERROR(VLOOKUP(M66,'CRUCE RIESGOS'!$C$9:$D$13,2,FALSE),"") ->  | O66: 2.28 | P66: =IFERROR(VLOOKUP(O66,'CRUCE RIESGOS'!$C$9:$D$13,2,FALSE),"") ->  | Q66: 3.28 | R66: =IFERROR(VLOOKUP(Q66,'CRUCE RIESGOS'!$C$9:$D$13,2,FALSE),"") ->  | S66: 4.28 | T66: =IFERROR(VLOOKUP(S66,'CRUCE RIESGOS'!$C$9:$D$13,2,FALSE),"") ->  | U66: 5.28 | V66: =IFERROR(VLOOKUP(U66,'CRUCE RIESGOS'!$C$9:$D$13,2,FALSE),"") ->  | W66: 6.28 | X66: =IFERROR(VLOOKUP(W66,'CRUCE RIESGOS'!$C$9:$D$13,2,FALSE),"") ->  | Y66: 7.28 | Z66: =IFERROR(VLOOKUP(Y66,'CRUCE RIESGOS'!$C$9:$D$13,2,FALSE),"") ->  | AA66: 8.28 | AB66: =IFERROR(VLOOKUP(AA66,'CRUCE RIESGOS'!$C$9:$D$13,2,FALSE),"") ->  | AC66: 9.28 | AD66: =IFERROR(VLOOKUP(AC66,'CRUCE RIESGOS'!$C$9:$D$13,2,FALSE),"") ->  | AE66: 10.28 | AF66: =IFERROR(VLOOKUP(AE66,'CRUCE RIESGOS'!$C$9:$D$13,2,FALSE),"") ->  | AG66: 11.28 | AH66: =IFERROR(VLOOKUP(AG66,'CRUCE RIESGOS'!$C$9:$D$13,2,FALSE),"") ->  | AI66: 12.28 | AJ66: =IFERROR(VLOOKUP(AI66,'CRUCE RIESGOS'!$C$9:$D$13,2,FALSE),"") ->  | AK66: 13.28 | AL66: =IFERROR(VLOOKUP(AK66,'CRUCE RIESGOS'!$C$9:$D$13,2,FALSE),"") ->  | AM66: 14.28 | AN66: =IFERROR(VLOOKUP(AM66,'CRUCE RIESGOS'!$C$9:$D$13,2,FALSE),"") ->  | AO66: 15.28 | AP66: =IFERROR(VLOOKUP(AO66,'CRUCE RIESGOS'!$C$9:$D$13,2,FALSE),"") ->  | AQ66: 16.28 | AR66: =IFERROR(VLOOKUP(AQ66,'CRUCE RIESGOS'!$C$9:$D$13,2,FALSE),"") ->  | AS66: 17.28 | AT66: =IFERROR(VLOOKUP(AS66,'CRUCE RIESGOS'!$C$9:$D$13,2,FALSE),"") ->  | AU66: 18.28 | AV66: =IFERROR(VLOOKUP(AU66,'CRUCE RIESGOS'!$C$9:$D$13,2,FALSE),"") ->  | AW66: 19.28 | AX66: =IFERROR(VLOOKUP(AW66,'CRUCE RIESGOS'!$C$9:$D$13,2,FALSE),"") ->  | AY66: 20.28 | AZ66: =IFERROR(VLOOKUP(AY66,'CRUCE RIESGOS'!$C$9:$D$13,2,FALSE),"") ->  | BA66: 21.28 | BB66: =IFERROR(VLOOKUP(BA66,'CRUCE RIESGOS'!$C$9:$D$13,2,FALSE),"") ->  | BC66: 22.28 | BD66: =IFERROR(VLOOKUP(BC66,'CRUCE RIESGOS'!$C$9:$D$13,2,FALSE),"") ->  | BE66: 23.28 | BF66: =IFERROR(VLOOKUP(BE66,'CRUCE RIESGOS'!$C$9:$D$13,2,FALSE),"") ->  | BG66: 24.28 | BH66: =IFERROR(VLOOKUP(BG66,'CRUCE RIESGOS'!$C$9:$D$13,2,FALSE),"") ->  | BI66: 25.28 | BJ66: =IFERROR(VLOOKUP(BI66,'CRUCE RIESGOS'!$C$9:$D$13,2,FALSE),"") -> 
N67: =IF(N68<>""," -R","") ->  | P67: =IF(P68<>""," -R","") ->  | R67: =IF(R68<>""," -R","") ->  | T67: =IF(T68<>""," -R","") ->  | V67: =IF(V68<>""," -R","") ->  | X67: =IF(X68<>""," -R","") ->  | Z67: =IF(Z68<>""," -R","") ->  | AB67: =IF(AB68<>""," -R","") ->  | AD67: =IF(AD68<>""," -R","") ->  | AF67: =IF(AF68<>""," -R","") ->  | AH67: =IF(AH68<>""," -R","") ->  | AJ67: =IF(AJ68<>""," -R","") ->  | AL67: =IF(AL68<>""," -R","") ->  | AN67: =IF(AN68<>""," -R","") ->  | AP67: =IF(AP68<>""," -R","") ->  | AR67: =IF(AR68<>""," -R","") ->  | AT67: =IF(AT68<>""," -R","") ->  | AV67: =IF(AV68<>""," -R","") ->  | AX67: =IF(AX68<>""," -R","") ->  | AZ67: =IF(AZ68<>""," -R","") ->  | BB67: =IF(BB68<>""," -R","") ->  | BD67: =IF(BD68<>""," -R","") ->  | BF67: =IF(BF68<>""," -R","") ->  | BH67: =IF(BH68<>""," -R","") ->  | BJ67: =IF(BJ68<>""," -R","") -> 
M68: 1.29 | N68: =IFERROR(VLOOKUP(M68,'CRUCE RIESGOS'!$C$9:$D$13,2,FALSE),"") ->  | O68: 2.29 | P68: =IFERROR(VLOOKUP(O68,'CRUCE RIESGOS'!$C$9:$D$13,2,FALSE),"") ->  | Q68: 3.29 | R68: =IFERROR(VLOOKUP(Q68,'CRUCE RIESGOS'!$C$9:$D$13,2,FALSE),"") ->  | S68: 4.29 | T68: =IFERROR(VLOOKUP(S68,'CRUCE RIESGOS'!$C$9:$D$13,2,FALSE),"") ->  | U68: 5.29 | V68: =IFERROR(VLOOKUP(U68,'CRUCE RIESGOS'!$C$9:$D$13,2,FALSE),"") ->  | W68: 6.29 | X68: =IFERROR(VLOOKUP(W68,'CRUCE RIESGOS'!$C$9:$D$13,2,FALSE),"") ->  | Y68: 7.29 | Z68: =IFERROR(VLOOKUP(Y68,'CRUCE RIESGOS'!$C$9:$D$13,2,FALSE),"") ->  | AA68: 8.29 | AB68: =IFERROR(VLOOKUP(AA68,'CRUCE RIESGOS'!$C$9:$D$13,2,FALSE),"") ->  | AC68: 9.29 | AD68: =IFERROR(VLOOKUP(AC68,'CRUCE RIESGOS'!$C$9:$D$13,2,FALSE),"") ->  | AE68: 10.29 | AF68: =IFERROR(VLOOKUP(AE68,'CRUCE RIESGOS'!$C$9:$D$13,2,FALSE),"") ->  | AG68: 11.29 | AH68: =IFERROR(VLOOKUP(AG68,'CRUCE RIESGOS'!$C$9:$D$13,2,FALSE),"") ->  | AI68: 12.29 | AJ68: =IFERROR(VLOOKUP(AI68,'CRUCE RIESGOS'!$C$9:$D$13,2,FALSE),"") ->  | AK68: 13.29 | AL68: =IFERROR(VLOOKUP(AK68,'CRUCE RIESGOS'!$C$9:$D$13,2,FALSE),"") ->  | AM68: 14.29 | AN68: =IFERROR(VLOOKUP(AM68,'CRUCE RIESGOS'!$C$9:$D$13,2,FALSE),"") ->  | AO68: 15.29 | AP68: =IFERROR(VLOOKUP(AO68,'CRUCE RIESGOS'!$C$9:$D$13,2,FALSE),"") ->  | AQ68: 16.29 | AR68: =IFERROR(VLOOKUP(AQ68,'CRUCE RIESGOS'!$C$9:$D$13,2,FALSE),"") ->  | AS68: 17.29 | AT68: =IFERROR(VLOOKUP(AS68,'CRUCE RIESGOS'!$C$9:$D$13,2,FALSE),"") ->  | AU68: 18.29 | AV68: =IFERROR(VLOOKUP(AU68,'CRUCE RIESGOS'!$C$9:$D$13,2,FALSE),"") ->  | AW68: 19.29 | AX68: =IFERROR(VLOOKUP(AW68,'CRUCE RIESGOS'!$C$9:$D$13,2,FALSE),"") ->  | AY68: 20.29 | AZ68: =IFERROR(VLOOKUP(AY68,'CRUCE RIESGOS'!$C$9:$D$13,2,FALSE),"") ->  | BA68: 21.29 | BB68: =IFERROR(VLOOKUP(BA68,'CRUCE RIESGOS'!$C$9:$D$13,2,FALSE),"") ->  | BC68: 22.29 | BD68: =IFERROR(VLOOKUP(BC68,'CRUCE RIESGOS'!$C$9:$D$13,2,FALSE),"") ->  | BE68: 23.29 | BF68: =IFERROR(VLOOKUP(BE68,'CRUCE RIESGOS'!$C$9:$D$13,2,FALSE),"") ->  | BG68: 24.29 | BH68: =IFERROR(VLOOKUP(BG68,'CRUCE RIESGOS'!$C$9:$D$13,2,FALSE),"") ->  | BI68: 25.29 | BJ68: =IFERROR(VLOOKUP(BI68,'CRUCE RIESGOS'!$C$9:$D$13,2,FALSE),"") -> 
N69: =IF(N70<>""," -R","") ->  | P69: =IF(P70<>""," -R","") ->  | R69: =IF(R70<>""," -R","") ->  | T69: =IF(T70<>""," -R","") ->  | V69: =IF(V70<>""," -R","") ->  | X69: =IF(X70<>""," -R","") ->  | Z69: =IF(Z70<>""," -R","") ->  | AB69: =IF(AB70<>""," -R","") ->  | AD69: =IF(AD70<>""," -R","") ->  | AF69: =IF(AF70<>""," -R","") ->  | AH69: =IF(AH70<>""," -R","") ->  | AJ69: =IF(AJ70<>""," -R","") ->  | AL69: =IF(AL70<>""," -R","") ->  | AN69: =IF(AN70<>""," -R","") ->  | AP69: =IF(AP70<>""," -R","") ->  | AR69: =IF(AR70<>""," -R","") ->  | AT69: =IF(AT70<>""," -R","") ->  | AV69: =IF(AV70<>""," -R","") ->  | AX69: =IF(AX70<>""," -R","") ->  | AZ69: =IF(AZ70<>""," -R","") ->  | BB69: =IF(BB70<>""," -R","") ->  | BD69: =IF(BD70<>""," -R","") ->  | BF69: =IF(BF70<>""," -R","") ->  | BH69: =IF(BH70<>""," -R","") ->  | BJ69: =IF(BJ70<>""," -R","") -> 
M70: 1.3 | N70: =IFERROR(VLOOKUP(M70,'CRUCE RIESGOS'!$C$9:$D$13,2,FALSE),"") ->  | O70: 2.3 | P70: =IFERROR(VLOOKUP(O70,'CRUCE RIESGOS'!$C$9:$D$13,2,FALSE),"") ->  | Q70: 3.3 | R70: =IFERROR(VLOOKUP(Q70,'CRUCE RIESGOS'!$C$9:$D$13,2,FALSE),"") ->  | S70: 4.3 | T70: =IFERROR(VLOOKUP(S70,'CRUCE RIESGOS'!$C$9:$D$13,2,FALSE),"") ->  | U70: 5.3 | V70: =IFERROR(VLOOKUP(U70,'CRUCE RIESGOS'!$C$9:$D$13,2,FALSE),"") ->  | W70: 6.3 | X70: =IFERROR(VLOOKUP(W70,'CRUCE RIESGOS'!$C$9:$D$13,2,FALSE),"") ->  | Y70: 7.3 | Z70: =IFERROR(VLOOKUP(Y70,'CRUCE RIESGOS'!$C$9:$D$13,2,FALSE),"") ->  | AA70: 8.3 | AB70: =IFERROR(VLOOKUP(AA70,'CRUCE RIESGOS'!$C$9:$D$13,2,FALSE),"") ->  | AC70: 9.3 | AD70: =IFERROR(VLOOKUP(AC70,'CRUCE RIESGOS'!$C$9:$D$13,2,FALSE),"") ->  | AE70: 10.3 | AF70: =IFERROR(VLOOKUP(AE70,'CRUCE RIESGOS'!$C$9:$D$13,2,FALSE),"") ->  | AG70: 11.3 | AH70: =IFERROR(VLOOKUP(AG70,'CRUCE RIESGOS'!$C$9:$D$13,2,FALSE),"") ->  | AI70: 12.3 | AJ70: =IFERROR(VLOOKUP(AI70,'CRUCE RIESGOS'!$C$9:$D$13,2,FALSE),"") ->  | AK70: 13.3 | AL70: =IFERROR(VLOOKUP(AK70,'CRUCE RIESGOS'!$C$9:$D$13,2,FALSE),"") ->  | AM70: 14.3 | AN70: =IFERROR(VLOOKUP(AM70,'CRUCE RIESGOS'!$C$9:$D$13,2,FALSE),"") ->  | AO70: 15.3 | AP70: =IFERROR(VLOOKUP(AO70,'CRUCE RIESGOS'!$C$9:$D$13,2,FALSE),"") ->  | AQ70: 16.3 | AR70: =IFERROR(VLOOKUP(AQ70,'CRUCE RIESGOS'!$C$9:$D$13,2,FALSE),"") ->  | AS70: 17.3 | AT70: =IFERROR(VLOOKUP(AS70,'CRUCE RIESGOS'!$C$9:$D$13,2,FALSE),"") ->  | AU70: 18.3 | AV70: =IFERROR(VLOOKUP(AU70,'CRUCE RIESGOS'!$C$9:$D$13,2,FALSE),"") ->  | AW70: 19.3 | AX70: =IFERROR(VLOOKUP(AW70,'CRUCE RIESGOS'!$C$9:$D$13,2,FALSE),"") ->  | AY70: 20.3 | AZ70: =IFERROR(VLOOKUP(AY70,'CRUCE RIESGOS'!$C$9:$D$13,2,FALSE),"") ->  | BA70: 21.3 | BB70: =IFERROR(VLOOKUP(BA70,'CRUCE RIESGOS'!$C$9:$D$13,2,FALSE),"") ->  | BC70: 22.3 | BD70: =IFERROR(VLOOKUP(BC70,'CRUCE RIESGOS'!$C$9:$D$13,2,FALSE),"") ->  | BE70: 23.3 | BF70: =IFERROR(VLOOKUP(BE70,'CRUCE RIESGOS'!$C$9:$D$13,2,FALSE),"") ->  | BG70: 24.3 | BH70: =IFERROR(VLOOKUP(BG70,'CRUCE RIESGOS'!$C$9:$D$13,2,FALSE),"") ->  | BI70: 25.3 | BJ70: =IFERROR(VLOOKUP(BI70,'CRUCE RIESGOS'!$C$9:$D$13,2,FALSE),"") -> 
N71: =IF(N72<>""," -R","") ->  | P71: =IF(P72<>""," -R","") ->  | R71: =IF(R72<>""," -R","") ->  | T71: =IF(T72<>""," -R","") ->  | V71: =IF(V72<>""," -R","") ->  | X71: =IF(X72<>""," -R","") ->  | Z71: =IF(Z72<>""," -R","") ->  | AB71: =IF(AB72<>""," -R","") ->  | AD71: =IF(AD72<>""," -R","") ->  | AF71: =IF(AF72<>""," -R","") ->  | AH71: =IF(AH72<>""," -R","") ->  | AJ71: =IF(AJ72<>""," -R","") ->  | AL71: =IF(AL72<>""," -R","") ->  | AN71: =IF(AN72<>""," -R","") ->  | AP71: =IF(AP72<>""," -R","") ->  | AR71: =IF(AR72<>""," -R","") ->  | AT71: =IF(AT72<>""," -R","") ->  | AV71: =IF(AV72<>""," -R","") ->  | AX71: =IF(AX72<>""," -R","") ->  | AZ71: =IF(AZ72<>""," -R","") ->  | BB71: =IF(BB72<>""," -R","") ->  | BD71: =IF(BD72<>""," -R","") ->  | BF71: =IF(BF72<>""," -R","") ->  | BH71: =IF(BH72<>""," -R","") ->  | BJ71: =IF(BJ72<>""," -R","") -> 
M72: 1.31 | N72: =IFERROR(VLOOKUP(M72,'CRUCE RIESGOS'!$C$9:$D$13,2,FALSE),"") ->  | O72: 2.31 | P72: =IFERROR(VLOOKUP(O72,'CRUCE RIESGOS'!$C$9:$D$13,2,FALSE),"") ->  | Q72: 3.31 | R72: =IFERROR(VLOOKUP(Q72,'CRUCE RIESGOS'!$C$9:$D$13,2,FALSE),"") ->  | S72: 4.31 | T72: =IFERROR(VLOOKUP(S72,'CRUCE RIESGOS'!$C$9:$D$13,2,FALSE),"") ->  | U72: 5.31 | V72: =IFERROR(VLOOKUP(U72,'CRUCE RIESGOS'!$C$9:$D$13,2,FALSE),"") ->  | W72: 6.31 | X72: =IFERROR(VLOOKUP(W72,'CRUCE RIESGOS'!$C$9:$D$13,2,FALSE),"") ->  | Y72: 7.31 | Z72: =IFERROR(VLOOKUP(Y72,'CRUCE RIESGOS'!$C$9:$D$13,2,FALSE),"") ->  | AA72: 8.31 | AB72: =IFERROR(VLOOKUP(AA72,'CRUCE RIESGOS'!$C$9:$D$13,2,FALSE),"") ->  | AC72: 9.31 | AD72: =IFERROR(VLOOKUP(AC72,'CRUCE RIESGOS'!$C$9:$D$13,2,FALSE),"") ->  | AE72: 10.31 | AF72: =IFERROR(VLOOKUP(AE72,'CRUCE RIESGOS'!$C$9:$D$13,2,FALSE),"") ->  | AG72: 11.31 | AH72: =IFERROR(VLOOKUP(AG72,'CRUCE RIESGOS'!$C$9:$D$13,2,FALSE),"") ->  | AI72: 12.31 | AJ72: =IFERROR(VLOOKUP(AI72,'CRUCE RIESGOS'!$C$9:$D$13,2,FALSE),"") ->  | AK72: 13.31 | AL72: =IFERROR(VLOOKUP(AK72,'CRUCE RIESGOS'!$C$9:$D$13,2,FALSE),"") ->  | AM72: 14.31 | AN72: =IFERROR(VLOOKUP(AM72,'CRUCE RIESGOS'!$C$9:$D$13,2,FALSE),"") ->  | AO72: 15.31 | AP72: =IFERROR(VLOOKUP(AO72,'CRUCE RIESGOS'!$C$9:$D$13,2,FALSE),"") ->  | AQ72: 16.31 | AR72: =IFERROR(VLOOKUP(AQ72,'CRUCE RIESGOS'!$C$9:$D$13,2,FALSE),"") ->  | AS72: 17.31 | AT72: =IFERROR(VLOOKUP(AS72,'CRUCE RIESGOS'!$C$9:$D$13,2,FALSE),"") ->  | AU72: 18.31 | AV72: =IFERROR(VLOOKUP(AU72,'CRUCE RIESGOS'!$C$9:$D$13,2,FALSE),"") ->  | AW72: 19.31 | AX72: =IFERROR(VLOOKUP(AW72,'CRUCE RIESGOS'!$C$9:$D$13,2,FALSE),"") ->  | AY72: 20.31 | AZ72: =IFERROR(VLOOKUP(AY72,'CRUCE RIESGOS'!$C$9:$D$13,2,FALSE),"") ->  | BA72: 21.31 | BB72: =IFERROR(VLOOKUP(BA72,'CRUCE RIESGOS'!$C$9:$D$13,2,FALSE),"") ->  | BC72: 22.31 | BD72: =IFERROR(VLOOKUP(BC72,'CRUCE RIESGOS'!$C$9:$D$13,2,FALSE),"") ->  | BE72: 23.31 | BF72: =IFERROR(VLOOKUP(BE72,'CRUCE RIESGOS'!$C$9:$D$13,2,FALSE),"") ->  | BG72: 24.31 | BH72: =IFERROR(VLOOKUP(BG72,'CRUCE RIESGOS'!$C$9:$D$13,2,FALSE),"") ->  | BI72: 25.31 | BJ72: =IFERROR(VLOOKUP(BI72,'CRUCE RIESGOS'!$C$9:$D$13,2,FALSE),"") -> 
N73: =IF(N74<>""," -R","") ->  | P73: =IF(P74<>""," -R","") ->  | R73: =IF(R74<>""," -R","") ->  | T73: =IF(T74<>""," -R","") ->  | V73: =IF(V74<>""," -R","") ->  | X73: =IF(X74<>""," -R","") ->  | Z73: =IF(Z74<>""," -R","") ->  | AB73: =IF(AB74<>""," -R","") ->  | AD73: =IF(AD74<>""," -R","") ->  | AF73: =IF(AF74<>""," -R","") ->  | AH73: =IF(AH74<>""," -R","") ->  | AJ73: =IF(AJ74<>""," -R","") ->  | AL73: =IF(AL74<>""," -R","") ->  | AN73: =IF(AN74<>""," -R","") ->  | AP73: =IF(AP74<>""," -R","") ->  | AR73: =IF(AR74<>""," -R","") ->  | AT73: =IF(AT74<>""," -R","") ->  | AV73: =IF(AV74<>""," -R","") ->  | AX73: =IF(AX74<>""," -R","") ->  | AZ73: =IF(AZ74<>""," -R","") ->  | BB73: =IF(BB74<>""," -R","") ->  | BD73: =IF(BD74<>""," -R","") ->  | BF73: =IF(BF74<>""," -R","") ->  | BH73: =IF(BH74<>""," -R","") ->  | BJ73: =IF(BJ74<>""," -R","") -> 
M74: 1.32 | N74: =IFERROR(VLOOKUP(M74,'CRUCE RIESGOS'!$C$9:$D$13,2,FALSE),"") ->  | O74: 2.32 | P74: =IFERROR(VLOOKUP(O74,'CRUCE RIESGOS'!$C$9:$D$13,2,FALSE),"") ->  | Q74: 3.32 | R74: =IFERROR(VLOOKUP(Q74,'CRUCE RIESGOS'!$C$9:$D$13,2,FALSE),"") ->  | S74: 4.32 | T74: =IFERROR(VLOOKUP(S74,'CRUCE RIESGOS'!$C$9:$D$13,2,FALSE),"") ->  | U74: 5.32 | V74: =IFERROR(VLOOKUP(U74,'CRUCE RIESGOS'!$C$9:$D$13,2,FALSE),"") ->  | W74: 6.32 | X74: =IFERROR(VLOOKUP(W74,'CRUCE RIESGOS'!$C$9:$D$13,2,FALSE),"") ->  | Y74: 7.32 | Z74: =IFERROR(VLOOKUP(Y74,'CRUCE RIESGOS'!$C$9:$D$13,2,FALSE),"") ->  | AA74: 8.32 | AB74: =IFERROR(VLOOKUP(AA74,'CRUCE RIESGOS'!$C$9:$D$13,2,FALSE),"") ->  | AC74: 9.32 | AD74: =IFERROR(VLOOKUP(AC74,'CRUCE RIESGOS'!$C$9:$D$13,2,FALSE),"") ->  | AE74: 10.32 | AF74: =IFERROR(VLOOKUP(AE74,'CRUCE RIESGOS'!$C$9:$D$13,2,FALSE),"") ->  | AG74: 11.32 | AH74: =IFERROR(VLOOKUP(AG74,'CRUCE RIESGOS'!$C$9:$D$13,2,FALSE),"") ->  | AI74: 12.32 | AJ74: =IFERROR(VLOOKUP(AI74,'CRUCE RIESGOS'!$C$9:$D$13,2,FALSE),"") ->  | AK74: 13.32 | AL74: =IFERROR(VLOOKUP(AK74,'CRUCE RIESGOS'!$C$9:$D$13,2,FALSE),"") ->  | AM74: 14.32 | AN74: =IFERROR(VLOOKUP(AM74,'CRUCE RIESGOS'!$C$9:$D$13,2,FALSE),"") ->  | AO74: 15.32 | AP74: =IFERROR(VLOOKUP(AO74,'CRUCE RIESGOS'!$C$9:$D$13,2,FALSE),"") ->  | AQ74: 16.32 | AR74: =IFERROR(VLOOKUP(AQ74,'CRUCE RIESGOS'!$C$9:$D$13,2,FALSE),"") ->  | AS74: 17.32 | AT74: =IFERROR(VLOOKUP(AS74,'CRUCE RIESGOS'!$C$9:$D$13,2,FALSE),"") ->  | AU74: 18.32 | AV74: =IFERROR(VLOOKUP(AU74,'CRUCE RIESGOS'!$C$9:$D$13,2,FALSE),"") ->  | AW74: 19.32 | AX74: =IFERROR(VLOOKUP(AW74,'CRUCE RIESGOS'!$C$9:$D$13,2,FALSE),"") ->  | AY74: 20.32 | AZ74: =IFERROR(VLOOKUP(AY74,'CRUCE RIESGOS'!$C$9:$D$13,2,FALSE),"") ->  | BA74: 21.32 | BB74: =IFERROR(VLOOKUP(BA74,'CRUCE RIESGOS'!$C$9:$D$13,2,FALSE),"") ->  | BC74: 22.32 | BD74: =IFERROR(VLOOKUP(BC74,'CRUCE RIESGOS'!$C$9:$D$13,2,FALSE),"") ->  | BE74: 23.32 | BF74: =IFERROR(VLOOKUP(BE74,'CRUCE RIESGOS'!$C$9:$D$13,2,FALSE),"") ->  | BG74: 24.32 | BH74: =IFERROR(VLOOKUP(BG74,'CRUCE RIESGOS'!$C$9:$D$13,2,FALSE),"") ->  | BI74: 25.32 | BJ74: =IFERROR(VLOOKUP(BI74,'CRUCE RIESGOS'!$C$9:$D$13,2,FALSE),"") -> 
N75: =IF(N76<>""," -R","") ->  | P75: =IF(P76<>""," -R","") ->  | R75: =IF(R76<>""," -R","") ->  | T75: =IF(T76<>""," -R","") ->  | V75: =IF(V76<>""," -R","") ->  | X75: =IF(X76<>""," -R","") ->  | Z75: =IF(Z76<>""," -R","") ->  | AB75: =IF(AB76<>""," -R","") ->  | AD75: =IF(AD76<>""," -R","") ->  | AF75: =IF(AF76<>""," -R","") ->  | AH75: =IF(AH76<>""," -R","") ->  | AJ75: =IF(AJ76<>""," -R","") ->  | AL75: =IF(AL76<>""," -R","") ->  | AN75: =IF(AN76<>""," -R","") ->  | AP75: =IF(AP76<>""," -R","") ->  | AR75: =IF(AR76<>""," -R","") ->  | AT75: =IF(AT76<>""," -R","") ->  | AV75: =IF(AV76<>""," -R","") ->  | AX75: =IF(AX76<>""," -R","") ->  | AZ75: =IF(AZ76<>""," -R","") ->  | BB75: =IF(BB76<>""," -R","") ->  | BD75: =IF(BD76<>""," -R","") ->  | BF75: =IF(BF76<>""," -R","") ->  | BH75: =IF(BH76<>""," -R","") ->  | BJ75: =IF(BJ76<>""," -R","") -> 
M76: 1.33 | N76: =IFERROR(VLOOKUP(M76,'CRUCE RIESGOS'!$C$9:$D$13,2,FALSE),"") ->  | O76: 2.33 | P76: =IFERROR(VLOOKUP(O76,'CRUCE RIESGOS'!$C$9:$D$13,2,FALSE),"") ->  | Q76: 3.33 | R76: =IFERROR(VLOOKUP(Q76,'CRUCE RIESGOS'!$C$9:$D$13,2,FALSE),"") ->  | S76: 4.33 | T76: =IFERROR(VLOOKUP(S76,'CRUCE RIESGOS'!$C$9:$D$13,2,FALSE),"") ->  | U76: 5.33 | V76: =IFERROR(VLOOKUP(U76,'CRUCE RIESGOS'!$C$9:$D$13,2,FALSE),"") ->  | W76: 6.33 | X76: =IFERROR(VLOOKUP(W76,'CRUCE RIESGOS'!$C$9:$D$13,2,FALSE),"") ->  | Y76: 7.33 | Z76: =IFERROR(VLOOKUP(Y76,'CRUCE RIESGOS'!$C$9:$D$13,2,FALSE),"") ->  | AA76: 8.33 | AB76: =IFERROR(VLOOKUP(AA76,'CRUCE RIESGOS'!$C$9:$D$13,2,FALSE),"") ->  | AC76: 9.33 | AD76: =IFERROR(VLOOKUP(AC76,'CRUCE RIESGOS'!$C$9:$D$13,2,FALSE),"") ->  | AE76: 10.33 | AF76: =IFERROR(VLOOKUP(AE76,'CRUCE RIESGOS'!$C$9:$D$13,2,FALSE),"") ->  | AG76: 11.33 | AH76: =IFERROR(VLOOKUP(AG76,'CRUCE RIESGOS'!$C$9:$D$13,2,FALSE),"") ->  | AI76: 12.33 | AJ76: =IFERROR(VLOOKUP(AI76,'CRUCE RIESGOS'!$C$9:$D$13,2,FALSE),"") ->  | AK76: 13.33 | AL76: =IFERROR(VLOOKUP(AK76,'CRUCE RIESGOS'!$C$9:$D$13,2,FALSE),"") ->  | AM76: 14.33 | AN76: =IFERROR(VLOOKUP(AM76,'CRUCE RIESGOS'!$C$9:$D$13,2,FALSE),"") ->  | AO76: 15.33 | AP76: =IFERROR(VLOOKUP(AO76,'CRUCE RIESGOS'!$C$9:$D$13,2,FALSE),"") ->  | AQ76: 16.33 | AR76: =IFERROR(VLOOKUP(AQ76,'CRUCE RIESGOS'!$C$9:$D$13,2,FALSE),"") ->  | AS76: 17.33 | AT76: =IFERROR(VLOOKUP(AS76,'CRUCE RIESGOS'!$C$9:$D$13,2,FALSE),"") ->  | AU76: 18.33 | AV76: =IFERROR(VLOOKUP(AU76,'CRUCE RIESGOS'!$C$9:$D$13,2,FALSE),"") ->  | AW76: 19.33 | AX76: =IFERROR(VLOOKUP(AW76,'CRUCE RIESGOS'!$C$9:$D$13,2,FALSE),"") ->  | AY76: 20.33 | AZ76: =IFERROR(VLOOKUP(AY76,'CRUCE RIESGOS'!$C$9:$D$13,2,FALSE),"") ->  | BA76: 21.33 | BB76: =IFERROR(VLOOKUP(BA76,'CRUCE RIESGOS'!$C$9:$D$13,2,FALSE),"") ->  | BC76: 22.33 | BD76: =IFERROR(VLOOKUP(BC76,'CRUCE RIESGOS'!$C$9:$D$13,2,FALSE),"") ->  | BE76: 23.33 | BF76: =IFERROR(VLOOKUP(BE76,'CRUCE RIESGOS'!$C$9:$D$13,2,FALSE),"") ->  | BG76: 24.33 | BH76: =IFERROR(VLOOKUP(BG76,'CRUCE RIESGOS'!$C$9:$D$13,2,FALSE),"") ->  | BI76: 25.33 | BJ76: =IFERROR(VLOOKUP(BI76,'CRUCE RIESGOS'!$C$9:$D$13,2,FALSE),"") -> 
P77: =IF(P78<>""," -R","") ->  | R77: =IF(R78<>""," -R","") ->  | T77: =IF(T78<>""," -R","") ->  | V77: =IF(V78<>""," -R","") ->  | X77: =IF(X78<>""," -R","") ->  | Z77: =IF(Z78<>""," -R","") ->  | AB77: =IF(AB78<>""," -R","") ->  | AD77: =IF(AD78<>""," -R","") -> 
M78: 1.34 | N78: =IFERROR(VLOOKUP(M78,'CRUCE RIESGOS'!$C$9:$D$13,2,FALSE),"") ->  | O78: 2.34 | P78: =IFERROR(VLOOKUP(O78,'CRUCE RIESGOS'!$C$9:$D$13,2,FALSE),"") ->  | Q78: 3.34 | R78: =IFERROR(VLOOKUP(Q78,'CRUCE RIESGOS'!$C$9:$D$13,2,FALSE),"") ->  | S78: 4.34 | T78: =IFERROR(VLOOKUP(S78,'CRUCE RIESGOS'!$C$9:$D$13,2,FALSE),"") ->  | U78: 5.34 | V78: =IFERROR(VLOOKUP(U78,'CRUCE RIESGOS'!$C$9:$D$13,2,FALSE),"") ->  | W78: 6.34 | X78: =IFERROR(VLOOKUP(W78,'CRUCE RIESGOS'!$C$9:$D$13,2,FALSE),"") ->  | Y78: 7.34 | Z78: =IFERROR(VLOOKUP(Y78,'CRUCE RIESGOS'!$C$9:$D$13,2,FALSE),"") ->  | AA78: 8.34 | AB78: =IFERROR(VLOOKUP(AA78,'CRUCE RIESGOS'!$C$9:$D$13,2,FALSE),"") ->  | AC78: 9.34 | AD78: =IFERROR(VLOOKUP(AC78,'CRUCE RIESGOS'!$C$9:$D$13,2,FALSE),"") ->  | AE78: 10.34 | AF78: =IFERROR(VLOOKUP(AE78,'CRUCE RIESGOS'!$C$9:$D$13,2,FALSE),"") ->  | AG78: 11.34 | AH78: =IFERROR(VLOOKUP(AG78,'CRUCE RIESGOS'!$C$9:$D$13,2,FALSE),"") ->  | AI78: 12.34 | AJ78: =IFERROR(VLOOKUP(AI78,'CRUCE RIESGOS'!$C$9:$D$13,2,FALSE),"") ->  | AK78: 13.34 | AL78: =IFERROR(VLOOKUP(AK78,'CRUCE RIESGOS'!$C$9:$D$13,2,FALSE),"") ->  | AM78: 14.34 | AN78: =IFERROR(VLOOKUP(AM78,'CRUCE RIESGOS'!$C$9:$D$13,2,FALSE),"") ->  | AO78: 15.34 | AP78: =IFERROR(VLOOKUP(AO78,'CRUCE RIESGOS'!$C$9:$D$13,2,FALSE),"") ->  | AQ78: 16.34 | AR78: =IFERROR(VLOOKUP(AQ78,'CRUCE RIESGOS'!$C$9:$D$13,2,FALSE),"") ->  | AS78: 17.34 | AT78: =IFERROR(VLOOKUP(AS78,'CRUCE RIESGOS'!$C$9:$D$13,2,FALSE),"") ->  | AU78: 18.34 | AV78: =IFERROR(VLOOKUP(AU78,'CRUCE RIESGOS'!$C$9:$D$13,2,FALSE),"") ->  | AW78: 19.34 | AX78: =IFERROR(VLOOKUP(AW78,'CRUCE RIESGOS'!$C$9:$D$13,2,FALSE),"") ->  | AY78: 20.34 | AZ78: =IFERROR(VLOOKUP(AY78,'CRUCE RIESGOS'!$C$9:$D$13,2,FALSE),"") ->  | BA78: 21.34 | BB78: =IFERROR(VLOOKUP(BA78,'CRUCE RIESGOS'!$C$9:$D$13,2,FALSE),"") ->  | BC78: 22.34 | BD78: =IFERROR(VLOOKUP(BC78,'CRUCE RIESGOS'!$C$9:$D$13,2,FALSE),"") ->  | BE78: 23.34 | BF78: =IFERROR(VLOOKUP(BE78,'CRUCE RIESGOS'!$C$9:$D$13,2,FALSE),"") ->  | BG78: 24.34 | BH78: =IFERROR(VLOOKUP(BG78,'CRUCE RIESGOS'!$C$9:$D$13,2,FALSE),"") ->  | BI78: 25.34 | BJ78: =IFERROR(VLOOKUP(BI78,'CRUCE RIESGOS'!$C$9:$D$13,2,FALSE),"") -> 
P79: =IF(P80<>""," -R","") ->  | R79: =IF(R80<>""," -R","") ->  | T79: =IF(T80<>""," -R","") ->  | V79: =IF(V80<>""," -R","") ->  | X79: =IF(X80<>""," -R","") ->  | Z79: =IF(Z80<>""," -R","") ->  | AB79: =IF(AB80<>""," -R","") ->  | AD79: =IF(AD80<>""," -R","") -> 
M80: 1.35 | N80: =IFERROR(VLOOKUP(M80,'CRUCE RIESGOS'!$C$9:$D$13,2,FALSE),"") ->  | O80: 2.35 | P80: =IFERROR(VLOOKUP(O80,'CRUCE RIESGOS'!$C$9:$D$13,2,FALSE),"") ->  | Q80: 3.35 | R80: =IFERROR(VLOOKUP(Q80,'CRUCE RIESGOS'!$C$9:$D$13,2,FALSE),"") ->  | S80: 4.35 | T80: =IFERROR(VLOOKUP(S80,'CRUCE RIESGOS'!$C$9:$D$13,2,FALSE),"") ->  | U80: 5.35 | V80: =IFERROR(VLOOKUP(U80,'CRUCE RIESGOS'!$C$9:$D$13,2,FALSE),"") ->  | W80: 6.35 | X80: =IFERROR(VLOOKUP(W80,'CRUCE RIESGOS'!$C$9:$D$13,2,FALSE),"") ->  | Y80: 7.35 | Z80: =IFERROR(VLOOKUP(Y80,'CRUCE RIESGOS'!$C$9:$D$13,2,FALSE),"") ->  | AA80: 8.35 | AB80: =IFERROR(VLOOKUP(AA80,'CRUCE RIESGOS'!$C$9:$D$13,2,FALSE),"") ->  | AC80: 9.35 | AD80: =IFERROR(VLOOKUP(AC80,'CRUCE RIESGOS'!$C$9:$D$13,2,FALSE),"") ->  | AE80: 10.35 | AF80: =IFERROR(VLOOKUP(AE80,'CRUCE RIESGOS'!$C$9:$D$13,2,FALSE),"") ->  | AG80: 11.35 | AH80: =IFERROR(VLOOKUP(AG80,'CRUCE RIESGOS'!$C$9:$D$13,2,FALSE),"") ->  | AI80: 12.35 | AJ80: =IFERROR(VLOOKUP(AI80,'CRUCE RIESGOS'!$C$9:$D$13,2,FALSE),"") ->  | AK80: 13.35 | AL80: =IFERROR(VLOOKUP(AK80,'CRUCE RIESGOS'!$C$9:$D$13,2,FALSE),"") ->  | AM80: 14.35 | AN80: =IFERROR(VLOOKUP(AM80,'CRUCE RIESGOS'!$C$9:$D$13,2,FALSE),"") ->  | AO80: 15.35 | AP80: =IFERROR(VLOOKUP(AO80,'CRUCE RIESGOS'!$C$9:$D$13,2,FALSE),"") ->  | AQ80: 16.35 | AR80: =IFERROR(VLOOKUP(AQ80,'CRUCE RIESGOS'!$C$9:$D$13,2,FALSE),"") ->  | AS80: 17.35 | AT80: =IFERROR(VLOOKUP(AS80,'CRUCE RIESGOS'!$C$9:$D$13,2,FALSE),"") ->  | AU80: 18.35 | AV80: =IFERROR(VLOOKUP(AU80,'CRUCE RIESGOS'!$C$9:$D$13,2,FALSE),"") ->  | AW80: 19.35 | AX80: =IFERROR(VLOOKUP(AW80,'CRUCE RIESGOS'!$C$9:$D$13,2,FALSE),"") ->  | AY80: 20.35 | AZ80: =IFERROR(VLOOKUP(AY80,'CRUCE RIESGOS'!$C$9:$D$13,2,FALSE),"") ->  | BA80: 21.35 | BB80: =IFERROR(VLOOKUP(BA80,'CRUCE RIESGOS'!$C$9:$D$13,2,FALSE),"") ->  | BC80: 22.35 | BD80: =IFERROR(VLOOKUP(BC80,'CRUCE RIESGOS'!$C$9:$D$13,2,FALSE),"") ->  | BE80: 23.35 | BF80: =IFERROR(VLOOKUP(BE80,'CRUCE RIESGOS'!$C$9:$D$13,2,FALSE),"") ->  | BG80: 24.35 | BH80: =IFERROR(VLOOKUP(BG80,'CRUCE RIESGOS'!$C$9:$D$13,2,FALSE),"") ->  | BI80: 25.35 | BJ80: =IFERROR(VLOOKUP(BI80,'CRUCE RIESGOS'!$C$9:$D$13,2,FALSE),"") -> 
P81: =IF(P82<>""," -R","") ->  | R81: =IF(R82<>""," -R","") ->  | T81: =IF(T82<>""," -R","") ->  | V81: =IF(V82<>""," -R","") ->  | X81: =IF(X82<>""," -R","") ->  | Z81: =IF(Z82<>""," -R","") ->  | AB81: =IF(AB82<>""," -R","") ->  | AD81: =IF(AD82<>""," -R","") -> 
M82: 1.36 | N82: =IFERROR(VLOOKUP(M82,'CRUCE RIESGOS'!$C$9:$D$13,2,FALSE),"") ->  | O82: 2.36 | P82: =IFERROR(VLOOKUP(O82,'CRUCE RIESGOS'!$C$9:$D$13,2,FALSE),"") ->  | Q82: 3.36 | R82: =IFERROR(VLOOKUP(Q82,'CRUCE RIESGOS'!$C$9:$D$13,2,FALSE),"") ->  | S82: 4.36 | T82: =IFERROR(VLOOKUP(S82,'CRUCE RIESGOS'!$C$9:$D$13,2,FALSE),"") ->  | U82: 5.36 | V82: =IFERROR(VLOOKUP(U82,'CRUCE RIESGOS'!$C$9:$D$13,2,FALSE),"") ->  | W82: 6.36 | X82: =IFERROR(VLOOKUP(W82,'CRUCE RIESGOS'!$C$9:$D$13,2,FALSE),"") ->  | Y82: 7.36 | Z82: =IFERROR(VLOOKUP(Y82,'CRUCE RIESGOS'!$C$9:$D$13,2,FALSE),"") ->  | AA82: 8.36 | AB82: =IFERROR(VLOOKUP(AA82,'CRUCE RIESGOS'!$C$9:$D$13,2,FALSE),"") ->  | AC82: 9.36 | AD82: =IFERROR(VLOOKUP(AC82,'CRUCE RIESGOS'!$C$9:$D$13,2,FALSE),"") ->  | AE82: 10.36 | AF82: =IFERROR(VLOOKUP(AE82,'CRUCE RIESGOS'!$C$9:$D$13,2,FALSE),"") ->  | AG82: 11.36 | AH82: =IFERROR(VLOOKUP(AG82,'CRUCE RIESGOS'!$C$9:$D$13,2,FALSE),"") ->  | AI82: 12.36 | AJ82: =IFERROR(VLOOKUP(AI82,'CRUCE RIESGOS'!$C$9:$D$13,2,FALSE),"") ->  | AK82: 13.36 | AL82: =IFERROR(VLOOKUP(AK82,'CRUCE RIESGOS'!$C$9:$D$13,2,FALSE),"") ->  | AM82: 14.36 | AN82: =IFERROR(VLOOKUP(AM82,'CRUCE RIESGOS'!$C$9:$D$13,2,FALSE),"") ->  | AO82: 15.36 | AP82: =IFERROR(VLOOKUP(AO82,'CRUCE RIESGOS'!$C$9:$D$13,2,FALSE),"") ->  | AQ82: 16.36 | AR82: =IFERROR(VLOOKUP(AQ82,'CRUCE RIESGOS'!$C$9:$D$13,2,FALSE),"") ->  | AS82: 17.36 | AT82: =IFERROR(VLOOKUP(AS82,'CRUCE RIESGOS'!$C$9:$D$13,2,FALSE),"") ->  | AU82: 18.36 | AV82: =IFERROR(VLOOKUP(AU82,'CRUCE RIESGOS'!$C$9:$D$13,2,FALSE),"") ->  | AW82: 19.36 | AX82: =IFERROR(VLOOKUP(AW82,'CRUCE RIESGOS'!$C$9:$D$13,2,FALSE),"") ->  | AY82: 20.36 | AZ82: =IFERROR(VLOOKUP(AY82,'CRUCE RIESGOS'!$C$9:$D$13,2,FALSE),"") ->  | BA82: 21.36 | BB82: =IFERROR(VLOOKUP(BA82,'CRUCE RIESGOS'!$C$9:$D$13,2,FALSE),"") ->  | BC82: 22.36 | BD82: =IFERROR(VLOOKUP(BC82,'CRUCE RIESGOS'!$C$9:$D$13,2,FALSE),"") ->  | BE82: 23.36 | BF82: =IFERROR(VLOOKUP(BE82,'CRUCE RIESGOS'!$C$9:$D$13,2,FALSE),"") ->  | BG82: 24.36 | BH82: =IFERROR(VLOOKUP(BG82,'CRUCE RIESGOS'!$C$9:$D$13,2,FALSE),"") ->  | BI82: 25.36 | BJ82: =IFERROR(VLOOKUP(BI82,'CRUCE RIESGOS'!$C$9:$D$13,2,FALSE),"") -> 
P83: =IF(P84<>""," -R","") ->  | R83: =IF(R84<>""," -R","") ->  | T83: =IF(T84<>""," -R","") ->  | V83: =IF(V84<>""," -R","") ->  | X83: =IF(X84<>""," -R","") ->  | Z83: =IF(Z84<>""," -R","") ->  | AB83: =IF(AB84<>""," -R","") ->  | AD83: =IF(AD84<>""," -R","") -> 
M84: 1.37 | N84: =IFERROR(VLOOKUP(M84,'CRUCE RIESGOS'!$C$9:$D$13,2,FALSE),"") ->  | O84: 2.37 | P84: =IFERROR(VLOOKUP(O84,'CRUCE RIESGOS'!$C$9:$D$13,2,FALSE),"") ->  | Q84: 3.37 | R84: =IFERROR(VLOOKUP(Q84,'CRUCE RIESGOS'!$C$9:$D$13,2,FALSE),"") ->  | S84: 4.37 | T84: =IFERROR(VLOOKUP(S84,'CRUCE RIESGOS'!$C$9:$D$13,2,FALSE),"") ->  | U84: 5.37 | V84: =IFERROR(VLOOKUP(U84,'CRUCE RIESGOS'!$C$9:$D$13,2,FALSE),"") ->  | W84: 6.37 | X84: =IFERROR(VLOOKUP(W84,'CRUCE RIESGOS'!$C$9:$D$13,2,FALSE),"") ->  | Y84: 7.37 | Z84: =IFERROR(VLOOKUP(Y84,'CRUCE RIESGOS'!$C$9:$D$13,2,FALSE),"") ->  | AA84: 8.37 | AB84: =IFERROR(VLOOKUP(AA84,'CRUCE RIESGOS'!$C$9:$D$13,2,FALSE),"") ->  | AC84: 9.37 | AD84: =IFERROR(VLOOKUP(AC84,'CRUCE RIESGOS'!$C$9:$D$13,2,FALSE),"") ->  | AE84: 10.37 | AF84: =IFERROR(VLOOKUP(AE84,'CRUCE RIESGOS'!$C$9:$D$13,2,FALSE),"") ->  | AG84: 11.37 | AH84: =IFERROR(VLOOKUP(AG84,'CRUCE RIESGOS'!$C$9:$D$13,2,FALSE),"") ->  | AI84: 12.37 | AJ84: =IFERROR(VLOOKUP(AI84,'CRUCE RIESGOS'!$C$9:$D$13,2,FALSE),"") ->  | AK84: 13.37 | AL84: =IFERROR(VLOOKUP(AK84,'CRUCE RIESGOS'!$C$9:$D$13,2,FALSE),"") ->  | AM84: 14.37 | AN84: =IFERROR(VLOOKUP(AM84,'CRUCE RIESGOS'!$C$9:$D$13,2,FALSE),"") ->  | AO84: 15.37 | AP84: =IFERROR(VLOOKUP(AO84,'CRUCE RIESGOS'!$C$9:$D$13,2,FALSE),"") ->  | AQ84: 16.37 | AR84: =IFERROR(VLOOKUP(AQ84,'CRUCE RIESGOS'!$C$9:$D$13,2,FALSE),"") ->  | AS84: 17.37 | AT84: =IFERROR(VLOOKUP(AS84,'CRUCE RIESGOS'!$C$9:$D$13,2,FALSE),"") ->  | AU84: 18.37 | AV84: =IFERROR(VLOOKUP(AU84,'CRUCE RIESGOS'!$C$9:$D$13,2,FALSE),"") ->  | AW84: 19.37 | AX84: =IFERROR(VLOOKUP(AW84,'CRUCE RIESGOS'!$C$9:$D$13,2,FALSE),"") ->  | AY84: 20.37 | AZ84: =IFERROR(VLOOKUP(AY84,'CRUCE RIESGOS'!$C$9:$D$13,2,FALSE),"") ->  | BA84: 21.37 | BB84: =IFERROR(VLOOKUP(BA84,'CRUCE RIESGOS'!$C$9:$D$13,2,FALSE),"") ->  | BC84: 22.37 | BD84: =IFERROR(VLOOKUP(BC84,'CRUCE RIESGOS'!$C$9:$D$13,2,FALSE),"") ->  | BE84: 23.37 | BF84: =IFERROR(VLOOKUP(BE84,'CRUCE RIESGOS'!$C$9:$D$13,2,FALSE),"") ->  | BG84: 24.37 | BH84: =IFERROR(VLOOKUP(BG84,'CRUCE RIESGOS'!$C$9:$D$13,2,FALSE),"") ->  | BI84: 25.37 | BJ84: =IFERROR(VLOOKUP(BI84,'CRUCE RIESGOS'!$C$9:$D$13,2,FALSE),"") -> 
P85: =IF(P86<>""," -R","") ->  | R85: =IF(R86<>""," -R","") ->  | T85: =IF(T86<>""," -R","") ->  | V85: =IF(V86<>""," -R","") ->  | X85: =IF(X86<>""," -R","") ->  | Z85: =IF(Z86<>""," -R","") ->  | AB85: =IF(AB86<>""," -R","") ->  | AD85: =IF(AD86<>""," -R","") -> 
M86: 1.38 | N86: =IFERROR(VLOOKUP(M86,'CRUCE RIESGOS'!$C$9:$D$13,2,FALSE),"") ->  | O86: 2.38 | P86: =IFERROR(VLOOKUP(O86,'CRUCE RIESGOS'!$C$9:$D$13,2,FALSE),"") ->  | Q86: 3.38 | R86: =IFERROR(VLOOKUP(Q86,'CRUCE RIESGOS'!$C$9:$D$13,2,FALSE),"") ->  | S86: 4.38 | T86: =IFERROR(VLOOKUP(S86,'CRUCE RIESGOS'!$C$9:$D$13,2,FALSE),"") ->  | U86: 5.38 | V86: =IFERROR(VLOOKUP(U86,'CRUCE RIESGOS'!$C$9:$D$13,2,FALSE),"") ->  | W86: 6.38 | X86: =IFERROR(VLOOKUP(W86,'CRUCE RIESGOS'!$C$9:$D$13,2,FALSE),"") ->  | Y86: 7.38 | Z86: =IFERROR(VLOOKUP(Y86,'CRUCE RIESGOS'!$C$9:$D$13,2,FALSE),"") ->  | AA86: 8.38 | AB86: =IFERROR(VLOOKUP(AA86,'CRUCE RIESGOS'!$C$9:$D$13,2,FALSE),"") ->  | AC86: 9.38 | AD86: =IFERROR(VLOOKUP(AC86,'CRUCE RIESGOS'!$C$9:$D$13,2,FALSE),"") ->  | AE86: 10.38 | AF86: =IFERROR(VLOOKUP(AE86,'CRUCE RIESGOS'!$C$9:$D$13,2,FALSE),"") ->  | AG86: 11.38 | AH86: =IFERROR(VLOOKUP(AG86,'CRUCE RIESGOS'!$C$9:$D$13,2,FALSE),"") ->  | AI86: 12.38 | AJ86: =IFERROR(VLOOKUP(AI86,'CRUCE RIESGOS'!$C$9:$D$13,2,FALSE),"") ->  | AK86: 13.38 | AL86: =IFERROR(VLOOKUP(AK86,'CRUCE RIESGOS'!$C$9:$D$13,2,FALSE),"") ->  | AM86: 14.38 | AN86: =IFERROR(VLOOKUP(AM86,'CRUCE RIESGOS'!$C$9:$D$13,2,FALSE),"") ->  | AO86: 15.38 | AP86: =IFERROR(VLOOKUP(AO86,'CRUCE RIESGOS'!$C$9:$D$13,2,FALSE),"") ->  | AQ86: 16.38 | AR86: =IFERROR(VLOOKUP(AQ86,'CRUCE RIESGOS'!$C$9:$D$13,2,FALSE),"") ->  | AS86: 17.38 | AT86: =IFERROR(VLOOKUP(AS86,'CRUCE RIESGOS'!$C$9:$D$13,2,FALSE),"") ->  | AU86: 18.38 | AV86: =IFERROR(VLOOKUP(AU86,'CRUCE RIESGOS'!$C$9:$D$13,2,FALSE),"") ->  | AW86: 19.38 | AX86: =IFERROR(VLOOKUP(AW86,'CRUCE RIESGOS'!$C$9:$D$13,2,FALSE),"") ->  | AY86: 20.38 | AZ86: =IFERROR(VLOOKUP(AY86,'CRUCE RIESGOS'!$C$9:$D$13,2,FALSE),"") ->  | BA86: 21.38 | BB86: =IFERROR(VLOOKUP(BA86,'CRUCE RIESGOS'!$C$9:$D$13,2,FALSE),"") ->  | BC86: 22.38 | BD86: =IFERROR(VLOOKUP(BC86,'CRUCE RIESGOS'!$C$9:$D$13,2,FALSE),"") ->  | BE86: 23.38 | BF86: =IFERROR(VLOOKUP(BE86,'CRUCE RIESGOS'!$C$9:$D$13,2,FALSE),"") ->  | BG86: 24.38 | BH86: =IFERROR(VLOOKUP(BG86,'CRUCE RIESGOS'!$C$9:$D$13,2,FALSE),"") ->  | BI86: 25.38 | BJ86: =IFERROR(VLOOKUP(BI86,'CRUCE RIESGOS'!$C$9:$D$13,2,FALSE),"") -> 
P87: =IF(P88<>""," -R","") ->  | R87: =IF(R88<>""," -R","") ->  | T87: =IF(T88<>""," -R","") ->  | V87: =IF(V88<>""," -R","") ->  | X87: =IF(X88<>""," -R","") ->  | Z87: =IF(Z88<>""," -R","") ->  | AB87: =IF(AB88<>""," -R","") ->  | AD87: =IF(AD88<>""," -R","") -> 
M88: 1.39 | N88: =IFERROR(VLOOKUP(M88,'CRUCE RIESGOS'!$C$9:$D$13,2,FALSE),"") ->  | O88: 2.39 | P88: =IFERROR(VLOOKUP(O88,'CRUCE RIESGOS'!$C$9:$D$13,2,FALSE),"") ->  | Q88: 3.39 | R88: =IFERROR(VLOOKUP(Q88,'CRUCE RIESGOS'!$C$9:$D$13,2,FALSE),"") ->  | S88: 4.39 | T88: =IFERROR(VLOOKUP(S88,'CRUCE RIESGOS'!$C$9:$D$13,2,FALSE),"") ->  | U88: 5.39 | V88: =IFERROR(VLOOKUP(U88,'CRUCE RIESGOS'!$C$9:$D$13,2,FALSE),"") ->  | W88: 6.39 | X88: =IFERROR(VLOOKUP(W88,'CRUCE RIESGOS'!$C$9:$D$13,2,FALSE),"") ->  | Y88: 7.39 | Z88: =IFERROR(VLOOKUP(Y88,'CRUCE RIESGOS'!$C$9:$D$13,2,FALSE),"") ->  | AA88: 8.39 | AB88: =IFERROR(VLOOKUP(AA88,'CRUCE RIESGOS'!$C$9:$D$13,2,FALSE),"") ->  | AC88: 9.39 | AD88: =IFERROR(VLOOKUP(AC88,'CRUCE RIESGOS'!$C$9:$D$13,2,FALSE),"") ->  | AE88: 10.39 | AF88: =IFERROR(VLOOKUP(AE88,'CRUCE RIESGOS'!$C$9:$D$13,2,FALSE),"") ->  | AG88: 11.39 | AH88: =IFERROR(VLOOKUP(AG88,'CRUCE RIESGOS'!$C$9:$D$13,2,FALSE),"") ->  | AI88: 12.39 | AJ88: =IFERROR(VLOOKUP(AI88,'CRUCE RIESGOS'!$C$9:$D$13,2,FALSE),"") ->  | AK88: 13.39 | AL88: =IFERROR(VLOOKUP(AK88,'CRUCE RIESGOS'!$C$9:$D$13,2,FALSE),"") ->  | AM88: 14.39 | AN88: =IFERROR(VLOOKUP(AM88,'CRUCE RIESGOS'!$C$9:$D$13,2,FALSE),"") ->  | AO88: 15.39 | AP88: =IFERROR(VLOOKUP(AO88,'CRUCE RIESGOS'!$C$9:$D$13,2,FALSE),"") ->  | AQ88: 16.39 | AR88: =IFERROR(VLOOKUP(AQ88,'CRUCE RIESGOS'!$C$9:$D$13,2,FALSE),"") ->  | AS88: 17.39 | AT88: =IFERROR(VLOOKUP(AS88,'CRUCE RIESGOS'!$C$9:$D$13,2,FALSE),"") ->  | AU88: 18.39 | AV88: =IFERROR(VLOOKUP(AU88,'CRUCE RIESGOS'!$C$9:$D$13,2,FALSE),"") ->  | AW88: 19.39 | AX88: =IFERROR(VLOOKUP(AW88,'CRUCE RIESGOS'!$C$9:$D$13,2,FALSE),"") ->  | AY88: 20.39 | AZ88: =IFERROR(VLOOKUP(AY88,'CRUCE RIESGOS'!$C$9:$D$13,2,FALSE),"") ->  | BA88: 21.39 | BB88: =IFERROR(VLOOKUP(BA88,'CRUCE RIESGOS'!$C$9:$D$13,2,FALSE),"") ->  | BC88: 22.39 | BD88: =IFERROR(VLOOKUP(BC88,'CRUCE RIESGOS'!$C$9:$D$13,2,FALSE),"") ->  | BE88: 23.39 | BF88: =IFERROR(VLOOKUP(BE88,'CRUCE RIESGOS'!$C$9:$D$13,2,FALSE),"") ->  | BG88: 24.39 | BH88: =IFERROR(VLOOKUP(BG88,'CRUCE RIESGOS'!$C$9:$D$13,2,FALSE),"") ->  | BI88: 25.39 | BJ88: =IFERROR(VLOOKUP(BI88,'CRUCE RIESGOS'!$C$9:$D$13,2,FALSE),"") -> 
P89: =IF(P90<>""," -R","") ->  | R89: =IF(R90<>""," -R","") ->  | T89: =IF(T90<>""," -R","") ->  | V89: =IF(V90<>""," -R","") ->  | X89: =IF(X90<>""," -R","") ->  | Z89: =IF(Z90<>""," -R","") ->  | AB89: =IF(AB90<>""," -R","") ->  | AD89: =IF(AD90<>""," -R","") -> 
M90: 1.4 | N90: =IFERROR(VLOOKUP(M90,'CRUCE RIESGOS'!$C$9:$D$13,2,FALSE),"") ->  | O90: 2.4 | P90: =IFERROR(VLOOKUP(O90,'CRUCE RIESGOS'!$C$9:$D$13,2,FALSE),"") ->  | Q90: 3.4 | R90: =IFERROR(VLOOKUP(Q90,'CRUCE RIESGOS'!$C$9:$D$13,2,FALSE),"") ->  | S90: 4.4 | T90: =IFERROR(VLOOKUP(S90,'CRUCE RIESGOS'!$C$9:$D$13,2,FALSE),"") ->  | U90: 5.4 | V90: =IFERROR(VLOOKUP(U90,'CRUCE RIESGOS'!$C$9:$D$13,2,FALSE),"") ->  | W90: 6.4 | X90: =IFERROR(VLOOKUP(W90,'CRUCE RIESGOS'!$C$9:$D$13,2,FALSE),"") ->  | Y90: 7.4 | Z90: =IFERROR(VLOOKUP(Y90,'CRUCE RIESGOS'!$C$9:$D$13,2,FALSE),"") ->  | AA90: 8.4 | AB90: =IFERROR(VLOOKUP(AA90,'CRUCE RIESGOS'!$C$9:$D$13,2,FALSE),"") ->  | AC90: 9.4 | AD90: =IFERROR(VLOOKUP(AC90,'CRUCE RIESGOS'!$C$9:$D$13,2,FALSE),"") ->  | AE90: 10.4 | AF90: =IFERROR(VLOOKUP(AE90,'CRUCE RIESGOS'!$C$9:$D$13,2,FALSE),"") ->  | AG90: 11.4 | AH90: =IFERROR(VLOOKUP(AG90,'CRUCE RIESGOS'!$C$9:$D$13,2,FALSE),"") ->  | AI90: 12.4 | AJ90: =IFERROR(VLOOKUP(AI90,'CRUCE RIESGOS'!$C$9:$D$13,2,FALSE),"") ->  | AK90: 13.4 | AL90: =IFERROR(VLOOKUP(AK90,'CRUCE RIESGOS'!$C$9:$D$13,2,FALSE),"") ->  | AM90: 14.4 | AN90: =IFERROR(VLOOKUP(AM90,'CRUCE RIESGOS'!$C$9:$D$13,2,FALSE),"") ->  | AO90: 15.4 | AP90: =IFERROR(VLOOKUP(AO90,'CRUCE RIESGOS'!$C$9:$D$13,2,FALSE),"") ->  | AQ90: 16.4 | AR90: =IFERROR(VLOOKUP(AQ90,'CRUCE RIESGOS'!$C$9:$D$13,2,FALSE),"") ->  | AS90: 17.4 | AT90: =IFERROR(VLOOKUP(AS90,'CRUCE RIESGOS'!$C$9:$D$13,2,FALSE),"") ->  | AU90: 18.4 | AV90: =IFERROR(VLOOKUP(AU90,'CRUCE RIESGOS'!$C$9:$D$13,2,FALSE),"") ->  | AW90: 19.4 | AX90: =IFERROR(VLOOKUP(AW90,'CRUCE RIESGOS'!$C$9:$D$13,2,FALSE),"") ->  | AY90: 20.4 | AZ90: =IFERROR(VLOOKUP(AY90,'CRUCE RIESGOS'!$C$9:$D$13,2,FALSE),"") ->  | BA90: 21.4 | BB90: =IFERROR(VLOOKUP(BA90,'CRUCE RIESGOS'!$C$9:$D$13,2,FALSE),"") ->  | BC90: 22.4 | BD90: =IFERROR(VLOOKUP(BC90,'CRUCE RIESGOS'!$C$9:$D$13,2,FALSE),"") ->  | BE90: 23.4 | BF90: =IFERROR(VLOOKUP(BE90,'CRUCE RIESGOS'!$C$9:$D$13,2,FALSE),"") ->  | BG90: 24.4 | BH90: =IFERROR(VLOOKUP(BG90,'CRUCE RIESGOS'!$C$9:$D$13,2,FALSE),"") ->  | BI90: 25.4 | BJ90: =IFERROR(VLOOKUP(BI90,'CRUCE RIESGOS'!$C$9:$D$13,2,FALSE),"") -> 
P91: =IF(P92<>""," -R","") ->  | R91: =IF(R92<>""," -R","") ->  | T91: =IF(T92<>""," -R","") ->  | V91: =IF(V92<>""," -R","") ->  | X91: =IF(X92<>""," -R","") ->  | Z91: =IF(Z92<>""," -R","") ->  | AB91: =IF(AB92<>""," -R","") ->  | AD91: =IF(AD92<>""," -R","") -> 
M92: 1.41 | N92: =IFERROR(VLOOKUP(M92,'CRUCE RIESGOS'!$C$9:$D$13,2,FALSE),"") ->  | O92: 2.41 | P92: =IFERROR(VLOOKUP(O92,'CRUCE RIESGOS'!$C$9:$D$13,2,FALSE),"") ->  | Q92: 3.41 | R92: =IFERROR(VLOOKUP(Q92,'CRUCE RIESGOS'!$C$9:$D$13,2,FALSE),"") ->  | S92: 4.41 | T92: =IFERROR(VLOOKUP(S92,'CRUCE RIESGOS'!$C$9:$D$13,2,FALSE),"") ->  | U92: 5.41 | V92: =IFERROR(VLOOKUP(U92,'CRUCE RIESGOS'!$C$9:$D$13,2,FALSE),"") ->  | W92: 6.41 | X92: =IFERROR(VLOOKUP(W92,'CRUCE RIESGOS'!$C$9:$D$13,2,FALSE),"") ->  | Y92: 7.41 | Z92: =IFERROR(VLOOKUP(Y92,'CRUCE RIESGOS'!$C$9:$D$13,2,FALSE),"") ->  | AA92: 8.41 | AB92: =IFERROR(VLOOKUP(AA92,'CRUCE RIESGOS'!$C$9:$D$13,2,FALSE),"") ->  | AC92: 9.41 | AD92: =IFERROR(VLOOKUP(AC92,'CRUCE RIESGOS'!$C$9:$D$13,2,FALSE),"") ->  | AE92: 10.41 | AF92: =IFERROR(VLOOKUP(AE92,'CRUCE RIESGOS'!$C$9:$D$13,2,FALSE),"") ->  | AG92: 11.41 | AH92: =IFERROR(VLOOKUP(AG92,'CRUCE RIESGOS'!$C$9:$D$13,2,FALSE),"") ->  | AI92: 12.41 | AJ92: =IFERROR(VLOOKUP(AI92,'CRUCE RIESGOS'!$C$9:$D$13,2,FALSE),"") ->  | AK92: 13.41 | AL92: =IFERROR(VLOOKUP(AK92,'CRUCE RIESGOS'!$C$9:$D$13,2,FALSE),"") ->  | AM92: 14.41 | AN92: =IFERROR(VLOOKUP(AM92,'CRUCE RIESGOS'!$C$9:$D$13,2,FALSE),"") ->  | AO92: 15.41 | AP92: =IFERROR(VLOOKUP(AO92,'CRUCE RIESGOS'!$C$9:$D$13,2,FALSE),"") ->  | AQ92: 16.41 | AR92: =IFERROR(VLOOKUP(AQ92,'CRUCE RIESGOS'!$C$9:$D$13,2,FALSE),"") ->  | AS92: 17.41 | AT92: =IFERROR(VLOOKUP(AS92,'CRUCE RIESGOS'!$C$9:$D$13,2,FALSE),"") ->  | AU92: 18.41 | AV92: =IFERROR(VLOOKUP(AU92,'CRUCE RIESGOS'!$C$9:$D$13,2,FALSE),"") ->  | AW92: 19.41 | AX92: =IFERROR(VLOOKUP(AW92,'CRUCE RIESGOS'!$C$9:$D$13,2,FALSE),"") ->  | AY92: 20.41 | AZ92: =IFERROR(VLOOKUP(AY92,'CRUCE RIESGOS'!$C$9:$D$13,2,FALSE),"") ->  | BA92: 21.41 | BB92: =IFERROR(VLOOKUP(BA92,'CRUCE RIESGOS'!$C$9:$D$13,2,FALSE),"") ->  | BC92: 22.41 | BD92: =IFERROR(VLOOKUP(BC92,'CRUCE RIESGOS'!$C$9:$D$13,2,FALSE),"") ->  | BE92: 23.41 | BF92: =IFERROR(VLOOKUP(BE92,'CRUCE RIESGOS'!$C$9:$D$13,2,FALSE),"") ->  | BG92: 24.41 | BH92: =IFERROR(VLOOKUP(BG92,'CRUCE RIESGOS'!$C$9:$D$13,2,FALSE),"") ->  | BI92: 25.41 | BJ92: =IFERROR(VLOOKUP(BI92,'CRUCE RIESGOS'!$C$9:$D$13,2,FALSE),"") -> 
P93: =IF(P94<>""," -R","") ->  | R93: =IF(R94<>""," -R","") ->  | T93: =IF(T94<>""," -R","") ->  | V93: =IF(V94<>""," -R","") ->  | X93: =IF(X94<>""," -R","") ->  | Z93: =IF(Z94<>""," -R","") ->  | AB93: =IF(AB94<>""," -R","") ->  | AD93: =IF(AD94<>""," -R","") -> 
M94: 1.42 | N94: =IFERROR(VLOOKUP(M94,'CRUCE RIESGOS'!$C$9:$D$13,2,FALSE),"") ->  | O94: 2.42 | P94: =IFERROR(VLOOKUP(O94,'CRUCE RIESGOS'!$C$9:$D$13,2,FALSE),"") ->  | Q94: 3.42 | R94: =IFERROR(VLOOKUP(Q94,'CRUCE RIESGOS'!$C$9:$D$13,2,FALSE),"") ->  | S94: 4.42 | T94: =IFERROR(VLOOKUP(S94,'CRUCE RIESGOS'!$C$9:$D$13,2,FALSE),"") ->  | U94: 5.42 | V94: =IFERROR(VLOOKUP(U94,'CRUCE RIESGOS'!$C$9:$D$13,2,FALSE),"") ->  | W94: 6.42 | X94: =IFERROR(VLOOKUP(W94,'CRUCE RIESGOS'!$C$9:$D$13,2,FALSE),"") ->  | Y94: 7.42 | Z94: =IFERROR(VLOOKUP(Y94,'CRUCE RIESGOS'!$C$9:$D$13,2,FALSE),"") ->  | AA94: 8.42 | AB94: =IFERROR(VLOOKUP(AA94,'CRUCE RIESGOS'!$C$9:$D$13,2,FALSE),"") ->  | AC94: 9.42 | AD94: =IFERROR(VLOOKUP(AC94,'CRUCE RIESGOS'!$C$9:$D$13,2,FALSE),"") ->  | AE94: 10.42 | AF94: =IFERROR(VLOOKUP(AE94,'CRUCE RIESGOS'!$C$9:$D$13,2,FALSE),"") ->  | AG94: 11.42 | AH94: =IFERROR(VLOOKUP(AG94,'CRUCE RIESGOS'!$C$9:$D$13,2,FALSE),"") ->  | AI94: 12.42 | AJ94: =IFERROR(VLOOKUP(AI94,'CRUCE RIESGOS'!$C$9:$D$13,2,FALSE),"") ->  | AK94: 13.42 | AL94: =IFERROR(VLOOKUP(AK94,'CRUCE RIESGOS'!$C$9:$D$13,2,FALSE),"") ->  | AM94: 14.42 | AN94: =IFERROR(VLOOKUP(AM94,'CRUCE RIESGOS'!$C$9:$D$13,2,FALSE),"") ->  | AO94: 15.42 | AP94: =IFERROR(VLOOKUP(AO94,'CRUCE RIESGOS'!$C$9:$D$13,2,FALSE),"") ->  | AQ94: 16.42 | AR94: =IFERROR(VLOOKUP(AQ94,'CRUCE RIESGOS'!$C$9:$D$13,2,FALSE),"") ->  | AS94: 17.42 | AT94: =IFERROR(VLOOKUP(AS94,'CRUCE RIESGOS'!$C$9:$D$13,2,FALSE),"") ->  | AU94: 18.42 | AV94: =IFERROR(VLOOKUP(AU94,'CRUCE RIESGOS'!$C$9:$D$13,2,FALSE),"") ->  | AW94: 19.42 | AX94: =IFERROR(VLOOKUP(AW94,'CRUCE RIESGOS'!$C$9:$D$13,2,FALSE),"") ->  | AY94: 20.42 | AZ94: =IFERROR(VLOOKUP(AY94,'CRUCE RIESGOS'!$C$9:$D$13,2,FALSE),"") ->  | BA94: 21.42 | BB94: =IFERROR(VLOOKUP(BA94,'CRUCE RIESGOS'!$C$9:$D$13,2,FALSE),"") ->  | BC94: 22.42 | BD94: =IFERROR(VLOOKUP(BC94,'CRUCE RIESGOS'!$C$9:$D$13,2,FALSE),"") ->  | BE94: 23.42 | BF94: =IFERROR(VLOOKUP(BE94,'CRUCE RIESGOS'!$C$9:$D$13,2,FALSE),"") ->  | BG94: 24.42 | BH94: =IFERROR(VLOOKUP(BG94,'CRUCE RIESGOS'!$C$9:$D$13,2,FALSE),"") ->  | BI94: 25.42 | BJ94: =IFERROR(VLOOKUP(BI94,'CRUCE RIESGOS'!$C$9:$D$13,2,FALSE),"") -> 
P95: =IF(P96<>""," -R","") ->  | R95: =IF(R96<>""," -R","") ->  | T95: =IF(T96<>""," -R","") ->  | V95: =IF(V96<>""," -R","") ->  | X95: =IF(X96<>""," -R","") ->  | Z95: =IF(Z96<>""," -R","") ->  | AB95: =IF(AB96<>""," -R","") ->  | AD95: =IF(AD96<>""," -R","") -> 
M96: 1.43 | N96: =IFERROR(VLOOKUP(M96,'CRUCE RIESGOS'!$C$9:$D$13,2,FALSE),"") ->  | O96: 2.43 | P96: =IFERROR(VLOOKUP(O96,'CRUCE RIESGOS'!$C$9:$D$13,2,FALSE),"") ->  | Q96: 3.43 | R96: =IFERROR(VLOOKUP(Q96,'CRUCE RIESGOS'!$C$9:$D$13,2,FALSE),"") ->  | S96: 4.43 | T96: =IFERROR(VLOOKUP(S96,'CRUCE RIESGOS'!$C$9:$D$13,2,FALSE),"") ->  | U96: 5.43 | V96: =IFERROR(VLOOKUP(U96,'CRUCE RIESGOS'!$C$9:$D$13,2,FALSE),"") ->  | W96: 6.43 | X96: =IFERROR(VLOOKUP(W96,'CRUCE RIESGOS'!$C$9:$D$13,2,FALSE),"") ->  | Y96: 7.43 | Z96: =IFERROR(VLOOKUP(Y96,'CRUCE RIESGOS'!$C$9:$D$13,2,FALSE),"") ->  | AA96: 8.43 | AB96: =IFERROR(VLOOKUP(AA96,'CRUCE RIESGOS'!$C$9:$D$13,2,FALSE),"") ->  | AC96: 9.43 | AD96: =IFERROR(VLOOKUP(AC96,'CRUCE RIESGOS'!$C$9:$D$13,2,FALSE),"") ->  | AE96: 10.43 | AF96: =IFERROR(VLOOKUP(AE96,'CRUCE RIESGOS'!$C$9:$D$13,2,FALSE),"") ->  | AG96: 11.43 | AH96: =IFERROR(VLOOKUP(AG96,'CRUCE RIESGOS'!$C$9:$D$13,2,FALSE),"") ->  | AI96: 12.43 | AJ96: =IFERROR(VLOOKUP(AI96,'CRUCE RIESGOS'!$C$9:$D$13,2,FALSE),"") ->  | AK96: 13.43 | AL96: =IFERROR(VLOOKUP(AK96,'CRUCE RIESGOS'!$C$9:$D$13,2,FALSE),"") ->  | AM96: 14.43 | AN96: =IFERROR(VLOOKUP(AM96,'CRUCE RIESGOS'!$C$9:$D$13,2,FALSE),"") ->  | AO96: 15.43 | AP96: =IFERROR(VLOOKUP(AO96,'CRUCE RIESGOS'!$C$9:$D$13,2,FALSE),"") ->  | AQ96: 16.43 | AR96: =IFERROR(VLOOKUP(AQ96,'CRUCE RIESGOS'!$C$9:$D$13,2,FALSE),"") ->  | AS96: 17.43 | AT96: =IFERROR(VLOOKUP(AS96,'CRUCE RIESGOS'!$C$9:$D$13,2,FALSE),"") ->  | AU96: 18.43 | AV96: =IFERROR(VLOOKUP(AU96,'CRUCE RIESGOS'!$C$9:$D$13,2,FALSE),"") ->  | AW96: 19.43 | AX96: =IFERROR(VLOOKUP(AW96,'CRUCE RIESGOS'!$C$9:$D$13,2,FALSE),"") ->  | AY96: 20.43 | AZ96: =IFERROR(VLOOKUP(AY96,'CRUCE RIESGOS'!$C$9:$D$13,2,FALSE),"") ->  | BA96: 21.43 | BB96: =IFERROR(VLOOKUP(BA96,'CRUCE RIESGOS'!$C$9:$D$13,2,FALSE),"") ->  | BC96: 22.43 | BD96: =IFERROR(VLOOKUP(BC96,'CRUCE RIESGOS'!$C$9:$D$13,2,FALSE),"") ->  | BE96: 23.43 | BF96: =IFERROR(VLOOKUP(BE96,'CRUCE RIESGOS'!$C$9:$D$13,2,FALSE),"") ->  | BG96: 24.43 | BH96: =IFERROR(VLOOKUP(BG96,'CRUCE RIESGOS'!$C$9:$D$13,2,FALSE),"") ->  | BI96: 25.43 | BJ96: =IFERROR(VLOOKUP(BI96,'CRUCE RIESGOS'!$C$9:$D$13,2,FALSE),"") -> 
P97: =IF(P98<>""," -R","") ->  | R97: =IF(R98<>""," -R","") ->  | T97: =IF(T98<>""," -R","") ->  | V97: =IF(V98<>""," -R","") ->  | X97: =IF(X98<>""," -R","") ->  | Z97: =IF(Z98<>""," -R","") ->  | AB97: =IF(AB98<>""," -R","") ->  | AD97: =IF(AD98<>""," -R","") -> 
M98: 1.44 | N98: =IFERROR(VLOOKUP(M98,'CRUCE RIESGOS'!$C$9:$D$13,2,FALSE),"") ->  | O98: 2.44 | P98: =IFERROR(VLOOKUP(O98,'CRUCE RIESGOS'!$C$9:$D$13,2,FALSE),"") ->  | Q98: 3.44 | R98: =IFERROR(VLOOKUP(Q98,'CRUCE RIESGOS'!$C$9:$D$13,2,FALSE),"") ->  | S98: 4.44 | T98: =IFERROR(VLOOKUP(S98,'CRUCE RIESGOS'!$C$9:$D$13,2,FALSE),"") ->  | U98: 5.44 | V98: =IFERROR(VLOOKUP(U98,'CRUCE RIESGOS'!$C$9:$D$13,2,FALSE),"") ->  | W98: 6.44 | X98: =IFERROR(VLOOKUP(W98,'CRUCE RIESGOS'!$C$9:$D$13,2,FALSE),"") ->  | Y98: 7.44 | Z98: =IFERROR(VLOOKUP(Y98,'CRUCE RIESGOS'!$C$9:$D$13,2,FALSE),"") ->  | AA98: 8.44 | AB98: =IFERROR(VLOOKUP(AA98,'CRUCE RIESGOS'!$C$9:$D$13,2,FALSE),"") ->  | AC98: 9.44 | AD98: =IFERROR(VLOOKUP(AC98,'CRUCE RIESGOS'!$C$9:$D$13,2,FALSE),"") ->  | AE98: 10.44 | AF98: =IFERROR(VLOOKUP(AE98,'CRUCE RIESGOS'!$C$9:$D$13,2,FALSE),"") ->  | AG98: 11.44 | AH98: =IFERROR(VLOOKUP(AG98,'CRUCE RIESGOS'!$C$9:$D$13,2,FALSE),"") ->  | AI98: 12.44 | AJ98: =IFERROR(VLOOKUP(AI98,'CRUCE RIESGOS'!$C$9:$D$13,2,FALSE),"") ->  | AK98: 13.44 | AL98: =IFERROR(VLOOKUP(AK98,'CRUCE RIESGOS'!$C$9:$D$13,2,FALSE),"") ->  | AM98: 14.44 | AN98: =IFERROR(VLOOKUP(AM98,'CRUCE RIESGOS'!$C$9:$D$13,2,FALSE),"") ->  | AO98: 15.44 | AP98: =IFERROR(VLOOKUP(AO98,'CRUCE RIESGOS'!$C$9:$D$13,2,FALSE),"") ->  | AQ98: 16.44 | AR98: =IFERROR(VLOOKUP(AQ98,'CRUCE RIESGOS'!$C$9:$D$13,2,FALSE),"") ->  | AS98: 17.44 | AT98: =IFERROR(VLOOKUP(AS98,'CRUCE RIESGOS'!$C$9:$D$13,2,FALSE),"") ->  | AU98: 18.44 | AV98: =IFERROR(VLOOKUP(AU98,'CRUCE RIESGOS'!$C$9:$D$13,2,FALSE),"") ->  | AW98: 19.44 | AX98: =IFERROR(VLOOKUP(AW98,'CRUCE RIESGOS'!$C$9:$D$13,2,FALSE),"") ->  | AY98: 20.44 | AZ98: =IFERROR(VLOOKUP(AY98,'CRUCE RIESGOS'!$C$9:$D$13,2,FALSE),"") ->  | BA98: 21.44 | BB98: =IFERROR(VLOOKUP(BA98,'CRUCE RIESGOS'!$C$9:$D$13,2,FALSE),"") ->  | BC98: 22.44 | BD98: =IFERROR(VLOOKUP(BC98,'CRUCE RIESGOS'!$C$9:$D$13,2,FALSE),"") ->  | BE98: 23.44 | BF98: =IFERROR(VLOOKUP(BE98,'CRUCE RIESGOS'!$C$9:$D$13,2,FALSE),"") ->  | BG98: 24.44 | BH98: =IFERROR(VLOOKUP(BG98,'CRUCE RIESGOS'!$C$9:$D$13,2,FALSE),"") ->  | BI98: 25.44 | BJ98: =IFERROR(VLOOKUP(BI98,'CRUCE RIESGOS'!$C$9:$D$13,2,FALSE),"") -> 
P99: =IF(P100<>""," -R","") ->  | R99: =IF(R100<>""," -R","") ->  | T99: =IF(T100<>""," -R","") ->  | V99: =IF(V100<>""," -R","") ->  | X99: =IF(X100<>""," -R","") ->  | Z99: =IF(Z100<>""," -R","") ->  | AB99: =IF(AB100<>""," -R","") ->  | AD99: =IF(AD100<>""," -R","") -> 
M100: 1.45 | N100: =IFERROR(VLOOKUP(M100,'CRUCE RIESGOS'!$C$9:$D$13,2,FALSE),"") ->  | O100: 2.45 | P100: =IFERROR(VLOOKUP(O100,'CRUCE RIESGOS'!$C$9:$D$13,2,FALSE),"") ->  | Q100: 3.45 | R100: =IFERROR(VLOOKUP(Q100,'CRUCE RIESGOS'!$C$9:$D$13,2,FALSE),"") ->  | S100: 4.45 | T100: =IFERROR(VLOOKUP(S100,'CRUCE RIESGOS'!$C$9:$D$13,2,FALSE),"") ->  | U100: 5.45 | V100: =IFERROR(VLOOKUP(U100,'CRUCE RIESGOS'!$C$9:$D$13,2,FALSE),"") ->  | W100: 6.45 | X100: =IFERROR(VLOOKUP(W100,'CRUCE RIESGOS'!$C$9:$D$13,2,FALSE),"") ->  | Y100: 7.45 | Z100: =IFERROR(VLOOKUP(Y100,'CRUCE RIESGOS'!$C$9:$D$13,2,FALSE),"") ->  | AA100: 8.45 | AB100: =IFERROR(VLOOKUP(AA100,'CRUCE RIESGOS'!$C$9:$D$13,2,FALSE),"") ->  | AC100: 9.45 | AD100: =IFERROR(VLOOKUP(AC100,'CRUCE RIESGOS'!$C$9:$D$13,2,FALSE),"") ->  | AE100: 10.45 | AF100: =IFERROR(VLOOKUP(AE100,'CRUCE RIESGOS'!$C$9:$D$13,2,FALSE),"") ->  | AG100: 11.45 | AH100: =IFERROR(VLOOKUP(AG100,'CRUCE RIESGOS'!$C$9:$D$13,2,FALSE),"") ->  | AI100: 12.45 | AJ100: =IFERROR(VLOOKUP(AI100,'CRUCE RIESGOS'!$C$9:$D$13,2,FALSE),"") ->  | AK100: 13.45 | AL100: =IFERROR(VLOOKUP(AK100,'CRUCE RIESGOS'!$C$9:$D$13,2,FALSE),"") ->  | AM100: 14.45 | AN100: =IFERROR(VLOOKUP(AM100,'CRUCE RIESGOS'!$C$9:$D$13,2,FALSE),"") ->  | AO100: 15.45 | AP100: =IFERROR(VLOOKUP(AO100,'CRUCE RIESGOS'!$C$9:$D$13,2,FALSE),"") ->  | AQ100: 16.45 | AR100: =IFERROR(VLOOKUP(AQ100,'CRUCE RIESGOS'!$C$9:$D$13,2,FALSE),"") ->  | AS100: 17.45 | AT100: =IFERROR(VLOOKUP(AS100,'CRUCE RIESGOS'!$C$9:$D$13,2,FALSE),"") ->  | AU100: 18.45 | AV100: =IFERROR(VLOOKUP(AU100,'CRUCE RIESGOS'!$C$9:$D$13,2,FALSE),"") ->  | AW100: 19.45 | AX100: =IFERROR(VLOOKUP(AW100,'CRUCE RIESGOS'!$C$9:$D$13,2,FALSE),"") ->  | AY100: 20.45 | AZ100: =IFERROR(VLOOKUP(AY100,'CRUCE RIESGOS'!$C$9:$D$13,2,FALSE),"") ->  | BA100: 21.45 | BB100: =IFERROR(VLOOKUP(BA100,'CRUCE RIESGOS'!$C$9:$D$13,2,FALSE),"") ->  | BC100: 22.45 | BD100: =IFERROR(VLOOKUP(BC100,'CRUCE RIESGOS'!$C$9:$D$13,2,FALSE),"") ->  | BE100: 23.45 | BF100: =IFERROR(VLOOKUP(BE100,'CRUCE RIESGOS'!$C$9:$D$13,2,FALSE),"") ->  | BG100: 24.45 | BH100: =IFERROR(VLOOKUP(BG100,'CRUCE RIESGOS'!$C$9:$D$13,2,FALSE),"") ->  | BI100: 25.45 | BJ100: =IFERROR(VLOOKUP(BI100,'CRUCE RIESGOS'!$C$9:$D$13,2,FALSE),"") -> 
P101: =IF(P102<>""," -R","") ->  | R101: =IF(R102<>""," -R","") ->  | T101: =IF(T102<>""," -R","") ->  | V101: =IF(V102<>""," -R","") ->  | X101: =IF(X102<>""," -R","") ->  | Z101: =IF(Z102<>""," -R","") ->  | AB101: =IF(AB102<>""," -R","") ->  | AD101: =IF(AD102<>""," -R","") -> 
M102: 1.46 | N102: =IFERROR(VLOOKUP(M102,'CRUCE RIESGOS'!$C$9:$D$13,2,FALSE),"") ->  | O102: 2.46 | P102: =IFERROR(VLOOKUP(O102,'CRUCE RIESGOS'!$C$9:$D$13,2,FALSE),"") ->  | Q102: 3.46 | R102: =IFERROR(VLOOKUP(Q102,'CRUCE RIESGOS'!$C$9:$D$13,2,FALSE),"") ->  | S102: 4.46 | T102: =IFERROR(VLOOKUP(S102,'CRUCE RIESGOS'!$C$9:$D$13,2,FALSE),"") ->  | U102: 5.46 | V102: =IFERROR(VLOOKUP(U102,'CRUCE RIESGOS'!$C$9:$D$13,2,FALSE),"") ->  | W102: 6.46 | X102: =IFERROR(VLOOKUP(W102,'CRUCE RIESGOS'!$C$9:$D$13,2,FALSE),"") ->  | Y102: 7.46 | Z102: =IFERROR(VLOOKUP(Y102,'CRUCE RIESGOS'!$C$9:$D$13,2,FALSE),"") ->  | AA102: 8.46 | AB102: =IFERROR(VLOOKUP(AA102,'CRUCE RIESGOS'!$C$9:$D$13,2,FALSE),"") ->  | AC102: 9.46 | AD102: =IFERROR(VLOOKUP(AC102,'CRUCE RIESGOS'!$C$9:$D$13,2,FALSE),"") ->  | AE102: 10.46 | AF102: =IFERROR(VLOOKUP(AE102,'CRUCE RIESGOS'!$C$9:$D$13,2,FALSE),"") ->  | AG102: 11.46 | AH102: =IFERROR(VLOOKUP(AG102,'CRUCE RIESGOS'!$C$9:$D$13,2,FALSE),"") ->  | AI102: 12.46 | AJ102: =IFERROR(VLOOKUP(AI102,'CRUCE RIESGOS'!$C$9:$D$13,2,FALSE),"") ->  | AK102: 13.46 | AL102: =IFERROR(VLOOKUP(AK102,'CRUCE RIESGOS'!$C$9:$D$13,2,FALSE),"") ->  | AM102: 14.46 | AN102: =IFERROR(VLOOKUP(AM102,'CRUCE RIESGOS'!$C$9:$D$13,2,FALSE),"") ->  | AO102: 15.46 | AP102: =IFERROR(VLOOKUP(AO102,'CRUCE RIESGOS'!$C$9:$D$13,2,FALSE),"") ->  | AQ102: 16.46 | AR102: =IFERROR(VLOOKUP(AQ102,'CRUCE RIESGOS'!$C$9:$D$13,2,FALSE),"") ->  | AS102: 17.46 | AT102: =IFERROR(VLOOKUP(AS102,'CRUCE RIESGOS'!$C$9:$D$13,2,FALSE),"") ->  | AU102: 18.46 | AV102: =IFERROR(VLOOKUP(AU102,'CRUCE RIESGOS'!$C$9:$D$13,2,FALSE),"") ->  | AW102: 19.46 | AX102: =IFERROR(VLOOKUP(AW102,'CRUCE RIESGOS'!$C$9:$D$13,2,FALSE),"") ->  | AY102: 20.46 | AZ102: =IFERROR(VLOOKUP(AY102,'CRUCE RIESGOS'!$C$9:$D$13,2,FALSE),"") ->  | BA102: 21.46 | BB102: =IFERROR(VLOOKUP(BA102,'CRUCE RIESGOS'!$C$9:$D$13,2,FALSE),"") ->  | BC102: 22.46 | BD102: =IFERROR(VLOOKUP(BC102,'CRUCE RIESGOS'!$C$9:$D$13,2,FALSE),"") ->  | BE102: 23.46 | BF102: =IFERROR(VLOOKUP(BE102,'CRUCE RIESGOS'!$C$9:$D$13,2,FALSE),"") ->  | BG102: 24.46 | BH102: =IFERROR(VLOOKUP(BG102,'CRUCE RIESGOS'!$C$9:$D$13,2,FALSE),"") ->  | BI102: 25.46 | BJ102: =IFERROR(VLOOKUP(BI102,'CRUCE RIESGOS'!$C$9:$D$13,2,FALSE),"") -> 
P103: =IF(P104<>""," -R","") ->  | R103: =IF(R104<>""," -R","") ->  | T103: =IF(T104<>""," -R","") ->  | V103: =IF(V104<>""," -R","") ->  | X103: =IF(X104<>""," -R","") ->  | Z103: =IF(Z104<>""," -R","") ->  | AB103: =IF(AB104<>""," -R","") ->  | AD103: =IF(AD104<>""," -R","") -> 
M104: 1.47 | N104: =IFERROR(VLOOKUP(M104,'CRUCE RIESGOS'!$C$9:$D$13,2,FALSE),"") ->  | O104: 2.47 | P104: =IFERROR(VLOOKUP(O104,'CRUCE RIESGOS'!$C$9:$D$13,2,FALSE),"") ->  | Q104: 3.47 | R104: =IFERROR(VLOOKUP(Q104,'CRUCE RIESGOS'!$C$9:$D$13,2,FALSE),"") ->  | S104: 4.47 | T104: =IFERROR(VLOOKUP(S104,'CRUCE RIESGOS'!$C$9:$D$13,2,FALSE),"") ->  | U104: 5.47 | V104: =IFERROR(VLOOKUP(U104,'CRUCE RIESGOS'!$C$9:$D$13,2,FALSE),"") ->  | W104: 6.47 | X104: =IFERROR(VLOOKUP(W104,'CRUCE RIESGOS'!$C$9:$D$13,2,FALSE),"") ->  | Y104: 7.47 | Z104: =IFERROR(VLOOKUP(Y104,'CRUCE RIESGOS'!$C$9:$D$13,2,FALSE),"") ->  | AA104: 8.47 | AB104: =IFERROR(VLOOKUP(AA104,'CRUCE RIESGOS'!$C$9:$D$13,2,FALSE),"") ->  | AC104: 9.47 | AD104: =IFERROR(VLOOKUP(AC104,'CRUCE RIESGOS'!$C$9:$D$13,2,FALSE),"") ->  | AE104: 10.47 | AF104: =IFERROR(VLOOKUP(AE104,'CRUCE RIESGOS'!$C$9:$D$13,2,FALSE),"") ->  | AG104: 11.47 | AH104: =IFERROR(VLOOKUP(AG104,'CRUCE RIESGOS'!$C$9:$D$13,2,FALSE),"") ->  | AI104: 12.47 | AJ104: =IFERROR(VLOOKUP(AI104,'CRUCE RIESGOS'!$C$9:$D$13,2,FALSE),"") ->  | AK104: 13.47 | AL104: =IFERROR(VLOOKUP(AK104,'CRUCE RIESGOS'!$C$9:$D$13,2,FALSE),"") ->  | AM104: 14.47 | AN104: =IFERROR(VLOOKUP(AM104,'CRUCE RIESGOS'!$C$9:$D$13,2,FALSE),"") ->  | AO104: 15.47 | AP104: =IFERROR(VLOOKUP(AO104,'CRUCE RIESGOS'!$C$9:$D$13,2,FALSE),"") ->  | AQ104: 16.47 | AR104: =IFERROR(VLOOKUP(AQ104,'CRUCE RIESGOS'!$C$9:$D$13,2,FALSE),"") ->  | AS104: 17.47 | AT104: =IFERROR(VLOOKUP(AS104,'CRUCE RIESGOS'!$C$9:$D$13,2,FALSE),"") ->  | AU104: 18.47 | AV104: =IFERROR(VLOOKUP(AU104,'CRUCE RIESGOS'!$C$9:$D$13,2,FALSE),"") ->  | AW104: 19.47 | AX104: =IFERROR(VLOOKUP(AW104,'CRUCE RIESGOS'!$C$9:$D$13,2,FALSE),"") ->  | AY104: 20.47 | AZ104: =IFERROR(VLOOKUP(AY104,'CRUCE RIESGOS'!$C$9:$D$13,2,FALSE),"") ->  | BA104: 21.47 | BB104: =IFERROR(VLOOKUP(BA104,'CRUCE RIESGOS'!$C$9:$D$13,2,FALSE),"") ->  | BC104: 22.47 | BD104: =IFERROR(VLOOKUP(BC104,'CRUCE RIESGOS'!$C$9:$D$13,2,FALSE),"") ->  | BE104: 23.47 | BF104: =IFERROR(VLOOKUP(BE104,'CRUCE RIESGOS'!$C$9:$D$13,2,FALSE),"") ->  | BG104: 24.47 | BH104: =IFERROR(VLOOKUP(BG104,'CRUCE RIESGOS'!$C$9:$D$13,2,FALSE),"") ->  | BI104: 25.47 | BJ104: =IFERROR(VLOOKUP(BI104,'CRUCE RIESGOS'!$C$9:$D$13,2,FALSE),"") -> 
P105: =IF(P106<>""," -R","") ->  | R105: =IF(R106<>""," -R","") ->  | T105: =IF(T106<>""," -R","") ->  | V105: =IF(V106<>""," -R","") ->  | X105: =IF(X106<>""," -R","") ->  | Z105: =IF(Z106<>""," -R","") ->  | AB105: =IF(AB106<>""," -R","") ->  | AD105: =IF(AD106<>""," -R","") -> 
M106: 1.48 | N106: =IFERROR(VLOOKUP(M106,'CRUCE RIESGOS'!$C$9:$D$13,2,FALSE),"") ->  | O106: 2.48 | P106: =IFERROR(VLOOKUP(O106,'CRUCE RIESGOS'!$C$9:$D$13,2,FALSE),"") ->  | Q106: 3.48 | R106: =IFERROR(VLOOKUP(Q106,'CRUCE RIESGOS'!$C$9:$D$13,2,FALSE),"") ->  | S106: 4.48 | T106: =IFERROR(VLOOKUP(S106,'CRUCE RIESGOS'!$C$9:$D$13,2,FALSE),"") ->  | U106: 5.48 | V106: =IFERROR(VLOOKUP(U106,'CRUCE RIESGOS'!$C$9:$D$13,2,FALSE),"") ->  | W106: 6.48 | X106: =IFERROR(VLOOKUP(W106,'CRUCE RIESGOS'!$C$9:$D$13,2,FALSE),"") ->  | Y106: 7.48 | Z106: =IFERROR(VLOOKUP(Y106,'CRUCE RIESGOS'!$C$9:$D$13,2,FALSE),"") ->  | AA106: 8.48 | AB106: =IFERROR(VLOOKUP(AA106,'CRUCE RIESGOS'!$C$9:$D$13,2,FALSE),"") ->  | AC106: 9.48 | AD106: =IFERROR(VLOOKUP(AC106,'CRUCE RIESGOS'!$C$9:$D$13,2,FALSE),"") ->  | AE106: 10.48 | AF106: =IFERROR(VLOOKUP(AE106,'CRUCE RIESGOS'!$C$9:$D$13,2,FALSE),"") ->  | AG106: 11.48 | AH106: =IFERROR(VLOOKUP(AG106,'CRUCE RIESGOS'!$C$9:$D$13,2,FALSE),"") ->  | AI106: 12.48 | AJ106: =IFERROR(VLOOKUP(AI106,'CRUCE RIESGOS'!$C$9:$D$13,2,FALSE),"") ->  | AK106: 13.48 | AL106: =IFERROR(VLOOKUP(AK106,'CRUCE RIESGOS'!$C$9:$D$13,2,FALSE),"") ->  | AM106: 14.48 | AN106: =IFERROR(VLOOKUP(AM106,'CRUCE RIESGOS'!$C$9:$D$13,2,FALSE),"") ->  | AO106: 15.48 | AP106: =IFERROR(VLOOKUP(AO106,'CRUCE RIESGOS'!$C$9:$D$13,2,FALSE),"") ->  | AQ106: 16.48 | AR106: =IFERROR(VLOOKUP(AQ106,'CRUCE RIESGOS'!$C$9:$D$13,2,FALSE),"") ->  | AS106: 17.48 | AT106: =IFERROR(VLOOKUP(AS106,'CRUCE RIESGOS'!$C$9:$D$13,2,FALSE),"") ->  | AU106: 18.48 | AV106: =IFERROR(VLOOKUP(AU106,'CRUCE RIESGOS'!$C$9:$D$13,2,FALSE),"") ->  | AW106: 19.48 | AX106: =IFERROR(VLOOKUP(AW106,'CRUCE RIESGOS'!$C$9:$D$13,2,FALSE),"") ->  | AY106: 20.48 | AZ106: =IFERROR(VLOOKUP(AY106,'CRUCE RIESGOS'!$C$9:$D$13,2,FALSE),"") ->  | BA106: 21.48 | BB106: =IFERROR(VLOOKUP(BA106,'CRUCE RIESGOS'!$C$9:$D$13,2,FALSE),"") ->  | BC106: 22.48 | BD106: =IFERROR(VLOOKUP(BC106,'CRUCE RIESGOS'!$C$9:$D$13,2,FALSE),"") ->  | BE106: 23.48 | BF106: =IFERROR(VLOOKUP(BE106,'CRUCE RIESGOS'!$C$9:$D$13,2,FALSE),"") ->  | BG106: 24.48 | BH106: =IFERROR(VLOOKUP(BG106,'CRUCE RIESGOS'!$C$9:$D$13,2,FALSE),"") ->  | BI106: 25.48 | BJ106: =IFERROR(VLOOKUP(BI106,'CRUCE RIESGOS'!$C$9:$D$13,2,FALSE),"") -> 
P107: =IF(P108<>""," -R","") ->  | R107: =IF(R108<>""," -R","") ->  | T107: =IF(T108<>""," -R","") ->  | V107: =IF(V108<>""," -R","") ->  | X107: =IF(X108<>""," -R","") ->  | Z107: =IF(Z108<>""," -R","") ->  | AB107: =IF(AB108<>""," -R","") ->  | AD107: =IF(AD108<>""," -R","") -> 
M108: 1.49 | N108: =IFERROR(VLOOKUP(M108,'CRUCE RIESGOS'!$C$9:$D$13,2,FALSE),"") ->  | O108: 2.49 | P108: =IFERROR(VLOOKUP(O108,'CRUCE RIESGOS'!$C$9:$D$13,2,FALSE),"") ->  | Q108: 3.49 | R108: =IFERROR(VLOOKUP(Q108,'CRUCE RIESGOS'!$C$9:$D$13,2,FALSE),"") ->  | S108: 4.49 | T108: =IFERROR(VLOOKUP(S108,'CRUCE RIESGOS'!$C$9:$D$13,2,FALSE),"") ->  | U108: 5.49 | V108: =IFERROR(VLOOKUP(U108,'CRUCE RIESGOS'!$C$9:$D$13,2,FALSE),"") ->  | W108: 6.49 | X108: =IFERROR(VLOOKUP(W108,'CRUCE RIESGOS'!$C$9:$D$13,2,FALSE),"") ->  | Y108: 7.49 | Z108: =IFERROR(VLOOKUP(Y108,'CRUCE RIESGOS'!$C$9:$D$13,2,FALSE),"") ->  | AA108: 8.49 | AB108: =IFERROR(VLOOKUP(AA108,'CRUCE RIESGOS'!$C$9:$D$13,2,FALSE),"") ->  | AC108: 9.49 | AD108: =IFERROR(VLOOKUP(AC108,'CRUCE RIESGOS'!$C$9:$D$13,2,FALSE),"") ->  | AE108: 10.49 | AF108: =IFERROR(VLOOKUP(AE108,'CRUCE RIESGOS'!$C$9:$D$13,2,FALSE),"") ->  | AG108: 11.49 | AH108: =IFERROR(VLOOKUP(AG108,'CRUCE RIESGOS'!$C$9:$D$13,2,FALSE),"") ->  | AI108: 12.49 | AJ108: =IFERROR(VLOOKUP(AI108,'CRUCE RIESGOS'!$C$9:$D$13,2,FALSE),"") ->  | AK108: 13.49 | AL108: =IFERROR(VLOOKUP(AK108,'CRUCE RIESGOS'!$C$9:$D$13,2,FALSE),"") ->  | AM108: 14.49 | AN108: =IFERROR(VLOOKUP(AM108,'CRUCE RIESGOS'!$C$9:$D$13,2,FALSE),"") ->  | AO108: 15.49 | AP108: =IFERROR(VLOOKUP(AO108,'CRUCE RIESGOS'!$C$9:$D$13,2,FALSE),"") ->  | AQ108: 16.49 | AR108: =IFERROR(VLOOKUP(AQ108,'CRUCE RIESGOS'!$C$9:$D$13,2,FALSE),"") ->  | AS108: 17.49 | AT108: =IFERROR(VLOOKUP(AS108,'CRUCE RIESGOS'!$C$9:$D$13,2,FALSE),"") ->  | AU108: 18.49 | AV108: =IFERROR(VLOOKUP(AU108,'CRUCE RIESGOS'!$C$9:$D$13,2,FALSE),"") ->  | AW108: 19.49 | AX108: =IFERROR(VLOOKUP(AW108,'CRUCE RIESGOS'!$C$9:$D$13,2,FALSE),"") ->  | AY108: 20.49 | AZ108: =IFERROR(VLOOKUP(AY108,'CRUCE RIESGOS'!$C$9:$D$13,2,FALSE),"") ->  | BA108: 21.49 | BB108: =IFERROR(VLOOKUP(BA108,'CRUCE RIESGOS'!$C$9:$D$13,2,FALSE),"") ->  | BC108: 22.49 | BD108: =IFERROR(VLOOKUP(BC108,'CRUCE RIESGOS'!$C$9:$D$13,2,FALSE),"") ->  | BE108: 23.49 | BF108: =IFERROR(VLOOKUP(BE108,'CRUCE RIESGOS'!$C$9:$D$13,2,FALSE),"") ->  | BG108: 24.49 | BH108: =IFERROR(VLOOKUP(BG108,'CRUCE RIESGOS'!$C$9:$D$13,2,FALSE),"") ->  | BI108: 25.49 | BJ108: =IFERROR(VLOOKUP(BI108,'CRUCE RIESGOS'!$C$9:$D$13,2,FALSE),"") -> 
P109: =IF(P110<>""," -R","") ->  | R109: =IF(R110<>""," -R","") ->  | T109: =IF(T110<>""," -R","") ->  | V109: =IF(V110<>""," -R","") ->  | X109: =IF(X110<>""," -R","") ->  | Z109: =IF(Z110<>""," -R","") ->  | AB109: =IF(AB110<>""," -R","") ->  | AD109: =IF(AD110<>""," -R","") -> 
M110: 1.5 | N110: =IFERROR(VLOOKUP(M110,'CRUCE RIESGOS'!$C$9:$D$13,2,FALSE),"") ->  | O110: 2.5 | P110: =IFERROR(VLOOKUP(O110,'CRUCE RIESGOS'!$C$9:$D$13,2,FALSE),"") ->  | Q110: 3.5 | R110: =IFERROR(VLOOKUP(Q110,'CRUCE RIESGOS'!$C$9:$D$13,2,FALSE),"") ->  | S110: 4.5 | T110: =IFERROR(VLOOKUP(S110,'CRUCE RIESGOS'!$C$9:$D$13,2,FALSE),"") ->  | U110: 5.5 | V110: =IFERROR(VLOOKUP(U110,'CRUCE RIESGOS'!$C$9:$D$13,2,FALSE),"") ->  | W110: 6.5 | X110: =IFERROR(VLOOKUP(W110,'CRUCE RIESGOS'!$C$9:$D$13,2,FALSE),"") ->  | Y110: 7.5 | Z110: =IFERROR(VLOOKUP(Y110,'CRUCE RIESGOS'!$C$9:$D$13,2,FALSE),"") ->  | AA110: 8.5 | AB110: =IFERROR(VLOOKUP(AA110,'CRUCE RIESGOS'!$C$9:$D$13,2,FALSE),"") ->  | AC110: 9.5 | AD110: =IFERROR(VLOOKUP(AC110,'CRUCE RIESGOS'!$C$9:$D$13,2,FALSE),"") ->  | AE110: 10.5 | AF110: =IFERROR(VLOOKUP(AE110,'CRUCE RIESGOS'!$C$9:$D$13,2,FALSE),"") ->  | AG110: 11.5 | AH110: =IFERROR(VLOOKUP(AG110,'CRUCE RIESGOS'!$C$9:$D$13,2,FALSE),"") ->  | AI110: 12.5 | AJ110: =IFERROR(VLOOKUP(AI110,'CRUCE RIESGOS'!$C$9:$D$13,2,FALSE),"") ->  | AK110: 13.5 | AL110: =IFERROR(VLOOKUP(AK110,'CRUCE RIESGOS'!$C$9:$D$13,2,FALSE),"") ->  | AM110: 14.5 | AN110: =IFERROR(VLOOKUP(AM110,'CRUCE RIESGOS'!$C$9:$D$13,2,FALSE),"") ->  | AO110: 15.5 | AP110: =IFERROR(VLOOKUP(AO110,'CRUCE RIESGOS'!$C$9:$D$13,2,FALSE),"") ->  | AQ110: 16.5 | AR110: =IFERROR(VLOOKUP(AQ110,'CRUCE RIESGOS'!$C$9:$D$13,2,FALSE),"") ->  | AS110: 17.5 | AT110: =IFERROR(VLOOKUP(AS110,'CRUCE RIESGOS'!$C$9:$D$13,2,FALSE),"") ->  | AU110: 18.5 | AV110: =IFERROR(VLOOKUP(AU110,'CRUCE RIESGOS'!$C$9:$D$13,2,FALSE),"") ->  | AW110: 19.5 | AX110: =IFERROR(VLOOKUP(AW110,'CRUCE RIESGOS'!$C$9:$D$13,2,FALSE),"") ->  | AY110: 20.5 | AZ110: =IFERROR(VLOOKUP(AY110,'CRUCE RIESGOS'!$C$9:$D$13,2,FALSE),"") ->  | BA110: 21.5 | BB110: =IFERROR(VLOOKUP(BA110,'CRUCE RIESGOS'!$C$9:$D$13,2,FALSE),"") ->  | BC110: 22.5 | BD110: =IFERROR(VLOOKUP(BC110,'CRUCE RIESGOS'!$C$9:$D$13,2,FALSE),"") ->  | BE110: 23.5 | BF110: =IFERROR(VLOOKUP(BE110,'CRUCE RIESGOS'!$C$9:$D$13,2,FALSE),"") ->  | BG110: 24.5 | BH110: =IFERROR(VLOOKUP(BG110,'CRUCE RIESGOS'!$C$9:$D$13,2,FALSE),"") ->  | BI110: 25.5 | BJ110: =IFERROR(VLOOKUP(BI110,'CRUCE RIESGOS'!$C$9:$D$13,2,FALSE),"") -> 
P111: =IF(P112<>""," -R","") ->  | R111: =IF(R112<>""," -R","") ->  | T111: =IF(T112<>""," -R","") ->  | V111: =IF(V112<>""," -R","") ->  | X111: =IF(X112<>""," -R","") ->  | Z111: =IF(Z112<>""," -R","") ->  | AB111: =IF(AB112<>""," -R","") ->  | AD111: =IF(AD112<>""," -R","") -> 
M112: 1.51 | N112: =IFERROR(VLOOKUP(M112,'CRUCE RIESGOS'!$C$9:$D$13,2,FALSE),"") ->  | O112: 2.51 | P112: =IFERROR(VLOOKUP(O112,'CRUCE RIESGOS'!$C$9:$D$13,2,FALSE),"") ->  | Q112: 3.51 | R112: =IFERROR(VLOOKUP(Q112,'CRUCE RIESGOS'!$C$9:$D$13,2,FALSE),"") ->  | S112: 4.51 | T112: =IFERROR(VLOOKUP(S112,'CRUCE RIESGOS'!$C$9:$D$13,2,FALSE),"") ->  | U112: 5.51 | V112: =IFERROR(VLOOKUP(U112,'CRUCE RIESGOS'!$C$9:$D$13,2,FALSE),"") ->  | W112: 6.51 | X112: =IFERROR(VLOOKUP(W112,'CRUCE RIESGOS'!$C$9:$D$13,2,FALSE),"") ->  | Y112: 7.51 | Z112: =IFERROR(VLOOKUP(Y112,'CRUCE RIESGOS'!$C$9:$D$13,2,FALSE),"") ->  | AA112: 8.51 | AB112: =IFERROR(VLOOKUP(AA112,'CRUCE RIESGOS'!$C$9:$D$13,2,FALSE),"") ->  | AC112: 9.51 | AD112: =IFERROR(VLOOKUP(AC112,'CRUCE RIESGOS'!$C$9:$D$13,2,FALSE),"") ->  | AE112: 10.51 | AF112: =IFERROR(VLOOKUP(AE112,'CRUCE RIESGOS'!$C$9:$D$13,2,FALSE),"") ->  | AG112: 11.51 | AH112: =IFERROR(VLOOKUP(AG112,'CRUCE RIESGOS'!$C$9:$D$13,2,FALSE),"") ->  | AI112: 12.51 | AJ112: =IFERROR(VLOOKUP(AI112,'CRUCE RIESGOS'!$C$9:$D$13,2,FALSE),"") ->  | AK112: 13.51 | AL112: =IFERROR(VLOOKUP(AK112,'CRUCE RIESGOS'!$C$9:$D$13,2,FALSE),"") ->  | AM112: 14.51 | AN112: =IFERROR(VLOOKUP(AM112,'CRUCE RIESGOS'!$C$9:$D$13,2,FALSE),"") ->  | AO112: 15.51 | AP112: =IFERROR(VLOOKUP(AO112,'CRUCE RIESGOS'!$C$9:$D$13,2,FALSE),"") ->  | AQ112: 16.51 | AR112: =IFERROR(VLOOKUP(AQ112,'CRUCE RIESGOS'!$C$9:$D$13,2,FALSE),"") ->  | AS112: 17.51 | AT112: =IFERROR(VLOOKUP(AS112,'CRUCE RIESGOS'!$C$9:$D$13,2,FALSE),"") ->  | AU112: 18.51 | AV112: =IFERROR(VLOOKUP(AU112,'CRUCE RIESGOS'!$C$9:$D$13,2,FALSE),"") ->  | AW112: 19.51 | AX112: =IFERROR(VLOOKUP(AW112,'CRUCE RIESGOS'!$C$9:$D$13,2,FALSE),"") ->  | AY112: 20.51 | AZ112: =IFERROR(VLOOKUP(AY112,'CRUCE RIESGOS'!$C$9:$D$13,2,FALSE),"") ->  | BA112: 21.51 | BB112: =IFERROR(VLOOKUP(BA112,'CRUCE RIESGOS'!$C$9:$D$13,2,FALSE),"") ->  | BC112: 22.51 | BD112: =IFERROR(VLOOKUP(BC112,'CRUCE RIESGOS'!$C$9:$D$13,2,FALSE),"") ->  | BE112: 23.51 | BF112: =IFERROR(VLOOKUP(BE112,'CRUCE RIESGOS'!$C$9:$D$13,2,FALSE),"") ->  | BG112: 24.51 | BH112: =IFERROR(VLOOKUP(BG112,'CRUCE RIESGOS'!$C$9:$D$13,2,FALSE),"") ->  | BI112: 25.51 | BJ112: =IFERROR(VLOOKUP(BI112,'CRUCE RIESGOS'!$C$9:$D$13,2,FALSE),"") -> 
P113: =IF(P114<>""," -R","") ->  | R113: =IF(R114<>""," -R","") ->  | T113: =IF(T114<>""," -R","") ->  | V113: =IF(V114<>""," -R","") ->  | X113: =IF(X114<>""," -R","") ->  | Z113: =IF(Z114<>""," -R","") ->  | AB113: =IF(AB114<>""," -R","") ->  | AD113: =IF(AD114<>""," -R","") -> 
M114: 1.52 | N114: =IFERROR(VLOOKUP(M114,'CRUCE RIESGOS'!$C$9:$D$13,2,FALSE),"") ->  | O114: 2.52 | P114: =IFERROR(VLOOKUP(O114,'CRUCE RIESGOS'!$C$9:$D$13,2,FALSE),"") ->  | Q114: 3.52 | R114: =IFERROR(VLOOKUP(Q114,'CRUCE RIESGOS'!$C$9:$D$13,2,FALSE),"") ->  | S114: 4.52 | T114: =IFERROR(VLOOKUP(S114,'CRUCE RIESGOS'!$C$9:$D$13,2,FALSE),"") ->  | U114: 5.52 | V114: =IFERROR(VLOOKUP(U114,'CRUCE RIESGOS'!$C$9:$D$13,2,FALSE),"") ->  | W114: 6.52 | X114: =IFERROR(VLOOKUP(W114,'CRUCE RIESGOS'!$C$9:$D$13,2,FALSE),"") ->  | Y114: 7.52 | Z114: =IFERROR(VLOOKUP(Y114,'CRUCE RIESGOS'!$C$9:$D$13,2,FALSE),"") ->  | AA114: 8.52 | AB114: =IFERROR(VLOOKUP(AA114,'CRUCE RIESGOS'!$C$9:$D$13,2,FALSE),"") ->  | AC114: 9.52 | AD114: =IFERROR(VLOOKUP(AC114,'CRUCE RIESGOS'!$C$9:$D$13,2,FALSE),"") ->  | AE114: 10.52 | AF114: =IFERROR(VLOOKUP(AE114,'CRUCE RIESGOS'!$C$9:$D$13,2,FALSE),"") ->  | AG114: 11.52 | AH114: =IFERROR(VLOOKUP(AG114,'CRUCE RIESGOS'!$C$9:$D$13,2,FALSE),"") ->  | AI114: 12.52 | AJ114: =IFERROR(VLOOKUP(AI114,'CRUCE RIESGOS'!$C$9:$D$13,2,FALSE),"") ->  | AK114: 13.52 | AL114: =IFERROR(VLOOKUP(AK114,'CRUCE RIESGOS'!$C$9:$D$13,2,FALSE),"") ->  | AM114: 14.52 | AN114: =IFERROR(VLOOKUP(AM114,'CRUCE RIESGOS'!$C$9:$D$13,2,FALSE),"") ->  | AO114: 15.52 | AP114: =IFERROR(VLOOKUP(AO114,'CRUCE RIESGOS'!$C$9:$D$13,2,FALSE),"") ->  | AQ114: 16.52 | AR114: =IFERROR(VLOOKUP(AQ114,'CRUCE RIESGOS'!$C$9:$D$13,2,FALSE),"") ->  | AS114: 17.52 | AT114: =IFERROR(VLOOKUP(AS114,'CRUCE RIESGOS'!$C$9:$D$13,2,FALSE),"") ->  | AU114: 18.52 | AV114: =IFERROR(VLOOKUP(AU114,'CRUCE RIESGOS'!$C$9:$D$13,2,FALSE),"") ->  | AW114: 19.52 | AX114: =IFERROR(VLOOKUP(AW114,'CRUCE RIESGOS'!$C$9:$D$13,2,FALSE),"") ->  | AY114: 20.52 | AZ114: =IFERROR(VLOOKUP(AY114,'CRUCE RIESGOS'!$C$9:$D$13,2,FALSE),"") ->  | BA114: 21.52 | BB114: =IFERROR(VLOOKUP(BA114,'CRUCE RIESGOS'!$C$9:$D$13,2,FALSE),"") ->  | BC114: 22.52 | BD114: =IFERROR(VLOOKUP(BC114,'CRUCE RIESGOS'!$C$9:$D$13,2,FALSE),"") ->  | BE114: 23.52 | BF114: =IFERROR(VLOOKUP(BE114,'CRUCE RIESGOS'!$C$9:$D$13,2,FALSE),"") ->  | BG114: 24.52 | BH114: =IFERROR(VLOOKUP(BG114,'CRUCE RIESGOS'!$C$9:$D$13,2,FALSE),"") ->  | BI114: 25.52 | BJ114: =IFERROR(VLOOKUP(BI114,'CRUCE RIESGOS'!$C$9:$D$13,2,FALSE),"") -> 
P115: =IF(P116<>""," -R","") ->  | R115: =IF(R116<>""," -R","") ->  | T115: =IF(T116<>""," -R","") ->  | V115: =IF(V116<>""," -R","") ->  | X115: =IF(X116<>""," -R","") ->  | Z115: =IF(Z116<>""," -R","") ->  | AB115: =IF(AB116<>""," -R","") ->  | AD115: =IF(AD116<>""," -R","") -> 
M116: 1.53 | N116: =IFERROR(VLOOKUP(M116,'CRUCE RIESGOS'!$C$9:$D$13,2,FALSE),"") ->  | O116: 2.53 | P116: =IFERROR(VLOOKUP(O116,'CRUCE RIESGOS'!$C$9:$D$13,2,FALSE),"") ->  | Q116: 3.53 | R116: =IFERROR(VLOOKUP(Q116,'CRUCE RIESGOS'!$C$9:$D$13,2,FALSE),"") ->  | S116: 4.53 | T116: =IFERROR(VLOOKUP(S116,'CRUCE RIESGOS'!$C$9:$D$13,2,FALSE),"") ->  | U116: 5.53 | V116: =IFERROR(VLOOKUP(U116,'CRUCE RIESGOS'!$C$9:$D$13,2,FALSE),"") ->  | W116: 6.53 | X116: =IFERROR(VLOOKUP(W116,'CRUCE RIESGOS'!$C$9:$D$13,2,FALSE),"") ->  | Y116: 7.53 | Z116: =IFERROR(VLOOKUP(Y116,'CRUCE RIESGOS'!$C$9:$D$13,2,FALSE),"") ->  | AA116: 8.53 | AB116: =IFERROR(VLOOKUP(AA116,'CRUCE RIESGOS'!$C$9:$D$13,2,FALSE),"") ->  | AC116: 9.53 | AD116: =IFERROR(VLOOKUP(AC116,'CRUCE RIESGOS'!$C$9:$D$13,2,FALSE),"") ->  | AE116: 10.53 | AF116: =IFERROR(VLOOKUP(AE116,'CRUCE RIESGOS'!$C$9:$D$13,2,FALSE),"") ->  | AG116: 11.53 | AH116: =IFERROR(VLOOKUP(AG116,'CRUCE RIESGOS'!$C$9:$D$13,2,FALSE),"") ->  | AI116: 12.53 | AJ116: =IFERROR(VLOOKUP(AI116,'CRUCE RIESGOS'!$C$9:$D$13,2,FALSE),"") ->  | AK116: 13.53 | AL116: =IFERROR(VLOOKUP(AK116,'CRUCE RIESGOS'!$C$9:$D$13,2,FALSE),"") ->  | AM116: 14.53 | AN116: =IFERROR(VLOOKUP(AM116,'CRUCE RIESGOS'!$C$9:$D$13,2,FALSE),"") ->  | AO116: 15.53 | AP116: =IFERROR(VLOOKUP(AO116,'CRUCE RIESGOS'!$C$9:$D$13,2,FALSE),"") ->  | AQ116: 16.53 | AR116: =IFERROR(VLOOKUP(AQ116,'CRUCE RIESGOS'!$C$9:$D$13,2,FALSE),"") ->  | AS116: 17.53 | AT116: =IFERROR(VLOOKUP(AS116,'CRUCE RIESGOS'!$C$9:$D$13,2,FALSE),"") ->  | AU116: 18.53 | AV116: =IFERROR(VLOOKUP(AU116,'CRUCE RIESGOS'!$C$9:$D$13,2,FALSE),"") ->  | AW116: 19.53 | AX116: =IFERROR(VLOOKUP(AW116,'CRUCE RIESGOS'!$C$9:$D$13,2,FALSE),"") ->  | AY116: 20.53 | AZ116: =IFERROR(VLOOKUP(AY116,'CRUCE RIESGOS'!$C$9:$D$13,2,FALSE),"") ->  | BA116: 21.53 | BB116: =IFERROR(VLOOKUP(BA116,'CRUCE RIESGOS'!$C$9:$D$13,2,FALSE),"") ->  | BC116: 22.53 | BD116: =IFERROR(VLOOKUP(BC116,'CRUCE RIESGOS'!$C$9:$D$13,2,FALSE),"") ->  | BE116: 23.53 | BF116: =IFERROR(VLOOKUP(BE116,'CRUCE RIESGOS'!$C$9:$D$13,2,FALSE),"") ->  | BG116: 24.53 | BH116: =IFERROR(VLOOKUP(BG116,'CRUCE RIESGOS'!$C$9:$D$13,2,FALSE),"") ->  | BI116: 25.53 | BJ116: =IFERROR(VLOOKUP(BI116,'CRUCE RIESGOS'!$C$9:$D$13,2,FALSE),"") -> 
P117: =IF(P118<>""," -R","") ->  | R117: =IF(R118<>""," -R","") ->  | T117: =IF(T118<>""," -R","") ->  | V117: =IF(V118<>""," -R","") ->  | X117: =IF(X118<>""," -R","") ->  | Z117: =IF(Z118<>""," -R","") ->  | AB117: =IF(AB118<>""," -R","") ->  | AD117: =IF(AD118<>""," -R","") -> 
M118: 1.54 | N118: =IFERROR(VLOOKUP(M118,'CRUCE RIESGOS'!$C$9:$D$13,2,FALSE),"") ->  | O118: 2.54 | P118: =IFERROR(VLOOKUP(O118,'CRUCE RIESGOS'!$C$9:$D$13,2,FALSE),"") ->  | Q118: 3.54 | R118: =IFERROR(VLOOKUP(Q118,'CRUCE RIESGOS'!$C$9:$D$13,2,FALSE),"") ->  | S118: 4.54 | T118: =IFERROR(VLOOKUP(S118,'CRUCE RIESGOS'!$C$9:$D$13,2,FALSE),"") ->  | U118: 5.54 | V118: =IFERROR(VLOOKUP(U118,'CRUCE RIESGOS'!$C$9:$D$13,2,FALSE),"") ->  | W118: 6.54 | X118: =IFERROR(VLOOKUP(W118,'CRUCE RIESGOS'!$C$9:$D$13,2,FALSE),"") ->  | Y118: 7.54 | Z118: =IFERROR(VLOOKUP(Y118,'CRUCE RIESGOS'!$C$9:$D$13,2,FALSE),"") ->  | AA118: 8.54 | AB118: =IFERROR(VLOOKUP(AA118,'CRUCE RIESGOS'!$C$9:$D$13,2,FALSE),"") ->  | AC118: 9.54 | AD118: =IFERROR(VLOOKUP(AC118,'CRUCE RIESGOS'!$C$9:$D$13,2,FALSE),"") ->  | AE118: 10.54 | AF118: =IFERROR(VLOOKUP(AE118,'CRUCE RIESGOS'!$C$9:$D$13,2,FALSE),"") ->  | AG118: 11.54 | AH118: =IFERROR(VLOOKUP(AG118,'CRUCE RIESGOS'!$C$9:$D$13,2,FALSE),"") ->  | AI118: 12.54 | AJ118: =IFERROR(VLOOKUP(AI118,'CRUCE RIESGOS'!$C$9:$D$13,2,FALSE),"") ->  | AK118: 13.54 | AL118: =IFERROR(VLOOKUP(AK118,'CRUCE RIESGOS'!$C$9:$D$13,2,FALSE),"") ->  | AM118: 14.54 | AN118: =IFERROR(VLOOKUP(AM118,'CRUCE RIESGOS'!$C$9:$D$13,2,FALSE),"") ->  | AO118: 15.54 | AP118: =IFERROR(VLOOKUP(AO118,'CRUCE RIESGOS'!$C$9:$D$13,2,FALSE),"") ->  | AQ118: 16.54 | AR118: =IFERROR(VLOOKUP(AQ118,'CRUCE RIESGOS'!$C$9:$D$13,2,FALSE),"") ->  | AS118: 17.54 | AT118: =IFERROR(VLOOKUP(AS118,'CRUCE RIESGOS'!$C$9:$D$13,2,FALSE),"") ->  | AU118: 18.54 | AV118: =IFERROR(VLOOKUP(AU118,'CRUCE RIESGOS'!$C$9:$D$13,2,FALSE),"") ->  | AW118: 19.54 | AX118: =IFERROR(VLOOKUP(AW118,'CRUCE RIESGOS'!$C$9:$D$13,2,FALSE),"") ->  | AY118: 20.54 | AZ118: =IFERROR(VLOOKUP(AY118,'CRUCE RIESGOS'!$C$9:$D$13,2,FALSE),"") ->  | BA118: 21.54 | BB118: =IFERROR(VLOOKUP(BA118,'CRUCE RIESGOS'!$C$9:$D$13,2,FALSE),"") ->  | BC118: 22.54 | BD118: =IFERROR(VLOOKUP(BC118,'CRUCE RIESGOS'!$C$9:$D$13,2,FALSE),"") ->  | BE118: 23.54 | BF118: =IFERROR(VLOOKUP(BE118,'CRUCE RIESGOS'!$C$9:$D$13,2,FALSE),"") ->  | BG118: 24.54 | BH118: =IFERROR(VLOOKUP(BG118,'CRUCE RIESGOS'!$C$9:$D$13,2,FALSE),"") ->  | BI118: 25.54 | BJ118: =IFERROR(VLOOKUP(BI118,'CRUCE RIESGOS'!$C$9:$D$13,2,FALSE),"") -> 
P119: =IF(P120<>""," -R","") ->  | R119: =IF(R120<>""," -R","") ->  | T119: =IF(T120<>""," -R","") ->  | V119: =IF(V120<>""," -R","") ->  | X119: =IF(X120<>""," -R","") ->  | Z119: =IF(Z120<>""," -R","") ->  | AB119: =IF(AB120<>""," -R","") ->  | AD119: =IF(AD120<>""," -R","") -> 
M120: 1.55 | N120: =IFERROR(VLOOKUP(M120,'CRUCE RIESGOS'!$C$9:$D$13,2,FALSE),"") ->  | O120: 2.55 | P120: =IFERROR(VLOOKUP(O120,'CRUCE RIESGOS'!$C$9:$D$13,2,FALSE),"") ->  | Q120: 3.55 | R120: =IFERROR(VLOOKUP(Q120,'CRUCE RIESGOS'!$C$9:$D$13,2,FALSE),"") ->  | S120: 4.55 | T120: =IFERROR(VLOOKUP(S120,'CRUCE RIESGOS'!$C$9:$D$13,2,FALSE),"") ->  | U120: 5.55 | V120: =IFERROR(VLOOKUP(U120,'CRUCE RIESGOS'!$C$9:$D$13,2,FALSE),"") ->  | W120: 6.55 | X120: =IFERROR(VLOOKUP(W120,'CRUCE RIESGOS'!$C$9:$D$13,2,FALSE),"") ->  | Y120: 7.55 | Z120: =IFERROR(VLOOKUP(Y120,'CRUCE RIESGOS'!$C$9:$D$13,2,FALSE),"") ->  | AA120: 8.55 | AB120: =IFERROR(VLOOKUP(AA120,'CRUCE RIESGOS'!$C$9:$D$13,2,FALSE),"") ->  | AC120: 9.55 | AD120: =IFERROR(VLOOKUP(AC120,'CRUCE RIESGOS'!$C$9:$D$13,2,FALSE),"") ->  | AE120: 10.55 | AF120: =IFERROR(VLOOKUP(AE120,'CRUCE RIESGOS'!$C$9:$D$13,2,FALSE),"") ->  | AG120: 11.55 | AH120: =IFERROR(VLOOKUP(AG120,'CRUCE RIESGOS'!$C$9:$D$13,2,FALSE),"") ->  | AI120: 12.55 | AJ120: =IFERROR(VLOOKUP(AI120,'CRUCE RIESGOS'!$C$9:$D$13,2,FALSE),"") ->  | AK120: 13.55 | AL120: =IFERROR(VLOOKUP(AK120,'CRUCE RIESGOS'!$C$9:$D$13,2,FALSE),"") ->  | AM120: 14.55 | AN120: =IFERROR(VLOOKUP(AM120,'CRUCE RIESGOS'!$C$9:$D$13,2,FALSE),"") ->  | AO120: 15.55 | AP120: =IFERROR(VLOOKUP(AO120,'CRUCE RIESGOS'!$C$9:$D$13,2,FALSE),"") ->  | AQ120: 16.55 | AR120: =IFERROR(VLOOKUP(AQ120,'CRUCE RIESGOS'!$C$9:$D$13,2,FALSE),"") ->  | AS120: 17.55 | AT120: =IFERROR(VLOOKUP(AS120,'CRUCE RIESGOS'!$C$9:$D$13,2,FALSE),"") ->  | AU120: 18.55 | AV120: =IFERROR(VLOOKUP(AU120,'CRUCE RIESGOS'!$C$9:$D$13,2,FALSE),"") ->  | AW120: 19.55 | AX120: =IFERROR(VLOOKUP(AW120,'CRUCE RIESGOS'!$C$9:$D$13,2,FALSE),"") ->  | AY120: 20.55 | AZ120: =IFERROR(VLOOKUP(AY120,'CRUCE RIESGOS'!$C$9:$D$13,2,FALSE),"") ->  | BA120: 21.55 | BB120: =IFERROR(VLOOKUP(BA120,'CRUCE RIESGOS'!$C$9:$D$13,2,FALSE),"") ->  | BC120: 22.55 | BD120: =IFERROR(VLOOKUP(BC120,'CRUCE RIESGOS'!$C$9:$D$13,2,FALSE),"") ->  | BE120: 23.55 | BF120: =IFERROR(VLOOKUP(BE120,'CRUCE RIESGOS'!$C$9:$D$13,2,FALSE),"") ->  | BG120: 24.55 | BH120: =IFERROR(VLOOKUP(BG120,'CRUCE RIESGOS'!$C$9:$D$13,2,FALSE),"") ->  | BI120: 25.55 | BJ120: =IFERROR(VLOOKUP(BI120,'CRUCE RIESGOS'!$C$9:$D$13,2,FALSE),"") -> 
P121: =IF(P122<>""," -R","") ->  | R121: =IF(R122<>""," -R","") ->  | T121: =IF(T122<>""," -R","") ->  | V121: =IF(V122<>""," -R","") ->  | X121: =IF(X122<>""," -R","") ->  | Z121: =IF(Z122<>""," -R","") ->  | AB121: =IF(AB122<>""," -R","") ->  | AD121: =IF(AD122<>""," -R","") -> 
M122: 1.56 | N122: =IFERROR(VLOOKUP(M122,'CRUCE RIESGOS'!$C$9:$D$13,2,FALSE),"") ->  | O122: 2.56 | P122: =IFERROR(VLOOKUP(O122,'CRUCE RIESGOS'!$C$9:$D$13,2,FALSE),"") ->  | Q122: 3.56 | R122: =IFERROR(VLOOKUP(Q122,'CRUCE RIESGOS'!$C$9:$D$13,2,FALSE),"") ->  | S122: 4.56 | T122: =IFERROR(VLOOKUP(S122,'CRUCE RIESGOS'!$C$9:$D$13,2,FALSE),"") ->  | U122: 5.56 | V122: =IFERROR(VLOOKUP(U122,'CRUCE RIESGOS'!$C$9:$D$13,2,FALSE),"") ->  | W122: 6.56 | X122: =IFERROR(VLOOKUP(W122,'CRUCE RIESGOS'!$C$9:$D$13,2,FALSE),"") ->  | Y122: 7.56 | Z122: =IFERROR(VLOOKUP(Y122,'CRUCE RIESGOS'!$C$9:$D$13,2,FALSE),"") ->  | AA122: 8.56 | AB122: =IFERROR(VLOOKUP(AA122,'CRUCE RIESGOS'!$C$9:$D$13,2,FALSE),"") ->  | AC122: 9.56 | AD122: =IFERROR(VLOOKUP(AC122,'CRUCE RIESGOS'!$C$9:$D$13,2,FALSE),"") ->  | AE122: 10.56 | AF122: =IFERROR(VLOOKUP(AE122,'CRUCE RIESGOS'!$C$9:$D$13,2,FALSE),"") ->  | AG122: 11.56 | AH122: =IFERROR(VLOOKUP(AG122,'CRUCE RIESGOS'!$C$9:$D$13,2,FALSE),"") ->  | AI122: 12.56 | AJ122: =IFERROR(VLOOKUP(AI122,'CRUCE RIESGOS'!$C$9:$D$13,2,FALSE),"") ->  | AK122: 13.56 | AL122: =IFERROR(VLOOKUP(AK122,'CRUCE RIESGOS'!$C$9:$D$13,2,FALSE),"") ->  | AM122: 14.56 | AN122: =IFERROR(VLOOKUP(AM122,'CRUCE RIESGOS'!$C$9:$D$13,2,FALSE),"") ->  | AO122: 15.56 | AP122: =IFERROR(VLOOKUP(AO122,'CRUCE RIESGOS'!$C$9:$D$13,2,FALSE),"") ->  | AQ122: 16.56 | AR122: =IFERROR(VLOOKUP(AQ122,'CRUCE RIESGOS'!$C$9:$D$13,2,FALSE),"") ->  | AS122: 17.56 | AT122: =IFERROR(VLOOKUP(AS122,'CRUCE RIESGOS'!$C$9:$D$13,2,FALSE),"") ->  | AU122: 18.56 | AV122: =IFERROR(VLOOKUP(AU122,'CRUCE RIESGOS'!$C$9:$D$13,2,FALSE),"") ->  | AW122: 19.56 | AX122: =IFERROR(VLOOKUP(AW122,'CRUCE RIESGOS'!$C$9:$D$13,2,FALSE),"") ->  | AY122: 20.56 | AZ122: =IFERROR(VLOOKUP(AY122,'CRUCE RIESGOS'!$C$9:$D$13,2,FALSE),"") ->  | BA122: 21.56 | BB122: =IFERROR(VLOOKUP(BA122,'CRUCE RIESGOS'!$C$9:$D$13,2,FALSE),"") ->  | BC122: 22.56 | BD122: =IFERROR(VLOOKUP(BC122,'CRUCE RIESGOS'!$C$9:$D$13,2,FALSE),"") ->  | BE122: 23.56 | BF122: =IFERROR(VLOOKUP(BE122,'CRUCE RIESGOS'!$C$9:$D$13,2,FALSE),"") ->  | BG122: 24.56 | BH122: =IFERROR(VLOOKUP(BG122,'CRUCE RIESGOS'!$C$9:$D$13,2,FALSE),"") ->  | BI122: 25.56 | BJ122: =IFERROR(VLOOKUP(BI122,'CRUCE RIESGOS'!$C$9:$D$13,2,FALSE),"") -> 
P123: =IF(P124<>""," -R","") ->  | R123: =IF(R124<>""," -R","") ->  | T123: =IF(T124<>""," -R","") ->  | V123: =IF(V124<>""," -R","") ->  | X123: =IF(X124<>""," -R","") ->  | Z123: =IF(Z124<>""," -R","") ->  | AB123: =IF(AB124<>""," -R","") ->  | AD123: =IF(AD124<>""," -R","") -> 
M124: 1.57 | N124: =IFERROR(VLOOKUP(M124,'CRUCE RIESGOS'!$C$9:$D$13,2,FALSE),"") ->  | O124: 2.57 | P124: =IFERROR(VLOOKUP(O124,'CRUCE RIESGOS'!$C$9:$D$13,2,FALSE),"") ->  | Q124: 3.57 | R124: =IFERROR(VLOOKUP(Q124,'CRUCE RIESGOS'!$C$9:$D$13,2,FALSE),"") ->  | S124: 4.57 | T124: =IFERROR(VLOOKUP(S124,'CRUCE RIESGOS'!$C$9:$D$13,2,FALSE),"") ->  | U124: 5.57 | V124: =IFERROR(VLOOKUP(U124,'CRUCE RIESGOS'!$C$9:$D$13,2,FALSE),"") ->  | W124: 6.57 | X124: =IFERROR(VLOOKUP(W124,'CRUCE RIESGOS'!$C$9:$D$13,2,FALSE),"") ->  | Y124: 7.57 | Z124: =IFERROR(VLOOKUP(Y124,'CRUCE RIESGOS'!$C$9:$D$13,2,FALSE),"") ->  | AA124: 8.57 | AB124: =IFERROR(VLOOKUP(AA124,'CRUCE RIESGOS'!$C$9:$D$13,2,FALSE),"") ->  | AC124: 9.57 | AD124: =IFERROR(VLOOKUP(AC124,'CRUCE RIESGOS'!$C$9:$D$13,2,FALSE),"") ->  | AE124: 10.57 | AF124: =IFERROR(VLOOKUP(AE124,'CRUCE RIESGOS'!$C$9:$D$13,2,FALSE),"") ->  | AG124: 11.57 | AH124: =IFERROR(VLOOKUP(AG124,'CRUCE RIESGOS'!$C$9:$D$13,2,FALSE),"") ->  | AI124: 12.57 | AJ124: =IFERROR(VLOOKUP(AI124,'CRUCE RIESGOS'!$C$9:$D$13,2,FALSE),"") ->  | AK124: 13.57 | AL124: =IFERROR(VLOOKUP(AK124,'CRUCE RIESGOS'!$C$9:$D$13,2,FALSE),"") ->  | AM124: 14.57 | AN124: =IFERROR(VLOOKUP(AM124,'CRUCE RIESGOS'!$C$9:$D$13,2,FALSE),"") ->  | AO124: 15.57 | AP124: =IFERROR(VLOOKUP(AO124,'CRUCE RIESGOS'!$C$9:$D$13,2,FALSE),"") ->  | AQ124: 16.57 | AR124: =IFERROR(VLOOKUP(AQ124,'CRUCE RIESGOS'!$C$9:$D$13,2,FALSE),"") ->  | AS124: 17.57 | AT124: =IFERROR(VLOOKUP(AS124,'CRUCE RIESGOS'!$C$9:$D$13,2,FALSE),"") ->  | AU124: 18.57 | AV124: =IFERROR(VLOOKUP(AU124,'CRUCE RIESGOS'!$C$9:$D$13,2,FALSE),"") ->  | AW124: 19.57 | AX124: =IFERROR(VLOOKUP(AW124,'CRUCE RIESGOS'!$C$9:$D$13,2,FALSE),"") ->  | AY124: 20.57 | AZ124: =IFERROR(VLOOKUP(AY124,'CRUCE RIESGOS'!$C$9:$D$13,2,FALSE),"") ->  | BA124: 21.57 | BB124: =IFERROR(VLOOKUP(BA124,'CRUCE RIESGOS'!$C$9:$D$13,2,FALSE),"") ->  | BC124: 22.57 | BD124: =IFERROR(VLOOKUP(BC124,'CRUCE RIESGOS'!$C$9:$D$13,2,FALSE),"") ->  | BE124: 23.57 | BF124: =IFERROR(VLOOKUP(BE124,'CRUCE RIESGOS'!$C$9:$D$13,2,FALSE),"") ->  | BG124: 24.57 | BH124: =IFERROR(VLOOKUP(BG124,'CRUCE RIESGOS'!$C$9:$D$13,2,FALSE),"") ->  | BI124: 25.57 | BJ124: =IFERROR(VLOOKUP(BI124,'CRUCE RIESGOS'!$C$9:$D$13,2,FALSE),"") -> 
P125: =IF(P126<>""," -R","") ->  | R125: =IF(R126<>""," -R","") ->  | T125: =IF(T126<>""," -R","") ->  | V125: =IF(V126<>""," -R","") ->  | X125: =IF(X126<>""," -R","") ->  | Z125: =IF(Z126<>""," -R","") ->  | AB125: =IF(AB126<>""," -R","") ->  | AD125: =IF(AD126<>""," -R","") -> 
M126: 1.58 | N126: =IFERROR(VLOOKUP(M126,'CRUCE RIESGOS'!$C$9:$D$13,2,FALSE),"") ->  | O126: 2.58 | P126: =IFERROR(VLOOKUP(O126,'CRUCE RIESGOS'!$C$9:$D$13,2,FALSE),"") ->  | Q126: 3.58 | R126: =IFERROR(VLOOKUP(Q126,'CRUCE RIESGOS'!$C$9:$D$13,2,FALSE),"") ->  | S126: 4.58 | T126: =IFERROR(VLOOKUP(S126,'CRUCE RIESGOS'!$C$9:$D$13,2,FALSE),"") ->  | U126: 5.58 | V126: =IFERROR(VLOOKUP(U126,'CRUCE RIESGOS'!$C$9:$D$13,2,FALSE),"") ->  | W126: 6.58 | X126: =IFERROR(VLOOKUP(W126,'CRUCE RIESGOS'!$C$9:$D$13,2,FALSE),"") ->  | Y126: 7.58 | Z126: =IFERROR(VLOOKUP(Y126,'CRUCE RIESGOS'!$C$9:$D$13,2,FALSE),"") ->  | AA126: 8.58 | AB126: =IFERROR(VLOOKUP(AA126,'CRUCE RIESGOS'!$C$9:$D$13,2,FALSE),"") ->  | AC126: 9.58 | AD126: =IFERROR(VLOOKUP(AC126,'CRUCE RIESGOS'!$C$9:$D$13,2,FALSE),"") ->  | AE126: 10.58 | AF126: =IFERROR(VLOOKUP(AE126,'CRUCE RIESGOS'!$C$9:$D$13,2,FALSE),"") ->  | AG126: 11.58 | AH126: =IFERROR(VLOOKUP(AG126,'CRUCE RIESGOS'!$C$9:$D$13,2,FALSE),"") ->  | AI126: 12.58 | AJ126: =IFERROR(VLOOKUP(AI126,'CRUCE RIESGOS'!$C$9:$D$13,2,FALSE),"") ->  | AK126: 13.58 | AL126: =IFERROR(VLOOKUP(AK126,'CRUCE RIESGOS'!$C$9:$D$13,2,FALSE),"") ->  | AM126: 14.58 | AN126: =IFERROR(VLOOKUP(AM126,'CRUCE RIESGOS'!$C$9:$D$13,2,FALSE),"") ->  | AO126: 15.58 | AP126: =IFERROR(VLOOKUP(AO126,'CRUCE RIESGOS'!$C$9:$D$13,2,FALSE),"") ->  | AQ126: 16.58 | AR126: =IFERROR(VLOOKUP(AQ126,'CRUCE RIESGOS'!$C$9:$D$13,2,FALSE),"") ->  | AS126: 17.58 | AT126: =IFERROR(VLOOKUP(AS126,'CRUCE RIESGOS'!$C$9:$D$13,2,FALSE),"") ->  | AU126: 18.58 | AV126: =IFERROR(VLOOKUP(AU126,'CRUCE RIESGOS'!$C$9:$D$13,2,FALSE),"") ->  | AW126: 19.58 | AX126: =IFERROR(VLOOKUP(AW126,'CRUCE RIESGOS'!$C$9:$D$13,2,FALSE),"") ->  | AY126: 20.58 | AZ126: =IFERROR(VLOOKUP(AY126,'CRUCE RIESGOS'!$C$9:$D$13,2,FALSE),"") ->  | BA126: 21.58 | BB126: =IFERROR(VLOOKUP(BA126,'CRUCE RIESGOS'!$C$9:$D$13,2,FALSE),"") ->  | BC126: 22.58 | BD126: =IFERROR(VLOOKUP(BC126,'CRUCE RIESGOS'!$C$9:$D$13,2,FALSE),"") ->  | BE126: 23.58 | BF126: =IFERROR(VLOOKUP(BE126,'CRUCE RIESGOS'!$C$9:$D$13,2,FALSE),"") ->  | BG126: 24.58 | BH126: =IFERROR(VLOOKUP(BG126,'CRUCE RIESGOS'!$C$9:$D$13,2,FALSE),"") ->  | BI126: 25.58 | BJ126: =IFERROR(VLOOKUP(BI126,'CRUCE RIESGOS'!$C$9:$D$13,2,FALSE),"") -> 
P127: =IF(P128<>""," -R","") ->  | R127: =IF(R128<>""," -R","") ->  | T127: =IF(T128<>""," -R","") ->  | V127: =IF(V128<>""," -R","") ->  | X127: =IF(X128<>""," -R","") ->  | Z127: =IF(Z128<>""," -R","") ->  | AB127: =IF(AB128<>""," -R","") ->  | AD127: =IF(AD128<>""," -R","") -> 
M128: 1.59 | N128: =IFERROR(VLOOKUP(M128,'CRUCE RIESGOS'!$C$9:$D$13,2,FALSE),"") ->  | O128: 2.59 | P128: =IFERROR(VLOOKUP(O128,'CRUCE RIESGOS'!$C$9:$D$13,2,FALSE),"") ->  | Q128: 3.59 | R128: =IFERROR(VLOOKUP(Q128,'CRUCE RIESGOS'!$C$9:$D$13,2,FALSE),"") ->  | S128: 4.59 | T128: =IFERROR(VLOOKUP(S128,'CRUCE RIESGOS'!$C$9:$D$13,2,FALSE),"") ->  | U128: 5.59 | V128: =IFERROR(VLOOKUP(U128,'CRUCE RIESGOS'!$C$9:$D$13,2,FALSE),"") ->  | W128: 6.59 | X128: =IFERROR(VLOOKUP(W128,'CRUCE RIESGOS'!$C$9:$D$13,2,FALSE),"") ->  | Y128: 7.59 | Z128: =IFERROR(VLOOKUP(Y128,'CRUCE RIESGOS'!$C$9:$D$13,2,FALSE),"") ->  | AA128: 8.59 | AB128: =IFERROR(VLOOKUP(AA128,'CRUCE RIESGOS'!$C$9:$D$13,2,FALSE),"") ->  | AC128: 9.59 | AD128: =IFERROR(VLOOKUP(AC128,'CRUCE RIESGOS'!$C$9:$D$13,2,FALSE),"") ->  | AE128: 10.59 | AF128: =IFERROR(VLOOKUP(AE128,'CRUCE RIESGOS'!$C$9:$D$13,2,FALSE),"") ->  | AG128: 11.59 | AH128: =IFERROR(VLOOKUP(AG128,'CRUCE RIESGOS'!$C$9:$D$13,2,FALSE),"") ->  | AI128: 12.59 | AJ128: =IFERROR(VLOOKUP(AI128,'CRUCE RIESGOS'!$C$9:$D$13,2,FALSE),"") ->  | AK128: 13.59 | AL128: =IFERROR(VLOOKUP(AK128,'CRUCE RIESGOS'!$C$9:$D$13,2,FALSE),"") ->  | AM128: 14.59 | AN128: =IFERROR(VLOOKUP(AM128,'CRUCE RIESGOS'!$C$9:$D$13,2,FALSE),"") ->  | AO128: 15.59 | AP128: =IFERROR(VLOOKUP(AO128,'CRUCE RIESGOS'!$C$9:$D$13,2,FALSE),"") ->  | AQ128: 16.59 | AR128: =IFERROR(VLOOKUP(AQ128,'CRUCE RIESGOS'!$C$9:$D$13,2,FALSE),"") ->  | AS128: 17.59 | AT128: =IFERROR(VLOOKUP(AS128,'CRUCE RIESGOS'!$C$9:$D$13,2,FALSE),"") ->  | AU128: 18.59 | AV128: =IFERROR(VLOOKUP(AU128,'CRUCE RIESGOS'!$C$9:$D$13,2,FALSE),"") ->  | AW128: 19.59 | AX128: =IFERROR(VLOOKUP(AW128,'CRUCE RIESGOS'!$C$9:$D$13,2,FALSE),"") ->  | AY128: 20.59 | AZ128: =IFERROR(VLOOKUP(AY128,'CRUCE RIESGOS'!$C$9:$D$13,2,FALSE),"") ->  | BA128: 21.59 | BB128: =IFERROR(VLOOKUP(BA128,'CRUCE RIESGOS'!$C$9:$D$13,2,FALSE),"") ->  | BC128: 22.59 | BD128: =IFERROR(VLOOKUP(BC128,'CRUCE RIESGOS'!$C$9:$D$13,2,FALSE),"") ->  | BE128: 23.59 | BF128: =IFERROR(VLOOKUP(BE128,'CRUCE RIESGOS'!$C$9:$D$13,2,FALSE),"") ->  | BG128: 24.59 | BH128: =IFERROR(VLOOKUP(BG128,'CRUCE RIESGOS'!$C$9:$D$13,2,FALSE),"") ->  | BI128: 25.59 | BJ128: =IFERROR(VLOOKUP(BI128,'CRUCE RIESGOS'!$C$9:$D$13,2,FALSE),"") -> 
P129: =IF(P130<>""," -R","") ->  | R129: =IF(R130<>""," -R","") ->  | T129: =IF(T130<>""," -R","") ->  | V129: =IF(V130<>""," -R","") ->  | X129: =IF(X130<>""," -R","") ->  | Z129: =IF(Z130<>""," -R","") ->  | AB129: =IF(AB130<>""," -R","") ->  | AD129: =IF(AD130<>""," -R","") -> 
M130: 1.6 | N130: =IFERROR(VLOOKUP(M130,'CRUCE RIESGOS'!$C$9:$D$13,2,FALSE),"") ->  | O130: 2.6 | P130: =IFERROR(VLOOKUP(O130,'CRUCE RIESGOS'!$C$9:$D$13,2,FALSE),"") ->  | Q130: 3.6 | R130: =IFERROR(VLOOKUP(Q130,'CRUCE RIESGOS'!$C$9:$D$13,2,FALSE),"") ->  | S130: 4.6 | T130: =IFERROR(VLOOKUP(S130,'CRUCE RIESGOS'!$C$9:$D$13,2,FALSE),"") ->  | U130: 5.6 | V130: =IFERROR(VLOOKUP(U130,'CRUCE RIESGOS'!$C$9:$D$13,2,FALSE),"") ->  | W130: 6.6 | X130: =IFERROR(VLOOKUP(W130,'CRUCE RIESGOS'!$C$9:$D$13,2,FALSE),"") ->  | Y130: 7.6 | Z130: =IFERROR(VLOOKUP(Y130,'CRUCE RIESGOS'!$C$9:$D$13,2,FALSE),"") ->  | AA130: 8.6 | AB130: =IFERROR(VLOOKUP(AA130,'CRUCE RIESGOS'!$C$9:$D$13,2,FALSE),"") ->  | AC130: 9.6 | AD130: =IFERROR(VLOOKUP(AC130,'CRUCE RIESGOS'!$C$9:$D$13,2,FALSE),"") ->  | AE130: 10.6 | AF130: =IFERROR(VLOOKUP(AE130,'CRUCE RIESGOS'!$C$9:$D$13,2,FALSE),"") ->  | AG130: 11.6 | AH130: =IFERROR(VLOOKUP(AG130,'CRUCE RIESGOS'!$C$9:$D$13,2,FALSE),"") ->  | AI130: 12.6 | AJ130: =IFERROR(VLOOKUP(AI130,'CRUCE RIESGOS'!$C$9:$D$13,2,FALSE),"") ->  | AK130: 13.6 | AL130: =IFERROR(VLOOKUP(AK130,'CRUCE RIESGOS'!$C$9:$D$13,2,FALSE),"") ->  | AM130: 14.6 | AN130: =IFERROR(VLOOKUP(AM130,'CRUCE RIESGOS'!$C$9:$D$13,2,FALSE),"") ->  | AO130: 15.6 | AP130: =IFERROR(VLOOKUP(AO130,'CRUCE RIESGOS'!$C$9:$D$13,2,FALSE),"") ->  | AQ130: 16.6 | AR130: =IFERROR(VLOOKUP(AQ130,'CRUCE RIESGOS'!$C$9:$D$13,2,FALSE),"") ->  | AS130: 17.6 | AT130: =IFERROR(VLOOKUP(AS130,'CRUCE RIESGOS'!$C$9:$D$13,2,FALSE),"") ->  | AU130: 18.6 | AV130: =IFERROR(VLOOKUP(AU130,'CRUCE RIESGOS'!$C$9:$D$13,2,FALSE),"") ->  | AW130: 19.6 | AX130: =IFERROR(VLOOKUP(AW130,'CRUCE RIESGOS'!$C$9:$D$13,2,FALSE),"") ->  | AY130: 20.6 | AZ130: =IFERROR(VLOOKUP(AY130,'CRUCE RIESGOS'!$C$9:$D$13,2,FALSE),"") ->  | BA130: 21.6 | BB130: =IFERROR(VLOOKUP(BA130,'CRUCE RIESGOS'!$C$9:$D$13,2,FALSE),"") ->  | BC130: 22.6 | BD130: =IFERROR(VLOOKUP(BC130,'CRUCE RIESGOS'!$C$9:$D$13,2,FALSE),"") ->  | BE130: 23.6 | BF130: =IFERROR(VLOOKUP(BE130,'CRUCE RIESGOS'!$C$9:$D$13,2,FALSE),"") ->  | BG130: 24.6 | BH130: =IFERROR(VLOOKUP(BG130,'CRUCE RIESGOS'!$C$9:$D$13,2,FALSE),"") ->  | BI130: 25.6 | BJ130: =IFERROR(VLOOKUP(BI130,'CRUCE RIESGOS'!$C$9:$D$13,2,FALSE),"") -> 
P131: =IF(P132<>""," -R","") ->  | R131: =IF(R132<>""," -R","") ->  | T131: =IF(T132<>""," -R","") ->  | V131: =IF(V132<>""," -R","") ->  | X131: =IF(X132<>""," -R","") ->  | Z131: =IF(Z132<>""," -R","") ->  | AB131: =IF(AB132<>""," -R","") ->  | AD131: =IF(AD132<>""," -R","") -> 
M132: 1.61 | N132: =IFERROR(VLOOKUP(M132,'CRUCE RIESGOS'!$C$9:$D$13,2,FALSE),"") ->  | O132: 2.61 | P132: =IFERROR(VLOOKUP(O132,'CRUCE RIESGOS'!$C$9:$D$13,2,FALSE),"") ->  | Q132: 3.61 | R132: =IFERROR(VLOOKUP(Q132,'CRUCE RIESGOS'!$C$9:$D$13,2,FALSE),"") ->  | S132: 4.61 | T132: =IFERROR(VLOOKUP(S132,'CRUCE RIESGOS'!$C$9:$D$13,2,FALSE),"") ->  | U132: 5.61 | V132: =IFERROR(VLOOKUP(U132,'CRUCE RIESGOS'!$C$9:$D$13,2,FALSE),"") ->  | W132: 6.61 | X132: =IFERROR(VLOOKUP(W132,'CRUCE RIESGOS'!$C$9:$D$13,2,FALSE),"") ->  | Y132: 7.61 | Z132: =IFERROR(VLOOKUP(Y132,'CRUCE RIESGOS'!$C$9:$D$13,2,FALSE),"") ->  | AA132: 8.61 | AB132: =IFERROR(VLOOKUP(AA132,'CRUCE RIESGOS'!$C$9:$D$13,2,FALSE),"") ->  | AC132: 9.61 | AD132: =IFERROR(VLOOKUP(AC132,'CRUCE RIESGOS'!$C$9:$D$13,2,FALSE),"") ->  | AE132: 10.61 | AF132: =IFERROR(VLOOKUP(AE132,'CRUCE RIESGOS'!$C$9:$D$13,2,FALSE),"") ->  | AG132: 11.61 | AH132: =IFERROR(VLOOKUP(AG132,'CRUCE RIESGOS'!$C$9:$D$13,2,FALSE),"") ->  | AI132: 12.61 | AJ132: =IFERROR(VLOOKUP(AI132,'CRUCE RIESGOS'!$C$9:$D$13,2,FALSE),"") ->  | AK132: 13.61 | AL132: =IFERROR(VLOOKUP(AK132,'CRUCE RIESGOS'!$C$9:$D$13,2,FALSE),"") ->  | AM132: 14.61 | AN132: =IFERROR(VLOOKUP(AM132,'CRUCE RIESGOS'!$C$9:$D$13,2,FALSE),"") ->  | AO132: 15.61 | AP132: =IFERROR(VLOOKUP(AO132,'CRUCE RIESGOS'!$C$9:$D$13,2,FALSE),"") ->  | AQ132: 16.61 | AR132: =IFERROR(VLOOKUP(AQ132,'CRUCE RIESGOS'!$C$9:$D$13,2,FALSE),"") ->  | AS132: 17.61 | AT132: =IFERROR(VLOOKUP(AS132,'CRUCE RIESGOS'!$C$9:$D$13,2,FALSE),"") ->  | AU132: 18.61 | AV132: =IFERROR(VLOOKUP(AU132,'CRUCE RIESGOS'!$C$9:$D$13,2,FALSE),"") ->  | AW132: 19.61 | AX132: =IFERROR(VLOOKUP(AW132,'CRUCE RIESGOS'!$C$9:$D$13,2,FALSE),"") ->  | AY132: 20.61 | AZ132: =IFERROR(VLOOKUP(AY132,'CRUCE RIESGOS'!$C$9:$D$13,2,FALSE),"") ->  | BA132: 21.61 | BB132: =IFERROR(VLOOKUP(BA132,'CRUCE RIESGOS'!$C$9:$D$13,2,FALSE),"") ->  | BC132: 22.61 | BD132: =IFERROR(VLOOKUP(BC132,'CRUCE RIESGOS'!$C$9:$D$13,2,FALSE),"") ->  | BE132: 23.61 | BF132: =IFERROR(VLOOKUP(BE132,'CRUCE RIESGOS'!$C$9:$D$13,2,FALSE),"") ->  | BG132: 24.61 | BH132: =IFERROR(VLOOKUP(BG132,'CRUCE RIESGOS'!$C$9:$D$13,2,FALSE),"") ->  | BI132: 25.61 | BJ132: =IFERROR(VLOOKUP(BI132,'CRUCE RIESGOS'!$C$9:$D$13,2,FALSE),"") -> 
P133: =IF(P134<>""," -R","") ->  | R133: =IF(R134<>""," -R","") ->  | T133: =IF(T134<>""," -R","") ->  | V133: =IF(V134<>""," -R","") ->  | X133: =IF(X134<>""," -R","") ->  | Z133: =IF(Z134<>""," -R","") ->  | AB133: =IF(AB134<>""," -R","") ->  | AD133: =IF(AD134<>""," -R","") -> 
M134: 1.62 | N134: =IFERROR(VLOOKUP(M134,'CRUCE RIESGOS'!$C$9:$D$13,2,FALSE),"") ->  | O134: 2.62 | P134: =IFERROR(VLOOKUP(O134,'CRUCE RIESGOS'!$C$9:$D$13,2,FALSE),"") ->  | Q134: 3.62 | R134: =IFERROR(VLOOKUP(Q134,'CRUCE RIESGOS'!$C$9:$D$13,2,FALSE),"") ->  | S134: 4.62 | T134: =IFERROR(VLOOKUP(S134,'CRUCE RIESGOS'!$C$9:$D$13,2,FALSE),"") ->  | U134: 5.62 | V134: =IFERROR(VLOOKUP(U134,'CRUCE RIESGOS'!$C$9:$D$13,2,FALSE),"") ->  | W134: 6.62 | X134: =IFERROR(VLOOKUP(W134,'CRUCE RIESGOS'!$C$9:$D$13,2,FALSE),"") ->  | Y134: 7.62 | Z134: =IFERROR(VLOOKUP(Y134,'CRUCE RIESGOS'!$C$9:$D$13,2,FALSE),"") ->  | AA134: 8.62 | AB134: =IFERROR(VLOOKUP(AA134,'CRUCE RIESGOS'!$C$9:$D$13,2,FALSE),"") ->  | AC134: 9.62 | AD134: =IFERROR(VLOOKUP(AC134,'CRUCE RIESGOS'!$C$9:$D$13,2,FALSE),"") ->  | AE134: 10.62 | AF134: =IFERROR(VLOOKUP(AE134,'CRUCE RIESGOS'!$C$9:$D$13,2,FALSE),"") ->  | AG134: 11.62 | AH134: =IFERROR(VLOOKUP(AG134,'CRUCE RIESGOS'!$C$9:$D$13,2,FALSE),"") ->  | AI134: 12.62 | AJ134: =IFERROR(VLOOKUP(AI134,'CRUCE RIESGOS'!$C$9:$D$13,2,FALSE),"") ->  | AK134: 13.62 | AL134: =IFERROR(VLOOKUP(AK134,'CRUCE RIESGOS'!$C$9:$D$13,2,FALSE),"") ->  | AM134: 14.62 | AN134: =IFERROR(VLOOKUP(AM134,'CRUCE RIESGOS'!$C$9:$D$13,2,FALSE),"") ->  | AO134: 15.62 | AP134: =IFERROR(VLOOKUP(AO134,'CRUCE RIESGOS'!$C$9:$D$13,2,FALSE),"") ->  | AQ134: 16.62 | AR134: =IFERROR(VLOOKUP(AQ134,'CRUCE RIESGOS'!$C$9:$D$13,2,FALSE),"") ->  | AS134: 17.62 | AT134: =IFERROR(VLOOKUP(AS134,'CRUCE RIESGOS'!$C$9:$D$13,2,FALSE),"") ->  | AU134: 18.62 | AV134: =IFERROR(VLOOKUP(AU134,'CRUCE RIESGOS'!$C$9:$D$13,2,FALSE),"") ->  | AW134: 19.62 | AX134: =IFERROR(VLOOKUP(AW134,'CRUCE RIESGOS'!$C$9:$D$13,2,FALSE),"") ->  | AY134: 20.62 | AZ134: =IFERROR(VLOOKUP(AY134,'CRUCE RIESGOS'!$C$9:$D$13,2,FALSE),"") ->  | BA134: 21.62 | BB134: =IFERROR(VLOOKUP(BA134,'CRUCE RIESGOS'!$C$9:$D$13,2,FALSE),"") ->  | BC134: 22.62 | BD134: =IFERROR(VLOOKUP(BC134,'CRUCE RIESGOS'!$C$9:$D$13,2,FALSE),"") ->  | BE134: 23.62 | BF134: =IFERROR(VLOOKUP(BE134,'CRUCE RIESGOS'!$C$9:$D$13,2,FALSE),"") ->  | BG134: 24.62 | BH134: =IFERROR(VLOOKUP(BG134,'CRUCE RIESGOS'!$C$9:$D$13,2,FALSE),"") ->  | BI134: 25.62 | BJ134: =IFERROR(VLOOKUP(BI134,'CRUCE RIESGOS'!$C$9:$D$13,2,FALSE),"") -> 
P135: =IF(P136<>""," -R","") ->  | R135: =IF(R136<>""," -R","") ->  | T135: =IF(T136<>""," -R","") ->  | V135: =IF(V136<>""," -R","") ->  | X135: =IF(X136<>""," -R","") ->  | Z135: =IF(Z136<>""," -R","") ->  | AB135: =IF(AB136<>""," -R","") ->  | AD135: =IF(AD136<>""," -R","") -> 
M136: 1.63 | N136: =IFERROR(VLOOKUP(M136,'CRUCE RIESGOS'!$C$9:$D$13,2,FALSE),"") ->  | O136: 2.63 | P136: =IFERROR(VLOOKUP(O136,'CRUCE RIESGOS'!$C$9:$D$13,2,FALSE),"") ->  | Q136: 3.63 | R136: =IFERROR(VLOOKUP(Q136,'CRUCE RIESGOS'!$C$9:$D$13,2,FALSE),"") ->  | S136: 4.63 | T136: =IFERROR(VLOOKUP(S136,'CRUCE RIESGOS'!$C$9:$D$13,2,FALSE),"") ->  | U136: 5.63 | V136: =IFERROR(VLOOKUP(U136,'CRUCE RIESGOS'!$C$9:$D$13,2,FALSE),"") ->  | W136: 6.63 | X136: =IFERROR(VLOOKUP(W136,'CRUCE RIESGOS'!$C$9:$D$13,2,FALSE),"") ->  | Y136: 7.63 | Z136: =IFERROR(VLOOKUP(Y136,'CRUCE RIESGOS'!$C$9:$D$13,2,FALSE),"") ->  | AA136: 8.63 | AB136: =IFERROR(VLOOKUP(AA136,'CRUCE RIESGOS'!$C$9:$D$13,2,FALSE),"") ->  | AC136: 9.63 | AD136: =IFERROR(VLOOKUP(AC136,'CRUCE RIESGOS'!$C$9:$D$13,2,FALSE),"") ->  | AE136: 10.63 | AF136: =IFERROR(VLOOKUP(AE136,'CRUCE RIESGOS'!$C$9:$D$13,2,FALSE),"") ->  | AG136: 11.63 | AH136: =IFERROR(VLOOKUP(AG136,'CRUCE RIESGOS'!$C$9:$D$13,2,FALSE),"") ->  | AI136: 12.63 | AJ136: =IFERROR(VLOOKUP(AI136,'CRUCE RIESGOS'!$C$9:$D$13,2,FALSE),"") ->  | AK136: 13.63 | AL136: =IFERROR(VLOOKUP(AK136,'CRUCE RIESGOS'!$C$9:$D$13,2,FALSE),"") ->  | AM136: 14.63 | AN136: =IFERROR(VLOOKUP(AM136,'CRUCE RIESGOS'!$C$9:$D$13,2,FALSE),"") ->  | AO136: 15.63 | AP136: =IFERROR(VLOOKUP(AO136,'CRUCE RIESGOS'!$C$9:$D$13,2,FALSE),"") ->  | AQ136: 16.63 | AR136: =IFERROR(VLOOKUP(AQ136,'CRUCE RIESGOS'!$C$9:$D$13,2,FALSE),"") ->  | AS136: 17.63 | AT136: =IFERROR(VLOOKUP(AS136,'CRUCE RIESGOS'!$C$9:$D$13,2,FALSE),"") ->  | AU136: 18.63 | AV136: =IFERROR(VLOOKUP(AU136,'CRUCE RIESGOS'!$C$9:$D$13,2,FALSE),"") ->  | AW136: 19.63 | AX136: =IFERROR(VLOOKUP(AW136,'CRUCE RIESGOS'!$C$9:$D$13,2,FALSE),"") ->  | AY136: 20.63 | AZ136: =IFERROR(VLOOKUP(AY136,'CRUCE RIESGOS'!$C$9:$D$13,2,FALSE),"") ->  | BA136: 21.63 | BB136: =IFERROR(VLOOKUP(BA136,'CRUCE RIESGOS'!$C$9:$D$13,2,FALSE),"") ->  | BC136: 22.63 | BD136: =IFERROR(VLOOKUP(BC136,'CRUCE RIESGOS'!$C$9:$D$13,2,FALSE),"") ->  | BE136: 23.63 | BF136: =IFERROR(VLOOKUP(BE136,'CRUCE RIESGOS'!$C$9:$D$13,2,FALSE),"") ->  | BG136: 24.63 | BH136: =IFERROR(VLOOKUP(BG136,'CRUCE RIESGOS'!$C$9:$D$13,2,FALSE),"") ->  | BI136: 25.63 | BJ136: =IFERROR(VLOOKUP(BI136,'CRUCE RIESGOS'!$C$9:$D$13,2,FALSE),"") -> 
P137: =IF(P138<>""," -R","") ->  | R137: =IF(R138<>""," -R","") ->  | T137: =IF(T138<>""," -R","") ->  | V137: =IF(V138<>""," -R","") ->  | X137: =IF(X138<>""," -R","") ->  | Z137: =IF(Z138<>""," -R","") ->  | AB137: =IF(AB138<>""," -R","") ->  | AD137: =IF(AD138<>""," -R","") -> 
M138: 1.64 | N138: =IFERROR(VLOOKUP(M138,'CRUCE RIESGOS'!$C$9:$D$13,2,FALSE),"") ->  | O138: 2.64 | P138: =IFERROR(VLOOKUP(O138,'CRUCE RIESGOS'!$C$9:$D$13,2,FALSE),"") ->  | Q138: 3.64 | R138: =IFERROR(VLOOKUP(Q138,'CRUCE RIESGOS'!$C$9:$D$13,2,FALSE),"") ->  | S138: 4.64 | T138: =IFERROR(VLOOKUP(S138,'CRUCE RIESGOS'!$C$9:$D$13,2,FALSE),"") ->  | U138: 5.64 | V138: =IFERROR(VLOOKUP(U138,'CRUCE RIESGOS'!$C$9:$D$13,2,FALSE),"") ->  | W138: 6.64 | X138: =IFERROR(VLOOKUP(W138,'CRUCE RIESGOS'!$C$9:$D$13,2,FALSE),"") ->  | Y138: 7.64 | Z138: =IFERROR(VLOOKUP(Y138,'CRUCE RIESGOS'!$C$9:$D$13,2,FALSE),"") ->  | AA138: 8.64 | AB138: =IFERROR(VLOOKUP(AA138,'CRUCE RIESGOS'!$C$9:$D$13,2,FALSE),"") ->  | AC138: 9.64 | AD138: =IFERROR(VLOOKUP(AC138,'CRUCE RIESGOS'!$C$9:$D$13,2,FALSE),"") ->  | AE138: 10.64 | AF138: =IFERROR(VLOOKUP(AE138,'CRUCE RIESGOS'!$C$9:$D$13,2,FALSE),"") ->  | AG138: 11.64 | AH138: =IFERROR(VLOOKUP(AG138,'CRUCE RIESGOS'!$C$9:$D$13,2,FALSE),"") ->  | AI138: 12.64 | AJ138: =IFERROR(VLOOKUP(AI138,'CRUCE RIESGOS'!$C$9:$D$13,2,FALSE),"") ->  | AK138: 13.64 | AL138: =IFERROR(VLOOKUP(AK138,'CRUCE RIESGOS'!$C$9:$D$13,2,FALSE),"") ->  | AM138: 14.64 | AN138: =IFERROR(VLOOKUP(AM138,'CRUCE RIESGOS'!$C$9:$D$13,2,FALSE),"") ->  | AO138: 15.64 | AP138: =IFERROR(VLOOKUP(AO138,'CRUCE RIESGOS'!$C$9:$D$13,2,FALSE),"") ->  | AQ138: 16.64 | AR138: =IFERROR(VLOOKUP(AQ138,'CRUCE RIESGOS'!$C$9:$D$13,2,FALSE),"") ->  | AS138: 17.64 | AT138: =IFERROR(VLOOKUP(AS138,'CRUCE RIESGOS'!$C$9:$D$13,2,FALSE),"") ->  | AU138: 18.64 | AV138: =IFERROR(VLOOKUP(AU138,'CRUCE RIESGOS'!$C$9:$D$13,2,FALSE),"") ->  | AW138: 19.64 | AX138: =IFERROR(VLOOKUP(AW138,'CRUCE RIESGOS'!$C$9:$D$13,2,FALSE),"") ->  | AY138: 20.64 | AZ138: =IFERROR(VLOOKUP(AY138,'CRUCE RIESGOS'!$C$9:$D$13,2,FALSE),"") ->  | BA138: 21.64 | BB138: =IFERROR(VLOOKUP(BA138,'CRUCE RIESGOS'!$C$9:$D$13,2,FALSE),"") ->  | BC138: 22.64 | BD138: =IFERROR(VLOOKUP(BC138,'CRUCE RIESGOS'!$C$9:$D$13,2,FALSE),"") ->  | BE138: 23.64 | BF138: =IFERROR(VLOOKUP(BE138,'CRUCE RIESGOS'!$C$9:$D$13,2,FALSE),"") ->  | BG138: 24.64 | BH138: =IFERROR(VLOOKUP(BG138,'CRUCE RIESGOS'!$C$9:$D$13,2,FALSE),"") ->  | BI138: 25.64 | BJ138: =IFERROR(VLOOKUP(BI138,'CRUCE RIESGOS'!$C$9:$D$13,2,FALSE),"") -> 
N139: =IF(N140<>""," -R","") ->  | P139: =IF(P140<>""," -R","") ->  | R139: =IF(R140<>""," -R","") ->  | T139: =IF(T140<>""," -R","") ->  | V139: =IF(V140<>""," -R","") ->  | X139: =IF(X140<>""," -R","") ->  | Z139: =IF(Z140<>""," -R","") ->  | AB139: =IF(AB140<>""," -R","") ->  | AD139: =IF(AD140<>""," -R","") ->  | AF139: =IF(AF140<>""," -R","") ->  | AH139: =IF(AH140<>""," -R","") ->  | AJ139: =IF(AJ140<>""," -R","") ->  | AL139: =IF(AL140<>""," -R","") ->  | AN139: =IF(AN140<>""," -R","") ->  | AP139: =IF(AP140<>""," -R","") ->  | AR139: =IF(AR140<>""," -R","") ->  | AT139: =IF(AT140<>""," -R","") ->  | AV139: =IF(AV140<>""," -R","") ->  | AX139: =IF(AX140<>""," -R","") ->  | AZ139: =IF(AZ140<>""," -R","") ->  | BB139: =IF(BB140<>""," -R","") ->  | BD139: =IF(BD140<>""," -R","") ->  | BF139: =IF(BF140<>""," -R","") ->  | BH139: =IF(BH140<>""," -R","") ->  | BJ139: =IF(BJ140<>""," -R","") -> 
M140: 1.65 | N140: =IFERROR(VLOOKUP(M140,'CRUCE RIESGOS'!$C$9:$D$13,2,FALSE),"") ->  | O140: 2.65 | P140: =IFERROR(VLOOKUP(O140,'CRUCE RIESGOS'!$C$9:$D$13,2,FALSE),"") ->  | Q140: 3.65 | R140: =IFERROR(VLOOKUP(Q140,'CRUCE RIESGOS'!$C$9:$D$13,2,FALSE),"") ->  | S140: 4.65 | T140: =IFERROR(VLOOKUP(S140,'CRUCE RIESGOS'!$C$9:$D$13,2,FALSE),"") ->  | U140: 5.65 | V140: =IFERROR(VLOOKUP(U140,'CRUCE RIESGOS'!$C$9:$D$13,2,FALSE),"") ->  | W140: 6.65 | X140: =IFERROR(VLOOKUP(W140,'CRUCE RIESGOS'!$C$9:$D$13,2,FALSE),"") ->  | Y140: 7.65 | Z140: =IFERROR(VLOOKUP(Y140,'CRUCE RIESGOS'!$C$9:$D$13,2,FALSE),"") ->  | AA140: 8.65 | AB140: =IFERROR(VLOOKUP(AA140,'CRUCE RIESGOS'!$C$9:$D$13,2,FALSE),"") ->  | AC140: 9.65 | AD140: =IFERROR(VLOOKUP(AC140,'CRUCE RIESGOS'!$C$9:$D$13,2,FALSE),"") ->  | AE140: 10.65 | AF140: =IFERROR(VLOOKUP(AE140,'CRUCE RIESGOS'!$C$9:$D$13,2,FALSE),"") ->  | AG140: 11.65 | AH140: =IFERROR(VLOOKUP(AG140,'CRUCE RIESGOS'!$C$9:$D$13,2,FALSE),"") ->  | AI140: 12.65 | AJ140: =IFERROR(VLOOKUP(AI140,'CRUCE RIESGOS'!$C$9:$D$13,2,FALSE),"") ->  | AK140: 13.65 | AL140: =IFERROR(VLOOKUP(AK140,'CRUCE RIESGOS'!$C$9:$D$13,2,FALSE),"") ->  | AM140: 14.65 | AN140: =IFERROR(VLOOKUP(AM140,'CRUCE RIESGOS'!$C$9:$D$13,2,FALSE),"") ->  | AO140: 15.65 | AP140: =IFERROR(VLOOKUP(AO140,'CRUCE RIESGOS'!$C$9:$D$13,2,FALSE),"") ->  | AQ140: 16.65 | AR140: =IFERROR(VLOOKUP(AQ140,'CRUCE RIESGOS'!$C$9:$D$13,2,FALSE),"") ->  | AS140: 17.65 | AT140: =IFERROR(VLOOKUP(AS140,'CRUCE RIESGOS'!$C$9:$D$13,2,FALSE),"") ->  | AU140: 18.65 | AV140: =IFERROR(VLOOKUP(AU140,'CRUCE RIESGOS'!$C$9:$D$13,2,FALSE),"") ->  | AW140: 19.65 | AX140: =IFERROR(VLOOKUP(AW140,'CRUCE RIESGOS'!$C$9:$D$13,2,FALSE),"") ->  | AY140: 20.65 | AZ140: =IFERROR(VLOOKUP(AY140,'CRUCE RIESGOS'!$C$9:$D$13,2,FALSE),"") ->  | BA140: 21.65 | BB140: =IFERROR(VLOOKUP(BA140,'CRUCE RIESGOS'!$C$9:$D$13,2,FALSE),"") ->  | BC140: 22.65 | BD140: =IFERROR(VLOOKUP(BC140,'CRUCE RIESGOS'!$C$9:$D$13,2,FALSE),"") ->  | BE140: 23.65 | BF140: =IFERROR(VLOOKUP(BE140,'CRUCE RIESGOS'!$C$9:$D$13,2,FALSE),"") ->  | BG140: 24.65 | BH140: =IFERROR(VLOOKUP(BG140,'CRUCE RIESGOS'!$C$9:$D$13,2,FALSE),"") ->  | BI140: 25.65 | BJ140: =IFERROR(VLOOKUP(BI140,'CRUCE RIESGOS'!$C$9:$D$13,2,FALSE),"") -> 
P141: =IF(P142<>""," -R","") ->  | R141: =IF(R142<>""," -R","") ->  | T141: =IF(T142<>""," -R","") ->  | V141: =IF(V142<>""," -R","") ->  | X141: =IF(X142<>""," -R","") ->  | Z141: =IF(Z142<>""," -R","") ->  | AB141: =IF(AB142<>""," -R","") ->  | AD141: =IF(AD142<>""," -R","") -> 
M142: 1.66 | N142: =IFERROR(VLOOKUP(M142,'CRUCE RIESGOS'!$C$9:$D$13,2,FALSE),"") ->  | O142: 2.66 | P142: =IFERROR(VLOOKUP(O142,'CRUCE RIESGOS'!$C$9:$D$13,2,FALSE),"") ->  | Q142: 3.66 | R142: =IFERROR(VLOOKUP(Q142,'CRUCE RIESGOS'!$C$9:$D$13,2,FALSE),"") ->  | S142: 4.66 | T142: =IFERROR(VLOOKUP(S142,'CRUCE RIESGOS'!$C$9:$D$13,2,FALSE),"") ->  | U142: 5.66 | V142: =IFERROR(VLOOKUP(U142,'CRUCE RIESGOS'!$C$9:$D$13,2,FALSE),"") ->  | W142: 6.66 | X142: =IFERROR(VLOOKUP(W142,'CRUCE RIESGOS'!$C$9:$D$13,2,FALSE),"") ->  | Y142: 7.66 | Z142: =IFERROR(VLOOKUP(Y142,'CRUCE RIESGOS'!$C$9:$D$13,2,FALSE),"") ->  | AA142: 8.66 | AB142: =IFERROR(VLOOKUP(AA142,'CRUCE RIESGOS'!$C$9:$D$13,2,FALSE),"") ->  | AC142: 9.66 | AD142: =IFERROR(VLOOKUP(AC142,'CRUCE RIESGOS'!$C$9:$D$13,2,FALSE),"") ->  | AE142: 10.66 | AF142: =IFERROR(VLOOKUP(AE142,'CRUCE RIESGOS'!$C$9:$D$13,2,FALSE),"") ->  | AG142: 11.66 | AH142: =IFERROR(VLOOKUP(AG142,'CRUCE RIESGOS'!$C$9:$D$13,2,FALSE),"") ->  | AI142: 12.66 | AJ142: =IFERROR(VLOOKUP(AI142,'CRUCE RIESGOS'!$C$9:$D$13,2,FALSE),"") ->  | AK142: 13.66 | AL142: =IFERROR(VLOOKUP(AK142,'CRUCE RIESGOS'!$C$9:$D$13,2,FALSE),"") ->  | AM142: 14.66 | AN142: =IFERROR(VLOOKUP(AM142,'CRUCE RIESGOS'!$C$9:$D$13,2,FALSE),"") ->  | AO142: 15.66 | AP142: =IFERROR(VLOOKUP(AO142,'CRUCE RIESGOS'!$C$9:$D$13,2,FALSE),"") ->  | AQ142: 16.66 | AR142: =IFERROR(VLOOKUP(AQ142,'CRUCE RIESGOS'!$C$9:$D$13,2,FALSE),"") ->  | AS142: 17.66 | AT142: =IFERROR(VLOOKUP(AS142,'CRUCE RIESGOS'!$C$9:$D$13,2,FALSE),"") ->  | AU142: 18.66 | AV142: =IFERROR(VLOOKUP(AU142,'CRUCE RIESGOS'!$C$9:$D$13,2,FALSE),"") ->  | AW142: 19.66 | AX142: =IFERROR(VLOOKUP(AW142,'CRUCE RIESGOS'!$C$9:$D$13,2,FALSE),"") ->  | AY142: 20.66 | AZ142: =IFERROR(VLOOKUP(AY142,'CRUCE RIESGOS'!$C$9:$D$13,2,FALSE),"") ->  | BA142: 21.66 | BB142: =IFERROR(VLOOKUP(BA142,'CRUCE RIESGOS'!$C$9:$D$13,2,FALSE),"") ->  | BC142: 22.66 | BD142: =IFERROR(VLOOKUP(BC142,'CRUCE RIESGOS'!$C$9:$D$13,2,FALSE),"") ->  | BE142: 23.66 | BF142: =IFERROR(VLOOKUP(BE142,'CRUCE RIESGOS'!$C$9:$D$13,2,FALSE),"") ->  | BG142: 24.66 | BH142: =IFERROR(VLOOKUP(BG142,'CRUCE RIESGOS'!$C$9:$D$13,2,FALSE),"") ->  | BI142: 25.66 | BJ142: =IFERROR(VLOOKUP(BI142,'CRUCE RIESGOS'!$C$9:$D$13,2,FALSE),"") -> 
P143: =IF(P144<>""," -R","") ->  | R143: =IF(R144<>""," -R","") ->  | T143: =IF(T144<>""," -R","") ->  | V143: =IF(V144<>""," -R","") ->  | X143: =IF(X144<>""," -R","") ->  | Z143: =IF(Z144<>""," -R","") ->  | AB143: =IF(AB144<>""," -R","") ->  | AD143: =IF(AD144<>""," -R","") -> 
M144: 1.67 | N144: =IFERROR(VLOOKUP(M144,'CRUCE RIESGOS'!$C$9:$D$13,2,FALSE),"") ->  | O144: 2.67 | P144: =IFERROR(VLOOKUP(O144,'CRUCE RIESGOS'!$C$9:$D$13,2,FALSE),"") ->  | Q144: 3.67 | R144: =IFERROR(VLOOKUP(Q144,'CRUCE RIESGOS'!$C$9:$D$13,2,FALSE),"") ->  | S144: 4.67 | T144: =IFERROR(VLOOKUP(S144,'CRUCE RIESGOS'!$C$9:$D$13,2,FALSE),"") ->  | U144: 5.67 | V144: =IFERROR(VLOOKUP(U144,'CRUCE RIESGOS'!$C$9:$D$13,2,FALSE),"") ->  | W144: 6.67 | X144: =IFERROR(VLOOKUP(W144,'CRUCE RIESGOS'!$C$9:$D$13,2,FALSE),"") ->  | Y144: 7.67 | Z144: =IFERROR(VLOOKUP(Y144,'CRUCE RIESGOS'!$C$9:$D$13,2,FALSE),"") ->  | AA144: 8.67 | AB144: =IFERROR(VLOOKUP(AA144,'CRUCE RIESGOS'!$C$9:$D$13,2,FALSE),"") ->  | AC144: 9.67 | AD144: =IFERROR(VLOOKUP(AC144,'CRUCE RIESGOS'!$C$9:$D$13,2,FALSE),"") ->  | AE144: 10.67 | AF144: =IFERROR(VLOOKUP(AE144,'CRUCE RIESGOS'!$C$9:$D$13,2,FALSE),"") ->  | AG144: 11.67 | AH144: =IFERROR(VLOOKUP(AG144,'CRUCE RIESGOS'!$C$9:$D$13,2,FALSE),"") ->  | AI144: 12.67 | AJ144: =IFERROR(VLOOKUP(AI144,'CRUCE RIESGOS'!$C$9:$D$13,2,FALSE),"") ->  | AK144: 13.67 | AL144: =IFERROR(VLOOKUP(AK144,'CRUCE RIESGOS'!$C$9:$D$13,2,FALSE),"") ->  | AM144: 14.67 | AN144: =IFERROR(VLOOKUP(AM144,'CRUCE RIESGOS'!$C$9:$D$13,2,FALSE),"") ->  | AO144: 15.67 | AP144: =IFERROR(VLOOKUP(AO144,'CRUCE RIESGOS'!$C$9:$D$13,2,FALSE),"") ->  | AQ144: 16.67 | AR144: =IFERROR(VLOOKUP(AQ144,'CRUCE RIESGOS'!$C$9:$D$13,2,FALSE),"") ->  | AS144: 17.67 | AT144: =IFERROR(VLOOKUP(AS144,'CRUCE RIESGOS'!$C$9:$D$13,2,FALSE),"") ->  | AU144: 18.67 | AV144: =IFERROR(VLOOKUP(AU144,'CRUCE RIESGOS'!$C$9:$D$13,2,FALSE),"") ->  | AW144: 19.67 | AX144: =IFERROR(VLOOKUP(AW144,'CRUCE RIESGOS'!$C$9:$D$13,2,FALSE),"") ->  | AY144: 20.67 | AZ144: =IFERROR(VLOOKUP(AY144,'CRUCE RIESGOS'!$C$9:$D$13,2,FALSE),"") ->  | BA144: 21.67 | BB144: =IFERROR(VLOOKUP(BA144,'CRUCE RIESGOS'!$C$9:$D$13,2,FALSE),"") ->  | BC144: 22.67 | BD144: =IFERROR(VLOOKUP(BC144,'CRUCE RIESGOS'!$C$9:$D$13,2,FALSE),"") ->  | BE144: 23.67 | BF144: =IFERROR(VLOOKUP(BE144,'CRUCE RIESGOS'!$C$9:$D$13,2,FALSE),"") ->  | BG144: 24.67 | BH144: =IFERROR(VLOOKUP(BG144,'CRUCE RIESGOS'!$C$9:$D$13,2,FALSE),"") ->  | BI144: 25.67 | BJ144: =IFERROR(VLOOKUP(BI144,'CRUCE RIESGOS'!$C$9:$D$13,2,FALSE),"") -> 
P145: =IF(P146<>""," -R","") ->  | R145: =IF(R146<>""," -R","") ->  | T145: =IF(T146<>""," -R","") ->  | V145: =IF(V146<>""," -R","") ->  | X145: =IF(X146<>""," -R","") ->  | Z145: =IF(Z146<>""," -R","") ->  | AB145: =IF(AB146<>""," -R","") ->  | AD145: =IF(AD146<>""," -R","") -> 
M146: 1.68 | N146: =IFERROR(VLOOKUP(M146,'CRUCE RIESGOS'!$C$9:$D$13,2,FALSE),"") ->  | O146: 2.68 | P146: =IFERROR(VLOOKUP(O146,'CRUCE RIESGOS'!$C$9:$D$13,2,FALSE),"") ->  | Q146: 3.68 | R146: =IFERROR(VLOOKUP(Q146,'CRUCE RIESGOS'!$C$9:$D$13,2,FALSE),"") ->  | S146: 4.68 | T146: =IFERROR(VLOOKUP(S146,'CRUCE RIESGOS'!$C$9:$D$13,2,FALSE),"") ->  | U146: 5.68 | V146: =IFERROR(VLOOKUP(U146,'CRUCE RIESGOS'!$C$9:$D$13,2,FALSE),"") ->  | W146: 6.68 | X146: =IFERROR(VLOOKUP(W146,'CRUCE RIESGOS'!$C$9:$D$13,2,FALSE),"") ->  | Y146: 7.68 | Z146: =IFERROR(VLOOKUP(Y146,'CRUCE RIESGOS'!$C$9:$D$13,2,FALSE),"") ->  | AA146: 8.68 | AB146: =IFERROR(VLOOKUP(AA146,'CRUCE RIESGOS'!$C$9:$D$13,2,FALSE),"") ->  | AC146: 9.68 | AD146: =IFERROR(VLOOKUP(AC146,'CRUCE RIESGOS'!$C$9:$D$13,2,FALSE),"") ->  | AE146: 10.68 | AF146: =IFERROR(VLOOKUP(AE146,'CRUCE RIESGOS'!$C$9:$D$13,2,FALSE),"") ->  | AG146: 11.68 | AH146: =IFERROR(VLOOKUP(AG146,'CRUCE RIESGOS'!$C$9:$D$13,2,FALSE),"") ->  | AI146: 12.68 | AJ146: =IFERROR(VLOOKUP(AI146,'CRUCE RIESGOS'!$C$9:$D$13,2,FALSE),"") ->  | AK146: 13.68 | AL146: =IFERROR(VLOOKUP(AK146,'CRUCE RIESGOS'!$C$9:$D$13,2,FALSE),"") ->  | AM146: 14.68 | AN146: =IFERROR(VLOOKUP(AM146,'CRUCE RIESGOS'!$C$9:$D$13,2,FALSE),"") ->  | AO146: 15.68 | AP146: =IFERROR(VLOOKUP(AO146,'CRUCE RIESGOS'!$C$9:$D$13,2,FALSE),"") ->  | AQ146: 16.68 | AR146: =IFERROR(VLOOKUP(AQ146,'CRUCE RIESGOS'!$C$9:$D$13,2,FALSE),"") ->  | AS146: 17.68 | AT146: =IFERROR(VLOOKUP(AS146,'CRUCE RIESGOS'!$C$9:$D$13,2,FALSE),"") ->  | AU146: 18.68 | AV146: =IFERROR(VLOOKUP(AU146,'CRUCE RIESGOS'!$C$9:$D$13,2,FALSE),"") ->  | AW146: 19.68 | AX146: =IFERROR(VLOOKUP(AW146,'CRUCE RIESGOS'!$C$9:$D$13,2,FALSE),"") ->  | AY146: 20.68 | AZ146: =IFERROR(VLOOKUP(AY146,'CRUCE RIESGOS'!$C$9:$D$13,2,FALSE),"") ->  | BA146: 21.68 | BB146: =IFERROR(VLOOKUP(BA146,'CRUCE RIESGOS'!$C$9:$D$13,2,FALSE),"") ->  | BC146: 22.68 | BD146: =IFERROR(VLOOKUP(BC146,'CRUCE RIESGOS'!$C$9:$D$13,2,FALSE),"") ->  | BE146: 23.68 | BF146: =IFERROR(VLOOKUP(BE146,'CRUCE RIESGOS'!$C$9:$D$13,2,FALSE),"") ->  | BG146: 24.68 | BH146: =IFERROR(VLOOKUP(BG146,'CRUCE RIESGOS'!$C$9:$D$13,2,FALSE),"") ->  | BI146: 25.68 | BJ146: =IFERROR(VLOOKUP(BI146,'CRUCE RIESGOS'!$C$9:$D$13,2,FALSE),"") -> 
P147: =IF(P148<>""," -R","") ->  | R147: =IF(R148<>""," -R","") ->  | T147: =IF(T148<>""," -R","") ->  | V147: =IF(V148<>""," -R","") ->  | X147: =IF(X148<>""," -R","") ->  | Z147: =IF(Z148<>""," -R","") ->  | AB147: =IF(AB148<>""," -R","") ->  | AD147: =IF(AD148<>""," -R","") -> 
